Workbook

Sheet Interview
A1: Genesys Info Mart 8.0 Database Size Estimator | B1: Document Version: GIMSize_800_02-2011_v8.0.101.00
A2: Note: This Database Size Estimator provides a range of expected database sizes.
A3: =IF(VALUE(INFO("release")) < 12,"STOP! Microsoft Excel 2007 or higher is required!","") ->  | B3: Size (GB)
A4: Info Mart Database | B4: =SIZE_UNITS_CURRENT_TOTAL -> 1,712.21
A6: Database Platform (Click to select a value.) | B6: Oracle
A8: Use this spreadsheet to estimate the sizes of Genesys Info Mart database for your environment. Fill in the shaded areas below. See also Aggregation tab if using aggregate tables. Note: To display a tooltip explaining each item in column A, click the applicable cell in column B.
A10: Contact Center Configuration | B10: Number
A11: Number of Agents | B11: 2,000
A12: Number of Agent Groups | B12: 100
A13: Number of Place Groups | B13: 100
A14: Number of Queue Groups | B14: 100
A15: Number of Skill Changes per Agent per Day | B15: 3
A16: Number of Changes per Agent Group per Day | B16: 20
A17: Number of Changes per Place Group per Day | B17: 20
A19: Business Data | B19: Number
A20: Number of Customer Segments | B20: 10
A21: Number of Service Types | B21: 20
A22: Number of Service Subtypes | B22: 100
A23: Number of Business Results | B23: 1
A24: Number of Requested Skill Combinations | B24: 10,000
A25: Number of Software Reasons | B25: 10
A26: Number of Custom Attached Data Dimension Tables | B26: 2
A27: Number of Values per Custom Attached Data Dimension Column | B27: 10
A28: Number of Custom Attached Data Fact Tables | B28: 2
A29: Average Custom Attached Data Length | B29: 32
A31: Interaction Volume | B31: Number
A32: Voice
A33: Number of Voice Interactions per Day | B33: 100,000
A34: Number of Handling Resources per Voice Interaction | B34: 2
A35: Number of Mediation Resources per Voice Interaction | B35: 2
A36: Multimedia
A37: Number of Multimedia (MM) Interactions per Day | B37: 30,000
A38: Number of Handling Resources per MM Interaction | B38: 3
A39: Number of Mediation Resources per MM Interaction | B39: 2
A40: Average Duration of MM Interactions (in days) | B40: 15
A42: Agent Activity Volume | B42: Number
A43: Number of Logins per Agent per Day | B43: 4
A44: Number of Agent State Changes per Interaction | B44: 3
A46: Outbound Configuration | B46: Number
A47: Number of Campaign Group Sessions per Day | B47: 3
A48: Number of Outbound Calls per Day | B48: 100,000
A49: Average Number of Phones per Contact in Calling List | B49: 2
A50: Number of Custom Fields per Calling List Record | B50: 5
A51: Number of Values per Custom Field in Calling List Records | B51: 10
A52: Average Duration of Outbound Campaigns (in days) | B52: 30
A54: Data Retention | B54: Number
A55: Days to Keep Global Interaction Database (GIDB) Facts | B55: 14
A56: Days to Keep Info Mart Facts | B56: 400
A57: Days to Keep Active Facts | B57: 600
A59: Database Settings | B59: Value
A60: Block Size | B60: =POWER(2,13) -> 8,192
A61: Percentage of Free Space | B61: 10%

Sheet Aggregation
A1: Note: Use these questions in addition to the main Interview tab in order to estimate the size of the aggregate tables, if adding these tables to the Info Mart database.
B2: Size (GB)
A3: Aggregation (AG2) tables | B3: =Agg_Current_DB_size_GB -> 1,486
A5: Contact Center Operational Parameters | B5: Number
A6: Days to Keep Aggregated Data | B6: 365
A7: Aggregation Interval (in min) | B7: 30
A8: Active Contact Center Hours per Day | B8: 24
A9: Average Agent Hours Worked per Day | B9: 8
A10: Average Number of Predefined Business Attribute Combinations per Agent per Hour | B10: 5
A11: Average Number of Custom Attached Data Combinations per Agent per Hour | B11: 5
A12: Average Number of Predefined Business Attribute Combinations per Contact Center per Hour | B12: =0.01*Number_of_Customer_Segments*Number_of_Service_Types*Number_of_Service_Subtypes*Number_of_Business_Results -> 200
A13: Average Number of Custom Attached Data Combinations per Contact Center per Hour | B13: =B12 -> 200
A14: Number of Queues | B14: 1,000

Sheet Aggregation Data (hidden)
A2: Size for Current DB, GB | B2: =VLOOKUP(DBMS_CURRENT, 'Aggregation Data'!A3:B4, 2, FALSE) -> 1485.610695
A3: Oracle | B3: =D19 -> 1485.610695
A4: MS SQLServer | B4: =E19 -> 1195.521033
A6: Aggregation table set | B6: Columns | C6: Rows | D6: Size, Oracle | E6: Size, MSSQL
A7: AG2_AGENT_* | B7: 44 | C7: =Agg_Days * (Agg_Agent_Hours + 1 + 12/365) * Number_of_Agents * Agg_Agent_Ixn_Desc * Agg_Agent_Custom_Attach_Data -> 164,850,000
A8: AG2_AGENT_QUEUE_* | B8: 46 | C8: =Agg_Days * (Agg_Agent_Hours + 1 + 12/365) * Number_of_Agents * Agg_Agent_Ixn_Desc * Agg_Agent_Custom_Attach_Data -> 164,850,000
A9: AG2_AGENT_GRP_* | B9: 43 | C9: =Agg_Days * (Agg_Agent_Hours + 1 + 12/365) * Number_of_Agent_Groups * Agg_Agent_Ixn_Desc * Agg_Agent_Custom_Attach_Data -> 8,242,500
A10: AG2_ID_* | B10: 47 | C10: =Agg_Days * (Agg_Tenant_Hours + 1 + 12/365) * Agg_Tenant_Ixn_Desc * Agg_Tenant_Custom_Attach_Data -> 365,480,000
A11: AG2_I_AGENT_* | B11: 39 | C11: =Agg_Days * (Agg_Agent_Hours + Agg_Agent_Hours*60/Agg_Interval + 1 + 12/365) * Number_of_Agents -> 18,274,000
A12: AG2_I_SESS_STATE_* | B12: 18 | C12: =Agg_Days * (Agg_Agent_Hours + Agg_Agent_Hours*60/Agg_Interval + 1 + 12/365) * Number_of_Agents -> 18,274,000
A13: AG2_I_STATE_RSN_* | B13: 10 | C13: =Agg_Days * (Agg_Agent_Hours + Agg_Agent_Hours*60/Agg_Interval + 1 + 12/365) * Number_of_Agents -> 18,274,000
A14: AG2_QUEUE_* | B14: 51 | C14: =Agg_Days * (Agg_Tenant_Hours + 1 + 12/365) * Agg_Queues -> 9,137,000
A15: AG2_QUEUE_GRP_* | B15: 50 | C15: =Agg_Days * (Agg_Tenant_Hours + 1 + 12/365) * Number_of_Queue_Groups -> 913,700
A16: AG2_QUEUE_ABN_* | B16: 28 | C16: =Agg_Days * (Agg_Tenant_Hours + 1 + 12/365) * Agg_Queues -> 9,137,000
A17: AG2_QUEUE_ACC_AGENT_* | B17: 28 | C17: =Agg_Days * (Agg_Tenant_Hours + 1 + 12/365) * Agg_Queues -> 9,137,000
A18: Total | B18: =SUM(B7:B17) -> 404 | C18: =SUM(C7:C17) -> 786,569,200 | D18: =(B18 * Agg_Column_Size_ORACLE + 8) * C18 -> 1,595,162,337,600 | E18: =(B18 * Agg_Column_Size_MSSQL + 16) * C18 -> 1,283,680,934,400
A19: Total, GB | D19: =D18/1024/1024/1024 -> 1485.610695 | E19: =E18/1024/1024/1024 -> 1195.521033
A21: Column size bytes, Oracle | B21: 5
A22: Column size bytes, MS SQL | B22: 4
A24: Aggregation Interval, min | B24: 15 | C24: 30
A27: Assumptions:
A28: Agent has some State and Interaction Activity in every Aggregation interval where Agent is Active
A29: Agent has Hardware or Software reason in each interval where Agent is Active
A30: Agent Group membership is fixed during the day when Agent is Active
A31: Agent Group handles same number of predefined and custom attach data combinations as Agents included in the Group

Sheet TABLE_SIZES (hidden)
A1: Table | B1: Rows | C1: Rows per Day | D1: Data Bytes | E1: Index Bytes | F1: Data Bytes per Day | G1: Index Bytes per Day | H1: Data Row Size | I1: Data Rows per Block | J1: Index Rows per Block | K1: Index Row Size | L1: _ | M1: TBL_ORACLE | N1: TBL_MSSQL | O1: TBL_DB2 | P1: INDEX_COUNT | Q1: NULLABLE_COUNT | R1: IDX_ORACLE | S1: IDX_MSSQL | T1: IDX_DB2
A2: RESOURCE_ | B2: =Number_of_Agents+Number_of_Routing_Strategies+Number_of_Queues+Number_of_Routing_Points+Number_of_IVR_Applications -> 4,030 | D2: =DBMS_Block_Size*CEILING(TABLE_SIZES[[#This Row],[Rows]]/TABLE_SIZES[[#This Row],[Data Rows per Block]],1) -> 11,010,048 | E2: =DBMS_Block_Size*CEILING(TABLE_SIZES[[#This Row],[Rows]]/TABLE_SIZES[[#This Row],[Index Rows per Block]],1) -> 565,248 | H2: =INDEX(TABLE_SIZES[[#This Row],[TBL_ORACLE]:[TBL_DB2]],,CODE_CURRENT) -> 2,362 | I2: =FLOOR(DBMS_Data_Block_Free_Size/TABLE_SIZES[[#This Row],[Data Row Size]],1) -> 3 | J2: =FLOOR(DBMS_Data_Block_Free_Size/TABLE_SIZES[[#This Row],[Index Row Size]],1) -> 59 | K2: =INDEX(TABLE_SIZES[[#This Row],[IDX_ORACLE]:[IDX_DB2]],,CODE_CURRENT) -> 123 | M2: =SUMIF(COL_SIZES[table_name],TABLE_SIZES[[#This Row],[Table]],COL_SIZES[Oracle]) + INDEX(DBMS_Data_Block_Header,,CODE_ORACLE) -> 2362 | N2: =SUMIF(COL_SIZES[table_name],TABLE_SIZES[[#This Row],[Table]],COL_SIZES[MSSQL]) + INDEX(DBMS_Data_Block_Header,,CODE_MSSQL) -> 2250 | O2: =SUMIF(COL_SIZES[table_name],TABLE_SIZES[[#This Row],[Table]],COL_SIZES[DB2]) + INDEX(DBMS_Data_Block_Header,,CODE_DB2) -> 2390 | P2: =SUMIF(IDX_SIZES[table_name],$A2,IDX_SIZES[INDEX_COUNT]) -> 4 | Q2: =SUMIF(IDX_SIZES[table_name],$A2,IDX_SIZES[NULLABLE_COUNT]) -> 5 | R2: =SUMIF(IDX_SIZES[table_name],TABLE_SIZES[[#This Row],[Table]],IDX_SIZES[Oracle]) + TABLE_SIZES[[#This Row],[INDEX_COUNT]]*INDEX(DBMS_Index_Row_Header,,CODE_ORACLE) + TABLE_SIZES[[#This Row],[NULLABLE_COUNT]] -> 123 | S2: =SUMIF(IDX_SIZES[table_name],TABLE_SIZES[[#This Row],[Table]],IDX_SIZES[MSSQL]) + TABLE_SIZES[[#This Row],[INDEX_COUNT]]*INDEX(DBMS_Index_Row_Header,,CODE_MSSQL) + TABLE_SIZES[[#This Row],[NULLABLE_COUNT]] -> 125 | T2: =SUMIF(IDX_SIZES[table_name],TABLE_SIZES[[#This Row],[Table]],IDX_SIZES[DB2]) + TABLE_SIZES[[#This Row],[INDEX_COUNT]]*INDEX(DBMS_Index_Row_Header,,CODE_DB2) + TABLE_SIZES[[#This Row],[NULLABLE_COUNT]] -> 125
A3: ROUTING_TARGET | B3: =Number_of_Agent_Groups+Number_of_Place_Groups+Number_of_Requested_Skill_Combinations+Number_of_Queues+Number_of_Routing_Points -> 11,000 | D3: =DBMS_Block_Size*CEILING(TABLE_SIZES[[#This Row],[Rows]]/TABLE_SIZES[[#This Row],[Data Rows per Block]],1) -> 18,022,400 | E3: =DBMS_Block_Size*CEILING(TABLE_SIZES[[#This Row],[Rows]]/TABLE_SIZES[[#This Row],[Index Rows per Block]],1) -> 212,992 | H3: =INDEX(TABLE_SIZES[[#This Row],[TBL_ORACLE]:[TBL_DB2]],,CODE_CURRENT) -> 1,273 | I3: =FLOOR(DBMS_Data_Block_Free_Size/TABLE_SIZES[[#This Row],[Data Row Size]],1) -> 5 | J3: =FLOOR(DBMS_Data_Block_Free_Size/TABLE_SIZES[[#This Row],[Index Row Size]],1) -> 429 | K3: =INDEX(TABLE_SIZES[[#This Row],[IDX_ORACLE]:[IDX_DB2]],,CODE_CURRENT) -> 17 | M3: =SUMIF(COL_SIZES[table_name],TABLE_SIZES[[#This Row],[Table]],COL_SIZES[Oracle]) + INDEX(DBMS_Data_Block_Header,,CODE_ORACLE) -> 1273 | N3: =SUMIF(COL_SIZES[table_name],TABLE_SIZES[[#This Row],[Table]],COL_SIZES[MSSQL]) + INDEX(DBMS_Data_Block_Header,,CODE_MSSQL) -> 1169 | O3: =SUMIF(COL_SIZES[table_name],TABLE_SIZES[[#This Row],[Table]],COL_SIZES[DB2]) + INDEX(DBMS_Data_Block_Header,,CODE_DB2) -> 1285 | P3: =SUMIF(IDX_SIZES[table_name],$A3,IDX_SIZES[INDEX_COUNT]) -> 1 | Q3: =SUMIF(IDX_SIZES[table_name],$A3,IDX_SIZES[NULLABLE_COUNT]) -> 0 | R3: =SUMIF(IDX_SIZES[table_name],TABLE_SIZES[[#This Row],[Table]],IDX_SIZES[Oracle]) + TABLE_SIZES[[#This Row],[INDEX_COUNT]]*INDEX(DBMS_Index_Row_Header,,CODE_ORACLE) + TABLE_SIZES[[#This Row],[NULLABLE_COUNT]] -> 17 | S3: =SUMIF(IDX_SIZES[table_name],TABLE_SIZES[[#This Row],[Table]],IDX_SIZES[MSSQL]) + TABLE_SIZES[[#This Row],[INDEX_COUNT]]*INDEX(DBMS_Index_Row_Header,,CODE_MSSQL) + TABLE_SIZES[[#This Row],[NULLABLE_COUNT]] -> 20 | T3: =SUMIF(IDX_SIZES[table_name],TABLE_SIZES[[#This Row],[Table]],IDX_SIZES[DB2]) + TABLE_SIZES[[#This Row],[INDEX_COUNT]]*INDEX(DBMS_Index_Row_Header,,CODE_DB2) + TABLE_SIZES[[#This Row],[NULLABLE_COUNT]] -> 17
A4: STRATEGY | B4: =Number_of_Routing_Strategies -> 1,200 | D4: =DBMS_Block_Size*CEILING(TABLE_SIZES[[#This Row],[Rows]]/TABLE_SIZES[[#This Row],[Data Rows per Block]],1) -> 983,040 | E4: =DBMS_Block_Size*CEILING(TABLE_SIZES[[#This Row],[Rows]]/TABLE_SIZES[[#This Row],[Index Rows per Block]],1) -> 24,576 | H4: =INDEX(TABLE_SIZES[[#This Row],[TBL_ORACLE]:[TBL_DB2]],,CODE_CURRENT) -> 667 | I4: =FLOOR(DBMS_Data_Block_Free_Size/TABLE_SIZES[[#This Row],[Data Row Size]],1) -> 10 | J4: =FLOOR(DBMS_Data_Block_Free_Size/TABLE_SIZES[[#This Row],[Index Row Size]],1) -> 429 | K4: =INDEX(TABLE_SIZES[[#This Row],[IDX_ORACLE]:[IDX_DB2]],,CODE_CURRENT) -> 17 | M4: =SUMIF(COL_SIZES[table_name],TABLE_SIZES[[#This Row],[Table]],COL_SIZES[Oracle]) + INDEX(DBMS_Data_Block_Header,,CODE_ORACLE) -> 667 | N4: =SUMIF(COL_SIZES[table_name],TABLE_SIZES[[#This Row],[Table]],COL_SIZES[MSSQL]) + INDEX(DBMS_Data_Block_Header,,CODE_MSSQL) -> 563 | O4: =SUMIF(COL_SIZES[table_name],TABLE_SIZES[[#This Row],[Table]],COL_SIZES[DB2]) + INDEX(DBMS_Data_Block_Header,,CODE_DB2) -> 673 | P4: =SUMIF(IDX_SIZES[table_name],$A4,IDX_SIZES[INDEX_COUNT]) -> 1 | Q4: =SUMIF(IDX_SIZES[table_name],$A4,IDX_SIZES[NULLABLE_COUNT]) -> 0 | R4: =SUMIF(IDX_SIZES[table_name],TABLE_SIZES[[#This Row],[Table]],IDX_SIZES[Oracle]) + TABLE_SIZES[[#This Row],[INDEX_COUNT]]*INDEX(DBMS_Index_Row_Header,,CODE_ORACLE) + TABLE_SIZES[[#This Row],[NULLABLE_COUNT]] -> 17 | S4: =SUMIF(IDX_SIZES[table_name],TABLE_SIZES[[#This Row],[Table]],IDX_SIZES[MSSQL]) + TABLE_SIZES[[#This Row],[INDEX_COUNT]]*INDEX(DBMS_Index_Row_Header,,CODE_MSSQL) + TABLE_SIZES[[#This Row],[NULLABLE_COUNT]] -> 20 | T4: =SUMIF(IDX_SIZES[table_name],TABLE_SIZES[[#This Row],[Table]],IDX_SIZES[DB2]) + TABLE_SIZES[[#This Row],[INDEX_COUNT]]*INDEX(DBMS_Index_Row_Header,,CODE_DB2) + TABLE_SIZES[[#This Row],[NULLABLE_COUNT]] -> 17
A5: DATE_TIME | B5: =DATE_TIME_YEARS*365*24*4 -> 70,080 | D5: =DBMS_Block_Size*CEILING(TABLE_SIZES[[#This Row],[Rows]]/TABLE_SIZES[[#This Row],[Data Rows per Block]],1) -> 114,819,072 | E5: =DBMS_Block_Size*CEILING(TABLE_SIZES[[#This Row],[Rows]]/TABLE_SIZES[[#This Row],[Index Rows per Block]],1) -> 17,940,480 | H5: =INDEX(TABLE_SIZES[[#This Row],[TBL_ORACLE]:[TBL_DB2]],,CODE_CURRENT) -> 1,273 | I5: =FLOOR(DBMS_Data_Block_Free_Size/TABLE_SIZES[[#This Row],[Data Row Size]],1) -> 5 | J5: =FLOOR(DBMS_Data_Block_Free_Size/TABLE_SIZES[[#This Row],[Index Row Size]],1) -> 32 | K5: =INDEX(TABLE_SIZES[[#This Row],[IDX_ORACLE]:[IDX_DB2]],,CODE_CURRENT) -> 223 | M5: =SUMIF(COL_SIZES[table_name],TABLE_SIZES[[#This Row],[Table]],COL_SIZES[Oracle]) + INDEX(DBMS_Data_Block_Header,,CODE_ORACLE) -> 1273 | N5: =SUMIF(COL_SIZES[table_name],TABLE_SIZES[[#This Row],[Table]],COL_SIZES[MSSQL]) + INDEX(DBMS_Data_Block_Header,,CODE_MSSQL) -> 1028 | O5: =SUMIF(COL_SIZES[table_name],TABLE_SIZES[[#This Row],[Table]],COL_SIZES[DB2]) + INDEX(DBMS_Data_Block_Header,,CODE_DB2) -> 1338 | P5: =SUMIF(IDX_SIZES[table_name],$A5,IDX_SIZES[INDEX_COUNT]) -> 9 | Q5: =SUMIF(IDX_SIZES[table_name],$A5,IDX_SIZES[NULLABLE_COUNT]) -> 0 | R5: =SUMIF(IDX_SIZES[table_name],TABLE_SIZES[[#This Row],[Table]],IDX_SIZES[Oracle]) + TABLE_SIZES[[#This Row],[INDEX_COUNT]]*INDEX(DBMS_Index_Row_Header,,CODE_ORACLE) + TABLE_SIZES[[#This Row],[NULLABLE_COUNT]] -> 223 | S5: =SUMIF(IDX_SIZES[table_name],TABLE_SIZES[[#This Row],[Table]],IDX_SIZES[MSSQL]) + TABLE_SIZES[[#This Row],[INDEX_COUNT]]*INDEX(DBMS_Index_Row_Header,,CODE_MSSQL) + TABLE_SIZES[[#This Row],[NULLABLE_COUNT]] -> 216 | T5: =SUMIF(IDX_SIZES[table_name],TABLE_SIZES[[#This Row],[Table]],IDX_SIZES[DB2]) + TABLE_SIZES[[#This Row],[INDEX_COUNT]]*INDEX(DBMS_Index_Row_Header,,CODE_DB2) + TABLE_SIZES[[#This Row],[NULLABLE_COUNT]] -> 226
A6: INTERACTION_DESCRIPTOR | B6: =Number_of_Customer_Segments*Number_of_Service_Types*Number_of_Service_Subtypes*Number_of_Business_Results -> 20,000 | D6: =DBMS_Block_Size*CEILING(TABLE_SIZES[[#This Row],[Rows]]/TABLE_SIZES[[#This Row],[Data Rows per Block]],1) -> 18,210,816 | E6: =DBMS_Block_Size*CEILING(TABLE_SIZES[[#This Row],[Rows]]/TABLE_SIZES[[#This Row],[Index Rows per Block]],1) -> 16,384,000 | H6: =INDEX(TABLE_SIZES[[#This Row],[TBL_ORACLE]:[TBL_DB2]],,CODE_CURRENT) -> 796 | I6: =FLOOR(DBMS_Data_Block_Free_Size/TABLE_SIZES[[#This Row],[Data Row Size]],1) -> 9 | J6: =FLOOR(DBMS_Data_Block_Free_Size/TABLE_SIZES[[#This Row],[Index Row Size]],1) -> 10 | K6: =INDEX(TABLE_SIZES[[#This Row],[IDX_ORACLE]:[IDX_DB2]],,CODE_CURRENT) -> 714 | M6: =SUMIF(COL_SIZES[table_name],TABLE_SIZES[[#This Row],[Table]],COL_SIZES[Oracle]) + INDEX(DBMS_Data_Block_Header,,CODE_ORACLE) -> 796 | N6: =SUMIF(COL_SIZES[table_name],TABLE_SIZES[[#This Row],[Table]],COL_SIZES[MSSQL]) + INDEX(DBMS_Data_Block_Header,,CODE_MSSQL) -> 697 | O6: =SUMIF(COL_SIZES[table_name],TABLE_SIZES[[#This Row],[Table]],COL_SIZES[DB2]) + INDEX(DBMS_Data_Block_Header,,CODE_DB2) -> 804 | P6: =SUMIF(IDX_SIZES[table_name],$A6,IDX_SIZES[INDEX_COUNT]) -> 2 | Q6: =SUMIF(IDX_SIZES[table_name],$A6,IDX_SIZES[NULLABLE_COUNT]) -> 0 | R6: =SUMIF(IDX_SIZES[table_name],TABLE_SIZES[[#This Row],[Table]],IDX_SIZES[Oracle]) + TABLE_SIZES[[#This Row],[INDEX_COUNT]]*INDEX(DBMS_Index_Row_Header,,CODE_ORACLE) + TABLE_SIZES[[#This Row],[NULLABLE_COUNT]] -> 714 | S6: =SUMIF(IDX_SIZES[table_name],TABLE_SIZES[[#This Row],[Table]],IDX_SIZES[MSSQL]) + TABLE_SIZES[[#This Row],[INDEX_COUNT]]*INDEX(DBMS_Index_Row_Header,,CODE_MSSQL) + TABLE_SIZES[[#This Row],[NULLABLE_COUNT]] -> 720 | T6: =SUMIF(IDX_SIZES[table_name],TABLE_SIZES[[#This Row],[Table]],IDX_SIZES[DB2]) + TABLE_SIZES[[#This Row],[INDEX_COUNT]]*INDEX(DBMS_Index_Row_Header,,CODE_DB2) + TABLE_SIZES[[#This Row],[NULLABLE_COUNT]] -> 722
A7: USER_DATA_CUST_DIM_1 | B7: =Number_of_User_Data_Dimension_Tables*POWER(Number_of_Values_per_User_Data_Dimension_Column,Number_of_Columns_per_User_Data_Dimension_Table)*User_Data_Dimension_Fill_Factor -> 200,000 | D7: =DBMS_Block_Size*CEILING(TABLE_SIZES[[#This Row],[Rows]]/TABLE_SIZES[[#This Row],[Data Rows per Block]],1) -> 234,061,824 | E7: =DBMS_Block_Size*CEILING(TABLE_SIZES[[#This Row],[Rows]]/TABLE_SIZES[[#This Row],[Index Rows per Block]],1) -> 204,800,000 | H7: =INDEX(TABLE_SIZES[[#This Row],[TBL_ORACLE]:[TBL_DB2]],,CODE_CURRENT) -> 961 | I7: =FLOOR(DBMS_Data_Block_Free_Size/TABLE_SIZES[[#This Row],[Data Row Size]],1) -> 7 | J7: =FLOOR(DBMS_Data_Block_Free_Size/TABLE_SIZES[[#This Row],[Index Row Size]],1) -> 8 | K7: =INDEX(TABLE_SIZES[[#This Row],[IDX_ORACLE]:[IDX_DB2]],,CODE_CURRENT) -> 884 | M7: =SUMIF(COL_SIZES[table_name],TABLE_SIZES[[#This Row],[Table]],COL_SIZES[Oracle]) + INDEX(DBMS_Data_Block_Header,,CODE_ORACLE) -> 961 | N7: =SUMIF(COL_SIZES[table_name],TABLE_SIZES[[#This Row],[Table]],COL_SIZES[MSSQL]) + INDEX(DBMS_Data_Block_Header,,CODE_MSSQL) -> 862 | O7: =SUMIF(COL_SIZES[table_name],TABLE_SIZES[[#This Row],[Table]],COL_SIZES[DB2]) + INDEX(DBMS_Data_Block_Header,,CODE_DB2) -> 971 | P7: =SUMIF(IDX_SIZES[table_name],$A7,IDX_SIZES[INDEX_COUNT]) -> 2 | Q7: =SUMIF(IDX_SIZES[table_name],$A7,IDX_SIZES[NULLABLE_COUNT]) -> 0 | R7: =SUMIF(IDX_SIZES[table_name],TABLE_SIZES[[#This Row],[Table]],IDX_SIZES[Oracle]) + TABLE_SIZES[[#This Row],[INDEX_COUNT]]*INDEX(DBMS_Index_Row_Header,,CODE_ORACLE) + TABLE_SIZES[[#This Row],[NULLABLE_COUNT]] -> 884 | S7: =SUMIF(IDX_SIZES[table_name],TABLE_SIZES[[#This Row],[Table]],IDX_SIZES[MSSQL]) + TABLE_SIZES[[#This Row],[INDEX_COUNT]]*INDEX(DBMS_Index_Row_Header,,CODE_MSSQL) + TABLE_SIZES[[#This Row],[NULLABLE_COUNT]] -> 890 | T7: =SUMIF(IDX_SIZES[table_name],TABLE_SIZES[[#This Row],[Table]],IDX_SIZES[DB2]) + TABLE_SIZES[[#This Row],[INDEX_COUNT]]*INDEX(DBMS_Index_Row_Header,,CODE_DB2) + TABLE_SIZES[[#This Row],[NULLABLE_COUNT]] -> 894
A8: REQUESTED_SKILL_COMBINATION | B8: =Number_of_Requested_Skill_Combinations -> 10,000 | D8: =DBMS_Block_Size*CEILING(TABLE_SIZES[[#This Row],[Rows]]/TABLE_SIZES[[#This Row],[Data Rows per Block]],1) -> 7,454,720 | E8: =DBMS_Block_Size*CEILING(TABLE_SIZES[[#This Row],[Rows]]/TABLE_SIZES[[#This Row],[Index Rows per Block]],1) -> 196,608 | H8: =INDEX(TABLE_SIZES[[#This Row],[TBL_ORACLE]:[TBL_DB2]],,CODE_CURRENT) -> 640 | I8: =FLOOR(DBMS_Data_Block_Free_Size/TABLE_SIZES[[#This Row],[Data Row Size]],1) -> 11 | J8: =FLOOR(DBMS_Data_Block_Free_Size/TABLE_SIZES[[#This Row],[Index Row Size]],1) -> 429 | K8: =INDEX(TABLE_SIZES[[#This Row],[IDX_ORACLE]:[IDX_DB2]],,CODE_CURRENT) -> 17 | M8: =SUMIF(COL_SIZES[table_name],TABLE_SIZES[[#This Row],[Table]],COL_SIZES[Oracle]) + INDEX(DBMS_Data_Block_Header,,CODE_ORACLE) -> 640 | N8: =SUMIF(COL_SIZES[table_name],TABLE_SIZES[[#This Row],[Table]],COL_SIZES[MSSQL]) + INDEX(DBMS_Data_Block_Header,,CODE_MSSQL) -> 533 | O8: =SUMIF(COL_SIZES[table_name],TABLE_SIZES[[#This Row],[Table]],COL_SIZES[DB2]) + INDEX(DBMS_Data_Block_Header,,CODE_DB2) -> 644 | P8: =SUMIF(IDX_SIZES[table_name],$A8,IDX_SIZES[INDEX_COUNT]) -> 1 | Q8: =SUMIF(IDX_SIZES[table_name],$A8,IDX_SIZES[NULLABLE_COUNT]) -> 0 | R8: =SUMIF(IDX_SIZES[table_name],TABLE_SIZES[[#This Row],[Table]],IDX_SIZES[Oracle]) + TABLE_SIZES[[#This Row],[INDEX_COUNT]]*INDEX(DBMS_Index_Row_Header,,CODE_ORACLE) + TABLE_SIZES[[#This Row],[NULLABLE_COUNT]] -> 17 | S8: =SUMIF(IDX_SIZES[table_name],TABLE_SIZES[[#This Row],[Table]],IDX_SIZES[MSSQL]) + TABLE_SIZES[[#This Row],[INDEX_COUNT]]*INDEX(DBMS_Index_Row_Header,,CODE_MSSQL) + TABLE_SIZES[[#This Row],[NULLABLE_COUNT]] -> 20 | T8: =SUMIF(IDX_SIZES[table_name],TABLE_SIZES[[#This Row],[Table]],IDX_SIZES[DB2]) + TABLE_SIZES[[#This Row],[INDEX_COUNT]]*INDEX(DBMS_Index_Row_Header,,CODE_DB2) + TABLE_SIZES[[#This Row],[NULLABLE_COUNT]] -> 17
A9: RESOURCE_GROUP_COMBINATION | B9: =Number_of_Resource_Group_Combinations -> 100,000 | D9: =DBMS_Block_Size*CEILING(TABLE_SIZES[[#This Row],[Rows]]/TABLE_SIZES[[#This Row],[Data Rows per Block]],1) -> 14,630,912 | E9: =IFERROR(DBMS_Block_Size*CEILING(TABLE_SIZES[[#This Row],[Rows]]/TABLE_SIZES[[#This Row],[Index Rows per Block]],1),0) -> 0 | H9: =INDEX(TABLE_SIZES[[#This Row],[TBL_ORACLE]:[TBL_DB2]],,CODE_CURRENT) -> 129 | I9: =FLOOR(DBMS_Data_Block_Free_Size/TABLE_SIZES[[#This Row],[Data Row Size]],1) -> 56 | J9: =FLOOR(DBMS_Data_Block_Free_Size/TABLE_SIZES[[#This Row],[Index Row Size]],1) ->  | K9: =INDEX(TABLE_SIZES[[#This Row],[IDX_ORACLE]:[IDX_DB2]],,CODE_CURRENT) -> 0 | M9: =SUMIF(COL_SIZES[table_name],TABLE_SIZES[[#This Row],[Table]],COL_SIZES[Oracle]) + INDEX(DBMS_Data_Block_Header,,CODE_ORACLE) -> 129 | N9: =SUMIF(COL_SIZES[table_name],TABLE_SIZES[[#This Row],[Table]],COL_SIZES[MSSQL]) + INDEX(DBMS_Data_Block_Header,,CODE_MSSQL) -> 20 | O9: =SUMIF(COL_SIZES[table_name],TABLE_SIZES[[#This Row],[Table]],COL_SIZES[DB2]) + INDEX(DBMS_Data_Block_Header,,CODE_DB2) -> 129 | P9: =SUMIF(IDX_SIZES[table_name],$A9,IDX_SIZES[INDEX_COUNT]) -> 0 | Q9: =SUMIF(IDX_SIZES[table_name],$A9,IDX_SIZES[NULLABLE_COUNT]) -> 0 | R9: =SUMIF(IDX_SIZES[table_name],TABLE_SIZES[[#This Row],[Table]],IDX_SIZES[Oracle]) + TABLE_SIZES[[#This Row],[INDEX_COUNT]]*INDEX(DBMS_Index_Row_Header,,CODE_ORACLE) + TABLE_SIZES[[#This Row],[NULLABLE_COUNT]] -> 0 | S9: =SUMIF(IDX_SIZES[table_name],TABLE_SIZES[[#This Row],[Table]],IDX_SIZES[MSSQL]) + TABLE_SIZES[[#This Row],[INDEX_COUNT]]*INDEX(DBMS_Index_Row_Header,,CODE_MSSQL) + TABLE_SIZES[[#This Row],[NULLABLE_COUNT]] -> 0 | T9: =SUMIF(IDX_SIZES[table_name],TABLE_SIZES[[#This Row],[Table]],IDX_SIZES[DB2]) + TABLE_SIZES[[#This Row],[INDEX_COUNT]]*INDEX(DBMS_Index_Row_Header,,CODE_DB2) + TABLE_SIZES[[#This Row],[NULLABLE_COUNT]] -> 0
A11: CTL_AUDIT_LOG | C11: =Number_of_Facts_per_Day/Chunks_per_Day*Number_of_Audit_Keys_per_Chunk -> 42,500 | D11: =TABLE_SIZES[[#This Row],[Data Bytes per Day]]*Days_to_Keep_Info_Mart_Facts -> 4,354,867,200 | E11: =TABLE_SIZES[[#This Row],[Index Bytes per Day]]*Days_to_Keep_Info_Mart_Facts -> 652,083,200 | F11: =DBMS_Block_Size*CEILING(TABLE_SIZES[[#This Row],[Rows per Day]]/TABLE_SIZES[[#This Row],[Data Rows per Block]],1) -> 10,887,168 | G11: =DBMS_Block_Size*CEILING(TABLE_SIZES[[#This Row],[Rows per Day]]/TABLE_SIZES[[#This Row],[Index Rows per Block]],1) -> 1,630,208 | H11: =INDEX(TABLE_SIZES[[#This Row],[TBL_ORACLE]:[TBL_DB2]],,CODE_CURRENT) -> 225 | I11: =FLOOR(DBMS_Data_Block_Free_Size/TABLE_SIZES[[#This Row],[Data Row Size]],1) -> 32 | J11: =FLOOR(DBMS_Data_Block_Free_Size/TABLE_SIZES[[#This Row],[Index Row Size]],1) -> 214 | K11: =INDEX(TABLE_SIZES[[#This Row],[IDX_ORACLE]:[IDX_DB2]],,CODE_CURRENT) -> 34 | M11: =SUMIF(COL_SIZES[table_name],TABLE_SIZES[[#This Row],[Table]],COL_SIZES[Oracle]) + INDEX(DBMS_Data_Block_Header,,CODE_ORACLE) -> 225 | N11: =SUMIF(COL_SIZES[table_name],TABLE_SIZES[[#This Row],[Table]],COL_SIZES[MSSQL]) + INDEX(DBMS_Data_Block_Header,,CODE_MSSQL) -> 113 | O11: =SUMIF(COL_SIZES[table_name],TABLE_SIZES[[#This Row],[Table]],COL_SIZES[DB2]) + INDEX(DBMS_Data_Block_Header,,CODE_DB2) -> 233 | P11: =SUMIF(IDX_SIZES[table_name],$A11,IDX_SIZES[INDEX_COUNT]) -> 2 | Q11: =SUMIF(IDX_SIZES[table_name],$A11,IDX_SIZES[NULLABLE_COUNT]) -> 0 | R11: =SUMIF(IDX_SIZES[table_name],TABLE_SIZES[[#This Row],[Table]],IDX_SIZES[Oracle]) + TABLE_SIZES[[#This Row],[INDEX_COUNT]]*INDEX(DBMS_Index_Row_Header,,CODE_ORACLE) + TABLE_SIZES[[#This Row],[NULLABLE_COUNT]] -> 34 | S11: =SUMIF(IDX_SIZES[table_name],TABLE_SIZES[[#This Row],[Table]],IDX_SIZES[MSSQL]) + TABLE_SIZES[[#This Row],[INDEX_COUNT]]*INDEX(DBMS_Index_Row_Header,,CODE_MSSQL) + TABLE_SIZES[[#This Row],[NULLABLE_COUNT]] -> 45 | T11: =SUMIF(IDX_SIZES[table_name],TABLE_SIZES[[#This Row],[Table]],IDX_SIZES[DB2]) + TABLE_SIZES[[#This Row],[INDEX_COUNT]]*INDEX(DBMS_Index_Row_Header,,CODE_DB2) + TABLE_SIZES[[#This Row],[NULLABLE_COUNT]] -> 34
A13: INTERACTION_FACT | C13: =Number_of_Interactions_per_Day -> 130,000 | D13: =TABLE_SIZES[[#This Row],[Data Bytes per Day]]*Average_Days_to_Keep_GIM_MM_Ixn -> 70,998,425,600 | E13: =TABLE_SIZES[[#This Row],[Index Bytes per Day]]*Average_Days_to_Keep_GIM_MM_Ixn -> 1,992,294,400 | F13: =DBMS_Block_Size*CEILING(TABLE_SIZES[[#This Row],[Rows per Day]]/TABLE_SIZES[[#This Row],[Data Rows per Block]],1) -> 177,496,064 | G13: =DBMS_Block_Size*CEILING(TABLE_SIZES[[#This Row],[Rows per Day]]/TABLE_SIZES[[#This Row],[Index Rows per Block]],1) -> 4,980,736 | H13: =INDEX(TABLE_SIZES[[#This Row],[TBL_ORACLE]:[TBL_DB2]],,CODE_CURRENT) -> 1,067 | I13: =FLOOR(DBMS_Data_Block_Free_Size/TABLE_SIZES[[#This Row],[Data Row Size]],1) -> 6 | J13: =FLOOR(DBMS_Data_Block_Free_Size/TABLE_SIZES[[#This Row],[Index Row Size]],1) -> 214 | K13: =INDEX(TABLE_SIZES[[#This Row],[IDX_ORACLE]:[IDX_DB2]],,CODE_CURRENT) -> 34 | M13: =SUMIF(COL_SIZES[table_name],TABLE_SIZES[[#This Row],[Table]],COL_SIZES[Oracle]) + INDEX(DBMS_Data_Block_Header,,CODE_ORACLE) -> 1067 | N13: =SUMIF(COL_SIZES[table_name],TABLE_SIZES[[#This Row],[Table]],COL_SIZES[MSSQL]) + INDEX(DBMS_Data_Block_Header,,CODE_MSSQL) -> 938 | O13: =SUMIF(COL_SIZES[table_name],TABLE_SIZES[[#This Row],[Table]],COL_SIZES[DB2]) + INDEX(DBMS_Data_Block_Header,,CODE_DB2) -> 1077 | P13: =SUMIF(IDX_SIZES[table_name],$A13,IDX_SIZES[INDEX_COUNT]) -> 2 | Q13: =SUMIF(IDX_SIZES[table_name],$A13,IDX_SIZES[NULLABLE_COUNT]) -> 0 | R13: =SUMIF(IDX_SIZES[table_name],TABLE_SIZES[[#This Row],[Table]],IDX_SIZES[Oracle]) + TABLE_SIZES[[#This Row],[INDEX_COUNT]]*INDEX(DBMS_Index_Row_Header,,CODE_ORACLE) + TABLE_SIZES[[#This Row],[NULLABLE_COUNT]] -> 34 | S13: =SUMIF(IDX_SIZES[table_name],TABLE_SIZES[[#This Row],[Table]],IDX_SIZES[MSSQL]) + TABLE_SIZES[[#This Row],[INDEX_COUNT]]*INDEX(DBMS_Index_Row_Header,,CODE_MSSQL) + TABLE_SIZES[[#This Row],[NULLABLE_COUNT]] -> 45 | T13: =SUMIF(IDX_SIZES[table_name],TABLE_SIZES[[#This Row],[Table]],IDX_SIZES[DB2]) + TABLE_SIZES[[#This Row],[INDEX_COUNT]]*INDEX(DBMS_Index_Row_Header,,CODE_DB2) + TABLE_SIZES[[#This Row],[NULLABLE_COUNT]] -> 34
A14: INTERACTION_RESOURCE_FACT | C14: =Number_of_IRFs_per_Day -> 290,000 | D14: =TABLE_SIZES[[#This Row],[Data Bytes per Day]]*Average_Days_to_Keep_GIM_MM_Ixn -> 118,784,000,000 | E14: =TABLE_SIZES[[#This Row],[Index Bytes per Day]]*Average_Days_to_Keep_GIM_MM_Ixn -> 12,183,142,400 | F14: =DBMS_Block_Size*CEILING(TABLE_SIZES[[#This Row],[Rows per Day]]/TABLE_SIZES[[#This Row],[Data Rows per Block]],1) -> 296,960,000 | G14: =DBMS_Block_Size*CEILING(TABLE_SIZES[[#This Row],[Rows per Day]]/TABLE_SIZES[[#This Row],[Index Rows per Block]],1) -> 30,457,856 | H14: =INDEX(TABLE_SIZES[[#This Row],[TBL_ORACLE]:[TBL_DB2]],,CODE_CURRENT) -> 881 | I14: =FLOOR(DBMS_Data_Block_Free_Size/TABLE_SIZES[[#This Row],[Data Row Size]],1) -> 8 | J14: =FLOOR(DBMS_Data_Block_Free_Size/TABLE_SIZES[[#This Row],[Index Row Size]],1) -> 78 | K14: =INDEX(TABLE_SIZES[[#This Row],[IDX_ORACLE]:[IDX_DB2]],,CODE_CURRENT) -> 93 | M14: =SUMIF(COL_SIZES[table_name],TABLE_SIZES[[#This Row],[Table]],COL_SIZES[Oracle]) + INDEX(DBMS_Data_Block_Header,,CODE_ORACLE) -> 881 | N14: =SUMIF(COL_SIZES[table_name],TABLE_SIZES[[#This Row],[Table]],COL_SIZES[MSSQL]) + INDEX(DBMS_Data_Block_Header,,CODE_MSSQL) -> 417 | O14: =SUMIF(COL_SIZES[table_name],TABLE_SIZES[[#This Row],[Table]],COL_SIZES[DB2]) + INDEX(DBMS_Data_Block_Header,,CODE_DB2) -> 883 | P14: =SUMIF(IDX_SIZES[table_name],$A14,IDX_SIZES[INDEX_COUNT]) -> 3 | Q14: =SUMIF(IDX_SIZES[table_name],$A14,IDX_SIZES[NULLABLE_COUNT]) -> 1 | R14: =SUMIF(IDX_SIZES[table_name],TABLE_SIZES[[#This Row],[Table]],IDX_SIZES[Oracle]) + TABLE_SIZES[[#This Row],[INDEX_COUNT]]*INDEX(DBMS_Index_Row_Header,,CODE_ORACLE) + TABLE_SIZES[[#This Row],[NULLABLE_COUNT]] -> 93 | S14: =SUMIF(IDX_SIZES[table_name],TABLE_SIZES[[#This Row],[Table]],IDX_SIZES[MSSQL]) + TABLE_SIZES[[#This Row],[INDEX_COUNT]]*INDEX(DBMS_Index_Row_Header,,CODE_MSSQL) + TABLE_SIZES[[#This Row],[NULLABLE_COUNT]] -> 112 | T14: =SUMIF(IDX_SIZES[table_name],TABLE_SIZES[[#This Row],[Table]],IDX_SIZES[DB2]) + TABLE_SIZES[[#This Row],[INDEX_COUNT]]*INDEX(DBMS_Index_Row_Header,,CODE_DB2) + TABLE_SIZES[[#This Row],[NULLABLE_COUNT]] -> 95
A15: IRF_USER_DATA_KEYS | C15: =Number_of_IRFs_per_Day -> 290,000 | D15: =TABLE_SIZES[[#This Row],[Data Bytes per Day]]*Average_Days_to_Keep_GIM_MM_Ixn -> 16,970,547,200 | E15: =TABLE_SIZES[[#This Row],[Index Bytes per Day]]*Average_Days_to_Keep_GIM_MM_Ixn -> 4,443,340,800 | F15: =DBMS_Block_Size*CEILING(TABLE_SIZES[[#This Row],[Rows per Day]]/TABLE_SIZES[[#This Row],[Data Rows per Block]],1) -> 42,426,368 | G15: =DBMS_Block_Size*CEILING(TABLE_SIZES[[#This Row],[Rows per Day]]/TABLE_SIZES[[#This Row],[Index Rows per Block]],1) -> 11,108,352 | H15: =INDEX(TABLE_SIZES[[#This Row],[TBL_ORACLE]:[TBL_DB2]],,CODE_CURRENT) -> 129 | I15: =FLOOR(DBMS_Data_Block_Free_Size/TABLE_SIZES[[#This Row],[Data Row Size]],1) -> 56 | J15: =FLOOR(DBMS_Data_Block_Free_Size/TABLE_SIZES[[#This Row],[Index Row Size]],1) -> 214 | K15: =INDEX(TABLE_SIZES[[#This Row],[IDX_ORACLE]:[IDX_DB2]],,CODE_CURRENT) -> 34 | M15: =SUMIF(COL_SIZES[table_name],TABLE_SIZES[[#This Row],[Table]],COL_SIZES[Oracle]) + INDEX(DBMS_Data_Block_Header,,CODE_ORACLE) -> 129 | N15: =SUMIF(COL_SIZES[table_name],TABLE_SIZES[[#This Row],[Table]],COL_SIZES[MSSQL]) + INDEX(DBMS_Data_Block_Header,,CODE_MSSQL) -> 25 | O15: =SUMIF(COL_SIZES[table_name],TABLE_SIZES[[#This Row],[Table]],COL_SIZES[DB2]) + INDEX(DBMS_Data_Block_Header,,CODE_DB2) -> 129 | P15: =SUMIF(IDX_SIZES[table_name],$A15,IDX_SIZES[INDEX_COUNT]) -> 2 | Q15: =SUMIF(IDX_SIZES[table_name],$A15,IDX_SIZES[NULLABLE_COUNT]) -> 0 | R15: =SUMIF(IDX_SIZES[table_name],TABLE_SIZES[[#This Row],[Table]],IDX_SIZES[Oracle]) + TABLE_SIZES[[#This Row],[INDEX_COUNT]]*INDEX(DBMS_Index_Row_Header,,CODE_ORACLE) + TABLE_SIZES[[#This Row],[NULLABLE_COUNT]] -> 34 | S15: =SUMIF(IDX_SIZES[table_name],TABLE_SIZES[[#This Row],[Table]],IDX_SIZES[MSSQL]) + TABLE_SIZES[[#This Row],[INDEX_COUNT]]*INDEX(DBMS_Index_Row_Header,,CODE_MSSQL) + TABLE_SIZES[[#This Row],[NULLABLE_COUNT]] -> 45 | T15: =SUMIF(IDX_SIZES[table_name],TABLE_SIZES[[#This Row],[Table]],IDX_SIZES[DB2]) + TABLE_SIZES[[#This Row],[INDEX_COUNT]]*INDEX(DBMS_Index_Row_Header,,CODE_DB2) + TABLE_SIZES[[#This Row],[NULLABLE_COUNT]] -> 34
A16: IRF_USER_DATA_GEN_1 | C16: =Number_of_IRFs_per_Day -> 290,000 | D16: =TABLE_SIZES[[#This Row],[Data Bytes per Day]]*Average_Days_to_Keep_GIM_MM_Ixn -> 105,588,326,400 | E16: =TABLE_SIZES[[#This Row],[Index Bytes per Day]]*Average_Days_to_Keep_GIM_MM_Ixn -> 4,443,340,800 | F16: =DBMS_Block_Size*CEILING(TABLE_SIZES[[#This Row],[Rows per Day]]/TABLE_SIZES[[#This Row],[Data Rows per Block]],1) -> 263,970,816 | G16: =DBMS_Block_Size*CEILING(TABLE_SIZES[[#This Row],[Rows per Day]]/TABLE_SIZES[[#This Row],[Index Rows per Block]],1) -> 11,108,352 | H16: =INDEX(TABLE_SIZES[[#This Row],[TBL_ORACLE]:[TBL_DB2]],,CODE_CURRENT) -> 777 | I16: =FLOOR(DBMS_Data_Block_Free_Size/TABLE_SIZES[[#This Row],[Data Row Size]],1) -> 9 | J16: =FLOOR(DBMS_Data_Block_Free_Size/TABLE_SIZES[[#This Row],[Index Row Size]],1) -> 214 | K16: =INDEX(TABLE_SIZES[[#This Row],[IDX_ORACLE]:[IDX_DB2]],,CODE_CURRENT) -> 34 | M16: =SUMIF(COL_SIZES[table_name],TABLE_SIZES[[#This Row],[Table]],COL_SIZES[Oracle]) + INDEX(DBMS_Data_Block_Header,,CODE_ORACLE) -> 777 | N16: =SUMIF(COL_SIZES[table_name],TABLE_SIZES[[#This Row],[Table]],COL_SIZES[MSSQL]) + INDEX(DBMS_Data_Block_Header,,CODE_MSSQL) -> 683 | O16: =SUMIF(COL_SIZES[table_name],TABLE_SIZES[[#This Row],[Table]],COL_SIZES[DB2]) + INDEX(DBMS_Data_Block_Header,,CODE_DB2) -> 791 | P16: =SUMIF(IDX_SIZES[table_name],$A16,IDX_SIZES[INDEX_COUNT]) -> 2 | Q16: =SUMIF(IDX_SIZES[table_name],$A16,IDX_SIZES[NULLABLE_COUNT]) -> 0 | R16: =SUMIF(IDX_SIZES[table_name],TABLE_SIZES[[#This Row],[Table]],IDX_SIZES[Oracle]) + TABLE_SIZES[[#This Row],[INDEX_COUNT]]*INDEX(DBMS_Index_Row_Header,,CODE_ORACLE) + TABLE_SIZES[[#This Row],[NULLABLE_COUNT]] -> 34 | S16: =SUMIF(IDX_SIZES[table_name],TABLE_SIZES[[#This Row],[Table]],IDX_SIZES[MSSQL]) + TABLE_SIZES[[#This Row],[INDEX_COUNT]]*INDEX(DBMS_Index_Row_Header,,CODE_MSSQL) + TABLE_SIZES[[#This Row],[NULLABLE_COUNT]] -> 45 | T16: =SUMIF(IDX_SIZES[table_name],TABLE_SIZES[[#This Row],[Table]],IDX_SIZES[DB2]) + TABLE_SIZES[[#This Row],[INDEX_COUNT]]*INDEX(DBMS_Index_Row_Header,,CODE_DB2) + TABLE_SIZES[[#This Row],[NULLABLE_COUNT]] -> 34
A17: IRF_USER_DATA_CUST_1 | C17: =Number_of_IRFs_per_Day*Number_of_User_Data_Fact_Tables -> 580,000 | D17: =TABLE_SIZES[[#This Row],[Data Bytes per Day]]*Average_Days_to_Keep_GIM_MM_Ixn -> 172,779,110,400 | E17: =TABLE_SIZES[[#This Row],[Index Bytes per Day]]*Average_Days_to_Keep_GIM_MM_Ixn -> 8,883,404,800 | F17: =DBMS_Block_Size*CEILING(TABLE_SIZES[[#This Row],[Rows per Day]]/TABLE_SIZES[[#This Row],[Data Rows per Block]],1) -> 431,947,776 | G17: =DBMS_Block_Size*CEILING(TABLE_SIZES[[#This Row],[Rows per Day]]/TABLE_SIZES[[#This Row],[Index Rows per Block]],1) -> 22,208,512 | H17: =INDEX(TABLE_SIZES[[#This Row],[TBL_ORACLE]:[TBL_DB2]],,CODE_CURRENT) -> 623 | I17: =FLOOR(DBMS_Data_Block_Free_Size/TABLE_SIZES[[#This Row],[Data Row Size]],1) -> 11 | J17: =FLOOR(DBMS_Data_Block_Free_Size/TABLE_SIZES[[#This Row],[Index Row Size]],1) -> 214 | K17: =INDEX(TABLE_SIZES[[#This Row],[IDX_ORACLE]:[IDX_DB2]],,CODE_CURRENT) -> 34 | M17: =SUMIF(COL_SIZES[table_name],TABLE_SIZES[[#This Row],[Table]],COL_SIZES[Oracle]) + INDEX(DBMS_Data_Block_Header,,CODE_ORACLE) -> 623 | N17: =SUMIF(COL_SIZES[table_name],TABLE_SIZES[[#This Row],[Table]],COL_SIZES[MSSQL]) + INDEX(DBMS_Data_Block_Header,,CODE_MSSQL) -> 529 | O17: =SUMIF(COL_SIZES[table_name],TABLE_SIZES[[#This Row],[Table]],COL_SIZES[DB2]) + INDEX(DBMS_Data_Block_Header,,CODE_DB2) -> 655 | P17: =SUMIF(IDX_SIZES[table_name],$A17,IDX_SIZES[INDEX_COUNT]) -> 2 | Q17: =SUMIF(IDX_SIZES[table_name],$A17,IDX_SIZES[NULLABLE_COUNT]) -> 0 | R17: =SUMIF(IDX_SIZES[table_name],TABLE_SIZES[[#This Row],[Table]],IDX_SIZES[Oracle]) + TABLE_SIZES[[#This Row],[INDEX_COUNT]]*INDEX(DBMS_Index_Row_Header,,CODE_ORACLE) + TABLE_SIZES[[#This Row],[NULLABLE_COUNT]] -> 34 | S17: =SUMIF(IDX_SIZES[table_name],TABLE_SIZES[[#This Row],[Table]],IDX_SIZES[MSSQL]) + TABLE_SIZES[[#This Row],[INDEX_COUNT]]*INDEX(DBMS_Index_Row_Header,,CODE_MSSQL) + TABLE_SIZES[[#This Row],[NULLABLE_COUNT]] -> 45 | T17: =SUMIF(IDX_SIZES[table_name],TABLE_SIZES[[#This Row],[Table]],IDX_SIZES[DB2]) + TABLE_SIZES[[#This Row],[INDEX_COUNT]]*INDEX(DBMS_Index_Row_Header,,CODE_DB2) + TABLE_SIZES[[#This Row],[NULLABLE_COUNT]] -> 34
A18: IXN_RESOURCE_STATE_FACT | C18: =Number_of_IRSFs_per_Day -> 870,000 | D18: =TABLE_SIZES[[#This Row],[Data Bytes per Day]]*Average_Days_to_Keep_GIM_MM_Ixn -> 203,630,182,400 | E18: =TABLE_SIZES[[#This Row],[Index Bytes per Day]]*Average_Days_to_Keep_GIM_MM_Ixn -> 13,323,468,800 | F18: =DBMS_Block_Size*CEILING(TABLE_SIZES[[#This Row],[Rows per Day]]/TABLE_SIZES[[#This Row],[Data Rows per Block]],1) -> 509,075,456 | G18: =DBMS_Block_Size*CEILING(TABLE_SIZES[[#This Row],[Rows per Day]]/TABLE_SIZES[[#This Row],[Index Rows per Block]],1) -> 33,308,672 | H18: =INDEX(TABLE_SIZES[[#This Row],[TBL_ORACLE]:[TBL_DB2]],,CODE_CURRENT) -> 511 | I18: =FLOOR(DBMS_Data_Block_Free_Size/TABLE_SIZES[[#This Row],[Data Row Size]],1) -> 14 | J18: =FLOOR(DBMS_Data_Block_Free_Size/TABLE_SIZES[[#This Row],[Index Row Size]],1) -> 214 | K18: =INDEX(TABLE_SIZES[[#This Row],[IDX_ORACLE]:[IDX_DB2]],,CODE_CURRENT) -> 34 | M18: =SUMIF(COL_SIZES[table_name],TABLE_SIZES[[#This Row],[Table]],COL_SIZES[Oracle]) + INDEX(DBMS_Data_Block_Header,,CODE_ORACLE) -> 511 | N18: =SUMIF(COL_SIZES[table_name],TABLE_SIZES[[#This Row],[Table]],COL_SIZES[MSSQL]) + INDEX(DBMS_Data_Block_Header,,CODE_MSSQL) -> 347 | O18: =SUMIF(COL_SIZES[table_name],TABLE_SIZES[[#This Row],[Table]],COL_SIZES[DB2]) + INDEX(DBMS_Data_Block_Header,,CODE_DB2) -> 513 | P18: =SUMIF(IDX_SIZES[table_name],$A18,IDX_SIZES[INDEX_COUNT]) -> 2 | Q18: =SUMIF(IDX_SIZES[table_name],$A18,IDX_SIZES[NULLABLE_COUNT]) -> 0 | R18: =SUMIF(IDX_SIZES[table_name],TABLE_SIZES[[#This Row],[Table]],IDX_SIZES[Oracle]) + TABLE_SIZES[[#This Row],[INDEX_COUNT]]*INDEX(DBMS_Index_Row_Header,,CODE_ORACLE) + TABLE_SIZES[[#This Row],[NULLABLE_COUNT]] -> 34 | S18: =SUMIF(IDX_SIZES[table_name],TABLE_SIZES[[#This Row],[Table]],IDX_SIZES[MSSQL]) + TABLE_SIZES[[#This Row],[INDEX_COUNT]]*INDEX(DBMS_Index_Row_Header,,CODE_MSSQL) + TABLE_SIZES[[#This Row],[NULLABLE_COUNT]] -> 45 | T18: =SUMIF(IDX_SIZES[table_name],TABLE_SIZES[[#This Row],[Table]],IDX_SIZES[DB2]) + TABLE_SIZES[[#This Row],[INDEX_COUNT]]*INDEX(DBMS_Index_Row_Header,,CODE_DB2) + TABLE_SIZES[[#This Row],[NULLABLE_COUNT]] -> 34
A19: MEDIATION_SEGMENT_FACT | C19: =Number_of_Voice_Interactions_per_Day*Number_of_Mediation_Resources_per_Voice_Interaction + Number_of_MM_Interactions_per_Day*Number_of_Mediation_Resources_per_MM_Interaction -> 260,000 | D19: =TABLE_SIZES[[#This Row],[Data Bytes per Day]]*Average_Days_to_Keep_GIM_MM_Ixn -> 42,598,400,000 | E19: =TABLE_SIZES[[#This Row],[Index Bytes per Day]]*Average_Days_to_Keep_GIM_MM_Ixn -> 3,981,312,000 | F19: =DBMS_Block_Size*CEILING(TABLE_SIZES[[#This Row],[Rows per Day]]/TABLE_SIZES[[#This Row],[Data Rows per Block]],1) -> 106,496,000 | G19: =DBMS_Block_Size*CEILING(TABLE_SIZES[[#This Row],[Rows per Day]]/TABLE_SIZES[[#This Row],[Index Rows per Block]],1) -> 9,953,280 | H19: =INDEX(TABLE_SIZES[[#This Row],[TBL_ORACLE]:[TBL_DB2]],,CODE_CURRENT) -> 361 | I19: =FLOOR(DBMS_Data_Block_Free_Size/TABLE_SIZES[[#This Row],[Data Row Size]],1) -> 20 | J19: =FLOOR(DBMS_Data_Block_Free_Size/TABLE_SIZES[[#This Row],[Index Row Size]],1) -> 214 | K19: =INDEX(TABLE_SIZES[[#This Row],[IDX_ORACLE]:[IDX_DB2]],,CODE_CURRENT) -> 34 | M19: =SUMIF(COL_SIZES[table_name],TABLE_SIZES[[#This Row],[Table]],COL_SIZES[Oracle]) + INDEX(DBMS_Data_Block_Header,,CODE_ORACLE) -> 361 | N19: =SUMIF(COL_SIZES[table_name],TABLE_SIZES[[#This Row],[Table]],COL_SIZES[MSSQL]) + INDEX(DBMS_Data_Block_Header,,CODE_MSSQL) -> 202 | O19: =SUMIF(COL_SIZES[table_name],TABLE_SIZES[[#This Row],[Table]],COL_SIZES[DB2]) + INDEX(DBMS_Data_Block_Header,,CODE_DB2) -> 365 | P19: =SUMIF(IDX_SIZES[table_name],$A19,IDX_SIZES[INDEX_COUNT]) -> 2 | Q19: =SUMIF(IDX_SIZES[table_name],$A19,IDX_SIZES[NULLABLE_COUNT]) -> 0 | R19: =SUMIF(IDX_SIZES[table_name],TABLE_SIZES[[#This Row],[Table]],IDX_SIZES[Oracle]) + TABLE_SIZES[[#This Row],[INDEX_COUNT]]*INDEX(DBMS_Index_Row_Header,,CODE_ORACLE) + TABLE_SIZES[[#This Row],[NULLABLE_COUNT]] -> 34 | S19: =SUMIF(IDX_SIZES[table_name],TABLE_SIZES[[#This Row],[Table]],IDX_SIZES[MSSQL]) + TABLE_SIZES[[#This Row],[INDEX_COUNT]]*INDEX(DBMS_Index_Row_Header,,CODE_MSSQL) + TABLE_SIZES[[#This Row],[NULLABLE_COUNT]] -> 45 | T19: =SUMIF(IDX_SIZES[table_name],TABLE_SIZES[[#This Row],[Table]],IDX_SIZES[DB2]) + TABLE_SIZES[[#This Row],[INDEX_COUNT]]*INDEX(DBMS_Index_Row_Header,,CODE_DB2) + TABLE_SIZES[[#This Row],[NULLABLE_COUNT]] -> 34
A21: SM_RES_SESSION_FACT | C21: =Number_of_Agents*Number_of_Logins_per_Agent_per_Day -> 8,000 | D21: =TABLE_SIZES[[#This Row],[Data Bytes per Day]]*Days_to_Keep_Info_Mart_Facts -> 796,262,400 | E21: =TABLE_SIZES[[#This Row],[Index Bytes per Day]]*Days_to_Keep_Info_Mart_Facts -> 124,518,400 | F21: =DBMS_Block_Size*CEILING(TABLE_SIZES[[#This Row],[Rows per Day]]/TABLE_SIZES[[#This Row],[Data Rows per Block]],1) -> 1,990,656 | G21: =DBMS_Block_Size*CEILING(TABLE_SIZES[[#This Row],[Rows per Day]]/TABLE_SIZES[[#This Row],[Index Rows per Block]],1) -> 311,296 | H21: =INDEX(TABLE_SIZES[[#This Row],[TBL_ORACLE]:[TBL_DB2]],,CODE_CURRENT) -> 220 | I21: =FLOOR(DBMS_Data_Block_Free_Size/TABLE_SIZES[[#This Row],[Data Row Size]],1) -> 33 | J21: =FLOOR(DBMS_Data_Block_Free_Size/TABLE_SIZES[[#This Row],[Index Row Size]],1) -> 214 | K21: =INDEX(TABLE_SIZES[[#This Row],[IDX_ORACLE]:[IDX_DB2]],,CODE_CURRENT) -> 34 | M21: =SUMIF(COL_SIZES[table_name],TABLE_SIZES[[#This Row],[Table]],COL_SIZES[Oracle]) + INDEX(DBMS_Data_Block_Header,,CODE_ORACLE) -> 220 | N21: =SUMIF(COL_SIZES[table_name],TABLE_SIZES[[#This Row],[Table]],COL_SIZES[MSSQL]) + INDEX(DBMS_Data_Block_Header,,CODE_MSSQL) -> 71 | O21: =SUMIF(COL_SIZES[table_name],TABLE_SIZES[[#This Row],[Table]],COL_SIZES[DB2]) + INDEX(DBMS_Data_Block_Header,,CODE_DB2) -> 220 | P21: =SUMIF(IDX_SIZES[table_name],$A21,IDX_SIZES[INDEX_COUNT]) -> 2 | Q21: =SUMIF(IDX_SIZES[table_name],$A21,IDX_SIZES[NULLABLE_COUNT]) -> 0 | R21: =SUMIF(IDX_SIZES[table_name],TABLE_SIZES[[#This Row],[Table]],IDX_SIZES[Oracle]) + TABLE_SIZES[[#This Row],[INDEX_COUNT]]*INDEX(DBMS_Index_Row_Header,,CODE_ORACLE) + TABLE_SIZES[[#This Row],[NULLABLE_COUNT]] -> 34 | S21: =SUMIF(IDX_SIZES[table_name],TABLE_SIZES[[#This Row],[Table]],IDX_SIZES[MSSQL]) + TABLE_SIZES[[#This Row],[INDEX_COUNT]]*INDEX(DBMS_Index_Row_Header,,CODE_MSSQL) + TABLE_SIZES[[#This Row],[NULLABLE_COUNT]] -> 45 | T21: =SUMIF(IDX_SIZES[table_name],TABLE_SIZES[[#This Row],[Table]],IDX_SIZES[DB2]) + TABLE_SIZES[[#This Row],[INDEX_COUNT]]*INDEX(DBMS_Index_Row_Header,,CODE_DB2) + TABLE_SIZES[[#This Row],[NULLABLE_COUNT]] -> 34
A22: SM_RES_STATE_FACT | C22: =Number_of_Interactions_per_Day*Number_of_Agent_State_Changes_per_Interaction -> 390,000 | D22: =TABLE_SIZES[[#This Row],[Data Bytes per Day]]*Days_to_Keep_Info_Mart_Facts -> 44,069,683,200 | E22: =TABLE_SIZES[[#This Row],[Index Bytes per Day]]*Days_to_Keep_Info_Mart_Facts -> 5,973,606,400 | F22: =DBMS_Block_Size*CEILING(TABLE_SIZES[[#This Row],[Rows per Day]]/TABLE_SIZES[[#This Row],[Data Rows per Block]],1) -> 110,174,208 | G22: =DBMS_Block_Size*CEILING(TABLE_SIZES[[#This Row],[Rows per Day]]/TABLE_SIZES[[#This Row],[Index Rows per Block]],1) -> 14,934,016 | H22: =INDEX(TABLE_SIZES[[#This Row],[TBL_ORACLE]:[TBL_DB2]],,CODE_CURRENT) -> 247 | I22: =FLOOR(DBMS_Data_Block_Free_Size/TABLE_SIZES[[#This Row],[Data Row Size]],1) -> 29 | J22: =FLOOR(DBMS_Data_Block_Free_Size/TABLE_SIZES[[#This Row],[Index Row Size]],1) -> 214 | K22: =INDEX(TABLE_SIZES[[#This Row],[IDX_ORACLE]:[IDX_DB2]],,CODE_CURRENT) -> 34 | M22: =SUMIF(COL_SIZES[table_name],TABLE_SIZES[[#This Row],[Table]],COL_SIZES[Oracle]) + INDEX(DBMS_Data_Block_Header,,CODE_ORACLE) -> 247 | N22: =SUMIF(COL_SIZES[table_name],TABLE_SIZES[[#This Row],[Table]],COL_SIZES[MSSQL]) + INDEX(DBMS_Data_Block_Header,,CODE_MSSQL) -> 88 | O22: =SUMIF(COL_SIZES[table_name],TABLE_SIZES[[#This Row],[Table]],COL_SIZES[DB2]) + INDEX(DBMS_Data_Block_Header,,CODE_DB2) -> 247 | P22: =SUMIF(IDX_SIZES[table_name],$A22,IDX_SIZES[INDEX_COUNT]) -> 2 | Q22: =SUMIF(IDX_SIZES[table_name],$A22,IDX_SIZES[NULLABLE_COUNT]) -> 0 | R22: =SUMIF(IDX_SIZES[table_name],TABLE_SIZES[[#This Row],[Table]],IDX_SIZES[Oracle]) + TABLE_SIZES[[#This Row],[INDEX_COUNT]]*INDEX(DBMS_Index_Row_Header,,CODE_ORACLE) + TABLE_SIZES[[#This Row],[NULLABLE_COUNT]] -> 34 | S22: =SUMIF(IDX_SIZES[table_name],TABLE_SIZES[[#This Row],[Table]],IDX_SIZES[MSSQL]) + TABLE_SIZES[[#This Row],[INDEX_COUNT]]*INDEX(DBMS_Index_Row_Header,,CODE_MSSQL) + TABLE_SIZES[[#This Row],[NULLABLE_COUNT]] -> 45 | T22: =SUMIF(IDX_SIZES[table_name],TABLE_SIZES[[#This Row],[Table]],IDX_SIZES[DB2]) + TABLE_SIZES[[#This Row],[INDEX_COUNT]]*INDEX(DBMS_Index_Row_Header,,CODE_DB2) + TABLE_SIZES[[#This Row],[NULLABLE_COUNT]] -> 34
A23: SM_RES_STATE_REASON_FACT | C23: =Number_of_Interactions_per_Day*Number_of_Software_Reasons -> 1,300,000 | D23: =TABLE_SIZES[[#This Row],[Data Bytes per Day]]*Days_to_Keep_Info_Mart_Facts -> 152,138,547,200 | E23: =TABLE_SIZES[[#This Row],[Index Bytes per Day]]*Days_to_Keep_Info_Mart_Facts -> 19,906,560,000 | F23: =DBMS_Block_Size*CEILING(TABLE_SIZES[[#This Row],[Rows per Day]]/TABLE_SIZES[[#This Row],[Data Rows per Block]],1) -> 380,346,368 | G23: =DBMS_Block_Size*CEILING(TABLE_SIZES[[#This Row],[Rows per Day]]/TABLE_SIZES[[#This Row],[Index Rows per Block]],1) -> 49,766,400 | H23: =INDEX(TABLE_SIZES[[#This Row],[TBL_ORACLE]:[TBL_DB2]],,CODE_CURRENT) -> 256 | I23: =FLOOR(DBMS_Data_Block_Free_Size/TABLE_SIZES[[#This Row],[Data Row Size]],1) -> 28 | J23: =FLOOR(DBMS_Data_Block_Free_Size/TABLE_SIZES[[#This Row],[Index Row Size]],1) -> 214 | K23: =INDEX(TABLE_SIZES[[#This Row],[IDX_ORACLE]:[IDX_DB2]],,CODE_CURRENT) -> 34 | M23: =SUMIF(COL_SIZES[table_name],TABLE_SIZES[[#This Row],[Table]],COL_SIZES[Oracle]) + INDEX(DBMS_Data_Block_Header,,CODE_ORACLE) -> 256 | N23: =SUMIF(COL_SIZES[table_name],TABLE_SIZES[[#This Row],[Table]],COL_SIZES[MSSQL]) + INDEX(DBMS_Data_Block_Header,,CODE_MSSQL) -> 97 | O23: =SUMIF(COL_SIZES[table_name],TABLE_SIZES[[#This Row],[Table]],COL_SIZES[DB2]) + INDEX(DBMS_Data_Block_Header,,CODE_DB2) -> 256 | P23: =SUMIF(IDX_SIZES[table_name],$A23,IDX_SIZES[INDEX_COUNT]) -> 2 | Q23: =SUMIF(IDX_SIZES[table_name],$A23,IDX_SIZES[NULLABLE_COUNT]) -> 0 | R23: =SUMIF(IDX_SIZES[table_name],TABLE_SIZES[[#This Row],[Table]],IDX_SIZES[Oracle]) + TABLE_SIZES[[#This Row],[INDEX_COUNT]]*INDEX(DBMS_Index_Row_Header,,CODE_ORACLE) + TABLE_SIZES[[#This Row],[NULLABLE_COUNT]] -> 34 | S23: =SUMIF(IDX_SIZES[table_name],TABLE_SIZES[[#This Row],[Table]],IDX_SIZES[MSSQL]) + TABLE_SIZES[[#This Row],[INDEX_COUNT]]*INDEX(DBMS_Index_Row_Header,,CODE_MSSQL) + TABLE_SIZES[[#This Row],[NULLABLE_COUNT]] -> 45 | T23: =SUMIF(IDX_SIZES[table_name],TABLE_SIZES[[#This Row],[Table]],IDX_SIZES[DB2]) + TABLE_SIZES[[#This Row],[INDEX_COUNT]]*INDEX(DBMS_Index_Row_Header,,CODE_DB2) + TABLE_SIZES[[#This Row],[NULLABLE_COUNT]] -> 34
A25: CONTACT_ATTEMPT_FACT | C25: =Number_of_Outbound_Calls_per_Day -> 100,000 | D25: =TABLE_SIZES[[#This Row],[Data Bytes per Day]]*Average_Days_to_Keep_GIM_Outbound -> 81,920,000,000 | E25: =TABLE_SIZES[[#This Row],[Index Bytes per Day]]*Average_Days_to_Keep_GIM_Outbound -> 3,122,790,400 | F25: =DBMS_Block_Size*CEILING(TABLE_SIZES[[#This Row],[Rows per Day]]/TABLE_SIZES[[#This Row],[Data Rows per Block]],1) -> 204,800,000 | G25: =DBMS_Block_Size*CEILING(TABLE_SIZES[[#This Row],[Rows per Day]]/TABLE_SIZES[[#This Row],[Index Rows per Block]],1) -> 7,806,976 | H25: =INDEX(TABLE_SIZES[[#This Row],[TBL_ORACLE]:[TBL_DB2]],,CODE_CURRENT) -> 1,480 | I25: =FLOOR(DBMS_Data_Block_Free_Size/TABLE_SIZES[[#This Row],[Data Row Size]],1) -> 4 | J25: =FLOOR(DBMS_Data_Block_Free_Size/TABLE_SIZES[[#This Row],[Index Row Size]],1) -> 105 | K25: =INDEX(TABLE_SIZES[[#This Row],[IDX_ORACLE]:[IDX_DB2]],,CODE_CURRENT) -> 69 | M25: =SUMIF(COL_SIZES[table_name],TABLE_SIZES[[#This Row],[Table]],COL_SIZES[Oracle]) + INDEX(DBMS_Data_Block_Header,,CODE_ORACLE) -> 1480 | N25: =SUMIF(COL_SIZES[table_name],TABLE_SIZES[[#This Row],[Table]],COL_SIZES[MSSQL]) + INDEX(DBMS_Data_Block_Header,,CODE_MSSQL) -> 1110 | O25: =SUMIF(COL_SIZES[table_name],TABLE_SIZES[[#This Row],[Table]],COL_SIZES[DB2]) + INDEX(DBMS_Data_Block_Header,,CODE_DB2) -> 1518 | P25: =SUMIF(IDX_SIZES[table_name],$A25,IDX_SIZES[INDEX_COUNT]) -> 4 | Q25: =SUMIF(IDX_SIZES[table_name],$A25,IDX_SIZES[NULLABLE_COUNT]) -> 1 | R25: =SUMIF(IDX_SIZES[table_name],TABLE_SIZES[[#This Row],[Table]],IDX_SIZES[Oracle]) + TABLE_SIZES[[#This Row],[INDEX_COUNT]]*INDEX(DBMS_Index_Row_Header,,CODE_ORACLE) + TABLE_SIZES[[#This Row],[NULLABLE_COUNT]] -> 69 | S25: =SUMIF(IDX_SIZES[table_name],TABLE_SIZES[[#This Row],[Table]],IDX_SIZES[MSSQL]) + TABLE_SIZES[[#This Row],[INDEX_COUNT]]*INDEX(DBMS_Index_Row_Header,,CODE_MSSQL) + TABLE_SIZES[[#This Row],[NULLABLE_COUNT]] -> 91 | T25: =SUMIF(IDX_SIZES[table_name],TABLE_SIZES[[#This Row],[Table]],IDX_SIZES[DB2]) + TABLE_SIZES[[#This Row],[INDEX_COUNT]]*INDEX(DBMS_Index_Row_Header,,CODE_DB2) + TABLE_SIZES[[#This Row],[NULLABLE_COUNT]] -> 69
A26: RECORD_FIELD_GROUP_1 | C26: =MIN(POWER(Number_of_Values_per_Calling_List_Record_Custom_Field, MAX(Number_of_Custom_Fields_per_Calling_List_Record,1)), (Number_of_Outbound_Calls_per_Day * 2))/2 -> 50,000 | D26: =TABLE_SIZES[[#This Row],[Data Bytes per Day]]*Average_Days_to_Keep_GIM_Outbound -> 10,240,000,000 | E26: =TABLE_SIZES[[#This Row],[Index Bytes per Day]]*Average_Days_to_Keep_GIM_Outbound -> 383,385,600 | F26: =DBMS_Block_Size*CEILING(TABLE_SIZES[[#This Row],[Rows per Day]]/TABLE_SIZES[[#This Row],[Data Rows per Block]],1) -> 25,600,000 | G26: =DBMS_Block_Size*CEILING(TABLE_SIZES[[#This Row],[Rows per Day]]/TABLE_SIZES[[#This Row],[Index Rows per Block]],1) -> 958,464 | H26: =INDEX(TABLE_SIZES[[#This Row],[TBL_ORACLE]:[TBL_DB2]],,CODE_CURRENT) -> 436 | I26: =FLOOR(DBMS_Data_Block_Free_Size/TABLE_SIZES[[#This Row],[Data Row Size]],1) -> 16 | J26: =FLOOR(DBMS_Data_Block_Free_Size/TABLE_SIZES[[#This Row],[Index Row Size]],1) -> 429 | K26: =INDEX(TABLE_SIZES[[#This Row],[IDX_ORACLE]:[IDX_DB2]],,CODE_CURRENT) -> 17 | M26: =SUMIF(COL_SIZES[table_name],TABLE_SIZES[[#This Row],[Table]],COL_SIZES[Oracle]) + INDEX(DBMS_Data_Block_Header,,CODE_ORACLE) -> 436 | N26: =SUMIF(COL_SIZES[table_name],TABLE_SIZES[[#This Row],[Table]],COL_SIZES[MSSQL]) + INDEX(DBMS_Data_Block_Header,,CODE_MSSQL) -> 337 | O26: =SUMIF(COL_SIZES[table_name],TABLE_SIZES[[#This Row],[Table]],COL_SIZES[DB2]) + INDEX(DBMS_Data_Block_Header,,CODE_DB2) -> 456 | P26: =SUMIF(IDX_SIZES[table_name],$A26,IDX_SIZES[INDEX_COUNT]) -> 1 | Q26: =SUMIF(IDX_SIZES[table_name],$A26,IDX_SIZES[NULLABLE_COUNT]) -> 0 | R26: =SUMIF(IDX_SIZES[table_name],TABLE_SIZES[[#This Row],[Table]],IDX_SIZES[Oracle]) + TABLE_SIZES[[#This Row],[INDEX_COUNT]]*INDEX(DBMS_Index_Row_Header,,CODE_ORACLE) + TABLE_SIZES[[#This Row],[NULLABLE_COUNT]] -> 17 | S26: =SUMIF(IDX_SIZES[table_name],TABLE_SIZES[[#This Row],[Table]],IDX_SIZES[MSSQL]) + TABLE_SIZES[[#This Row],[INDEX_COUNT]]*INDEX(DBMS_Index_Row_Header,,CODE_MSSQL) + TABLE_SIZES[[#This Row],[NULLABLE_COUNT]] -> 20 | T26: =SUMIF(IDX_SIZES[table_name],TABLE_SIZES[[#This Row],[Table]],IDX_SIZES[DB2]) + TABLE_SIZES[[#This Row],[INDEX_COUNT]]*INDEX(DBMS_Index_Row_Header,,CODE_DB2) + TABLE_SIZES[[#This Row],[NULLABLE_COUNT]] -> 17
A27: RECORD_FIELD_GROUP_2 | C27: =MIN(POWER(Number_of_Values_per_Calling_List_Record_Custom_Field, MAX(Number_of_Custom_Fields_per_Calling_List_Record,1)), (Number_of_Outbound_Calls_per_Day * 2))/2 -> 50,000 | D27: =TABLE_SIZES[[#This Row],[Data Bytes per Day]]*Average_Days_to_Keep_GIM_Outbound -> 10,240,000,000 | E27: =TABLE_SIZES[[#This Row],[Index Bytes per Day]]*Average_Days_to_Keep_GIM_Outbound -> 383,385,600 | F27: =DBMS_Block_Size*CEILING(TABLE_SIZES[[#This Row],[Rows per Day]]/TABLE_SIZES[[#This Row],[Data Rows per Block]],1) -> 25,600,000 | G27: =DBMS_Block_Size*CEILING(TABLE_SIZES[[#This Row],[Rows per Day]]/TABLE_SIZES[[#This Row],[Index Rows per Block]],1) -> 958,464 | H27: =INDEX(TABLE_SIZES[[#This Row],[TBL_ORACLE]:[TBL_DB2]],,CODE_CURRENT) -> 436 | I27: =FLOOR(DBMS_Data_Block_Free_Size/TABLE_SIZES[[#This Row],[Data Row Size]],1) -> 16 | J27: =FLOOR(DBMS_Data_Block_Free_Size/TABLE_SIZES[[#This Row],[Index Row Size]],1) -> 429 | K27: =INDEX(TABLE_SIZES[[#This Row],[IDX_ORACLE]:[IDX_DB2]],,CODE_CURRENT) -> 17 | M27: =SUMIF(COL_SIZES[table_name],TABLE_SIZES[[#This Row],[Table]],COL_SIZES[Oracle]) + INDEX(DBMS_Data_Block_Header,,CODE_ORACLE) -> 436 | N27: =SUMIF(COL_SIZES[table_name],TABLE_SIZES[[#This Row],[Table]],COL_SIZES[MSSQL]) + INDEX(DBMS_Data_Block_Header,,CODE_MSSQL) -> 337 | O27: =SUMIF(COL_SIZES[table_name],TABLE_SIZES[[#This Row],[Table]],COL_SIZES[DB2]) + INDEX(DBMS_Data_Block_Header,,CODE_DB2) -> 456 | P27: =SUMIF(IDX_SIZES[table_name],$A27,IDX_SIZES[INDEX_COUNT]) -> 1 | Q27: =SUMIF(IDX_SIZES[table_name],$A27,IDX_SIZES[NULLABLE_COUNT]) -> 0 | R27: =SUMIF(IDX_SIZES[table_name],TABLE_SIZES[[#This Row],[Table]],IDX_SIZES[Oracle]) + TABLE_SIZES[[#This Row],[INDEX_COUNT]]*INDEX(DBMS_Index_Row_Header,,CODE_ORACLE) + TABLE_SIZES[[#This Row],[NULLABLE_COUNT]] -> 17 | S27: =SUMIF(IDX_SIZES[table_name],TABLE_SIZES[[#This Row],[Table]],IDX_SIZES[MSSQL]) + TABLE_SIZES[[#This Row],[INDEX_COUNT]]*INDEX(DBMS_Index_Row_Header,,CODE_MSSQL) + TABLE_SIZES[[#This Row],[NULLABLE_COUNT]] -> 20 | T27: =SUMIF(IDX_SIZES[table_name],TABLE_SIZES[[#This Row],[Table]],IDX_SIZES[DB2]) + TABLE_SIZES[[#This Row],[INDEX_COUNT]]*INDEX(DBMS_Index_Row_Header,,CODE_DB2) + TABLE_SIZES[[#This Row],[NULLABLE_COUNT]] -> 17
A29: PLACE_GROUP_FACT_ | C29: =Number_or_Changes_per_Place_Group_Per_Day*Number_of_Place_Groups -> 2,000 | D29: =TABLE_SIZES[[#This Row],[Data Bytes per Day]]*Days_to_Keep_Info_Mart_Facts -> 183,500,800 | E29: =TABLE_SIZES[[#This Row],[Index Bytes per Day]]*Days_to_Keep_Info_Mart_Facts -> 45,875,200 | F29: =DBMS_Block_Size*CEILING(TABLE_SIZES[[#This Row],[Rows per Day]]/TABLE_SIZES[[#This Row],[Data Rows per Block]],1) -> 458,752 | G29: =DBMS_Block_Size*CEILING(TABLE_SIZES[[#This Row],[Rows per Day]]/TABLE_SIZES[[#This Row],[Index Rows per Block]],1) -> 114,688 | H29: =INDEX(TABLE_SIZES[[#This Row],[TBL_ORACLE]:[TBL_DB2]],,CODE_CURRENT) -> 202 | I29: =FLOOR(DBMS_Data_Block_Free_Size/TABLE_SIZES[[#This Row],[Data Row Size]],1) -> 36 | J29: =FLOOR(DBMS_Data_Block_Free_Size/TABLE_SIZES[[#This Row],[Index Row Size]],1) -> 143 | K29: =INDEX(TABLE_SIZES[[#This Row],[IDX_ORACLE]:[IDX_DB2]],,CODE_CURRENT) -> 51 | M29: =SUMIF(COL_SIZES[table_name],TABLE_SIZES[[#This Row],[Table]],COL_SIZES[Oracle]) + INDEX(DBMS_Data_Block_Header,,CODE_ORACLE) -> 202 | N29: =SUMIF(COL_SIZES[table_name],TABLE_SIZES[[#This Row],[Table]],COL_SIZES[MSSQL]) + INDEX(DBMS_Data_Block_Header,,CODE_MSSQL) -> 68 | O29: =SUMIF(COL_SIZES[table_name],TABLE_SIZES[[#This Row],[Table]],COL_SIZES[DB2]) + INDEX(DBMS_Data_Block_Header,,CODE_DB2) -> 202 | P29: =SUMIF(IDX_SIZES[table_name],$A29,IDX_SIZES[INDEX_COUNT]) -> 3 | Q29: =SUMIF(IDX_SIZES[table_name],$A29,IDX_SIZES[NULLABLE_COUNT]) -> 0 | R29: =SUMIF(IDX_SIZES[table_name],TABLE_SIZES[[#This Row],[Table]],IDX_SIZES[Oracle]) + TABLE_SIZES[[#This Row],[INDEX_COUNT]]*INDEX(DBMS_Index_Row_Header,,CODE_ORACLE) + TABLE_SIZES[[#This Row],[NULLABLE_COUNT]] -> 51 | S29: =SUMIF(IDX_SIZES[table_name],TABLE_SIZES[[#This Row],[Table]],IDX_SIZES[MSSQL]) + TABLE_SIZES[[#This Row],[INDEX_COUNT]]*INDEX(DBMS_Index_Row_Header,,CODE_MSSQL) + TABLE_SIZES[[#This Row],[NULLABLE_COUNT]] -> 65 | T29: =SUMIF(IDX_SIZES[table_name],TABLE_SIZES[[#This Row],[Table]],IDX_SIZES[DB2]) + TABLE_SIZES[[#This Row],[INDEX_COUNT]]*INDEX(DBMS_Index_Row_Header,,CODE_DB2) + TABLE_SIZES[[#This Row],[NULLABLE_COUNT]] -> 51
A30: RESOURCE_GROUP_FACT_ | C30: =Number_of_Changes_per_Agent_Group_Per_Day*Number_of_Agent_Groups -> 2,000 | D30: =TABLE_SIZES[[#This Row],[Data Bytes per Day]]*Days_to_Keep_Info_Mart_Facts -> 193,331,200 | E30: =TABLE_SIZES[[#This Row],[Index Bytes per Day]]*Days_to_Keep_Info_Mart_Facts -> 111,411,200 | F30: =DBMS_Block_Size*CEILING(TABLE_SIZES[[#This Row],[Rows per Day]]/TABLE_SIZES[[#This Row],[Data Rows per Block]],1) -> 483,328 | G30: =DBMS_Block_Size*CEILING(TABLE_SIZES[[#This Row],[Rows per Day]]/TABLE_SIZES[[#This Row],[Index Rows per Block]],1) -> 278,528 | H30: =INDEX(TABLE_SIZES[[#This Row],[TBL_ORACLE]:[TBL_DB2]],,CODE_CURRENT) -> 211 | I30: =FLOOR(DBMS_Data_Block_Free_Size/TABLE_SIZES[[#This Row],[Data Row Size]],1) -> 34 | J30: =FLOOR(DBMS_Data_Block_Free_Size/TABLE_SIZES[[#This Row],[Index Row Size]],1) -> 60 | K30: =INDEX(TABLE_SIZES[[#This Row],[IDX_ORACLE]:[IDX_DB2]],,CODE_CURRENT) -> 121 | M30: =SUMIF(COL_SIZES[table_name],TABLE_SIZES[[#This Row],[Table]],COL_SIZES[Oracle]) + INDEX(DBMS_Data_Block_Header,,CODE_ORACLE) -> 211 | N30: =SUMIF(COL_SIZES[table_name],TABLE_SIZES[[#This Row],[Table]],COL_SIZES[MSSQL]) + INDEX(DBMS_Data_Block_Header,,CODE_MSSQL) -> 72 | O30: =SUMIF(COL_SIZES[table_name],TABLE_SIZES[[#This Row],[Table]],COL_SIZES[DB2]) + INDEX(DBMS_Data_Block_Header,,CODE_DB2) -> 211 | P30: =SUMIF(IDX_SIZES[table_name],$A30,IDX_SIZES[INDEX_COUNT]) -> 7 | Q30: =SUMIF(IDX_SIZES[table_name],$A30,IDX_SIZES[NULLABLE_COUNT]) -> 2 | R30: =SUMIF(IDX_SIZES[table_name],TABLE_SIZES[[#This Row],[Table]],IDX_SIZES[Oracle]) + TABLE_SIZES[[#This Row],[INDEX_COUNT]]*INDEX(DBMS_Index_Row_Header,,CODE_ORACLE) + TABLE_SIZES[[#This Row],[NULLABLE_COUNT]] -> 121 | S30: =SUMIF(IDX_SIZES[table_name],TABLE_SIZES[[#This Row],[Table]],IDX_SIZES[MSSQL]) + TABLE_SIZES[[#This Row],[INDEX_COUNT]]*INDEX(DBMS_Index_Row_Header,,CODE_MSSQL) + TABLE_SIZES[[#This Row],[NULLABLE_COUNT]] -> 147 | T30: =SUMIF(IDX_SIZES[table_name],TABLE_SIZES[[#This Row],[Table]],IDX_SIZES[DB2]) + TABLE_SIZES[[#This Row],[INDEX_COUNT]]*INDEX(DBMS_Index_Row_Header,,CODE_DB2) + TABLE_SIZES[[#This Row],[NULLABLE_COUNT]] -> 121
A31: RESOURCE_SKILL_FACT_ | C31: =Number_of_Skill_Changes_per_Agent_per_Day*Number_of_Agents -> 6,000 | D31: =TABLE_SIZES[[#This Row],[Data Bytes per Day]]*Days_to_Keep_Info_Mart_Facts -> 579,993,600 | E31: =TABLE_SIZES[[#This Row],[Index Bytes per Day]]*Days_to_Keep_Info_Mart_Facts -> 137,625,600 | F31: =DBMS_Block_Size*CEILING(TABLE_SIZES[[#This Row],[Rows per Day]]/TABLE_SIZES[[#This Row],[Data Rows per Block]],1) -> 1,449,984 | G31: =DBMS_Block_Size*CEILING(TABLE_SIZES[[#This Row],[Rows per Day]]/TABLE_SIZES[[#This Row],[Index Rows per Block]],1) -> 344,064 | H31: =INDEX(TABLE_SIZES[[#This Row],[TBL_ORACLE]:[TBL_DB2]],,CODE_CURRENT) -> 211 | I31: =FLOOR(DBMS_Data_Block_Free_Size/TABLE_SIZES[[#This Row],[Data Row Size]],1) -> 34 | J31: =FLOOR(DBMS_Data_Block_Free_Size/TABLE_SIZES[[#This Row],[Index Row Size]],1) -> 143 | K31: =INDEX(TABLE_SIZES[[#This Row],[IDX_ORACLE]:[IDX_DB2]],,CODE_CURRENT) -> 51 | M31: =SUMIF(COL_SIZES[table_name],TABLE_SIZES[[#This Row],[Table]],COL_SIZES[Oracle]) + INDEX(DBMS_Data_Block_Header,,CODE_ORACLE) -> 211 | N31: =SUMIF(COL_SIZES[table_name],TABLE_SIZES[[#This Row],[Table]],COL_SIZES[MSSQL]) + INDEX(DBMS_Data_Block_Header,,CODE_MSSQL) -> 72 | O31: =SUMIF(COL_SIZES[table_name],TABLE_SIZES[[#This Row],[Table]],COL_SIZES[DB2]) + INDEX(DBMS_Data_Block_Header,,CODE_DB2) -> 211 | P31: =SUMIF(IDX_SIZES[table_name],$A31,IDX_SIZES[INDEX_COUNT]) -> 3 | Q31: =SUMIF(IDX_SIZES[table_name],$A31,IDX_SIZES[NULLABLE_COUNT]) -> 0 | R31: =SUMIF(IDX_SIZES[table_name],TABLE_SIZES[[#This Row],[Table]],IDX_SIZES[Oracle]) + TABLE_SIZES[[#This Row],[INDEX_COUNT]]*INDEX(DBMS_Index_Row_Header,,CODE_ORACLE) + TABLE_SIZES[[#This Row],[NULLABLE_COUNT]] -> 51 | S31: =SUMIF(IDX_SIZES[table_name],TABLE_SIZES[[#This Row],[Table]],IDX_SIZES[MSSQL]) + TABLE_SIZES[[#This Row],[INDEX_COUNT]]*INDEX(DBMS_Index_Row_Header,,CODE_MSSQL) + TABLE_SIZES[[#This Row],[NULLABLE_COUNT]] -> 65 | T31: =SUMIF(IDX_SIZES[table_name],TABLE_SIZES[[#This Row],[Table]],IDX_SIZES[DB2]) + TABLE_SIZES[[#This Row],[INDEX_COUNT]]*INDEX(DBMS_Index_Row_Header,,CODE_DB2) + TABLE_SIZES[[#This Row],[NULLABLE_COUNT]] -> 51
A33: STG_ACTIVE_IF | C33: =Number_of_MM_Interactions_per_Day -> 30,000 | D33: =TABLE_SIZES[[#This Row],[Data Bytes per Day]]*Average_MM_Interaction_Duration__in_days -> 141,803,520 | E33: =TABLE_SIZES[[#This Row],[Index Bytes per Day]]*Average_MM_Interaction_Duration__in_days -> 47,308,800 | F33: =DBMS_Block_Size*CEILING(TABLE_SIZES[[#This Row],[Rows per Day]]/TABLE_SIZES[[#This Row],[Data Rows per Block]],1) -> 9,453,568 | G33: =DBMS_Block_Size*CEILING(TABLE_SIZES[[#This Row],[Rows per Day]]/TABLE_SIZES[[#This Row],[Index Rows per Block]],1) -> 3,153,920 | H33: =INDEX(TABLE_SIZES[[#This Row],[TBL_ORACLE]:[TBL_DB2]],,CODE_CURRENT) -> 271 | I33: =FLOOR(DBMS_Data_Block_Free_Size/TABLE_SIZES[[#This Row],[Data Row Size]],1) -> 26 | J33: =FLOOR(DBMS_Data_Block_Free_Size/TABLE_SIZES[[#This Row],[Index Row Size]],1) -> 78 | K33: =INDEX(TABLE_SIZES[[#This Row],[IDX_ORACLE]:[IDX_DB2]],,CODE_CURRENT) -> 93 | M33: =SUMIF(COL_SIZES[table_name],TABLE_SIZES[[#This Row],[Table]],COL_SIZES[Oracle]) + INDEX(DBMS_Data_Block_Header,,CODE_ORACLE) -> 271 | N33: =SUMIF(COL_SIZES[table_name],TABLE_SIZES[[#This Row],[Table]],COL_SIZES[MSSQL]) + INDEX(DBMS_Data_Block_Header,,CODE_MSSQL) -> 182 | O33: =SUMIF(COL_SIZES[table_name],TABLE_SIZES[[#This Row],[Table]],COL_SIZES[DB2]) + INDEX(DBMS_Data_Block_Header,,CODE_DB2) -> 277 | P33: =SUMIF(IDX_SIZES[table_name],$A33,IDX_SIZES[INDEX_COUNT]) -> 3 | Q33: =SUMIF(IDX_SIZES[table_name],$A33,IDX_SIZES[NULLABLE_COUNT]) -> 1 | R33: =SUMIF(IDX_SIZES[table_name],TABLE_SIZES[[#This Row],[Table]],IDX_SIZES[Oracle]) + TABLE_SIZES[[#This Row],[INDEX_COUNT]]*INDEX(DBMS_Index_Row_Header,,CODE_ORACLE) + TABLE_SIZES[[#This Row],[NULLABLE_COUNT]] -> 93 | S33: =SUMIF(IDX_SIZES[table_name],TABLE_SIZES[[#This Row],[Table]],IDX_SIZES[MSSQL]) + TABLE_SIZES[[#This Row],[INDEX_COUNT]]*INDEX(DBMS_Index_Row_Header,,CODE_MSSQL) + TABLE_SIZES[[#This Row],[NULLABLE_COUNT]] -> 117 | T33: =SUMIF(IDX_SIZES[table_name],TABLE_SIZES[[#This Row],[Table]],IDX_SIZES[DB2]) + TABLE_SIZES[[#This Row],[INDEX_COUNT]]*INDEX(DBMS_Index_Row_Header,,CODE_DB2) + TABLE_SIZES[[#This Row],[NULLABLE_COUNT]] -> 95
A34: STG_ACTIVE_IRF | C34: =Number_of_MM_IRFs_per_Day -> 90,000 | D34: =TABLE_SIZES[[#This Row],[Data Bytes per Day]]*Average_MM_Interaction_Duration__in_days -> 356,843,520 | E34: =TABLE_SIZES[[#This Row],[Index Bytes per Day]]*Average_MM_Interaction_Duration__in_days -> 140,083,200 | F34: =DBMS_Block_Size*CEILING(TABLE_SIZES[[#This Row],[Rows per Day]]/TABLE_SIZES[[#This Row],[Data Rows per Block]],1) -> 23,789,568 | G34: =DBMS_Block_Size*CEILING(TABLE_SIZES[[#This Row],[Rows per Day]]/TABLE_SIZES[[#This Row],[Index Rows per Block]],1) -> 9,338,880 | H34: =INDEX(TABLE_SIZES[[#This Row],[TBL_ORACLE]:[TBL_DB2]],,CODE_CURRENT) -> 229 | I34: =FLOOR(DBMS_Data_Block_Free_Size/TABLE_SIZES[[#This Row],[Data Row Size]],1) -> 31 | J34: =FLOOR(DBMS_Data_Block_Free_Size/TABLE_SIZES[[#This Row],[Index Row Size]],1) -> 79 | K34: =INDEX(TABLE_SIZES[[#This Row],[IDX_ORACLE]:[IDX_DB2]],,CODE_CURRENT) -> 92 | M34: =SUMIF(COL_SIZES[table_name],TABLE_SIZES[[#This Row],[Table]],COL_SIZES[Oracle]) + INDEX(DBMS_Data_Block_Header,,CODE_ORACLE) -> 229 | N34: =SUMIF(COL_SIZES[table_name],TABLE_SIZES[[#This Row],[Table]],COL_SIZES[MSSQL]) + INDEX(DBMS_Data_Block_Header,,CODE_MSSQL) -> 135 | O34: =SUMIF(COL_SIZES[table_name],TABLE_SIZES[[#This Row],[Table]],COL_SIZES[DB2]) + INDEX(DBMS_Data_Block_Header,,CODE_DB2) -> 233 | P34: =SUMIF(IDX_SIZES[table_name],$A34,IDX_SIZES[INDEX_COUNT]) -> 3 | Q34: =SUMIF(IDX_SIZES[table_name],$A34,IDX_SIZES[NULLABLE_COUNT]) -> 0 | R34: =SUMIF(IDX_SIZES[table_name],TABLE_SIZES[[#This Row],[Table]],IDX_SIZES[Oracle]) + TABLE_SIZES[[#This Row],[INDEX_COUNT]]*INDEX(DBMS_Index_Row_Header,,CODE_ORACLE) + TABLE_SIZES[[#This Row],[NULLABLE_COUNT]] -> 92 | S34: =SUMIF(IDX_SIZES[table_name],TABLE_SIZES[[#This Row],[Table]],IDX_SIZES[MSSQL]) + TABLE_SIZES[[#This Row],[INDEX_COUNT]]*INDEX(DBMS_Index_Row_Header,,CODE_MSSQL) + TABLE_SIZES[[#This Row],[NULLABLE_COUNT]] -> 116 | T34: =SUMIF(IDX_SIZES[table_name],TABLE_SIZES[[#This Row],[Table]],IDX_SIZES[DB2]) + TABLE_SIZES[[#This Row],[INDEX_COUNT]]*INDEX(DBMS_Index_Row_Header,,CODE_DB2) + TABLE_SIZES[[#This Row],[NULLABLE_COUNT]] -> 94
A35: STG_ACTIVE_IRF_REPLIES | C35: =Number_of_MM_IRFs_per_Day -> 90,000 | D35: =TABLE_SIZES[[#This Row],[Data Bytes per Day]]*Average_MM_Interaction_Duration__in_days -> 245,760,000 | E35: =TABLE_SIZES[[#This Row],[Index Bytes per Day]]*Average_MM_Interaction_Duration__in_days -> 140,083,200 | F35: =DBMS_Block_Size*CEILING(TABLE_SIZES[[#This Row],[Rows per Day]]/TABLE_SIZES[[#This Row],[Data Rows per Block]],1) -> 16,384,000 | G35: =DBMS_Block_Size*CEILING(TABLE_SIZES[[#This Row],[Rows per Day]]/TABLE_SIZES[[#This Row],[Index Rows per Block]],1) -> 9,338,880 | H35: =INDEX(TABLE_SIZES[[#This Row],[TBL_ORACLE]:[TBL_DB2]],,CODE_CURRENT) -> 161 | I35: =FLOOR(DBMS_Data_Block_Free_Size/TABLE_SIZES[[#This Row],[Data Row Size]],1) -> 45 | J35: =FLOOR(DBMS_Data_Block_Free_Size/TABLE_SIZES[[#This Row],[Index Row Size]],1) -> 79 | K35: =INDEX(TABLE_SIZES[[#This Row],[IDX_ORACLE]:[IDX_DB2]],,CODE_CURRENT) -> 92 | M35: =SUMIF(COL_SIZES[table_name],TABLE_SIZES[[#This Row],[Table]],COL_SIZES[Oracle]) + INDEX(DBMS_Data_Block_Header,,CODE_ORACLE) -> 161 | N35: =SUMIF(COL_SIZES[table_name],TABLE_SIZES[[#This Row],[Table]],COL_SIZES[MSSQL]) + INDEX(DBMS_Data_Block_Header,,CODE_MSSQL) -> 72 | O35: =SUMIF(COL_SIZES[table_name],TABLE_SIZES[[#This Row],[Table]],COL_SIZES[DB2]) + INDEX(DBMS_Data_Block_Header,,CODE_DB2) -> 163 | P35: =SUMIF(IDX_SIZES[table_name],$A35,IDX_SIZES[INDEX_COUNT]) -> 3 | Q35: =SUMIF(IDX_SIZES[table_name],$A35,IDX_SIZES[NULLABLE_COUNT]) -> 0 | R35: =SUMIF(IDX_SIZES[table_name],TABLE_SIZES[[#This Row],[Table]],IDX_SIZES[Oracle]) + TABLE_SIZES[[#This Row],[INDEX_COUNT]]*INDEX(DBMS_Index_Row_Header,,CODE_ORACLE) + TABLE_SIZES[[#This Row],[NULLABLE_COUNT]] -> 92 | S35: =SUMIF(IDX_SIZES[table_name],TABLE_SIZES[[#This Row],[Table]],IDX_SIZES[MSSQL]) + TABLE_SIZES[[#This Row],[INDEX_COUNT]]*INDEX(DBMS_Index_Row_Header,,CODE_MSSQL) + TABLE_SIZES[[#This Row],[NULLABLE_COUNT]] -> 116 | T35: =SUMIF(IDX_SIZES[table_name],TABLE_SIZES[[#This Row],[Table]],IDX_SIZES[DB2]) + TABLE_SIZES[[#This Row],[INDEX_COUNT]]*INDEX(DBMS_Index_Row_Header,,CODE_DB2) + TABLE_SIZES[[#This Row],[NULLABLE_COUNT]] -> 94
A36: STG_ACTIVE_MSF | C36: =Number_of_MM_Interactions_per_Day*Number_of_Mediation_Resources_per_MM_Interaction -> 60,000 | D36: =TABLE_SIZES[[#This Row],[Data Bytes per Day]]*Average_MM_Interaction_Duration__in_days -> 163,921,920 | E36: =TABLE_SIZES[[#This Row],[Index Bytes per Day]]*Average_MM_Interaction_Duration__in_days -> 93,388,800 | F36: =DBMS_Block_Size*CEILING(TABLE_SIZES[[#This Row],[Rows per Day]]/TABLE_SIZES[[#This Row],[Data Rows per Block]],1) -> 10,928,128 | G36: =DBMS_Block_Size*CEILING(TABLE_SIZES[[#This Row],[Rows per Day]]/TABLE_SIZES[[#This Row],[Index Rows per Block]],1) -> 6,225,920 | H36: =INDEX(TABLE_SIZES[[#This Row],[TBL_ORACLE]:[TBL_DB2]],,CODE_CURRENT) -> 161 | I36: =FLOOR(DBMS_Data_Block_Free_Size/TABLE_SIZES[[#This Row],[Data Row Size]],1) -> 45 | J36: =FLOOR(DBMS_Data_Block_Free_Size/TABLE_SIZES[[#This Row],[Index Row Size]],1) -> 79 | K36: =INDEX(TABLE_SIZES[[#This Row],[IDX_ORACLE]:[IDX_DB2]],,CODE_CURRENT) -> 92 | M36: =SUMIF(COL_SIZES[table_name],TABLE_SIZES[[#This Row],[Table]],COL_SIZES[Oracle]) + INDEX(DBMS_Data_Block_Header,,CODE_ORACLE) -> 161 | N36: =SUMIF(COL_SIZES[table_name],TABLE_SIZES[[#This Row],[Table]],COL_SIZES[MSSQL]) + INDEX(DBMS_Data_Block_Header,,CODE_MSSQL) -> 72 | O36: =SUMIF(COL_SIZES[table_name],TABLE_SIZES[[#This Row],[Table]],COL_SIZES[DB2]) + INDEX(DBMS_Data_Block_Header,,CODE_DB2) -> 163 | P36: =SUMIF(IDX_SIZES[table_name],$A36,IDX_SIZES[INDEX_COUNT]) -> 3 | Q36: =SUMIF(IDX_SIZES[table_name],$A36,IDX_SIZES[NULLABLE_COUNT]) -> 0 | R36: =SUMIF(IDX_SIZES[table_name],TABLE_SIZES[[#This Row],[Table]],IDX_SIZES[Oracle]) + TABLE_SIZES[[#This Row],[INDEX_COUNT]]*INDEX(DBMS_Index_Row_Header,,CODE_ORACLE) + TABLE_SIZES[[#This Row],[NULLABLE_COUNT]] -> 92 | S36: =SUMIF(IDX_SIZES[table_name],TABLE_SIZES[[#This Row],[Table]],IDX_SIZES[MSSQL]) + TABLE_SIZES[[#This Row],[INDEX_COUNT]]*INDEX(DBMS_Index_Row_Header,,CODE_MSSQL) + TABLE_SIZES[[#This Row],[NULLABLE_COUNT]] -> 116 | T36: =SUMIF(IDX_SIZES[table_name],TABLE_SIZES[[#This Row],[Table]],IDX_SIZES[DB2]) + TABLE_SIZES[[#This Row],[INDEX_COUNT]]*INDEX(DBMS_Index_Row_Header,,CODE_DB2) + TABLE_SIZES[[#This Row],[NULLABLE_COUNT]] -> 94
A38: GIDB_G_IR_V | C38: =Number_of_Voice_Interactions_per_Day -> 100,000 | D38: =TABLE_SIZES[[#This Row],[Data Bytes per Day]]*Days_to_Keep_GIDB_Data -> 1,638,432,768 | E38: =TABLE_SIZES[[#This Row],[Index Bytes per Day]]*Days_to_Keep_GIDB_Data -> 147,144,704 | F38: =DBMS_Block_Size*CEILING(TABLE_SIZES[[#This Row],[Rows per Day]]/TABLE_SIZES[[#This Row],[Data Rows per Block]],1) -> 117,030,912 | G38: =DBMS_Block_Size*CEILING(TABLE_SIZES[[#This Row],[Rows per Day]]/TABLE_SIZES[[#This Row],[Index Rows per Block]],1) -> 10,510,336 | H38: =INDEX(TABLE_SIZES[[#This Row],[TBL_ORACLE]:[TBL_DB2]],,CODE_CURRENT) -> 1,020 | I38: =FLOOR(DBMS_Data_Block_Free_Size/TABLE_SIZES[[#This Row],[Data Row Size]],1) -> 7 | J38: =FLOOR(DBMS_Data_Block_Free_Size/TABLE_SIZES[[#This Row],[Index Row Size]],1) -> 78 | K38: =INDEX(TABLE_SIZES[[#This Row],[IDX_ORACLE]:[IDX_DB2]],,CODE_CURRENT) -> 93 | M38: =SUMIF(COL_SIZES[table_name],TABLE_SIZES[[#This Row],[Table]],COL_SIZES[Oracle]) + INDEX(DBMS_Data_Block_Header,,CODE_ORACLE) -> 1020 | N38: =SUMIF(COL_SIZES[table_name],TABLE_SIZES[[#This Row],[Table]],COL_SIZES[MSSQL]) + INDEX(DBMS_Data_Block_Header,,CODE_MSSQL) -> 852 | O38: =SUMIF(COL_SIZES[table_name],TABLE_SIZES[[#This Row],[Table]],COL_SIZES[DB2]) + INDEX(DBMS_Data_Block_Header,,CODE_DB2) -> 1044 | P38: =SUMIF(IDX_SIZES[table_name],$A38,IDX_SIZES[INDEX_COUNT]) -> 3 | Q38: =SUMIF(IDX_SIZES[table_name],$A38,IDX_SIZES[NULLABLE_COUNT]) -> 1 | R38: =SUMIF(IDX_SIZES[table_name],TABLE_SIZES[[#This Row],[Table]],IDX_SIZES[Oracle]) + TABLE_SIZES[[#This Row],[INDEX_COUNT]]*INDEX(DBMS_Index_Row_Header,,CODE_ORACLE) + TABLE_SIZES[[#This Row],[NULLABLE_COUNT]] -> 93 | S38: =SUMIF(IDX_SIZES[table_name],TABLE_SIZES[[#This Row],[Table]],IDX_SIZES[MSSQL]) + TABLE_SIZES[[#This Row],[INDEX_COUNT]]*INDEX(DBMS_Index_Row_Header,,CODE_MSSQL) + TABLE_SIZES[[#This Row],[NULLABLE_COUNT]] -> 107 | T38: =SUMIF(IDX_SIZES[table_name],TABLE_SIZES[[#This Row],[Table]],IDX_SIZES[DB2]) + TABLE_SIZES[[#This Row],[INDEX_COUNT]]*INDEX(DBMS_Index_Row_Header,,CODE_DB2) + TABLE_SIZES[[#This Row],[NULLABLE_COUNT]] -> 95
A39: GIDB_G_IR_MM | C39: =Number_of_MM_Interactions_per_Day -> 30,000 | D39: =TABLE_SIZES[[#This Row],[Data Bytes per Day]]*Average_Days_to_Keep_GIDB_MM_Ixn -> 544,219,136 | E39: =TABLE_SIZES[[#This Row],[Index Bytes per Day]]*Average_Days_to_Keep_GIDB_MM_Ixn -> 54,472,704 | F39: =DBMS_Block_Size*CEILING(TABLE_SIZES[[#This Row],[Rows per Day]]/TABLE_SIZES[[#This Row],[Data Rows per Block]],1) -> 35,110,912 | G39: =DBMS_Block_Size*CEILING(TABLE_SIZES[[#This Row],[Rows per Day]]/TABLE_SIZES[[#This Row],[Index Rows per Block]],1) -> 3,514,368 | H39: =INDEX(TABLE_SIZES[[#This Row],[TBL_ORACLE]:[TBL_DB2]],,CODE_CURRENT) -> 1,020 | I39: =FLOOR(DBMS_Data_Block_Free_Size/TABLE_SIZES[[#This Row],[Data Row Size]],1) -> 7 | J39: =FLOOR(DBMS_Data_Block_Free_Size/TABLE_SIZES[[#This Row],[Index Row Size]],1) -> 70 | K39: =INDEX(TABLE_SIZES[[#This Row],[IDX_ORACLE]:[IDX_DB2]],,CODE_CURRENT) -> 103 | M39: =SUMIF(COL_SIZES[table_name],TABLE_SIZES[[#This Row],[Table]],COL_SIZES[Oracle]) + INDEX(DBMS_Data_Block_Header,,CODE_ORACLE) -> 1020 | N39: =SUMIF(COL_SIZES[table_name],TABLE_SIZES[[#This Row],[Table]],COL_SIZES[MSSQL]) + INDEX(DBMS_Data_Block_Header,,CODE_MSSQL) -> 852 | O39: =SUMIF(COL_SIZES[table_name],TABLE_SIZES[[#This Row],[Table]],COL_SIZES[DB2]) + INDEX(DBMS_Data_Block_Header,,CODE_DB2) -> 1044 | P39: =SUMIF(IDX_SIZES[table_name],$A39,IDX_SIZES[INDEX_COUNT]) -> 3 | Q39: =SUMIF(IDX_SIZES[table_name],$A39,IDX_SIZES[NULLABLE_COUNT]) -> 2 | R39: =SUMIF(IDX_SIZES[table_name],TABLE_SIZES[[#This Row],[Table]],IDX_SIZES[Oracle]) + TABLE_SIZES[[#This Row],[INDEX_COUNT]]*INDEX(DBMS_Index_Row_Header,,CODE_ORACLE) + TABLE_SIZES[[#This Row],[NULLABLE_COUNT]] -> 103 | S39: =SUMIF(IDX_SIZES[table_name],TABLE_SIZES[[#This Row],[Table]],IDX_SIZES[MSSQL]) + TABLE_SIZES[[#This Row],[INDEX_COUNT]]*INDEX(DBMS_Index_Row_Header,,CODE_MSSQL) + TABLE_SIZES[[#This Row],[NULLABLE_COUNT]] -> 112 | T39: =SUMIF(IDX_SIZES[table_name],TABLE_SIZES[[#This Row],[Table]],IDX_SIZES[DB2]) + TABLE_SIZES[[#This Row],[INDEX_COUNT]]*INDEX(DBMS_Index_Row_Header,,CODE_DB2) + TABLE_SIZES[[#This Row],[NULLABLE_COUNT]] -> 105
A40: GIDB_G_CALL_V | C40: =Number_of_Voice_Interactions_per_Day*Number_of_Handling_Resources_per_Voice_Interaction -> 200,000 | D40: =TABLE_SIZES[[#This Row],[Data Bytes per Day]]*Days_to_Keep_GIDB_Data -> 4,587,520,000 | E40: =TABLE_SIZES[[#This Row],[Index Bytes per Day]]*Days_to_Keep_GIDB_Data -> 424,804,352 | F40: =DBMS_Block_Size*CEILING(TABLE_SIZES[[#This Row],[Rows per Day]]/TABLE_SIZES[[#This Row],[Data Rows per Block]],1) -> 327,680,000 | G40: =DBMS_Block_Size*CEILING(TABLE_SIZES[[#This Row],[Rows per Day]]/TABLE_SIZES[[#This Row],[Index Rows per Block]],1) -> 30,343,168 | H40: =INDEX(TABLE_SIZES[[#This Row],[TBL_ORACLE]:[TBL_DB2]],,CODE_CURRENT) -> 1,246 | I40: =FLOOR(DBMS_Data_Block_Free_Size/TABLE_SIZES[[#This Row],[Data Row Size]],1) -> 5 | J40: =FLOOR(DBMS_Data_Block_Free_Size/TABLE_SIZES[[#This Row],[Index Row Size]],1) -> 54 | K40: =INDEX(TABLE_SIZES[[#This Row],[IDX_ORACLE]:[IDX_DB2]],,CODE_CURRENT) -> 134 | M40: =SUMIF(COL_SIZES[table_name],TABLE_SIZES[[#This Row],[Table]],COL_SIZES[Oracle]) + INDEX(DBMS_Data_Block_Header,,CODE_ORACLE) -> 1246 | N40: =SUMIF(COL_SIZES[table_name],TABLE_SIZES[[#This Row],[Table]],COL_SIZES[MSSQL]) + INDEX(DBMS_Data_Block_Header,,CODE_MSSQL) -> 1056 | O40: =SUMIF(COL_SIZES[table_name],TABLE_SIZES[[#This Row],[Table]],COL_SIZES[DB2]) + INDEX(DBMS_Data_Block_Header,,CODE_DB2) -> 1275 | P40: =SUMIF(IDX_SIZES[table_name],$A40,IDX_SIZES[INDEX_COUNT]) -> 3 | Q40: =SUMIF(IDX_SIZES[table_name],$A40,IDX_SIZES[NULLABLE_COUNT]) -> 1 | R40: =SUMIF(IDX_SIZES[table_name],TABLE_SIZES[[#This Row],[Table]],IDX_SIZES[Oracle]) + TABLE_SIZES[[#This Row],[INDEX_COUNT]]*INDEX(DBMS_Index_Row_Header,,CODE_ORACLE) + TABLE_SIZES[[#This Row],[NULLABLE_COUNT]] -> 134 | S40: =SUMIF(IDX_SIZES[table_name],TABLE_SIZES[[#This Row],[Table]],IDX_SIZES[MSSQL]) + TABLE_SIZES[[#This Row],[INDEX_COUNT]]*INDEX(DBMS_Index_Row_Header,,CODE_MSSQL) + TABLE_SIZES[[#This Row],[NULLABLE_COUNT]] -> 153 | T40: =SUMIF(IDX_SIZES[table_name],TABLE_SIZES[[#This Row],[Table]],IDX_SIZES[DB2]) + TABLE_SIZES[[#This Row],[INDEX_COUNT]]*INDEX(DBMS_Index_Row_Header,,CODE_DB2) + TABLE_SIZES[[#This Row],[NULLABLE_COUNT]] -> 138
A41: GIDB_G_CALL_MM | C41: =Number_of_MM_Interactions_per_Day -> 30,000 | D41: =TABLE_SIZES[[#This Row],[Data Bytes per Day]]*Average_Days_to_Keep_GIDB_MM_Ixn -> 761,856,000 | E41: =TABLE_SIZES[[#This Row],[Index Bytes per Day]]*Average_Days_to_Keep_GIDB_MM_Ixn -> 102,977,536 | F41: =DBMS_Block_Size*CEILING(TABLE_SIZES[[#This Row],[Rows per Day]]/TABLE_SIZES[[#This Row],[Data Rows per Block]],1) -> 49,152,000 | G41: =DBMS_Block_Size*CEILING(TABLE_SIZES[[#This Row],[Rows per Day]]/TABLE_SIZES[[#This Row],[Index Rows per Block]],1) -> 6,643,712 | H41: =INDEX(TABLE_SIZES[[#This Row],[TBL_ORACLE]:[TBL_DB2]],,CODE_CURRENT) -> 1,246 | I41: =FLOOR(DBMS_Data_Block_Free_Size/TABLE_SIZES[[#This Row],[Data Row Size]],1) -> 5 | J41: =FLOOR(DBMS_Data_Block_Free_Size/TABLE_SIZES[[#This Row],[Index Row Size]],1) -> 37 | K41: =INDEX(TABLE_SIZES[[#This Row],[IDX_ORACLE]:[IDX_DB2]],,CODE_CURRENT) -> 193 | M41: =SUMIF(COL_SIZES[table_name],TABLE_SIZES[[#This Row],[Table]],COL_SIZES[Oracle]) + INDEX(DBMS_Data_Block_Header,,CODE_ORACLE) -> 1246 | N41: =SUMIF(COL_SIZES[table_name],TABLE_SIZES[[#This Row],[Table]],COL_SIZES[MSSQL]) + INDEX(DBMS_Data_Block_Header,,CODE_MSSQL) -> 1056 | O41: =SUMIF(COL_SIZES[table_name],TABLE_SIZES[[#This Row],[Table]],COL_SIZES[DB2]) + INDEX(DBMS_Data_Block_Header,,CODE_DB2) -> 1275 | P41: =SUMIF(IDX_SIZES[table_name],$A41,IDX_SIZES[INDEX_COUNT]) -> 4 | Q41: =SUMIF(IDX_SIZES[table_name],$A41,IDX_SIZES[NULLABLE_COUNT]) -> 2 | R41: =SUMIF(IDX_SIZES[table_name],TABLE_SIZES[[#This Row],[Table]],IDX_SIZES[Oracle]) + TABLE_SIZES[[#This Row],[INDEX_COUNT]]*INDEX(DBMS_Index_Row_Header,,CODE_ORACLE) + TABLE_SIZES[[#This Row],[NULLABLE_COUNT]] -> 193 | S41: =SUMIF(IDX_SIZES[table_name],TABLE_SIZES[[#This Row],[Table]],IDX_SIZES[MSSQL]) + TABLE_SIZES[[#This Row],[INDEX_COUNT]]*INDEX(DBMS_Index_Row_Header,,CODE_MSSQL) + TABLE_SIZES[[#This Row],[NULLABLE_COUNT]] -> 220 | T41: =SUMIF(IDX_SIZES[table_name],TABLE_SIZES[[#This Row],[Table]],IDX_SIZES[DB2]) + TABLE_SIZES[[#This Row],[INDEX_COUNT]]*INDEX(DBMS_Index_Row_Header,,CODE_DB2) + TABLE_SIZES[[#This Row],[NULLABLE_COUNT]] -> 199
A42: GIDB_G_PARTY_V | C42: =Number_of_Voice_Interactions_per_Day*(Number_of_Handling_Resources_per_Voice_Interaction + Number_of_Mediation_Resources_per_Voice_Interaction) -> 400,000 | D42: =TABLE_SIZES[[#This Row],[Data Bytes per Day]]*Days_to_Keep_GIDB_Data -> 9,175,040,000 | E42: =TABLE_SIZES[[#This Row],[Index Bytes per Day]]*Days_to_Keep_GIDB_Data -> 1,310,769,152 | F42: =DBMS_Block_Size*CEILING(TABLE_SIZES[[#This Row],[Rows per Day]]/TABLE_SIZES[[#This Row],[Data Rows per Block]],1) -> 655,360,000 | G42: =DBMS_Block_Size*CEILING(TABLE_SIZES[[#This Row],[Rows per Day]]/TABLE_SIZES[[#This Row],[Index Rows per Block]],1) -> 93,626,368 | H42: =INDEX(TABLE_SIZES[[#This Row],[TBL_ORACLE]:[TBL_DB2]],,CODE_CURRENT) -> 1,347 | I42: =FLOOR(DBMS_Data_Block_Free_Size/TABLE_SIZES[[#This Row],[Data Row Size]],1) -> 5 | J42: =FLOOR(DBMS_Data_Block_Free_Size/TABLE_SIZES[[#This Row],[Index Row Size]],1) -> 35 | K42: =INDEX(TABLE_SIZES[[#This Row],[IDX_ORACLE]:[IDX_DB2]],,CODE_CURRENT) -> 208 | M42: =SUMIF(COL_SIZES[table_name],TABLE_SIZES[[#This Row],[Table]],COL_SIZES[Oracle]) + INDEX(DBMS_Data_Block_Header,,CODE_ORACLE) -> 1347 | N42: =SUMIF(COL_SIZES[table_name],TABLE_SIZES[[#This Row],[Table]],COL_SIZES[MSSQL]) + INDEX(DBMS_Data_Block_Header,,CODE_MSSQL) -> 1135 | O42: =SUMIF(COL_SIZES[table_name],TABLE_SIZES[[#This Row],[Table]],COL_SIZES[DB2]) + INDEX(DBMS_Data_Block_Header,,CODE_DB2) -> 1373 | P42: =SUMIF(IDX_SIZES[table_name],$A42,IDX_SIZES[INDEX_COUNT]) -> 5 | Q42: =SUMIF(IDX_SIZES[table_name],$A42,IDX_SIZES[NULLABLE_COUNT]) -> 0 | R42: =SUMIF(IDX_SIZES[table_name],TABLE_SIZES[[#This Row],[Table]],IDX_SIZES[Oracle]) + TABLE_SIZES[[#This Row],[INDEX_COUNT]]*INDEX(DBMS_Index_Row_Header,,CODE_ORACLE) + TABLE_SIZES[[#This Row],[NULLABLE_COUNT]] -> 208 | S42: =SUMIF(IDX_SIZES[table_name],TABLE_SIZES[[#This Row],[Table]],IDX_SIZES[MSSQL]) + TABLE_SIZES[[#This Row],[INDEX_COUNT]]*INDEX(DBMS_Index_Row_Header,,CODE_MSSQL) + TABLE_SIZES[[#This Row],[NULLABLE_COUNT]] -> 243 | T42: =SUMIF(IDX_SIZES[table_name],TABLE_SIZES[[#This Row],[Table]],IDX_SIZES[DB2]) + TABLE_SIZES[[#This Row],[INDEX_COUNT]]*INDEX(DBMS_Index_Row_Header,,CODE_DB2) + TABLE_SIZES[[#This Row],[NULLABLE_COUNT]] -> 214
A43: GIDB_G_PARTY_MM | C43: =Number_of_MM_Interactions_per_Day*(Number_of_Handling_Resources_per_MM_Interaction + Number_of_Mediation_Resources_per_MM_Interaction) -> 150,000 | D43: =TABLE_SIZES[[#This Row],[Data Bytes per Day]]*Average_Days_to_Keep_GIDB_MM_Ixn -> 3,809,280,000 | E43: =TABLE_SIZES[[#This Row],[Index Bytes per Day]]*Average_Days_to_Keep_GIDB_MM_Ixn -> 396,800,000 | F43: =DBMS_Block_Size*CEILING(TABLE_SIZES[[#This Row],[Rows per Day]]/TABLE_SIZES[[#This Row],[Data Rows per Block]],1) -> 245,760,000 | G43: =DBMS_Block_Size*CEILING(TABLE_SIZES[[#This Row],[Rows per Day]]/TABLE_SIZES[[#This Row],[Index Rows per Block]],1) -> 25,600,000 | H43: =INDEX(TABLE_SIZES[[#This Row],[TBL_ORACLE]:[TBL_DB2]],,CODE_CURRENT) -> 1,347 | I43: =FLOOR(DBMS_Data_Block_Free_Size/TABLE_SIZES[[#This Row],[Data Row Size]],1) -> 5 | J43: =FLOOR(DBMS_Data_Block_Free_Size/TABLE_SIZES[[#This Row],[Index Row Size]],1) -> 48 | K43: =INDEX(TABLE_SIZES[[#This Row],[IDX_ORACLE]:[IDX_DB2]],,CODE_CURRENT) -> 150 | M43: =SUMIF(COL_SIZES[table_name],TABLE_SIZES[[#This Row],[Table]],COL_SIZES[Oracle]) + INDEX(DBMS_Data_Block_Header,,CODE_ORACLE) -> 1347 | N43: =SUMIF(COL_SIZES[table_name],TABLE_SIZES[[#This Row],[Table]],COL_SIZES[MSSQL]) + INDEX(DBMS_Data_Block_Header,,CODE_MSSQL) -> 1135 | O43: =SUMIF(COL_SIZES[table_name],TABLE_SIZES[[#This Row],[Table]],COL_SIZES[DB2]) + INDEX(DBMS_Data_Block_Header,,CODE_DB2) -> 1373 | P43: =SUMIF(IDX_SIZES[table_name],$A43,IDX_SIZES[INDEX_COUNT]) -> 4 | Q43: =SUMIF(IDX_SIZES[table_name],$A43,IDX_SIZES[NULLABLE_COUNT]) -> 0 | R43: =SUMIF(IDX_SIZES[table_name],TABLE_SIZES[[#This Row],[Table]],IDX_SIZES[Oracle]) + TABLE_SIZES[[#This Row],[INDEX_COUNT]]*INDEX(DBMS_Index_Row_Header,,CODE_ORACLE) + TABLE_SIZES[[#This Row],[NULLABLE_COUNT]] -> 150 | S43: =SUMIF(IDX_SIZES[table_name],TABLE_SIZES[[#This Row],[Table]],IDX_SIZES[MSSQL]) + TABLE_SIZES[[#This Row],[INDEX_COUNT]]*INDEX(DBMS_Index_Row_Header,,CODE_MSSQL) + TABLE_SIZES[[#This Row],[NULLABLE_COUNT]] -> 177 | T43: =SUMIF(IDX_SIZES[table_name],TABLE_SIZES[[#This Row],[Table]],IDX_SIZES[DB2]) + TABLE_SIZES[[#This Row],[INDEX_COUNT]]*INDEX(DBMS_Index_Row_Header,,CODE_DB2) + TABLE_SIZES[[#This Row],[NULLABLE_COUNT]] -> 154
A44: GIDB_G_PARTY_HISTORY_V | C44: =GIDB_G_PARTY_V*(Percentage_of_Handling_Resource_per_Voice_Interaction*Number_of_Handling_Resource_State_Changes_per_Voice_Interaction+Percentage_of_Mediation_Resource_per_Voice_Interaction*Number_of_Mediation_Resources_per_Voice_Interaction) -> 1,064,000 | D44: =TABLE_SIZES[[#This Row],[Data Bytes per Day]]*Days_to_Keep_GIDB_Data -> 17,432,576,000 | E44: =TABLE_SIZES[[#This Row],[Index Bytes per Day]]*Days_to_Keep_GIDB_Data -> 1,271,201,792 | F44: =DBMS_Block_Size*CEILING(TABLE_SIZES[[#This Row],[Rows per Day]]/TABLE_SIZES[[#This Row],[Data Rows per Block]],1) -> 1,245,184,000 | G44: =DBMS_Block_Size*CEILING(TABLE_SIZES[[#This Row],[Rows per Day]]/TABLE_SIZES[[#This Row],[Index Rows per Block]],1) -> 90,800,128 | H44: =INDEX(TABLE_SIZES[[#This Row],[TBL_ORACLE]:[TBL_DB2]],,CODE_CURRENT) -> 958 | I44: =FLOOR(DBMS_Data_Block_Free_Size/TABLE_SIZES[[#This Row],[Data Row Size]],1) -> 7 | J44: =FLOOR(DBMS_Data_Block_Free_Size/TABLE_SIZES[[#This Row],[Index Row Size]],1) -> 96 | K44: =INDEX(TABLE_SIZES[[#This Row],[IDX_ORACLE]:[IDX_DB2]],,CODE_CURRENT) -> 76 | M44: =SUMIF(COL_SIZES[table_name],TABLE_SIZES[[#This Row],[Table]],COL_SIZES[Oracle]) + INDEX(DBMS_Data_Block_Header,,CODE_ORACLE) -> 958 | N44: =SUMIF(COL_SIZES[table_name],TABLE_SIZES[[#This Row],[Table]],COL_SIZES[MSSQL]) + INDEX(DBMS_Data_Block_Header,,CODE_MSSQL) -> 755 | O44: =SUMIF(COL_SIZES[table_name],TABLE_SIZES[[#This Row],[Table]],COL_SIZES[DB2]) + INDEX(DBMS_Data_Block_Header,,CODE_DB2) -> 975 | P44: =SUMIF(IDX_SIZES[table_name],$A44,IDX_SIZES[INDEX_COUNT]) -> 2 | Q44: =SUMIF(IDX_SIZES[table_name],$A44,IDX_SIZES[NULLABLE_COUNT]) -> 1 | R44: =SUMIF(IDX_SIZES[table_name],TABLE_SIZES[[#This Row],[Table]],IDX_SIZES[Oracle]) + TABLE_SIZES[[#This Row],[INDEX_COUNT]]*INDEX(DBMS_Index_Row_Header,,CODE_ORACLE) + TABLE_SIZES[[#This Row],[NULLABLE_COUNT]] -> 76 | S44: =SUMIF(IDX_SIZES[table_name],TABLE_SIZES[[#This Row],[Table]],IDX_SIZES[MSSQL]) + TABLE_SIZES[[#This Row],[INDEX_COUNT]]*INDEX(DBMS_Index_Row_Header,,CODE_MSSQL) + TABLE_SIZES[[#This Row],[NULLABLE_COUNT]] -> 87 | T44: =SUMIF(IDX_SIZES[table_name],TABLE_SIZES[[#This Row],[Table]],IDX_SIZES[DB2]) + TABLE_SIZES[[#This Row],[INDEX_COUNT]]*INDEX(DBMS_Index_Row_Header,,CODE_DB2) + TABLE_SIZES[[#This Row],[NULLABLE_COUNT]] -> 78
A45: GIDB_G_PARTY_HISTORY_MM | C45: =GIDB_G_PARTY_MM*(Percentage_of_Handling_Resource_per_MM_Interaction*Number_of_Handling_Resource_State_Changes_per_MM_Interaction+Percentage_of_Mediation_Resource_per_MM_Interaction*Number_of_Mediation_Resources_per_MM_Interaction) -> 399,000 | D45: =TABLE_SIZES[[#This Row],[Data Bytes per Day]]*Average_Days_to_Keep_GIDB_MM_Ixn -> 7,237,632,000 | E45: =TABLE_SIZES[[#This Row],[Index Bytes per Day]]*Average_Days_to_Keep_GIDB_MM_Ixn -> 527,839,232 | F45: =DBMS_Block_Size*CEILING(TABLE_SIZES[[#This Row],[Rows per Day]]/TABLE_SIZES[[#This Row],[Data Rows per Block]],1) -> 466,944,000 | G45: =DBMS_Block_Size*CEILING(TABLE_SIZES[[#This Row],[Rows per Day]]/TABLE_SIZES[[#This Row],[Index Rows per Block]],1) -> 34,054,144 | H45: =INDEX(TABLE_SIZES[[#This Row],[TBL_ORACLE]:[TBL_DB2]],,CODE_CURRENT) -> 958 | I45: =FLOOR(DBMS_Data_Block_Free_Size/TABLE_SIZES[[#This Row],[Data Row Size]],1) -> 7 | J45: =FLOOR(DBMS_Data_Block_Free_Size/TABLE_SIZES[[#This Row],[Index Row Size]],1) -> 96 | K45: =INDEX(TABLE_SIZES[[#This Row],[IDX_ORACLE]:[IDX_DB2]],,CODE_CURRENT) -> 76 | M45: =SUMIF(COL_SIZES[table_name],TABLE_SIZES[[#This Row],[Table]],COL_SIZES[Oracle]) + INDEX(DBMS_Data_Block_Header,,CODE_ORACLE) -> 958 | N45: =SUMIF(COL_SIZES[table_name],TABLE_SIZES[[#This Row],[Table]],COL_SIZES[MSSQL]) + INDEX(DBMS_Data_Block_Header,,CODE_MSSQL) -> 755 | O45: =SUMIF(COL_SIZES[table_name],TABLE_SIZES[[#This Row],[Table]],COL_SIZES[DB2]) + INDEX(DBMS_Data_Block_Header,,CODE_DB2) -> 975 | P45: =SUMIF(IDX_SIZES[table_name],$A45,IDX_SIZES[INDEX_COUNT]) -> 2 | Q45: =SUMIF(IDX_SIZES[table_name],$A45,IDX_SIZES[NULLABLE_COUNT]) -> 1 | R45: =SUMIF(IDX_SIZES[table_name],TABLE_SIZES[[#This Row],[Table]],IDX_SIZES[Oracle]) + TABLE_SIZES[[#This Row],[INDEX_COUNT]]*INDEX(DBMS_Index_Row_Header,,CODE_ORACLE) + TABLE_SIZES[[#This Row],[NULLABLE_COUNT]] -> 76 | S45: =SUMIF(IDX_SIZES[table_name],TABLE_SIZES[[#This Row],[Table]],IDX_SIZES[MSSQL]) + TABLE_SIZES[[#This Row],[INDEX_COUNT]]*INDEX(DBMS_Index_Row_Header,,CODE_MSSQL) + TABLE_SIZES[[#This Row],[NULLABLE_COUNT]] -> 87 | T45: =SUMIF(IDX_SIZES[table_name],TABLE_SIZES[[#This Row],[Table]],IDX_SIZES[DB2]) + TABLE_SIZES[[#This Row],[INDEX_COUNT]]*INDEX(DBMS_Index_Row_Header,,CODE_DB2) + TABLE_SIZES[[#This Row],[NULLABLE_COUNT]] -> 78
A46: GIDB_G_USERDATA_HISTORY_V | C46: =Number_of_Voice_Interactions_per_Day*Number_of_UD_changes_per_Voice_Ixn -> 900,000 | D46: =TABLE_SIZES[[#This Row],[Data Bytes per Day]]*Days_to_Keep_GIDB_Data -> 20,643,840,000 | E46: =TABLE_SIZES[[#This Row],[Index Bytes per Day]]*Days_to_Keep_GIDB_Data -> 254,951,424 | F46: =DBMS_Block_Size*CEILING(TABLE_SIZES[[#This Row],[Rows per Day]]/TABLE_SIZES[[#This Row],[Data Rows per Block]],1) -> 1,474,560,000 | G46: =DBMS_Block_Size*CEILING(TABLE_SIZES[[#This Row],[Rows per Day]]/TABLE_SIZES[[#This Row],[Index Rows per Block]],1) -> 18,210,816 | H46: =INDEX(TABLE_SIZES[[#This Row],[TBL_ORACLE]:[TBL_DB2]],,CODE_CURRENT) -> 1,266 | I46: =FLOOR(DBMS_Data_Block_Free_Size/TABLE_SIZES[[#This Row],[Data Row Size]],1) -> 5 | J46: =FLOOR(DBMS_Data_Block_Free_Size/TABLE_SIZES[[#This Row],[Index Row Size]],1) -> 405 | K46: =INDEX(TABLE_SIZES[[#This Row],[IDX_ORACLE]:[IDX_DB2]],,CODE_CURRENT) -> 18 | M46: =SUMIF(COL_SIZES[table_name],TABLE_SIZES[[#This Row],[Table]],COL_SIZES[Oracle]) + INDEX(DBMS_Data_Block_Header,,CODE_ORACLE) -> 1266 | N46: =SUMIF(COL_SIZES[table_name],TABLE_SIZES[[#This Row],[Table]],COL_SIZES[MSSQL]) + INDEX(DBMS_Data_Block_Header,,CODE_MSSQL) -> 1082 | O46: =SUMIF(COL_SIZES[table_name],TABLE_SIZES[[#This Row],[Table]],COL_SIZES[DB2]) + INDEX(DBMS_Data_Block_Header,,CODE_DB2) -> 1286 | P46: =SUMIF(IDX_SIZES[table_name],$A46,IDX_SIZES[INDEX_COUNT]) -> 1 | Q46: =SUMIF(IDX_SIZES[table_name],$A46,IDX_SIZES[NULLABLE_COUNT]) -> 1 | R46: =SUMIF(IDX_SIZES[table_name],TABLE_SIZES[[#This Row],[Table]],IDX_SIZES[Oracle]) + TABLE_SIZES[[#This Row],[INDEX_COUNT]]*INDEX(DBMS_Index_Row_Header,,CODE_ORACLE) + TABLE_SIZES[[#This Row],[NULLABLE_COUNT]] -> 18 | S46: =SUMIF(IDX_SIZES[table_name],TABLE_SIZES[[#This Row],[Table]],IDX_SIZES[MSSQL]) + TABLE_SIZES[[#This Row],[INDEX_COUNT]]*INDEX(DBMS_Index_Row_Header,,CODE_MSSQL) + TABLE_SIZES[[#This Row],[NULLABLE_COUNT]] -> 21 | T46: =SUMIF(IDX_SIZES[table_name],TABLE_SIZES[[#This Row],[Table]],IDX_SIZES[DB2]) + TABLE_SIZES[[#This Row],[INDEX_COUNT]]*INDEX(DBMS_Index_Row_Header,,CODE_DB2) + TABLE_SIZES[[#This Row],[NULLABLE_COUNT]] -> 18
A47: GIDB_G_USERDATA_HISTORY_MM | C47: =Number_of_MM_Interactions_per_Day*Number_of_UD_changes_per_MM_Ixn -> 345,000 | D47: =TABLE_SIZES[[#This Row],[Data Bytes per Day]]*Average_Days_to_Keep_GIDB_MM_Ixn -> 8,761,344,000 | E47: =TABLE_SIZES[[#This Row],[Index Bytes per Day]]*Average_Days_to_Keep_GIDB_MM_Ixn -> 456,351,744 | F47: =DBMS_Block_Size*CEILING(TABLE_SIZES[[#This Row],[Rows per Day]]/TABLE_SIZES[[#This Row],[Data Rows per Block]],1) -> 565,248,000 | G47: =DBMS_Block_Size*CEILING(TABLE_SIZES[[#This Row],[Rows per Day]]/TABLE_SIZES[[#This Row],[Index Rows per Block]],1) -> 29,442,048 | H47: =INDEX(TABLE_SIZES[[#This Row],[TBL_ORACLE]:[TBL_DB2]],,CODE_CURRENT) -> 1,266 | I47: =FLOOR(DBMS_Data_Block_Free_Size/TABLE_SIZES[[#This Row],[Data Row Size]],1) -> 5 | J47: =FLOOR(DBMS_Data_Block_Free_Size/TABLE_SIZES[[#This Row],[Index Row Size]],1) -> 96 | K47: =INDEX(TABLE_SIZES[[#This Row],[IDX_ORACLE]:[IDX_DB2]],,CODE_CURRENT) -> 76 | M47: =SUMIF(COL_SIZES[table_name],TABLE_SIZES[[#This Row],[Table]],COL_SIZES[Oracle]) + INDEX(DBMS_Data_Block_Header,,CODE_ORACLE) -> 1266 | N47: =SUMIF(COL_SIZES[table_name],TABLE_SIZES[[#This Row],[Table]],COL_SIZES[MSSQL]) + INDEX(DBMS_Data_Block_Header,,CODE_MSSQL) -> 1082 | O47: =SUMIF(COL_SIZES[table_name],TABLE_SIZES[[#This Row],[Table]],COL_SIZES[DB2]) + INDEX(DBMS_Data_Block_Header,,CODE_DB2) -> 1286 | P47: =SUMIF(IDX_SIZES[table_name],$A47,IDX_SIZES[INDEX_COUNT]) -> 2 | Q47: =SUMIF(IDX_SIZES[table_name],$A47,IDX_SIZES[NULLABLE_COUNT]) -> 1 | R47: =SUMIF(IDX_SIZES[table_name],TABLE_SIZES[[#This Row],[Table]],IDX_SIZES[Oracle]) + TABLE_SIZES[[#This Row],[INDEX_COUNT]]*INDEX(DBMS_Index_Row_Header,,CODE_ORACLE) + TABLE_SIZES[[#This Row],[NULLABLE_COUNT]] -> 76 | S47: =SUMIF(IDX_SIZES[table_name],TABLE_SIZES[[#This Row],[Table]],IDX_SIZES[MSSQL]) + TABLE_SIZES[[#This Row],[INDEX_COUNT]]*INDEX(DBMS_Index_Row_Header,,CODE_MSSQL) + TABLE_SIZES[[#This Row],[NULLABLE_COUNT]] -> 87 | T47: =SUMIF(IDX_SIZES[table_name],TABLE_SIZES[[#This Row],[Table]],IDX_SIZES[DB2]) + TABLE_SIZES[[#This Row],[INDEX_COUNT]]*INDEX(DBMS_Index_Row_Header,,CODE_DB2) + TABLE_SIZES[[#This Row],[NULLABLE_COUNT]] -> 78
A48: GIDB_GM_F_USERDATA | C48: =Number_of_MM_Interactions_per_Day -> 30,000 | D48: =TABLE_SIZES[[#This Row],[Data Bytes per Day]]*Average_Days_to_Keep_GIDB_MM_Ixn -> 634,880,000 | E48: =TABLE_SIZES[[#This Row],[Index Bytes per Day]]*Average_Days_to_Keep_GIDB_MM_Ixn -> 39,743,488 | F48: =DBMS_Block_Size*CEILING(TABLE_SIZES[[#This Row],[Rows per Day]]/TABLE_SIZES[[#This Row],[Data Rows per Block]],1) -> 40,960,000 | G48: =DBMS_Block_Size*CEILING(TABLE_SIZES[[#This Row],[Rows per Day]]/TABLE_SIZES[[#This Row],[Index Rows per Block]],1) -> 2,564,096 | H48: =INDEX(TABLE_SIZES[[#This Row],[TBL_ORACLE]:[TBL_DB2]],,CODE_CURRENT) -> 1,209 | I48: =FLOOR(DBMS_Data_Block_Free_Size/TABLE_SIZES[[#This Row],[Data Row Size]],1) -> 6 | J48: =FLOOR(DBMS_Data_Block_Free_Size/TABLE_SIZES[[#This Row],[Index Row Size]],1) -> 96 | K48: =INDEX(TABLE_SIZES[[#This Row],[IDX_ORACLE]:[IDX_DB2]],,CODE_CURRENT) -> 76 | M48: =SUMIF(COL_SIZES[table_name],TABLE_SIZES[[#This Row],[Table]],COL_SIZES[Oracle]) + INDEX(DBMS_Data_Block_Header,,CODE_ORACLE) -> 1209 | N48: =SUMIF(COL_SIZES[table_name],TABLE_SIZES[[#This Row],[Table]],COL_SIZES[MSSQL]) + INDEX(DBMS_Data_Block_Header,,CODE_MSSQL) -> 1065 | O48: =SUMIF(COL_SIZES[table_name],TABLE_SIZES[[#This Row],[Table]],COL_SIZES[DB2]) + INDEX(DBMS_Data_Block_Header,,CODE_DB2) -> 1241 | P48: =SUMIF(IDX_SIZES[table_name],$A48,IDX_SIZES[INDEX_COUNT]) -> 2 | Q48: =SUMIF(IDX_SIZES[table_name],$A48,IDX_SIZES[NULLABLE_COUNT]) -> 1 | R48: =SUMIF(IDX_SIZES[table_name],TABLE_SIZES[[#This Row],[Table]],IDX_SIZES[Oracle]) + TABLE_SIZES[[#This Row],[INDEX_COUNT]]*INDEX(DBMS_Index_Row_Header,,CODE_ORACLE) + TABLE_SIZES[[#This Row],[NULLABLE_COUNT]] -> 76 | S48: =SUMIF(IDX_SIZES[table_name],TABLE_SIZES[[#This Row],[Table]],IDX_SIZES[MSSQL]) + TABLE_SIZES[[#This Row],[INDEX_COUNT]]*INDEX(DBMS_Index_Row_Header,,CODE_MSSQL) + TABLE_SIZES[[#This Row],[NULLABLE_COUNT]] -> 87 | T48: =SUMIF(IDX_SIZES[table_name],TABLE_SIZES[[#This Row],[Table]],IDX_SIZES[DB2]) + TABLE_SIZES[[#This Row],[INDEX_COUNT]]*INDEX(DBMS_Index_Row_Header,,CODE_DB2) + TABLE_SIZES[[#This Row],[NULLABLE_COUNT]] -> 78
A49: GIDB_GM_L_USERDATA | C49: =Number_of_MM_Interactions_per_Day -> 30,000 | D49: =TABLE_SIZES[[#This Row],[Data Bytes per Day]]*Average_Days_to_Keep_GIDB_MM_Ixn -> 634,880,000 | E49: =TABLE_SIZES[[#This Row],[Index Bytes per Day]]*Average_Days_to_Keep_GIDB_MM_Ixn -> 39,743,488 | F49: =DBMS_Block_Size*CEILING(TABLE_SIZES[[#This Row],[Rows per Day]]/TABLE_SIZES[[#This Row],[Data Rows per Block]],1) -> 40,960,000 | G49: =DBMS_Block_Size*CEILING(TABLE_SIZES[[#This Row],[Rows per Day]]/TABLE_SIZES[[#This Row],[Index Rows per Block]],1) -> 2,564,096 | H49: =INDEX(TABLE_SIZES[[#This Row],[TBL_ORACLE]:[TBL_DB2]],,CODE_CURRENT) -> 1,088 | I49: =FLOOR(DBMS_Data_Block_Free_Size/TABLE_SIZES[[#This Row],[Data Row Size]],1) -> 6 | J49: =FLOOR(DBMS_Data_Block_Free_Size/TABLE_SIZES[[#This Row],[Index Row Size]],1) -> 96 | K49: =INDEX(TABLE_SIZES[[#This Row],[IDX_ORACLE]:[IDX_DB2]],,CODE_CURRENT) -> 76 | M49: =SUMIF(COL_SIZES[table_name],TABLE_SIZES[[#This Row],[Table]],COL_SIZES[Oracle]) + INDEX(DBMS_Data_Block_Header,,CODE_ORACLE) -> 1088 | N49: =SUMIF(COL_SIZES[table_name],TABLE_SIZES[[#This Row],[Table]],COL_SIZES[MSSQL]) + INDEX(DBMS_Data_Block_Header,,CODE_MSSQL) -> 953 | O49: =SUMIF(COL_SIZES[table_name],TABLE_SIZES[[#This Row],[Table]],COL_SIZES[DB2]) + INDEX(DBMS_Data_Block_Header,,CODE_DB2) -> 1111 | P49: =SUMIF(IDX_SIZES[table_name],$A49,IDX_SIZES[INDEX_COUNT]) -> 2 | Q49: =SUMIF(IDX_SIZES[table_name],$A49,IDX_SIZES[NULLABLE_COUNT]) -> 1 | R49: =SUMIF(IDX_SIZES[table_name],TABLE_SIZES[[#This Row],[Table]],IDX_SIZES[Oracle]) + TABLE_SIZES[[#This Row],[INDEX_COUNT]]*INDEX(DBMS_Index_Row_Header,,CODE_ORACLE) + TABLE_SIZES[[#This Row],[NULLABLE_COUNT]] -> 76 | S49: =SUMIF(IDX_SIZES[table_name],TABLE_SIZES[[#This Row],[Table]],IDX_SIZES[MSSQL]) + TABLE_SIZES[[#This Row],[INDEX_COUNT]]*INDEX(DBMS_Index_Row_Header,,CODE_MSSQL) + TABLE_SIZES[[#This Row],[NULLABLE_COUNT]] -> 87 | T49: =SUMIF(IDX_SIZES[table_name],TABLE_SIZES[[#This Row],[Table]],IDX_SIZES[DB2]) + TABLE_SIZES[[#This Row],[INDEX_COUNT]]*INDEX(DBMS_Index_Row_Header,,CODE_DB2) + TABLE_SIZES[[#This Row],[NULLABLE_COUNT]] -> 78
A50: GIDB_G_VIRTUAL_QUEUE_V | C50: =Number_of_Voice_Interactions_per_Day*Number_of_Mediation_Resources_per_Voice_Interaction/2 -> 100,000 | D50: =TABLE_SIZES[[#This Row],[Data Bytes per Day]]*Days_to_Keep_GIDB_Data -> 3,823,009,792 | E50: =TABLE_SIZES[[#This Row],[Index Bytes per Day]]*Days_to_Keep_GIDB_Data -> 53,673,984 | F50: =DBMS_Block_Size*CEILING(TABLE_SIZES[[#This Row],[Rows per Day]]/TABLE_SIZES[[#This Row],[Data Rows per Block]],1) -> 273,072,128 | G50: =DBMS_Block_Size*CEILING(TABLE_SIZES[[#This Row],[Rows per Day]]/TABLE_SIZES[[#This Row],[Index Rows per Block]],1) -> 3,833,856 | H50: =INDEX(TABLE_SIZES[[#This Row],[TBL_ORACLE]:[TBL_DB2]],,CODE_CURRENT) -> 2,241 | I50: =FLOOR(DBMS_Data_Block_Free_Size/TABLE_SIZES[[#This Row],[Data Row Size]],1) -> 3 | J50: =FLOOR(DBMS_Data_Block_Free_Size/TABLE_SIZES[[#This Row],[Index Row Size]],1) -> 214 | K50: =INDEX(TABLE_SIZES[[#This Row],[IDX_ORACLE]:[IDX_DB2]],,CODE_CURRENT) -> 34 | M50: =SUMIF(COL_SIZES[table_name],TABLE_SIZES[[#This Row],[Table]],COL_SIZES[Oracle]) + INDEX(DBMS_Data_Block_Header,,CODE_ORACLE) -> 2241 | N50: =SUMIF(COL_SIZES[table_name],TABLE_SIZES[[#This Row],[Table]],COL_SIZES[MSSQL]) + INDEX(DBMS_Data_Block_Header,,CODE_MSSQL) -> 2008 | O50: =SUMIF(COL_SIZES[table_name],TABLE_SIZES[[#This Row],[Table]],COL_SIZES[DB2]) + INDEX(DBMS_Data_Block_Header,,CODE_DB2) -> 2274 | P50: =SUMIF(IDX_SIZES[table_name],$A50,IDX_SIZES[INDEX_COUNT]) -> 2 | Q50: =SUMIF(IDX_SIZES[table_name],$A50,IDX_SIZES[NULLABLE_COUNT]) -> 0 | R50: =SUMIF(IDX_SIZES[table_name],TABLE_SIZES[[#This Row],[Table]],IDX_SIZES[Oracle]) + TABLE_SIZES[[#This Row],[INDEX_COUNT]]*INDEX(DBMS_Index_Row_Header,,CODE_ORACLE) + TABLE_SIZES[[#This Row],[NULLABLE_COUNT]] -> 34 | S50: =SUMIF(IDX_SIZES[table_name],TABLE_SIZES[[#This Row],[Table]],IDX_SIZES[MSSQL]) + TABLE_SIZES[[#This Row],[INDEX_COUNT]]*INDEX(DBMS_Index_Row_Header,,CODE_MSSQL) + TABLE_SIZES[[#This Row],[NULLABLE_COUNT]] -> 40 | T50: =SUMIF(IDX_SIZES[table_name],TABLE_SIZES[[#This Row],[Table]],IDX_SIZES[DB2]) + TABLE_SIZES[[#This Row],[INDEX_COUNT]]*INDEX(DBMS_Index_Row_Header,,CODE_DB2) + TABLE_SIZES[[#This Row],[NULLABLE_COUNT]] -> 34
A51: GIDB_G_VIRTUAL_QUEUE_MM | C51: =Number_of_MM_Interactions_per_Day*Number_of_Mediation_Resources_per_MM_Interaction -> 60,000 | D51: =TABLE_SIZES[[#This Row],[Data Bytes per Day]]*Average_Days_to_Keep_GIDB_MM_Ixn -> 2,539,520,000 | E51: =TABLE_SIZES[[#This Row],[Index Bytes per Day]]*Average_Days_to_Keep_GIDB_MM_Ixn -> 35,680,256 | F51: =DBMS_Block_Size*CEILING(TABLE_SIZES[[#This Row],[Rows per Day]]/TABLE_SIZES[[#This Row],[Data Rows per Block]],1) -> 163,840,000 | G51: =DBMS_Block_Size*CEILING(TABLE_SIZES[[#This Row],[Rows per Day]]/TABLE_SIZES[[#This Row],[Index Rows per Block]],1) -> 2,301,952 | H51: =INDEX(TABLE_SIZES[[#This Row],[TBL_ORACLE]:[TBL_DB2]],,CODE_CURRENT) -> 2,241 | I51: =FLOOR(DBMS_Data_Block_Free_Size/TABLE_SIZES[[#This Row],[Data Row Size]],1) -> 3 | J51: =FLOOR(DBMS_Data_Block_Free_Size/TABLE_SIZES[[#This Row],[Index Row Size]],1) -> 214 | K51: =INDEX(TABLE_SIZES[[#This Row],[IDX_ORACLE]:[IDX_DB2]],,CODE_CURRENT) -> 34 | M51: =SUMIF(COL_SIZES[table_name],TABLE_SIZES[[#This Row],[Table]],COL_SIZES[Oracle]) + INDEX(DBMS_Data_Block_Header,,CODE_ORACLE) -> 2241 | N51: =SUMIF(COL_SIZES[table_name],TABLE_SIZES[[#This Row],[Table]],COL_SIZES[MSSQL]) + INDEX(DBMS_Data_Block_Header,,CODE_MSSQL) -> 2008 | O51: =SUMIF(COL_SIZES[table_name],TABLE_SIZES[[#This Row],[Table]],COL_SIZES[DB2]) + INDEX(DBMS_Data_Block_Header,,CODE_DB2) -> 2274 | P51: =SUMIF(IDX_SIZES[table_name],$A51,IDX_SIZES[INDEX_COUNT]) -> 2 | Q51: =SUMIF(IDX_SIZES[table_name],$A51,IDX_SIZES[NULLABLE_COUNT]) -> 0 | R51: =SUMIF(IDX_SIZES[table_name],TABLE_SIZES[[#This Row],[Table]],IDX_SIZES[Oracle]) + TABLE_SIZES[[#This Row],[INDEX_COUNT]]*INDEX(DBMS_Index_Row_Header,,CODE_ORACLE) + TABLE_SIZES[[#This Row],[NULLABLE_COUNT]] -> 34 | S51: =SUMIF(IDX_SIZES[table_name],TABLE_SIZES[[#This Row],[Table]],IDX_SIZES[MSSQL]) + TABLE_SIZES[[#This Row],[INDEX_COUNT]]*INDEX(DBMS_Index_Row_Header,,CODE_MSSQL) + TABLE_SIZES[[#This Row],[NULLABLE_COUNT]] -> 40 | T51: =SUMIF(IDX_SIZES[table_name],TABLE_SIZES[[#This Row],[Table]],IDX_SIZES[DB2]) + TABLE_SIZES[[#This Row],[INDEX_COUNT]]*INDEX(DBMS_Index_Row_Header,,CODE_DB2) + TABLE_SIZES[[#This Row],[NULLABLE_COUNT]] -> 34
A52: GIDB_G_ROUTE_RESULT_V | C52: =GIDB_G_VIRTUAL_QUEUE_V -> 100,000 | D52: =TABLE_SIZES[[#This Row],[Data Bytes per Day]]*Days_to_Keep_GIDB_Data -> 5,734,400,000 | E52: =TABLE_SIZES[[#This Row],[Index Bytes per Day]]*Days_to_Keep_GIDB_Data -> 119,504,896 | F52: =DBMS_Block_Size*CEILING(TABLE_SIZES[[#This Row],[Rows per Day]]/TABLE_SIZES[[#This Row],[Data Rows per Block]],1) -> 409,600,000 | G52: =DBMS_Block_Size*CEILING(TABLE_SIZES[[#This Row],[Rows per Day]]/TABLE_SIZES[[#This Row],[Index Rows per Block]],1) -> 8,536,064 | H52: =INDEX(TABLE_SIZES[[#This Row],[TBL_ORACLE]:[TBL_DB2]],,CODE_CURRENT) -> 3,062 | I52: =FLOOR(DBMS_Data_Block_Free_Size/TABLE_SIZES[[#This Row],[Data Row Size]],1) -> 2 | J52: =FLOOR(DBMS_Data_Block_Free_Size/TABLE_SIZES[[#This Row],[Index Row Size]],1) -> 96 | K52: =INDEX(TABLE_SIZES[[#This Row],[IDX_ORACLE]:[IDX_DB2]],,CODE_CURRENT) -> 76 | M52: =SUMIF(COL_SIZES[table_name],TABLE_SIZES[[#This Row],[Table]],COL_SIZES[Oracle]) + INDEX(DBMS_Data_Block_Header,,CODE_ORACLE) -> 3062 | N52: =SUMIF(COL_SIZES[table_name],TABLE_SIZES[[#This Row],[Table]],COL_SIZES[MSSQL]) + INDEX(DBMS_Data_Block_Header,,CODE_MSSQL) -> 2879 | O52: =SUMIF(COL_SIZES[table_name],TABLE_SIZES[[#This Row],[Table]],COL_SIZES[DB2]) + INDEX(DBMS_Data_Block_Header,,CODE_DB2) -> 3099 | P52: =SUMIF(IDX_SIZES[table_name],$A52,IDX_SIZES[INDEX_COUNT]) -> 2 | Q52: =SUMIF(IDX_SIZES[table_name],$A52,IDX_SIZES[NULLABLE_COUNT]) -> 1 | R52: =SUMIF(IDX_SIZES[table_name],TABLE_SIZES[[#This Row],[Table]],IDX_SIZES[Oracle]) + TABLE_SIZES[[#This Row],[INDEX_COUNT]]*INDEX(DBMS_Index_Row_Header,,CODE_ORACLE) + TABLE_SIZES[[#This Row],[NULLABLE_COUNT]] -> 76 | S52: =SUMIF(IDX_SIZES[table_name],TABLE_SIZES[[#This Row],[Table]],IDX_SIZES[MSSQL]) + TABLE_SIZES[[#This Row],[INDEX_COUNT]]*INDEX(DBMS_Index_Row_Header,,CODE_MSSQL) + TABLE_SIZES[[#This Row],[NULLABLE_COUNT]] -> 87 | T52: =SUMIF(IDX_SIZES[table_name],TABLE_SIZES[[#This Row],[Table]],IDX_SIZES[DB2]) + TABLE_SIZES[[#This Row],[INDEX_COUNT]]*INDEX(DBMS_Index_Row_Header,,CODE_DB2) + TABLE_SIZES[[#This Row],[NULLABLE_COUNT]] -> 78
A53: GIDB_G_ROUTE_RESULT_MM | C53: =GIDB_G_VIRTUAL_QUEUE_MM -> 60,000 | D53: =TABLE_SIZES[[#This Row],[Data Bytes per Day]]*Average_Days_to_Keep_GIDB_MM_Ixn -> 3,809,280,000 | E53: =TABLE_SIZES[[#This Row],[Index Bytes per Day]]*Average_Days_to_Keep_GIDB_MM_Ixn -> 79,360,000 | F53: =DBMS_Block_Size*CEILING(TABLE_SIZES[[#This Row],[Rows per Day]]/TABLE_SIZES[[#This Row],[Data Rows per Block]],1) -> 245,760,000 | G53: =DBMS_Block_Size*CEILING(TABLE_SIZES[[#This Row],[Rows per Day]]/TABLE_SIZES[[#This Row],[Index Rows per Block]],1) -> 5,120,000 | H53: =INDEX(TABLE_SIZES[[#This Row],[TBL_ORACLE]:[TBL_DB2]],,CODE_CURRENT) -> 3,062 | I53: =FLOOR(DBMS_Data_Block_Free_Size/TABLE_SIZES[[#This Row],[Data Row Size]],1) -> 2 | J53: =FLOOR(DBMS_Data_Block_Free_Size/TABLE_SIZES[[#This Row],[Index Row Size]],1) -> 96 | K53: =INDEX(TABLE_SIZES[[#This Row],[IDX_ORACLE]:[IDX_DB2]],,CODE_CURRENT) -> 76 | M53: =SUMIF(COL_SIZES[table_name],TABLE_SIZES[[#This Row],[Table]],COL_SIZES[Oracle]) + INDEX(DBMS_Data_Block_Header,,CODE_ORACLE) -> 3062 | N53: =SUMIF(COL_SIZES[table_name],TABLE_SIZES[[#This Row],[Table]],COL_SIZES[MSSQL]) + INDEX(DBMS_Data_Block_Header,,CODE_MSSQL) -> 2879 | O53: =SUMIF(COL_SIZES[table_name],TABLE_SIZES[[#This Row],[Table]],COL_SIZES[DB2]) + INDEX(DBMS_Data_Block_Header,,CODE_DB2) -> 3099 | P53: =SUMIF(IDX_SIZES[table_name],$A53,IDX_SIZES[INDEX_COUNT]) -> 2 | Q53: =SUMIF(IDX_SIZES[table_name],$A53,IDX_SIZES[NULLABLE_COUNT]) -> 1 | R53: =SUMIF(IDX_SIZES[table_name],TABLE_SIZES[[#This Row],[Table]],IDX_SIZES[Oracle]) + TABLE_SIZES[[#This Row],[INDEX_COUNT]]*INDEX(DBMS_Index_Row_Header,,CODE_ORACLE) + TABLE_SIZES[[#This Row],[NULLABLE_COUNT]] -> 76 | S53: =SUMIF(IDX_SIZES[table_name],TABLE_SIZES[[#This Row],[Table]],IDX_SIZES[MSSQL]) + TABLE_SIZES[[#This Row],[INDEX_COUNT]]*INDEX(DBMS_Index_Row_Header,,CODE_MSSQL) + TABLE_SIZES[[#This Row],[NULLABLE_COUNT]] -> 87 | T53: =SUMIF(IDX_SIZES[table_name],TABLE_SIZES[[#This Row],[Table]],IDX_SIZES[DB2]) + TABLE_SIZES[[#This Row],[INDEX_COUNT]]*INDEX(DBMS_Index_Row_Header,,CODE_DB2) + TABLE_SIZES[[#This Row],[NULLABLE_COUNT]] -> 78
A55: GIDB_GCX_GROUP_AGENT | C55: =Number_of_Changes_per_Agent_Group_Per_Day*Number_of_Agent_Groups -> 2,000 | D55: =TABLE_SIZES[[#This Row],[Data Bytes per Day]]*Days_to_Keep_GIDB_Data -> 25,575,424 | E55: =TABLE_SIZES[[#This Row],[Index Bytes per Day]]*Days_to_Keep_GIDB_Data -> 2,867,200 | F55: =DBMS_Block_Size*CEILING(TABLE_SIZES[[#This Row],[Rows per Day]]/TABLE_SIZES[[#This Row],[Data Rows per Block]],1) -> 1,826,816 | G55: =DBMS_Block_Size*CEILING(TABLE_SIZES[[#This Row],[Rows per Day]]/TABLE_SIZES[[#This Row],[Index Rows per Block]],1) -> 204,800 | H55: =INDEX(TABLE_SIZES[[#This Row],[TBL_ORACLE]:[TBL_DB2]],,CODE_CURRENT) -> 795 | I55: =FLOOR(DBMS_Data_Block_Free_Size/TABLE_SIZES[[#This Row],[Data Row Size]],1) -> 9 | J55: =FLOOR(DBMS_Data_Block_Free_Size/TABLE_SIZES[[#This Row],[Index Row Size]],1) -> 83 | K55: =INDEX(TABLE_SIZES[[#This Row],[IDX_ORACLE]:[IDX_DB2]],,CODE_CURRENT) -> 87 | M55: =SUMIF(COL_SIZES[table_name],TABLE_SIZES[[#This Row],[Table]],COL_SIZES[Oracle]) + INDEX(DBMS_Data_Block_Header,,CODE_ORACLE) -> 795 | N55: =SUMIF(COL_SIZES[table_name],TABLE_SIZES[[#This Row],[Table]],COL_SIZES[MSSQL]) + INDEX(DBMS_Data_Block_Header,,CODE_MSSQL) -> 627 | O55: =SUMIF(COL_SIZES[table_name],TABLE_SIZES[[#This Row],[Table]],COL_SIZES[DB2]) + INDEX(DBMS_Data_Block_Header,,CODE_DB2) -> 808 | P55: =SUMIF(IDX_SIZES[table_name],$A55,IDX_SIZES[INDEX_COUNT]) -> 3 | Q55: =SUMIF(IDX_SIZES[table_name],$A55,IDX_SIZES[NULLABLE_COUNT]) -> 0 | R55: =SUMIF(IDX_SIZES[table_name],TABLE_SIZES[[#This Row],[Table]],IDX_SIZES[Oracle]) + TABLE_SIZES[[#This Row],[INDEX_COUNT]]*INDEX(DBMS_Index_Row_Header,,CODE_ORACLE) + TABLE_SIZES[[#This Row],[NULLABLE_COUNT]] -> 87 | S55: =SUMIF(IDX_SIZES[table_name],TABLE_SIZES[[#This Row],[Table]],IDX_SIZES[MSSQL]) + TABLE_SIZES[[#This Row],[INDEX_COUNT]]*INDEX(DBMS_Index_Row_Header,,CODE_MSSQL) + TABLE_SIZES[[#This Row],[NULLABLE_COUNT]] -> 81 | T55: =SUMIF(IDX_SIZES[table_name],TABLE_SIZES[[#This Row],[Table]],IDX_SIZES[DB2]) + TABLE_SIZES[[#This Row],[INDEX_COUNT]]*INDEX(DBMS_Index_Row_Header,,CODE_DB2) + TABLE_SIZES[[#This Row],[NULLABLE_COUNT]] -> 87
A56: GIDB_GCX_GROUP_PLACE | C56: =Number_or_Changes_per_Place_Group_Per_Day*Number_of_Place_Groups -> 2,000 | D56: =TABLE_SIZES[[#This Row],[Data Bytes per Day]]*Days_to_Keep_GIDB_Data -> 25,575,424 | E56: =TABLE_SIZES[[#This Row],[Index Bytes per Day]]*Days_to_Keep_GIDB_Data -> 2,867,200 | F56: =DBMS_Block_Size*CEILING(TABLE_SIZES[[#This Row],[Rows per Day]]/TABLE_SIZES[[#This Row],[Data Rows per Block]],1) -> 1,826,816 | G56: =DBMS_Block_Size*CEILING(TABLE_SIZES[[#This Row],[Rows per Day]]/TABLE_SIZES[[#This Row],[Index Rows per Block]],1) -> 204,800 | H56: =INDEX(TABLE_SIZES[[#This Row],[TBL_ORACLE]:[TBL_DB2]],,CODE_CURRENT) -> 795 | I56: =FLOOR(DBMS_Data_Block_Free_Size/TABLE_SIZES[[#This Row],[Data Row Size]],1) -> 9 | J56: =FLOOR(DBMS_Data_Block_Free_Size/TABLE_SIZES[[#This Row],[Index Row Size]],1) -> 83 | K56: =INDEX(TABLE_SIZES[[#This Row],[IDX_ORACLE]:[IDX_DB2]],,CODE_CURRENT) -> 87 | M56: =SUMIF(COL_SIZES[table_name],TABLE_SIZES[[#This Row],[Table]],COL_SIZES[Oracle]) + INDEX(DBMS_Data_Block_Header,,CODE_ORACLE) -> 795 | N56: =SUMIF(COL_SIZES[table_name],TABLE_SIZES[[#This Row],[Table]],COL_SIZES[MSSQL]) + INDEX(DBMS_Data_Block_Header,,CODE_MSSQL) -> 627 | O56: =SUMIF(COL_SIZES[table_name],TABLE_SIZES[[#This Row],[Table]],COL_SIZES[DB2]) + INDEX(DBMS_Data_Block_Header,,CODE_DB2) -> 808 | P56: =SUMIF(IDX_SIZES[table_name],$A56,IDX_SIZES[INDEX_COUNT]) -> 3 | Q56: =SUMIF(IDX_SIZES[table_name],$A56,IDX_SIZES[NULLABLE_COUNT]) -> 0 | R56: =SUMIF(IDX_SIZES[table_name],TABLE_SIZES[[#This Row],[Table]],IDX_SIZES[Oracle]) + TABLE_SIZES[[#This Row],[INDEX_COUNT]]*INDEX(DBMS_Index_Row_Header,,CODE_ORACLE) + TABLE_SIZES[[#This Row],[NULLABLE_COUNT]] -> 87 | S56: =SUMIF(IDX_SIZES[table_name],TABLE_SIZES[[#This Row],[Table]],IDX_SIZES[MSSQL]) + TABLE_SIZES[[#This Row],[INDEX_COUNT]]*INDEX(DBMS_Index_Row_Header,,CODE_MSSQL) + TABLE_SIZES[[#This Row],[NULLABLE_COUNT]] -> 81 | T56: =SUMIF(IDX_SIZES[table_name],TABLE_SIZES[[#This Row],[Table]],IDX_SIZES[DB2]) + TABLE_SIZES[[#This Row],[INDEX_COUNT]]*INDEX(DBMS_Index_Row_Header,,CODE_DB2) + TABLE_SIZES[[#This Row],[NULLABLE_COUNT]] -> 87
A57: GIDB_GCX_SKILL_LEVEL | C57: =Number_of_Skill_Changes_per_Agent_per_Day*Number_of_Agents -> 6,000 | D57: =TABLE_SIZES[[#This Row],[Data Bytes per Day]]*Days_to_Keep_GIDB_Data -> 76,496,896 | E57: =TABLE_SIZES[[#This Row],[Index Bytes per Day]]*Days_to_Keep_GIDB_Data -> 8,372,224 | F57: =DBMS_Block_Size*CEILING(TABLE_SIZES[[#This Row],[Rows per Day]]/TABLE_SIZES[[#This Row],[Data Rows per Block]],1) -> 5,464,064 | G57: =DBMS_Block_Size*CEILING(TABLE_SIZES[[#This Row],[Rows per Day]]/TABLE_SIZES[[#This Row],[Index Rows per Block]],1) -> 598,016 | H57: =INDEX(TABLE_SIZES[[#This Row],[TBL_ORACLE]:[TBL_DB2]],,CODE_CURRENT) -> 804 | I57: =FLOOR(DBMS_Data_Block_Free_Size/TABLE_SIZES[[#This Row],[Data Row Size]],1) -> 9 | J57: =FLOOR(DBMS_Data_Block_Free_Size/TABLE_SIZES[[#This Row],[Index Row Size]],1) -> 83 | K57: =INDEX(TABLE_SIZES[[#This Row],[IDX_ORACLE]:[IDX_DB2]],,CODE_CURRENT) -> 87 | M57: =SUMIF(COL_SIZES[table_name],TABLE_SIZES[[#This Row],[Table]],COL_SIZES[Oracle]) + INDEX(DBMS_Data_Block_Header,,CODE_ORACLE) -> 804 | N57: =SUMIF(COL_SIZES[table_name],TABLE_SIZES[[#This Row],[Table]],COL_SIZES[MSSQL]) + INDEX(DBMS_Data_Block_Header,,CODE_MSSQL) -> 631 | O57: =SUMIF(COL_SIZES[table_name],TABLE_SIZES[[#This Row],[Table]],COL_SIZES[DB2]) + INDEX(DBMS_Data_Block_Header,,CODE_DB2) -> 817 | P57: =SUMIF(IDX_SIZES[table_name],$A57,IDX_SIZES[INDEX_COUNT]) -> 3 | Q57: =SUMIF(IDX_SIZES[table_name],$A57,IDX_SIZES[NULLABLE_COUNT]) -> 0 | R57: =SUMIF(IDX_SIZES[table_name],TABLE_SIZES[[#This Row],[Table]],IDX_SIZES[Oracle]) + TABLE_SIZES[[#This Row],[INDEX_COUNT]]*INDEX(DBMS_Index_Row_Header,,CODE_ORACLE) + TABLE_SIZES[[#This Row],[NULLABLE_COUNT]] -> 87 | S57: =SUMIF(IDX_SIZES[table_name],TABLE_SIZES[[#This Row],[Table]],IDX_SIZES[MSSQL]) + TABLE_SIZES[[#This Row],[INDEX_COUNT]]*INDEX(DBMS_Index_Row_Header,,CODE_MSSQL) + TABLE_SIZES[[#This Row],[NULLABLE_COUNT]] -> 81 | T57: =SUMIF(IDX_SIZES[table_name],TABLE_SIZES[[#This Row],[Table]],IDX_SIZES[DB2]) + TABLE_SIZES[[#This Row],[INDEX_COUNT]]*INDEX(DBMS_Index_Row_Header,,CODE_DB2) + TABLE_SIZES[[#This Row],[NULLABLE_COUNT]] -> 87
A59: GIDB_G_DND_HISTORY_V | C59: =Number_of_Agents*Number_of_DND_Changes_per_Agent_per_Day -> 10,000 | D59: =TABLE_SIZES[[#This Row],[Data Bytes per Day]]*Days_to_Keep_GIDB_Data -> 143,360,000 | E59: =TABLE_SIZES[[#This Row],[Index Bytes per Day]]*Days_to_Keep_GIDB_Data -> 2,867,200 | F59: =DBMS_Block_Size*CEILING(TABLE_SIZES[[#This Row],[Rows per Day]]/TABLE_SIZES[[#This Row],[Data Rows per Block]],1) -> 10,240,000 | G59: =DBMS_Block_Size*CEILING(TABLE_SIZES[[#This Row],[Rows per Day]]/TABLE_SIZES[[#This Row],[Index Rows per Block]],1) -> 204,800 | H59: =INDEX(TABLE_SIZES[[#This Row],[TBL_ORACLE]:[TBL_DB2]],,CODE_CURRENT) -> 854 | I59: =FLOOR(DBMS_Data_Block_Free_Size/TABLE_SIZES[[#This Row],[Data Row Size]],1) -> 8 | J59: =FLOOR(DBMS_Data_Block_Free_Size/TABLE_SIZES[[#This Row],[Index Row Size]],1) -> 405 | K59: =INDEX(TABLE_SIZES[[#This Row],[IDX_ORACLE]:[IDX_DB2]],,CODE_CURRENT) -> 18 | M59: =SUMIF(COL_SIZES[table_name],TABLE_SIZES[[#This Row],[Table]],COL_SIZES[Oracle]) + INDEX(DBMS_Data_Block_Header,,CODE_ORACLE) -> 854 | N59: =SUMIF(COL_SIZES[table_name],TABLE_SIZES[[#This Row],[Table]],COL_SIZES[MSSQL]) + INDEX(DBMS_Data_Block_Header,,CODE_MSSQL) -> 681 | O59: =SUMIF(COL_SIZES[table_name],TABLE_SIZES[[#This Row],[Table]],COL_SIZES[DB2]) + INDEX(DBMS_Data_Block_Header,,CODE_DB2) -> 869 | P59: =SUMIF(IDX_SIZES[table_name],$A59,IDX_SIZES[INDEX_COUNT]) -> 1 | Q59: =SUMIF(IDX_SIZES[table_name],$A59,IDX_SIZES[NULLABLE_COUNT]) -> 1 | R59: =SUMIF(IDX_SIZES[table_name],TABLE_SIZES[[#This Row],[Table]],IDX_SIZES[Oracle]) + TABLE_SIZES[[#This Row],[INDEX_COUNT]]*INDEX(DBMS_Index_Row_Header,,CODE_ORACLE) + TABLE_SIZES[[#This Row],[NULLABLE_COUNT]] -> 18 | S59: =SUMIF(IDX_SIZES[table_name],TABLE_SIZES[[#This Row],[Table]],IDX_SIZES[MSSQL]) + TABLE_SIZES[[#This Row],[INDEX_COUNT]]*INDEX(DBMS_Index_Row_Header,,CODE_MSSQL) + TABLE_SIZES[[#This Row],[NULLABLE_COUNT]] -> 21 | T59: =SUMIF(IDX_SIZES[table_name],TABLE_SIZES[[#This Row],[Table]],IDX_SIZES[DB2]) + TABLE_SIZES[[#This Row],[INDEX_COUNT]]*INDEX(DBMS_Index_Row_Header,,CODE_DB2) + TABLE_SIZES[[#This Row],[NULLABLE_COUNT]] -> 18
A60: GIDB_G_AGENT_STATE_RC_V | C60: =Number_of_Agents*Number_of_Reason_Code_Changes_per_Agent_per_Day -> 10,000 | D60: =TABLE_SIZES[[#This Row],[Data Bytes per Day]]*Days_to_Keep_GIDB_Data -> 229,376,000 | E60: =TABLE_SIZES[[#This Row],[Index Bytes per Day]]*Days_to_Keep_GIDB_Data -> 5,734,400 | F60: =DBMS_Block_Size*CEILING(TABLE_SIZES[[#This Row],[Rows per Day]]/TABLE_SIZES[[#This Row],[Data Rows per Block]],1) -> 16,384,000 | G60: =DBMS_Block_Size*CEILING(TABLE_SIZES[[#This Row],[Rows per Day]]/TABLE_SIZES[[#This Row],[Index Rows per Block]],1) -> 409,600 | H60: =INDEX(TABLE_SIZES[[#This Row],[TBL_ORACLE]:[TBL_DB2]],,CODE_CURRENT) -> 1,396 | I60: =FLOOR(DBMS_Data_Block_Free_Size/TABLE_SIZES[[#This Row],[Data Row Size]],1) -> 5 | J60: =FLOOR(DBMS_Data_Block_Free_Size/TABLE_SIZES[[#This Row],[Index Row Size]],1) -> 202 | K60: =INDEX(TABLE_SIZES[[#This Row],[IDX_ORACLE]:[IDX_DB2]],,CODE_CURRENT) -> 36 | M60: =SUMIF(COL_SIZES[table_name],TABLE_SIZES[[#This Row],[Table]],COL_SIZES[Oracle]) + INDEX(DBMS_Data_Block_Header,,CODE_ORACLE) -> 1396 | N60: =SUMIF(COL_SIZES[table_name],TABLE_SIZES[[#This Row],[Table]],COL_SIZES[MSSQL]) + INDEX(DBMS_Data_Block_Header,,CODE_MSSQL) -> 1205 | O60: =SUMIF(COL_SIZES[table_name],TABLE_SIZES[[#This Row],[Table]],COL_SIZES[DB2]) + INDEX(DBMS_Data_Block_Header,,CODE_DB2) -> 1415 | P60: =SUMIF(IDX_SIZES[table_name],$A60,IDX_SIZES[INDEX_COUNT]) -> 2 | Q60: =SUMIF(IDX_SIZES[table_name],$A60,IDX_SIZES[NULLABLE_COUNT]) -> 2 | R60: =SUMIF(IDX_SIZES[table_name],TABLE_SIZES[[#This Row],[Table]],IDX_SIZES[Oracle]) + TABLE_SIZES[[#This Row],[INDEX_COUNT]]*INDEX(DBMS_Index_Row_Header,,CODE_ORACLE) + TABLE_SIZES[[#This Row],[NULLABLE_COUNT]] -> 36 | S60: =SUMIF(IDX_SIZES[table_name],TABLE_SIZES[[#This Row],[Table]],IDX_SIZES[MSSQL]) + TABLE_SIZES[[#This Row],[INDEX_COUNT]]*INDEX(DBMS_Index_Row_Header,,CODE_MSSQL) + TABLE_SIZES[[#This Row],[NULLABLE_COUNT]] -> 42 | T60: =SUMIF(IDX_SIZES[table_name],TABLE_SIZES[[#This Row],[Table]],IDX_SIZES[DB2]) + TABLE_SIZES[[#This Row],[INDEX_COUNT]]*INDEX(DBMS_Index_Row_Header,,CODE_DB2) + TABLE_SIZES[[#This Row],[NULLABLE_COUNT]] -> 36
A61: GIDB_G_AGENT_STATE_HISTORY_V | C61: =Number_of_Agents*Number_of_Logins_per_Agent_per_Day + Number_of_Interactions_per_Day*Number_of_Agent_State_Changes_per_Interaction -> 398,000 | D61: =TABLE_SIZES[[#This Row],[Data Bytes per Day]]*Days_to_Keep_GIDB_Data -> 9,129,164,800 | E61: =TABLE_SIZES[[#This Row],[Index Bytes per Day]]*Days_to_Keep_GIDB_Data -> 112,738,304 | F61: =DBMS_Block_Size*CEILING(TABLE_SIZES[[#This Row],[Rows per Day]]/TABLE_SIZES[[#This Row],[Data Rows per Block]],1) -> 652,083,200 | G61: =DBMS_Block_Size*CEILING(TABLE_SIZES[[#This Row],[Rows per Day]]/TABLE_SIZES[[#This Row],[Index Rows per Block]],1) -> 8,052,736 | H61: =INDEX(TABLE_SIZES[[#This Row],[TBL_ORACLE]:[TBL_DB2]],,CODE_CURRENT) -> 1,267 | I61: =FLOOR(DBMS_Data_Block_Free_Size/TABLE_SIZES[[#This Row],[Data Row Size]],1) -> 5 | J61: =FLOOR(DBMS_Data_Block_Free_Size/TABLE_SIZES[[#This Row],[Index Row Size]],1) -> 405 | K61: =INDEX(TABLE_SIZES[[#This Row],[IDX_ORACLE]:[IDX_DB2]],,CODE_CURRENT) -> 18 | M61: =SUMIF(COL_SIZES[table_name],TABLE_SIZES[[#This Row],[Table]],COL_SIZES[Oracle]) + INDEX(DBMS_Data_Block_Header,,CODE_ORACLE) -> 1267 | N61: =SUMIF(COL_SIZES[table_name],TABLE_SIZES[[#This Row],[Table]],COL_SIZES[MSSQL]) + INDEX(DBMS_Data_Block_Header,,CODE_MSSQL) -> 1034 | O61: =SUMIF(COL_SIZES[table_name],TABLE_SIZES[[#This Row],[Table]],COL_SIZES[DB2]) + INDEX(DBMS_Data_Block_Header,,CODE_DB2) -> 1286 | P61: =SUMIF(IDX_SIZES[table_name],$A61,IDX_SIZES[INDEX_COUNT]) -> 1 | Q61: =SUMIF(IDX_SIZES[table_name],$A61,IDX_SIZES[NULLABLE_COUNT]) -> 1 | R61: =SUMIF(IDX_SIZES[table_name],TABLE_SIZES[[#This Row],[Table]],IDX_SIZES[Oracle]) + TABLE_SIZES[[#This Row],[INDEX_COUNT]]*INDEX(DBMS_Index_Row_Header,,CODE_ORACLE) + TABLE_SIZES[[#This Row],[NULLABLE_COUNT]] -> 18 | S61: =SUMIF(IDX_SIZES[table_name],TABLE_SIZES[[#This Row],[Table]],IDX_SIZES[MSSQL]) + TABLE_SIZES[[#This Row],[INDEX_COUNT]]*INDEX(DBMS_Index_Row_Header,,CODE_MSSQL) + TABLE_SIZES[[#This Row],[NULLABLE_COUNT]] -> 21 | T61: =SUMIF(IDX_SIZES[table_name],TABLE_SIZES[[#This Row],[Table]],IDX_SIZES[DB2]) + TABLE_SIZES[[#This Row],[INDEX_COUNT]]*INDEX(DBMS_Index_Row_Header,,CODE_DB2) + TABLE_SIZES[[#This Row],[NULLABLE_COUNT]] -> 18
A62: GIDB_G_LOGIN_SESSION_V | C62: =Number_of_Agents*Number_of_Logins_per_Agent_per_Day -> 8,000 | D62: =TABLE_SIZES[[#This Row],[Data Bytes per Day]]*Days_to_Keep_GIDB_Data -> 131,088,384 | E62: =TABLE_SIZES[[#This Row],[Index Bytes per Day]]*Days_to_Keep_GIDB_Data -> 13,189,120 | F62: =DBMS_Block_Size*CEILING(TABLE_SIZES[[#This Row],[Rows per Day]]/TABLE_SIZES[[#This Row],[Data Rows per Block]],1) -> 9,363,456 | G62: =DBMS_Block_Size*CEILING(TABLE_SIZES[[#This Row],[Rows per Day]]/TABLE_SIZES[[#This Row],[Index Rows per Block]],1) -> 942,080 | H62: =INDEX(TABLE_SIZES[[#This Row],[TBL_ORACLE]:[TBL_DB2]],,CODE_CURRENT) -> 931 | I62: =FLOOR(DBMS_Data_Block_Free_Size/TABLE_SIZES[[#This Row],[Data Row Size]],1) -> 7 | J62: =FLOOR(DBMS_Data_Block_Free_Size/TABLE_SIZES[[#This Row],[Index Row Size]],1) -> 70 | K62: =INDEX(TABLE_SIZES[[#This Row],[IDX_ORACLE]:[IDX_DB2]],,CODE_CURRENT) -> 103 | M62: =SUMIF(COL_SIZES[table_name],TABLE_SIZES[[#This Row],[Table]],COL_SIZES[Oracle]) + INDEX(DBMS_Data_Block_Header,,CODE_ORACLE) -> 931 | N62: =SUMIF(COL_SIZES[table_name],TABLE_SIZES[[#This Row],[Table]],COL_SIZES[MSSQL]) + INDEX(DBMS_Data_Block_Header,,CODE_MSSQL) -> 743 | O62: =SUMIF(COL_SIZES[table_name],TABLE_SIZES[[#This Row],[Table]],COL_SIZES[DB2]) + INDEX(DBMS_Data_Block_Header,,CODE_DB2) -> 948 | P62: =SUMIF(IDX_SIZES[table_name],$A62,IDX_SIZES[INDEX_COUNT]) -> 3 | Q62: =SUMIF(IDX_SIZES[table_name],$A62,IDX_SIZES[NULLABLE_COUNT]) -> 2 | R62: =SUMIF(IDX_SIZES[table_name],TABLE_SIZES[[#This Row],[Table]],IDX_SIZES[Oracle]) + TABLE_SIZES[[#This Row],[INDEX_COUNT]]*INDEX(DBMS_Index_Row_Header,,CODE_ORACLE) + TABLE_SIZES[[#This Row],[NULLABLE_COUNT]] -> 103 | S62: =SUMIF(IDX_SIZES[table_name],TABLE_SIZES[[#This Row],[Table]],IDX_SIZES[MSSQL]) + TABLE_SIZES[[#This Row],[INDEX_COUNT]]*INDEX(DBMS_Index_Row_Header,,CODE_MSSQL) + TABLE_SIZES[[#This Row],[NULLABLE_COUNT]] -> 112 | T62: =SUMIF(IDX_SIZES[table_name],TABLE_SIZES[[#This Row],[Table]],IDX_SIZES[DB2]) + TABLE_SIZES[[#This Row],[INDEX_COUNT]]*INDEX(DBMS_Index_Row_Header,,CODE_DB2) + TABLE_SIZES[[#This Row],[NULLABLE_COUNT]] -> 105
A63: GIDB_GX_SESSION_ENDPOINT_V | C63: =Number_of_Agents*Number_of_Logins_per_Agent_per_Day -> 8,000 | D63: =TABLE_SIZES[[#This Row],[Data Bytes per Day]]*Days_to_Keep_GIDB_Data -> 114,688,000 | E63: =TABLE_SIZES[[#This Row],[Index Bytes per Day]]*Days_to_Keep_GIDB_Data -> 19,152,896 | F63: =DBMS_Block_Size*CEILING(TABLE_SIZES[[#This Row],[Rows per Day]]/TABLE_SIZES[[#This Row],[Data Rows per Block]],1) -> 8,192,000 | G63: =DBMS_Block_Size*CEILING(TABLE_SIZES[[#This Row],[Rows per Day]]/TABLE_SIZES[[#This Row],[Index Rows per Block]],1) -> 1,368,064 | H63: =INDEX(TABLE_SIZES[[#This Row],[TBL_ORACLE]:[TBL_DB2]],,CODE_CURRENT) -> 890 | I63: =FLOOR(DBMS_Data_Block_Free_Size/TABLE_SIZES[[#This Row],[Data Row Size]],1) -> 8 | J63: =FLOOR(DBMS_Data_Block_Free_Size/TABLE_SIZES[[#This Row],[Index Row Size]],1) -> 48 | K63: =INDEX(TABLE_SIZES[[#This Row],[IDX_ORACLE]:[IDX_DB2]],,CODE_CURRENT) -> 152 | M63: =SUMIF(COL_SIZES[table_name],TABLE_SIZES[[#This Row],[Table]],COL_SIZES[Oracle]) + INDEX(DBMS_Data_Block_Header,,CODE_ORACLE) -> 890 | N63: =SUMIF(COL_SIZES[table_name],TABLE_SIZES[[#This Row],[Table]],COL_SIZES[MSSQL]) + INDEX(DBMS_Data_Block_Header,,CODE_MSSQL) -> 697 | O63: =SUMIF(COL_SIZES[table_name],TABLE_SIZES[[#This Row],[Table]],COL_SIZES[DB2]) + INDEX(DBMS_Data_Block_Header,,CODE_DB2) -> 905 | P63: =SUMIF(IDX_SIZES[table_name],$A63,IDX_SIZES[INDEX_COUNT]) -> 2 | Q63: =SUMIF(IDX_SIZES[table_name],$A63,IDX_SIZES[NULLABLE_COUNT]) -> 0 | R63: =SUMIF(IDX_SIZES[table_name],TABLE_SIZES[[#This Row],[Table]],IDX_SIZES[Oracle]) + TABLE_SIZES[[#This Row],[INDEX_COUNT]]*INDEX(DBMS_Index_Row_Header,,CODE_ORACLE) + TABLE_SIZES[[#This Row],[NULLABLE_COUNT]] -> 152 | S63: =SUMIF(IDX_SIZES[table_name],TABLE_SIZES[[#This Row],[Table]],IDX_SIZES[MSSQL]) + TABLE_SIZES[[#This Row],[INDEX_COUNT]]*INDEX(DBMS_Index_Row_Header,,CODE_MSSQL) + TABLE_SIZES[[#This Row],[NULLABLE_COUNT]] -> 148 | T63: =SUMIF(IDX_SIZES[table_name],TABLE_SIZES[[#This Row],[Table]],IDX_SIZES[DB2]) + TABLE_SIZES[[#This Row],[INDEX_COUNT]]*INDEX(DBMS_Index_Row_Header,,CODE_DB2) + TABLE_SIZES[[#This Row],[NULLABLE_COUNT]] -> 156
A64: GIDB_GX_SESSION_ENDPOINT_MM | C64: =Number_of_Agents*Number_of_Logins_per_Agent_per_Day*Number_of_Media_Types_per_Agent -> 16,000 | D64: =TABLE_SIZES[[#This Row],[Data Bytes per Day]]*Days_to_Keep_GIDB_Data -> 229,376,000 | E64: =TABLE_SIZES[[#This Row],[Index Bytes per Day]]*Days_to_Keep_GIDB_Data -> 38,305,792 | F64: =DBMS_Block_Size*CEILING(TABLE_SIZES[[#This Row],[Rows per Day]]/TABLE_SIZES[[#This Row],[Data Rows per Block]],1) -> 16,384,000 | G64: =DBMS_Block_Size*CEILING(TABLE_SIZES[[#This Row],[Rows per Day]]/TABLE_SIZES[[#This Row],[Index Rows per Block]],1) -> 2,736,128 | H64: =INDEX(TABLE_SIZES[[#This Row],[TBL_ORACLE]:[TBL_DB2]],,CODE_CURRENT) -> 890 | I64: =FLOOR(DBMS_Data_Block_Free_Size/TABLE_SIZES[[#This Row],[Data Row Size]],1) -> 8 | J64: =FLOOR(DBMS_Data_Block_Free_Size/TABLE_SIZES[[#This Row],[Index Row Size]],1) -> 48 | K64: =INDEX(TABLE_SIZES[[#This Row],[IDX_ORACLE]:[IDX_DB2]],,CODE_CURRENT) -> 152 | M64: =SUMIF(COL_SIZES[table_name],TABLE_SIZES[[#This Row],[Table]],COL_SIZES[Oracle]) + INDEX(DBMS_Data_Block_Header,,CODE_ORACLE) -> 890 | N64: =SUMIF(COL_SIZES[table_name],TABLE_SIZES[[#This Row],[Table]],COL_SIZES[MSSQL]) + INDEX(DBMS_Data_Block_Header,,CODE_MSSQL) -> 697 | O64: =SUMIF(COL_SIZES[table_name],TABLE_SIZES[[#This Row],[Table]],COL_SIZES[DB2]) + INDEX(DBMS_Data_Block_Header,,CODE_DB2) -> 905 | P64: =SUMIF(IDX_SIZES[table_name],$A64,IDX_SIZES[INDEX_COUNT]) -> 2 | Q64: =SUMIF(IDX_SIZES[table_name],$A64,IDX_SIZES[NULLABLE_COUNT]) -> 0 | R64: =SUMIF(IDX_SIZES[table_name],TABLE_SIZES[[#This Row],[Table]],IDX_SIZES[Oracle]) + TABLE_SIZES[[#This Row],[INDEX_COUNT]]*INDEX(DBMS_Index_Row_Header,,CODE_ORACLE) + TABLE_SIZES[[#This Row],[NULLABLE_COUNT]] -> 152 | S64: =SUMIF(IDX_SIZES[table_name],TABLE_SIZES[[#This Row],[Table]],IDX_SIZES[MSSQL]) + TABLE_SIZES[[#This Row],[INDEX_COUNT]]*INDEX(DBMS_Index_Row_Header,,CODE_MSSQL) + TABLE_SIZES[[#This Row],[NULLABLE_COUNT]] -> 148 | T64: =SUMIF(IDX_SIZES[table_name],TABLE_SIZES[[#This Row],[Table]],IDX_SIZES[DB2]) + TABLE_SIZES[[#This Row],[INDEX_COUNT]]*INDEX(DBMS_Index_Row_Header,,CODE_DB2) + TABLE_SIZES[[#This Row],[NULLABLE_COUNT]] -> 156
A66: GIDB_GO_CHAIN | C66: =Number_of_Outbound_Calls_per_Day -> 100,000 | D66: =TABLE_SIZES[[#This Row],[Data Bytes per Day]]*Average_Days_to_Keep_GIDB_Outbound -> 4,096,081,920 | E66: =TABLE_SIZES[[#This Row],[Index Bytes per Day]]*Average_Days_to_Keep_GIDB_Outbound -> 243,548,160 | F66: =DBMS_Block_Size*CEILING(TABLE_SIZES[[#This Row],[Rows per Day]]/TABLE_SIZES[[#This Row],[Data Rows per Block]],1) -> 136,536,064 | G66: =DBMS_Block_Size*CEILING(TABLE_SIZES[[#This Row],[Rows per Day]]/TABLE_SIZES[[#This Row],[Index Rows per Block]],1) -> 8,118,272 | H66: =INDEX(TABLE_SIZES[[#This Row],[TBL_ORACLE]:[TBL_DB2]],,CODE_CURRENT) -> 1,148 | I66: =FLOOR(DBMS_Data_Block_Free_Size/TABLE_SIZES[[#This Row],[Data Row Size]],1) -> 6 | J66: =FLOOR(DBMS_Data_Block_Free_Size/TABLE_SIZES[[#This Row],[Index Row Size]],1) -> 101 | K66: =INDEX(TABLE_SIZES[[#This Row],[IDX_ORACLE]:[IDX_DB2]],,CODE_CURRENT) -> 72 | M66: =SUMIF(COL_SIZES[table_name],TABLE_SIZES[[#This Row],[Table]],COL_SIZES[Oracle]) + INDEX(DBMS_Data_Block_Header,,CODE_ORACLE) -> 1148 | N66: =SUMIF(COL_SIZES[table_name],TABLE_SIZES[[#This Row],[Table]],COL_SIZES[MSSQL]) + INDEX(DBMS_Data_Block_Header,,CODE_MSSQL) -> 931 | O66: =SUMIF(COL_SIZES[table_name],TABLE_SIZES[[#This Row],[Table]],COL_SIZES[DB2]) + INDEX(DBMS_Data_Block_Header,,CODE_DB2) -> 1172 | P66: =SUMIF(IDX_SIZES[table_name],$A66,IDX_SIZES[INDEX_COUNT]) -> 1 | Q66: =SUMIF(IDX_SIZES[table_name],$A66,IDX_SIZES[NULLABLE_COUNT]) -> 0 | R66: =SUMIF(IDX_SIZES[table_name],TABLE_SIZES[[#This Row],[Table]],IDX_SIZES[Oracle]) + TABLE_SIZES[[#This Row],[INDEX_COUNT]]*INDEX(DBMS_Index_Row_Header,,CODE_ORACLE) + TABLE_SIZES[[#This Row],[NULLABLE_COUNT]] -> 72 | S66: =SUMIF(IDX_SIZES[table_name],TABLE_SIZES[[#This Row],[Table]],IDX_SIZES[MSSQL]) + TABLE_SIZES[[#This Row],[INDEX_COUNT]]*INDEX(DBMS_Index_Row_Header,,CODE_MSSQL) + TABLE_SIZES[[#This Row],[NULLABLE_COUNT]] -> 80 | T66: =SUMIF(IDX_SIZES[table_name],TABLE_SIZES[[#This Row],[Table]],IDX_SIZES[DB2]) + TABLE_SIZES[[#This Row],[INDEX_COUNT]]*INDEX(DBMS_Index_Row_Header,,CODE_DB2) + TABLE_SIZES[[#This Row],[NULLABLE_COUNT]] -> 74
A67: GIDB_GO_CHAINREC_HIST | C67: =Number_of_Outbound_Calls_per_Day * 15 -> 1,500,000 | D67: =TABLE_SIZES[[#This Row],[Data Bytes per Day]]*Average_Days_to_Keep_GIDB_Outbound -> 52,662,927,360 | E67: =IFERROR(TABLE_SIZES[[#This Row],[Index Bytes per Day]]*Average_Days_to_Keep_GIDB_Outbound,0) -> 5,421,219,840 | F67: =DBMS_Block_Size*CEILING(TABLE_SIZES[[#This Row],[Rows per Day]]/TABLE_SIZES[[#This Row],[Data Rows per Block]],1) -> 1,755,430,912 | G67: =DBMS_Block_Size*CEILING(TABLE_SIZES[[#This Row],[Rows per Day]]/TABLE_SIZES[[#This Row],[Index Rows per Block]],1) -> 180,707,328 | H67: =INDEX(TABLE_SIZES[[#This Row],[TBL_ORACLE]:[TBL_DB2]],,CODE_CURRENT) -> 1,040 | I67: =FLOOR(DBMS_Data_Block_Free_Size/TABLE_SIZES[[#This Row],[Data Row Size]],1) -> 7 | J67: =FLOOR(DBMS_Data_Block_Free_Size/TABLE_SIZES[[#This Row],[Index Row Size]],1) -> 68 | K67: =INDEX(TABLE_SIZES[[#This Row],[IDX_ORACLE]:[IDX_DB2]],,CODE_CURRENT) -> 106 | M67: =SUMIF(COL_SIZES[table_name],TABLE_SIZES[[#This Row],[Table]],COL_SIZES[Oracle]) + INDEX(DBMS_Data_Block_Header,,CODE_ORACLE) -> 1040 | N67: =SUMIF(COL_SIZES[table_name],TABLE_SIZES[[#This Row],[Table]],COL_SIZES[MSSQL]) + INDEX(DBMS_Data_Block_Header,,CODE_MSSQL) -> 807 | O67: =SUMIF(COL_SIZES[table_name],TABLE_SIZES[[#This Row],[Table]],COL_SIZES[DB2]) + INDEX(DBMS_Data_Block_Header,,CODE_DB2) -> 1057 | P67: =SUMIF(IDX_SIZES[table_name],$A67,IDX_SIZES[INDEX_COUNT]) -> 3 | Q67: =SUMIF(IDX_SIZES[table_name],$A67,IDX_SIZES[NULLABLE_COUNT]) -> 0 | R67: =SUMIF(IDX_SIZES[table_name],TABLE_SIZES[[#This Row],[Table]],IDX_SIZES[Oracle]) + TABLE_SIZES[[#This Row],[INDEX_COUNT]]*INDEX(DBMS_Index_Row_Header,,CODE_ORACLE) + TABLE_SIZES[[#This Row],[NULLABLE_COUNT]] -> 106 | S67: =SUMIF(IDX_SIZES[table_name],TABLE_SIZES[[#This Row],[Table]],IDX_SIZES[MSSQL]) + TABLE_SIZES[[#This Row],[INDEX_COUNT]]*INDEX(DBMS_Index_Row_Header,,CODE_MSSQL) + TABLE_SIZES[[#This Row],[NULLABLE_COUNT]] -> 120 | T67: =SUMIF(IDX_SIZES[table_name],TABLE_SIZES[[#This Row],[Table]],IDX_SIZES[DB2]) + TABLE_SIZES[[#This Row],[INDEX_COUNT]]*INDEX(DBMS_Index_Row_Header,,CODE_DB2) + TABLE_SIZES[[#This Row],[NULLABLE_COUNT]] -> 108
A68: GIDB_GO_FIELDHIST | C68: =Number_of_Outbound_Calls_per_Day * 100 -> 10,000,000 | D68: =TABLE_SIZES[[#This Row],[Data Bytes per Day]]*Average_Days_to_Keep_GIDB_Outbound -> 491,520,000,000 | E68: =IFERROR(TABLE_SIZES[[#This Row],[Index Bytes per Day]]*Average_Days_to_Keep_GIDB_Outbound,0) -> 24,332,697,600 | F68: =DBMS_Block_Size*CEILING(TABLE_SIZES[[#This Row],[Rows per Day]]/TABLE_SIZES[[#This Row],[Data Rows per Block]],1) -> 16,384,000,000 | G68: =DBMS_Block_Size*CEILING(TABLE_SIZES[[#This Row],[Rows per Day]]/TABLE_SIZES[[#This Row],[Index Rows per Block]],1) -> 811,089,920 | H68: =INDEX(TABLE_SIZES[[#This Row],[TBL_ORACLE]:[TBL_DB2]],,CODE_CURRENT) -> 1,428 | I68: =FLOOR(DBMS_Data_Block_Free_Size/TABLE_SIZES[[#This Row],[Data Row Size]],1) -> 5 | J68: =FLOOR(DBMS_Data_Block_Free_Size/TABLE_SIZES[[#This Row],[Index Row Size]],1) -> 101 | K68: =INDEX(TABLE_SIZES[[#This Row],[IDX_ORACLE]:[IDX_DB2]],,CODE_CURRENT) -> 72 | M68: =SUMIF(COL_SIZES[table_name],TABLE_SIZES[[#This Row],[Table]],COL_SIZES[Oracle]) + INDEX(DBMS_Data_Block_Header,,CODE_ORACLE) -> 1428 | N68: =SUMIF(COL_SIZES[table_name],TABLE_SIZES[[#This Row],[Table]],COL_SIZES[MSSQL]) + INDEX(DBMS_Data_Block_Header,,CODE_MSSQL) -> 1255 | O68: =SUMIF(COL_SIZES[table_name],TABLE_SIZES[[#This Row],[Table]],COL_SIZES[DB2]) + INDEX(DBMS_Data_Block_Header,,CODE_DB2) -> 1449 | P68: =SUMIF(IDX_SIZES[table_name],$A68,IDX_SIZES[INDEX_COUNT]) -> 1 | Q68: =SUMIF(IDX_SIZES[table_name],$A68,IDX_SIZES[NULLABLE_COUNT]) -> 0 | R68: =SUMIF(IDX_SIZES[table_name],TABLE_SIZES[[#This Row],[Table]],IDX_SIZES[Oracle]) + TABLE_SIZES[[#This Row],[INDEX_COUNT]]*INDEX(DBMS_Index_Row_Header,,CODE_ORACLE) + TABLE_SIZES[[#This Row],[NULLABLE_COUNT]] -> 72 | S68: =SUMIF(IDX_SIZES[table_name],TABLE_SIZES[[#This Row],[Table]],IDX_SIZES[MSSQL]) + TABLE_SIZES[[#This Row],[INDEX_COUNT]]*INDEX(DBMS_Index_Row_Header,,CODE_MSSQL) + TABLE_SIZES[[#This Row],[NULLABLE_COUNT]] -> 80 | T68: =SUMIF(IDX_SIZES[table_name],TABLE_SIZES[[#This Row],[Table]],IDX_SIZES[DB2]) + TABLE_SIZES[[#This Row],[INDEX_COUNT]]*INDEX(DBMS_Index_Row_Header,,CODE_DB2) + TABLE_SIZES[[#This Row],[NULLABLE_COUNT]] -> 74
A69: GIDB_GO_METRICS | C69: =Number_of_Outbound_Calls_per_Day*4 + Number_of_Campaign_Group_Sessions_per_Day*144*6 + Number_of_Campaign_Group_Sessions_per_Day*144*4 -> 404,320 | D69: =TABLE_SIZES[[#This Row],[Data Bytes per Day]]*Average_Days_to_Keep_GIDB_Outbound -> 16,561,029,120 | E69: =IFERROR(TABLE_SIZES[[#This Row],[Index Bytes per Day]]*Average_Days_to_Keep_GIDB_Outbound,0) -> 1,003,929,600 | F69: =DBMS_Block_Size*CEILING(TABLE_SIZES[[#This Row],[Rows per Day]]/TABLE_SIZES[[#This Row],[Data Rows per Block]],1) -> 552,034,304 | G69: =DBMS_Block_Size*CEILING(TABLE_SIZES[[#This Row],[Rows per Day]]/TABLE_SIZES[[#This Row],[Index Rows per Block]],1) -> 33,464,320 | H69: =INDEX(TABLE_SIZES[[#This Row],[TBL_ORACLE]:[TBL_DB2]],,CODE_CURRENT) -> 1,126 | I69: =FLOOR(DBMS_Data_Block_Free_Size/TABLE_SIZES[[#This Row],[Data Row Size]],1) -> 6 | J69: =FLOOR(DBMS_Data_Block_Free_Size/TABLE_SIZES[[#This Row],[Index Row Size]],1) -> 99 | K69: =INDEX(TABLE_SIZES[[#This Row],[IDX_ORACLE]:[IDX_DB2]],,CODE_CURRENT) -> 73 | M69: =SUMIF(COL_SIZES[table_name],TABLE_SIZES[[#This Row],[Table]],COL_SIZES[Oracle]) + INDEX(DBMS_Data_Block_Header,,CODE_ORACLE) -> 1126 | N69: =SUMIF(COL_SIZES[table_name],TABLE_SIZES[[#This Row],[Table]],COL_SIZES[MSSQL]) + INDEX(DBMS_Data_Block_Header,,CODE_MSSQL) -> 947 | O69: =SUMIF(COL_SIZES[table_name],TABLE_SIZES[[#This Row],[Table]],COL_SIZES[DB2]) + INDEX(DBMS_Data_Block_Header,,CODE_DB2) -> 1146 | P69: =SUMIF(IDX_SIZES[table_name],$A69,IDX_SIZES[INDEX_COUNT]) -> 1 | Q69: =SUMIF(IDX_SIZES[table_name],$A69,IDX_SIZES[NULLABLE_COUNT]) -> 1 | R69: =SUMIF(IDX_SIZES[table_name],TABLE_SIZES[[#This Row],[Table]],IDX_SIZES[Oracle]) + TABLE_SIZES[[#This Row],[INDEX_COUNT]]*INDEX(DBMS_Index_Row_Header,,CODE_ORACLE) + TABLE_SIZES[[#This Row],[NULLABLE_COUNT]] -> 73 | S69: =SUMIF(IDX_SIZES[table_name],TABLE_SIZES[[#This Row],[Table]],IDX_SIZES[MSSQL]) + TABLE_SIZES[[#This Row],[INDEX_COUNT]]*INDEX(DBMS_Index_Row_Header,,CODE_MSSQL) + TABLE_SIZES[[#This Row],[NULLABLE_COUNT]] -> 81 | T69: =SUMIF(IDX_SIZES[table_name],TABLE_SIZES[[#This Row],[Table]],IDX_SIZES[DB2]) + TABLE_SIZES[[#This Row],[INDEX_COUNT]]*INDEX(DBMS_Index_Row_Header,,CODE_DB2) + TABLE_SIZES[[#This Row],[NULLABLE_COUNT]] -> 75
A70: GIDB_GO_RECORD | C70: =Number_of_Outbound_Calls_per_Day * Average_Number_of_Phones_per_Contact_in_Calling_List -> 200,000 | D70: =TABLE_SIZES[[#This Row],[Data Bytes per Day]]*Average_Days_to_Keep_GIDB_Outbound -> 12,288,000,000 | E70: =TABLE_SIZES[[#This Row],[Index Bytes per Day]]*Average_Days_to_Keep_GIDB_Outbound -> 1,045,954,560 | F70: =DBMS_Block_Size*CEILING(TABLE_SIZES[[#This Row],[Rows per Day]]/TABLE_SIZES[[#This Row],[Data Rows per Block]],1) -> 409,600,000 | G70: =DBMS_Block_Size*CEILING(TABLE_SIZES[[#This Row],[Rows per Day]]/TABLE_SIZES[[#This Row],[Index Rows per Block]],1) -> 34,865,152 | H70: =INDEX(TABLE_SIZES[[#This Row],[TBL_ORACLE]:[TBL_DB2]],,CODE_CURRENT) -> 1,812 | I70: =FLOOR(DBMS_Data_Block_Free_Size/TABLE_SIZES[[#This Row],[Data Row Size]],1) -> 4 | J70: =FLOOR(DBMS_Data_Block_Free_Size/TABLE_SIZES[[#This Row],[Index Row Size]],1) -> 47 | K70: =INDEX(TABLE_SIZES[[#This Row],[IDX_ORACLE]:[IDX_DB2]],,CODE_CURRENT) -> 155 | M70: =SUMIF(COL_SIZES[table_name],TABLE_SIZES[[#This Row],[Table]],COL_SIZES[Oracle]) + INDEX(DBMS_Data_Block_Header,,CODE_ORACLE) -> 1812 | N70: =SUMIF(COL_SIZES[table_name],TABLE_SIZES[[#This Row],[Table]],COL_SIZES[MSSQL]) + INDEX(DBMS_Data_Block_Header,,CODE_MSSQL) -> 1545 | O70: =SUMIF(COL_SIZES[table_name],TABLE_SIZES[[#This Row],[Table]],COL_SIZES[DB2]) + INDEX(DBMS_Data_Block_Header,,CODE_DB2) -> 1838 | P70: =SUMIF(IDX_SIZES[table_name],$A70,IDX_SIZES[INDEX_COUNT]) -> 2 | Q70: =SUMIF(IDX_SIZES[table_name],$A70,IDX_SIZES[NULLABLE_COUNT]) -> 2 | R70: =SUMIF(IDX_SIZES[table_name],TABLE_SIZES[[#This Row],[Table]],IDX_SIZES[Oracle]) + TABLE_SIZES[[#This Row],[INDEX_COUNT]]*INDEX(DBMS_Index_Row_Header,,CODE_ORACLE) + TABLE_SIZES[[#This Row],[NULLABLE_COUNT]] -> 155 | S70: =SUMIF(IDX_SIZES[table_name],TABLE_SIZES[[#This Row],[Table]],IDX_SIZES[MSSQL]) + TABLE_SIZES[[#This Row],[INDEX_COUNT]]*INDEX(DBMS_Index_Row_Header,,CODE_MSSQL) + TABLE_SIZES[[#This Row],[NULLABLE_COUNT]] -> 166 | T70: =SUMIF(IDX_SIZES[table_name],TABLE_SIZES[[#This Row],[Table]],IDX_SIZES[DB2]) + TABLE_SIZES[[#This Row],[INDEX_COUNT]]*INDEX(DBMS_Index_Row_Header,,CODE_DB2) + TABLE_SIZES[[#This Row],[NULLABLE_COUNT]] -> 159
A71: GIDB_GOX_CHAIN_CALL | C71: =Number_of_Outbound_Calls_per_Day -> 100,000 | D71: =TABLE_SIZES[[#This Row],[Data Bytes per Day]]*Average_Days_to_Keep_GIDB_Outbound -> 3,510,927,360 | E71: =IFERROR(TABLE_SIZES[[#This Row],[Index Bytes per Day]]*Average_Days_to_Keep_GIDB_Outbound,0) -> 243,548,160 | F71: =DBMS_Block_Size*CEILING(TABLE_SIZES[[#This Row],[Rows per Day]]/TABLE_SIZES[[#This Row],[Data Rows per Block]],1) -> 117,030,912 | G71: =DBMS_Block_Size*CEILING(TABLE_SIZES[[#This Row],[Rows per Day]]/TABLE_SIZES[[#This Row],[Index Rows per Block]],1) -> 8,118,272 | H71: =INDEX(TABLE_SIZES[[#This Row],[TBL_ORACLE]:[TBL_DB2]],,CODE_CURRENT) -> 921 | I71: =FLOOR(DBMS_Data_Block_Free_Size/TABLE_SIZES[[#This Row],[Data Row Size]],1) -> 7 | J71: =FLOOR(DBMS_Data_Block_Free_Size/TABLE_SIZES[[#This Row],[Index Row Size]],1) -> 101 | K71: =INDEX(TABLE_SIZES[[#This Row],[IDX_ORACLE]:[IDX_DB2]],,CODE_CURRENT) -> 72 | M71: =SUMIF(COL_SIZES[table_name],TABLE_SIZES[[#This Row],[Table]],COL_SIZES[Oracle]) + INDEX(DBMS_Data_Block_Header,,CODE_ORACLE) -> 921 | N71: =SUMIF(COL_SIZES[table_name],TABLE_SIZES[[#This Row],[Table]],COL_SIZES[MSSQL]) + INDEX(DBMS_Data_Block_Header,,CODE_MSSQL) -> 777 | O71: =SUMIF(COL_SIZES[table_name],TABLE_SIZES[[#This Row],[Table]],COL_SIZES[DB2]) + INDEX(DBMS_Data_Block_Header,,CODE_DB2) -> 937 | P71: =SUMIF(IDX_SIZES[table_name],$A71,IDX_SIZES[INDEX_COUNT]) -> 1 | Q71: =SUMIF(IDX_SIZES[table_name],$A71,IDX_SIZES[NULLABLE_COUNT]) -> 0 | R71: =SUMIF(IDX_SIZES[table_name],TABLE_SIZES[[#This Row],[Table]],IDX_SIZES[Oracle]) + TABLE_SIZES[[#This Row],[INDEX_COUNT]]*INDEX(DBMS_Index_Row_Header,,CODE_ORACLE) + TABLE_SIZES[[#This Row],[NULLABLE_COUNT]] -> 72 | S71: =SUMIF(IDX_SIZES[table_name],TABLE_SIZES[[#This Row],[Table]],IDX_SIZES[MSSQL]) + TABLE_SIZES[[#This Row],[INDEX_COUNT]]*INDEX(DBMS_Index_Row_Header,,CODE_MSSQL) + TABLE_SIZES[[#This Row],[NULLABLE_COUNT]] -> 80 | T71: =SUMIF(IDX_SIZES[table_name],TABLE_SIZES[[#This Row],[Table]],IDX_SIZES[DB2]) + TABLE_SIZES[[#This Row],[INDEX_COUNT]]*INDEX(DBMS_Index_Row_Header,,CODE_DB2) + TABLE_SIZES[[#This Row],[NULLABLE_COUNT]] -> 74
A73: Total | D73: =SUBTOTAL(109,[Data Bytes]) -> 1,719,904,075,776 | E73: =SUBTOTAL(109,[Index Bytes]) -> 118,564,544,512 | F73: =SUBTOTAL(109,[Data Bytes per Day]) -> 29,083,336,704 | G73: =SUBTOTAL(109,[Index Bytes per Day]) -> 1,687,035,904

Sheet lib (hidden)
B2: Name | C2: Oracle | D2: MSSQL | E2: DB2
B3: DBMS Data Row Header | C3: 3 | D3: 15 | E3: 3
B4: DBMS Index Row Header | C4: 8 | D4: 16 | E4: 8
B5: DBMS Data Block Header | C5: 84 | D5: 0 | E5: 84
B6: DBMS Index Block Header | C6: 161 | D6: 0 | E6: 161
B7: DBMS Data Block Free Size | C7: =FLOOR((DBMS_Block_Size - C5)*(1-DBMS_Percentage_of_Free_Space),1) -> 7297
B8: DBMS Index Block Free Size | C8: =FLOOR((DBMS_Block_Size - C6)*(1-DBMS_Percentage_of_Free_Space),1) -> 7227
B11: Database | C11: Code
B12: Oracle | C12: 1
B13: MS SQLServer | C13: 2
B14: IBM DB2 | C14: 3
B16: CODE_CURRENT | C16: =VLOOKUP(DBMS_CURRENT,DBMS[],2,FALSE) -> 1
B19: Unit | C19: TOTAL | D19: Value
B20: Size (Bytes) | C20: =(TABLE_SIZES[[#Totals],[Data Bytes]]+TABLE_SIZES[[#Totals],[Index Bytes]])/SIZE_UNITS[[#This Row],[Value]] -> 1838468620288.000000000 | D20: 1
B21: Size (MB) | C21: =(TABLE_SIZES[[#Totals],[Data Bytes]]+TABLE_SIZES[[#Totals],[Index Bytes]])/SIZE_UNITS[[#This Row],[Value]] -> 1753300.304687500 | D21: =POWER(2,10*2) -> 1,048,576
B22: Size (GB) | C22: =(TABLE_SIZES[[#Totals],[Data Bytes]]+TABLE_SIZES[[#Totals],[Index Bytes]])/SIZE_UNITS[[#This Row],[Value]] -> 1712.207328796 | D22: =POWER(2,10*3) -> 1,073,741,824
B23: Size (TB) | C23: =(TABLE_SIZES[[#Totals],[Data Bytes]]+TABLE_SIZES[[#Totals],[Index Bytes]])/SIZE_UNITS[[#This Row],[Value]] -> 1.672077470 | D23: =POWER(2,10*4) -> 1,099,511,627,776
B24: Size (PB) | C24: =(TABLE_SIZES[[#Totals],[Data Bytes]]+TABLE_SIZES[[#Totals],[Index Bytes]])/SIZE_UNITS[[#This Row],[Value]] -> 0.001632888 | D24: =POWER(2,10*5) -> 1,125,899,906,842,620
B26: SIZE_UNITS_CURRENT_TOTAL | C26: =VLOOKUP(SIZE_UNITS_CURRENT,SIZE_UNITS[],2,FALSE) -> 1,712 | D26: =SIZE_UNITS_CURRENT -> Size (GB)
B28: Name | C28: Value
B29: Number of Places | C29: 2,000
B30: Number of Skills | C30: 1,000
B31: Number of Skills per Agent | C31: 15
B32: Number of Agents per Agent Group | C32: 20
B33: Number of Places per Place Group | C33: 20
B34: Number of Skills per Combination | C34: 3
B35: Percentage of Abandoned Interactions (in 7.6 used for Agg only?) | C35: 10%
B36: Number of Calling Lists | C36: 3
B37: Number of Campaigns | C37: 10
B38: Number of Tenants | C38: 2
B39: Number of Routing Points | C39: 400
B40: Number of Queues | C40: 400
B41: Number of IVR Ports | C41: 400
B42: Days to Keep Active GIDB Facts | C42: =Days_to_Keep_Active_Facts -> 600
B43: Days to Keep Active Info Mart Facts | C43: =Days_to_Keep_Active_Facts -> 600
B44: Number of Routing Strategies | C44: 1,200
B45: Number of IVR Applications | C45: 30
B46: Number of Columns per User Data Dimension Table | C46: 5
B47: Number of Columns per User Data Fact Table | C47: 16
B48: DATE_TIME_YEARS | C48: 2
B49: User Data Dimension Fill Factor | C49: 1
B50: Index Fill Factor - not used? | C50: 1
B51: Number of Audit Keys per Chunk | C51: =20 + 10 -> 30
B52: Number of Resource Group Combinations | C52: 100,000
B53: Number_of_Media_Types_per_Agent | C53: 2
B54: Number_of_Reason_Code_Changes_per_Agent_per_Day | C54: 5
B55: Number of DND Changes per Agent per Day | C55: 5
B56: Number of Handling Resource State Changes per Voice Interaction | C56: =Number_of_Agent_State_Changes_per_Interaction -> 3
B57: Number of Mediation Resource State Changes per Voice Interaction | C57: 2
B58: Number of Handling Resource State Changes per MM Interaction | C58: =Number_of_Agent_State_Changes_per_Interaction -> 3
B59: Number of Mediation Resource State Changes per MM Interaction | C59: 2
B60: Percentage of Handling Resource per Voice Interaction | C60: 1
B61: Percentage of Handling Resource per MM Interaction | C61: 1
B62: Percentage of Handling Resource per Interaction | C62: =(Percentage_of_Handling_Resource_per_Voice_Interaction+Percentage_of_Mediation_Resource_per_MM_Interaction)/2 -> 1
B63: Chunk Size | C63: 900
B64: Number of Interactions per Day | C64: =Number_of_Voice_Interactions_per_Day+Number_of_MM_Interactions_per_Day -> 130,000
B65: Number of Voice IRFs per Day | C65: =Number_of_Voice_Interactions_per_Day*Number_of_Handling_Resources_per_Voice_Interaction -> 200,000
B66: Number of MM IRFs per Day | C66: =Number_of_MM_Interactions_per_Day * Number_of_Handling_Resources_per_MM_Interaction -> 90,000
B67: Number of IRFs per Day | C67: =Number_of_Voice_IRFs_per_Day+Number_of_MM_IRFs_per_Day -> 290,000
B68: Number of Voice IRSFs per Day | C68: =Number_of_Voice_Interactions_per_Day*Number_of_Handling_Resources_per_Voice_Interaction*Number_of_Handling_Resource_State_Changes_per_Voice_Interaction -> 600,000
B69: Number of MM IRSFs per Day | C69: =Number_of_MM_Interactions_per_Day*Number_of_Handling_Resources_per_MM_Interaction*Number_of_Handling_Resource_State_Changes_per_MM_Interaction -> 270,000
B70: Number of IRSFs per Day | C70: =Number_of_Voice_IRSFs_per_Day+Number_of_MM_IRSFs_per_Day -> 870,000
B71: Number of UD changes per Voice Ixn | C71: =2.5*Number_of_Handling_Resources_per_Voice_Interaction + 2*Number_of_Mediation_Resources_per_Voice_Interaction -> 9
B72: Number of UD changes per MM Ixn | C72: =2.5*Number_of_Handling_Resources_per_MM_Interaction + 2*Number_of_Mediation_Resources_per_MM_Interaction -> 12
B73: Number of Config Facts per Day | C73: =Number_of_Skill_Changes_per_Agent_per_Day*Number_of_Agents -> 6,000
B74: Number of Facts per Day | C74: =Number_of_Interactions_per_Day+Number_of_Config_Facts_per_Day -> 136,000
B75: Chunks per Day | C75: =(24*60*60)/Chunk_Size -> 96
B76: Percentage of Mediation Resource per Voice Interaction | C76: =1-Percentage_of_Handling_Resource_per_Voice_Interaction -> 34%
B77: Percentage of Mediation Resource per MM Interaction | C77: =1-Percentage_of_Handling_Resource_per_MM_Interaction -> 34%

Sheet COL_SIZES (hidden)
A1: select table_name, column_name, datatype, column_prec, column_length from (SELECT table_name=sysobjects.name, column_name=syscolumns.name, datatype=systypes.name, column_length=syscolumns.length, syscolumns.xprec AS column_prec FROM sysobjects JOIN syscolumns ON sysobjects.id = syscolumns.id JOIN systypes ON syscolumns.xtype=systypes.xtype where --sysobjects.category = 0 and sysobjects.xtype in ('U','VV') ) T where table_name not like 'TMP_%' order by table_name, column_name
A3: type | B3: col_len | C3: Oracle | D3: MSSQL | E3: DB2 | F3: table_name | G3: column_name | H3: datatype | I3: column_prec | J3: column_length
A4: =COL_SIZES[[#This Row],[datatype]]&"_"&COL_SIZES[[#This Row],[column_prec]]&"_"&COL_SIZES[[#This Row],[col_len]] -> int_10_4 | B4: =MIN(COL_SIZES[[#This Row],[column_length]],IFERROR(VALUE(VLOOKUP(COL_SIZES[[#This Row],[table_name]]&"."&COL_SIZES[[#This Row],[column_name]],AVG_COL_SIZES[#Data],2,FALSE)),COL_SIZES[[#This Row],[column_length]])) -> 4 | C4: =VLOOKUP(A4,DBMS_TYPE_SIZES[],2,FALSE) -> 9 | D4: =VLOOKUP(A4,DBMS_TYPE_SIZES[],3,FALSE) -> 4 | E4: =VLOOKUP(A4,DBMS_TYPE_SIZES[],4,FALSE) -> 9 | F4: ATTEMPT_DISPOSITION | G4: ATTEMPT_DISPOSITION_KEY | H4: int | I4: 10 | J4: 4
A5: =COL_SIZES[[#This Row],[datatype]]&"_"&COL_SIZES[[#This Row],[column_prec]]&"_"&COL_SIZES[[#This Row],[col_len]] -> varchar_0_255 | B5: =MIN(COL_SIZES[[#This Row],[column_length]],IFERROR(VALUE(VLOOKUP(COL_SIZES[[#This Row],[table_name]]&"."&COL_SIZES[[#This Row],[column_name]],AVG_COL_SIZES[#Data],2,FALSE)),COL_SIZES[[#This Row],[column_length]])) -> 255 | C5: =VLOOKUP(A5,DBMS_TYPE_SIZES[],2,FALSE) -> 255 | D5: =VLOOKUP(A5,DBMS_TYPE_SIZES[],3,FALSE) -> 255 | E5: =VLOOKUP(A5,DBMS_TYPE_SIZES[],4,FALSE) -> 257 | F5: ATTEMPT_DISPOSITION | G5: CAUSE | H5: varchar | I5: 0 | J5: 255
A6: =COL_SIZES[[#This Row],[datatype]]&"_"&COL_SIZES[[#This Row],[column_prec]]&"_"&COL_SIZES[[#This Row],[col_len]] -> varchar_0_255 | B6: =MIN(COL_SIZES[[#This Row],[column_length]],IFERROR(VALUE(VLOOKUP(COL_SIZES[[#This Row],[table_name]]&"."&COL_SIZES[[#This Row],[column_name]],AVG_COL_SIZES[#Data],2,FALSE)),COL_SIZES[[#This Row],[column_length]])) -> 255 | C6: =VLOOKUP(A6,DBMS_TYPE_SIZES[],2,FALSE) -> 255 | D6: =VLOOKUP(A6,DBMS_TYPE_SIZES[],3,FALSE) -> 255 | E6: =VLOOKUP(A6,DBMS_TYPE_SIZES[],4,FALSE) -> 257 | F6: ATTEMPT_DISPOSITION | G6: CAUSE_CODE | H6: varchar | I6: 0 | J6: 255
A7: =COL_SIZES[[#This Row],[datatype]]&"_"&COL_SIZES[[#This Row],[column_prec]]&"_"&COL_SIZES[[#This Row],[col_len]] -> int_10_4 | B7: =MIN(COL_SIZES[[#This Row],[column_length]],IFERROR(VALUE(VLOOKUP(COL_SIZES[[#This Row],[table_name]]&"."&COL_SIZES[[#This Row],[column_name]],AVG_COL_SIZES[#Data],2,FALSE)),COL_SIZES[[#This Row],[column_length]])) -> 4 | C7: =VLOOKUP(A7,DBMS_TYPE_SIZES[],2,FALSE) -> 9 | D7: =VLOOKUP(A7,DBMS_TYPE_SIZES[],3,FALSE) -> 4 | E7: =VLOOKUP(A7,DBMS_TYPE_SIZES[],4,FALSE) -> 9 | F7: ATTEMPT_DISPOSITION | G7: CAUSE_ID | H7: int | I7: 10 | J7: 4
A8: =COL_SIZES[[#This Row],[datatype]]&"_"&COL_SIZES[[#This Row],[column_prec]]&"_"&COL_SIZES[[#This Row],[col_len]] -> int_10_4 | B8: =MIN(COL_SIZES[[#This Row],[column_length]],IFERROR(VALUE(VLOOKUP(COL_SIZES[[#This Row],[table_name]]&"."&COL_SIZES[[#This Row],[column_name]],AVG_COL_SIZES[#Data],2,FALSE)),COL_SIZES[[#This Row],[column_length]])) -> 4 | C8: =VLOOKUP(A8,DBMS_TYPE_SIZES[],2,FALSE) -> 9 | D8: =VLOOKUP(A8,DBMS_TYPE_SIZES[],3,FALSE) -> 4 | E8: =VLOOKUP(A8,DBMS_TYPE_SIZES[],4,FALSE) -> 9 | F8: ATTEMPT_DISPOSITION | G8: CREATE_AUDIT_KEY | H8: int | I8: 10 | J8: 4
A9: =COL_SIZES[[#This Row],[datatype]]&"_"&COL_SIZES[[#This Row],[column_prec]]&"_"&COL_SIZES[[#This Row],[col_len]] -> varchar_0_255 | B9: =MIN(COL_SIZES[[#This Row],[column_length]],IFERROR(VALUE(VLOOKUP(COL_SIZES[[#This Row],[table_name]]&"."&COL_SIZES[[#This Row],[column_name]],AVG_COL_SIZES[#Data],2,FALSE)),COL_SIZES[[#This Row],[column_length]])) -> 255 | C9: =VLOOKUP(A9,DBMS_TYPE_SIZES[],2,FALSE) -> 255 | D9: =VLOOKUP(A9,DBMS_TYPE_SIZES[],3,FALSE) -> 255 | E9: =VLOOKUP(A9,DBMS_TYPE_SIZES[],4,FALSE) -> 257 | F9: ATTEMPT_DISPOSITION | G9: DESCRIPTOR | H9: varchar | I9: 0 | J9: 255
A10: =COL_SIZES[[#This Row],[datatype]]&"_"&COL_SIZES[[#This Row],[column_prec]]&"_"&COL_SIZES[[#This Row],[col_len]] -> varchar_0_255 | B10: =MIN(COL_SIZES[[#This Row],[column_length]],IFERROR(VALUE(VLOOKUP(COL_SIZES[[#This Row],[table_name]]&"."&COL_SIZES[[#This Row],[column_name]],AVG_COL_SIZES[#Data],2,FALSE)),COL_SIZES[[#This Row],[column_length]])) -> 255 | C10: =VLOOKUP(A10,DBMS_TYPE_SIZES[],2,FALSE) -> 255 | D10: =VLOOKUP(A10,DBMS_TYPE_SIZES[],3,FALSE) -> 255 | E10: =VLOOKUP(A10,DBMS_TYPE_SIZES[],4,FALSE) -> 257 | F10: ATTEMPT_DISPOSITION | G10: DESCRIPTOR_CODE | H10: varchar | I10: 0 | J10: 255
A11: =COL_SIZES[[#This Row],[datatype]]&"_"&COL_SIZES[[#This Row],[column_prec]]&"_"&COL_SIZES[[#This Row],[col_len]] -> int_10_4 | B11: =MIN(COL_SIZES[[#This Row],[column_length]],IFERROR(VALUE(VLOOKUP(COL_SIZES[[#This Row],[table_name]]&"."&COL_SIZES[[#This Row],[column_name]],AVG_COL_SIZES[#Data],2,FALSE)),COL_SIZES[[#This Row],[column_length]])) -> 4 | C11: =VLOOKUP(A11,DBMS_TYPE_SIZES[],2,FALSE) -> 9 | D11: =VLOOKUP(A11,DBMS_TYPE_SIZES[],3,FALSE) -> 4 | E11: =VLOOKUP(A11,DBMS_TYPE_SIZES[],4,FALSE) -> 9 | F11: ATTEMPT_DISPOSITION | G11: UPDATE_AUDIT_KEY | H11: int | I11: 10 | J11: 4
A12: =COL_SIZES[[#This Row],[datatype]]&"_"&COL_SIZES[[#This Row],[column_prec]]&"_"&COL_SIZES[[#This Row],[col_len]] -> varchar_0_32 | B12: =MIN(COL_SIZES[[#This Row],[column_length]],IFERROR(VALUE(VLOOKUP(COL_SIZES[[#This Row],[table_name]]&"."&COL_SIZES[[#This Row],[column_name]],AVG_COL_SIZES[#Data],2,FALSE)),COL_SIZES[[#This Row],[column_length]])) -> 32 | C12: =VLOOKUP(A12,DBMS_TYPE_SIZES[],2,FALSE) -> 32 | D12: =VLOOKUP(A12,DBMS_TYPE_SIZES[],3,FALSE) -> 32 | E12: =VLOOKUP(A12,DBMS_TYPE_SIZES[],4,FALSE) -> 34 | F12: CALL_RESULT | G12: CALL_RESULT | H12: varchar | I12: 0 | J12: 32
A13: =COL_SIZES[[#This Row],[datatype]]&"_"&COL_SIZES[[#This Row],[column_prec]]&"_"&COL_SIZES[[#This Row],[col_len]] -> varchar_0_32 | B13: =MIN(COL_SIZES[[#This Row],[column_length]],IFERROR(VALUE(VLOOKUP(COL_SIZES[[#This Row],[table_name]]&"."&COL_SIZES[[#This Row],[column_name]],AVG_COL_SIZES[#Data],2,FALSE)),COL_SIZES[[#This Row],[column_length]])) -> 32 | C13: =VLOOKUP(A13,DBMS_TYPE_SIZES[],2,FALSE) -> 32 | D13: =VLOOKUP(A13,DBMS_TYPE_SIZES[],3,FALSE) -> 32 | E13: =VLOOKUP(A13,DBMS_TYPE_SIZES[],4,FALSE) -> 34 | F13: CALL_RESULT | G13: CALL_RESULT_CODE | H13: varchar | I13: 0 | J13: 32
A14: =COL_SIZES[[#This Row],[datatype]]&"_"&COL_SIZES[[#This Row],[column_prec]]&"_"&COL_SIZES[[#This Row],[col_len]] -> int_10_4 | B14: =MIN(COL_SIZES[[#This Row],[column_length]],IFERROR(VALUE(VLOOKUP(COL_SIZES[[#This Row],[table_name]]&"."&COL_SIZES[[#This Row],[column_name]],AVG_COL_SIZES[#Data],2,FALSE)),COL_SIZES[[#This Row],[column_length]])) -> 4 | C14: =VLOOKUP(A14,DBMS_TYPE_SIZES[],2,FALSE) -> 9 | D14: =VLOOKUP(A14,DBMS_TYPE_SIZES[],3,FALSE) -> 4 | E14: =VLOOKUP(A14,DBMS_TYPE_SIZES[],4,FALSE) -> 9 | F14: CALL_RESULT | G14: CALL_RESULT_KEY | H14: int | I14: 10 | J14: 4
A15: =COL_SIZES[[#This Row],[datatype]]&"_"&COL_SIZES[[#This Row],[column_prec]]&"_"&COL_SIZES[[#This Row],[col_len]] -> int_10_4 | B15: =MIN(COL_SIZES[[#This Row],[column_length]],IFERROR(VALUE(VLOOKUP(COL_SIZES[[#This Row],[table_name]]&"."&COL_SIZES[[#This Row],[column_name]],AVG_COL_SIZES[#Data],2,FALSE)),COL_SIZES[[#This Row],[column_length]])) -> 4 | C15: =VLOOKUP(A15,DBMS_TYPE_SIZES[],2,FALSE) -> 9 | D15: =VLOOKUP(A15,DBMS_TYPE_SIZES[],3,FALSE) -> 4 | E15: =VLOOKUP(A15,DBMS_TYPE_SIZES[],4,FALSE) -> 9 | F15: CALL_RESULT | G15: CREATE_AUDIT_KEY | H15: int | I15: 10 | J15: 4
A16: =COL_SIZES[[#This Row],[datatype]]&"_"&COL_SIZES[[#This Row],[column_prec]]&"_"&COL_SIZES[[#This Row],[col_len]] -> int_10_4 | B16: =MIN(COL_SIZES[[#This Row],[column_length]],IFERROR(VALUE(VLOOKUP(COL_SIZES[[#This Row],[table_name]]&"."&COL_SIZES[[#This Row],[column_name]],AVG_COL_SIZES[#Data],2,FALSE)),COL_SIZES[[#This Row],[column_length]])) -> 4 | C16: =VLOOKUP(A16,DBMS_TYPE_SIZES[],2,FALSE) -> 9 | D16: =VLOOKUP(A16,DBMS_TYPE_SIZES[],3,FALSE) -> 4 | E16: =VLOOKUP(A16,DBMS_TYPE_SIZES[],4,FALSE) -> 9 | F16: CALL_RESULT | G16: UPDATE_AUDIT_KEY | H16: int | I16: 10 | J16: 4
A17: =COL_SIZES[[#This Row],[datatype]]&"_"&COL_SIZES[[#This Row],[column_prec]]&"_"&COL_SIZES[[#This Row],[col_len]] -> numeric_1_5 | B17: =MIN(COL_SIZES[[#This Row],[column_length]],IFERROR(VALUE(VLOOKUP(COL_SIZES[[#This Row],[table_name]]&"."&COL_SIZES[[#This Row],[column_name]],AVG_COL_SIZES[#Data],2,FALSE)),COL_SIZES[[#This Row],[column_length]])) -> 5 | C17: =VLOOKUP(A17,DBMS_TYPE_SIZES[],2,FALSE) -> 5 | D17: =VLOOKUP(A17,DBMS_TYPE_SIZES[],3,FALSE) -> 5 | E17: =VLOOKUP(A17,DBMS_TYPE_SIZES[],4,FALSE) -> 5 | F17: CALLING_LIST_METRIC_FACT | G17: ACTIVE_FLAG | H17: numeric | I17: 1 | J17: 5
A18: =COL_SIZES[[#This Row],[datatype]]&"_"&COL_SIZES[[#This Row],[column_prec]]&"_"&COL_SIZES[[#This Row],[col_len]] -> int_10_4 | B18: =MIN(COL_SIZES[[#This Row],[column_length]],IFERROR(VALUE(VLOOKUP(COL_SIZES[[#This Row],[table_name]]&"."&COL_SIZES[[#This Row],[column_name]],AVG_COL_SIZES[#Data],2,FALSE)),COL_SIZES[[#This Row],[column_length]])) -> 4 | C18: =VLOOKUP(A18,DBMS_TYPE_SIZES[],2,FALSE) -> 9 | D18: =VLOOKUP(A18,DBMS_TYPE_SIZES[],3,FALSE) -> 4 | E18: =VLOOKUP(A18,DBMS_TYPE_SIZES[],4,FALSE) -> 9 | F18: CALLING_LIST_METRIC_FACT | G18: CALLING_LIST_KEY | H18: int | I18: 10 | J18: 4
A19: =COL_SIZES[[#This Row],[datatype]]&"_"&COL_SIZES[[#This Row],[column_prec]]&"_"&COL_SIZES[[#This Row],[col_len]] -> numeric_19_9 | B19: =MIN(COL_SIZES[[#This Row],[column_length]],IFERROR(VALUE(VLOOKUP(COL_SIZES[[#This Row],[table_name]]&"."&COL_SIZES[[#This Row],[column_name]],AVG_COL_SIZES[#Data],2,FALSE)),COL_SIZES[[#This Row],[column_length]])) -> 9 | C19: =VLOOKUP(A19,DBMS_TYPE_SIZES[],2,FALSE) -> 9 | D19: =VLOOKUP(A19,DBMS_TYPE_SIZES[],3,FALSE) -> 9 | E19: =VLOOKUP(A19,DBMS_TYPE_SIZES[],4,FALSE) -> 9 | F19: CALLING_LIST_METRIC_FACT | G19: CALLING_LIST_METRIC_FACT_KEY | H19: numeric | I19: 19 | J19: 9
A20: =COL_SIZES[[#This Row],[datatype]]&"_"&COL_SIZES[[#This Row],[column_prec]]&"_"&COL_SIZES[[#This Row],[col_len]] -> numeric_19_9 | B20: =MIN(COL_SIZES[[#This Row],[column_length]],IFERROR(VALUE(VLOOKUP(COL_SIZES[[#This Row],[table_name]]&"."&COL_SIZES[[#This Row],[column_name]],AVG_COL_SIZES[#Data],2,FALSE)),COL_SIZES[[#This Row],[column_length]])) -> 9 | C20: =VLOOKUP(A20,DBMS_TYPE_SIZES[],2,FALSE) -> 9 | D20: =VLOOKUP(A20,DBMS_TYPE_SIZES[],3,FALSE) -> 9 | E20: =VLOOKUP(A20,DBMS_TYPE_SIZES[],4,FALSE) -> 9 | F20: CALLING_LIST_METRIC_FACT | G20: CAMP_GROUP_SESSION_FACT_KEY | H20: numeric | I20: 19 | J20: 9
A21: =COL_SIZES[[#This Row],[datatype]]&"_"&COL_SIZES[[#This Row],[column_prec]]&"_"&COL_SIZES[[#This Row],[col_len]] -> int_10_4 | B21: =MIN(COL_SIZES[[#This Row],[column_length]],IFERROR(VALUE(VLOOKUP(COL_SIZES[[#This Row],[table_name]]&"."&COL_SIZES[[#This Row],[column_name]],AVG_COL_SIZES[#Data],2,FALSE)),COL_SIZES[[#This Row],[column_length]])) -> 4 | C21: =VLOOKUP(A21,DBMS_TYPE_SIZES[],2,FALSE) -> 9 | D21: =VLOOKUP(A21,DBMS_TYPE_SIZES[],3,FALSE) -> 4 | E21: =VLOOKUP(A21,DBMS_TYPE_SIZES[],4,FALSE) -> 9 | F21: CALLING_LIST_METRIC_FACT | G21: CAMPAIGN_KEY | H21: int | I21: 10 | J21: 4
A22: =COL_SIZES[[#This Row],[datatype]]&"_"&COL_SIZES[[#This Row],[column_prec]]&"_"&COL_SIZES[[#This Row],[col_len]] -> int_10_4 | B22: =MIN(COL_SIZES[[#This Row],[column_length]],IFERROR(VALUE(VLOOKUP(COL_SIZES[[#This Row],[table_name]]&"."&COL_SIZES[[#This Row],[column_name]],AVG_COL_SIZES[#Data],2,FALSE)),COL_SIZES[[#This Row],[column_length]])) -> 4 | C22: =VLOOKUP(A22,DBMS_TYPE_SIZES[],2,FALSE) -> 9 | D22: =VLOOKUP(A22,DBMS_TYPE_SIZES[],3,FALSE) -> 4 | E22: =VLOOKUP(A22,DBMS_TYPE_SIZES[],4,FALSE) -> 9 | F22: CALLING_LIST_METRIC_FACT | G22: CREATE_AUDIT_KEY | H22: int | I22: 10 | J22: 4
A23: =COL_SIZES[[#This Row],[datatype]]&"_"&COL_SIZES[[#This Row],[column_prec]]&"_"&COL_SIZES[[#This Row],[col_len]] -> int_10_4 | B23: =MIN(COL_SIZES[[#This Row],[column_length]],IFERROR(VALUE(VLOOKUP(COL_SIZES[[#This Row],[table_name]]&"."&COL_SIZES[[#This Row],[column_name]],AVG_COL_SIZES[#Data],2,FALSE)),COL_SIZES[[#This Row],[column_length]])) -> 4 | C23: =VLOOKUP(A23,DBMS_TYPE_SIZES[],2,FALSE) -> 9 | D23: =VLOOKUP(A23,DBMS_TYPE_SIZES[],3,FALSE) -> 4 | E23: =VLOOKUP(A23,DBMS_TYPE_SIZES[],4,FALSE) -> 9 | F23: CALLING_LIST_METRIC_FACT | G23: GMT_TS | H23: int | I23: 10 | J23: 4
A24: =COL_SIZES[[#This Row],[datatype]]&"_"&COL_SIZES[[#This Row],[column_prec]]&"_"&COL_SIZES[[#This Row],[col_len]] -> int_10_4 | B24: =MIN(COL_SIZES[[#This Row],[column_length]],IFERROR(VALUE(VLOOKUP(COL_SIZES[[#This Row],[table_name]]&"."&COL_SIZES[[#This Row],[column_name]],AVG_COL_SIZES[#Data],2,FALSE)),COL_SIZES[[#This Row],[column_length]])) -> 4 | C24: =VLOOKUP(A24,DBMS_TYPE_SIZES[],2,FALSE) -> 9 | D24: =VLOOKUP(A24,DBMS_TYPE_SIZES[],3,FALSE) -> 4 | E24: =VLOOKUP(A24,DBMS_TYPE_SIZES[],4,FALSE) -> 9 | F24: CALLING_LIST_METRIC_FACT | G24: NOT_PROCESSED_CONTACTS | H24: int | I24: 10 | J24: 4
A25: =COL_SIZES[[#This Row],[datatype]]&"_"&COL_SIZES[[#This Row],[column_prec]]&"_"&COL_SIZES[[#This Row],[col_len]] -> int_10_4 | B25: =MIN(COL_SIZES[[#This Row],[column_length]],IFERROR(VALUE(VLOOKUP(COL_SIZES[[#This Row],[table_name]]&"."&COL_SIZES[[#This Row],[column_name]],AVG_COL_SIZES[#Data],2,FALSE)),COL_SIZES[[#This Row],[column_length]])) -> 4 | C25: =VLOOKUP(A25,DBMS_TYPE_SIZES[],2,FALSE) -> 9 | D25: =VLOOKUP(A25,DBMS_TYPE_SIZES[],3,FALSE) -> 4 | E25: =VLOOKUP(A25,DBMS_TYPE_SIZES[],4,FALSE) -> 9 | F25: CALLING_LIST_METRIC_FACT | G25: NOT_PROCESSED_RECORDS | H25: int | I25: 10 | J25: 4
A26: =COL_SIZES[[#This Row],[datatype]]&"_"&COL_SIZES[[#This Row],[column_prec]]&"_"&COL_SIZES[[#This Row],[col_len]] -> numeric_1_5 | B26: =MIN(COL_SIZES[[#This Row],[column_length]],IFERROR(VALUE(VLOOKUP(COL_SIZES[[#This Row],[table_name]]&"."&COL_SIZES[[#This Row],[column_name]],AVG_COL_SIZES[#Data],2,FALSE)),COL_SIZES[[#This Row],[column_length]])) -> 5 | C26: =VLOOKUP(A26,DBMS_TYPE_SIZES[],2,FALSE) -> 5 | D26: =VLOOKUP(A26,DBMS_TYPE_SIZES[],3,FALSE) -> 5 | E26: =VLOOKUP(A26,DBMS_TYPE_SIZES[],4,FALSE) -> 5 | F26: CALLING_LIST_METRIC_FACT | G26: PURGE_FLAG | H26: numeric | I26: 1 | J26: 5
A27: =COL_SIZES[[#This Row],[datatype]]&"_"&COL_SIZES[[#This Row],[column_prec]]&"_"&COL_SIZES[[#This Row],[col_len]] -> int_10_4 | B27: =MIN(COL_SIZES[[#This Row],[column_length]],IFERROR(VALUE(VLOOKUP(COL_SIZES[[#This Row],[table_name]]&"."&COL_SIZES[[#This Row],[column_name]],AVG_COL_SIZES[#Data],2,FALSE)),COL_SIZES[[#This Row],[column_length]])) -> 4 | C27: =VLOOKUP(A27,DBMS_TYPE_SIZES[],2,FALSE) -> 9 | D27: =VLOOKUP(A27,DBMS_TYPE_SIZES[],3,FALSE) -> 4 | E27: =VLOOKUP(A27,DBMS_TYPE_SIZES[],4,FALSE) -> 9 | F27: CALLING_LIST_METRIC_FACT | G27: START_DATE_TIME_KEY | H27: int | I27: 10 | J27: 4
A28: =COL_SIZES[[#This Row],[datatype]]&"_"&COL_SIZES[[#This Row],[column_prec]]&"_"&COL_SIZES[[#This Row],[col_len]] -> int_10_4 | B28: =MIN(COL_SIZES[[#This Row],[column_length]],IFERROR(VALUE(VLOOKUP(COL_SIZES[[#This Row],[table_name]]&"."&COL_SIZES[[#This Row],[column_name]],AVG_COL_SIZES[#Data],2,FALSE)),COL_SIZES[[#This Row],[column_length]])) -> 4 | C28: =VLOOKUP(A28,DBMS_TYPE_SIZES[],2,FALSE) -> 9 | D28: =VLOOKUP(A28,DBMS_TYPE_SIZES[],3,FALSE) -> 4 | E28: =VLOOKUP(A28,DBMS_TYPE_SIZES[],4,FALSE) -> 9 | F28: CALLING_LIST_METRIC_FACT | G28: TENANT_KEY | H28: int | I28: 10 | J28: 4
A29: =COL_SIZES[[#This Row],[datatype]]&"_"&COL_SIZES[[#This Row],[column_prec]]&"_"&COL_SIZES[[#This Row],[col_len]] -> int_10_4 | B29: =MIN(COL_SIZES[[#This Row],[column_length]],IFERROR(VALUE(VLOOKUP(COL_SIZES[[#This Row],[table_name]]&"."&COL_SIZES[[#This Row],[column_name]],AVG_COL_SIZES[#Data],2,FALSE)),COL_SIZES[[#This Row],[column_length]])) -> 4 | C29: =VLOOKUP(A29,DBMS_TYPE_SIZES[],2,FALSE) -> 9 | D29: =VLOOKUP(A29,DBMS_TYPE_SIZES[],3,FALSE) -> 4 | E29: =VLOOKUP(A29,DBMS_TYPE_SIZES[],4,FALSE) -> 9 | F29: CALLING_LIST_METRIC_FACT | G29: TOTAL_CONTACTS | H29: int | I29: 10 | J29: 4
A30: =COL_SIZES[[#This Row],[datatype]]&"_"&COL_SIZES[[#This Row],[column_prec]]&"_"&COL_SIZES[[#This Row],[col_len]] -> int_10_4 | B30: =MIN(COL_SIZES[[#This Row],[column_length]],IFERROR(VALUE(VLOOKUP(COL_SIZES[[#This Row],[table_name]]&"."&COL_SIZES[[#This Row],[column_name]],AVG_COL_SIZES[#Data],2,FALSE)),COL_SIZES[[#This Row],[column_length]])) -> 4 | C30: =VLOOKUP(A30,DBMS_TYPE_SIZES[],2,FALSE) -> 9 | D30: =VLOOKUP(A30,DBMS_TYPE_SIZES[],3,FALSE) -> 4 | E30: =VLOOKUP(A30,DBMS_TYPE_SIZES[],4,FALSE) -> 9 | F30: CALLING_LIST_METRIC_FACT | G30: TOTAL_RECORDS | H30: int | I30: 10 | J30: 4
A31: =COL_SIZES[[#This Row],[datatype]]&"_"&COL_SIZES[[#This Row],[column_prec]]&"_"&COL_SIZES[[#This Row],[col_len]] -> int_10_4 | B31: =MIN(COL_SIZES[[#This Row],[column_length]],IFERROR(VALUE(VLOOKUP(COL_SIZES[[#This Row],[table_name]]&"."&COL_SIZES[[#This Row],[column_name]],AVG_COL_SIZES[#Data],2,FALSE)),COL_SIZES[[#This Row],[column_length]])) -> 4 | C31: =VLOOKUP(A31,DBMS_TYPE_SIZES[],2,FALSE) -> 9 | D31: =VLOOKUP(A31,DBMS_TYPE_SIZES[],3,FALSE) -> 4 | E31: =VLOOKUP(A31,DBMS_TYPE_SIZES[],4,FALSE) -> 9 | F31: CALLING_LIST_METRIC_FACT | G31: UPDATE_AUDIT_KEY | H31: int | I31: 10 | J31: 4
A32: =COL_SIZES[[#This Row],[datatype]]&"_"&COL_SIZES[[#This Row],[column_prec]]&"_"&COL_SIZES[[#This Row],[col_len]] -> numeric_1_5 | B32: =MIN(COL_SIZES[[#This Row],[column_length]],IFERROR(VALUE(VLOOKUP(COL_SIZES[[#This Row],[table_name]]&"."&COL_SIZES[[#This Row],[column_name]],AVG_COL_SIZES[#Data],2,FALSE)),COL_SIZES[[#This Row],[column_length]])) -> 5 | C32: =VLOOKUP(A32,DBMS_TYPE_SIZES[],2,FALSE) -> 5 | D32: =VLOOKUP(A32,DBMS_TYPE_SIZES[],3,FALSE) -> 5 | E32: =VLOOKUP(A32,DBMS_TYPE_SIZES[],4,FALSE) -> 5 | F32: CALLING_LIST_TO_CAMP_FACT_ | G32: ACTIVE_FLAG | H32: numeric | I32: 1 | J32: 5
A33: =COL_SIZES[[#This Row],[datatype]]&"_"&COL_SIZES[[#This Row],[column_prec]]&"_"&COL_SIZES[[#This Row],[col_len]] -> int_10_4 | B33: =MIN(COL_SIZES[[#This Row],[column_length]],IFERROR(VALUE(VLOOKUP(COL_SIZES[[#This Row],[table_name]]&"."&COL_SIZES[[#This Row],[column_name]],AVG_COL_SIZES[#Data],2,FALSE)),COL_SIZES[[#This Row],[column_length]])) -> 4 | C33: =VLOOKUP(A33,DBMS_TYPE_SIZES[],2,FALSE) -> 9 | D33: =VLOOKUP(A33,DBMS_TYPE_SIZES[],3,FALSE) -> 4 | E33: =VLOOKUP(A33,DBMS_TYPE_SIZES[],4,FALSE) -> 9 | F33: CALLING_LIST_TO_CAMP_FACT_ | G33: CALLING_LIST_KEY | H33: int | I33: 10 | J33: 4
A34: =COL_SIZES[[#This Row],[datatype]]&"_"&COL_SIZES[[#This Row],[column_prec]]&"_"&COL_SIZES[[#This Row],[col_len]] -> numeric_19_9 | B34: =MIN(COL_SIZES[[#This Row],[column_length]],IFERROR(VALUE(VLOOKUP(COL_SIZES[[#This Row],[table_name]]&"."&COL_SIZES[[#This Row],[column_name]],AVG_COL_SIZES[#Data],2,FALSE)),COL_SIZES[[#This Row],[column_length]])) -> 9 | C34: =VLOOKUP(A34,DBMS_TYPE_SIZES[],2,FALSE) -> 9 | D34: =VLOOKUP(A34,DBMS_TYPE_SIZES[],3,FALSE) -> 9 | E34: =VLOOKUP(A34,DBMS_TYPE_SIZES[],4,FALSE) -> 9 | F34: CALLING_LIST_TO_CAMP_FACT_ | G34: CALLING_LIST_TO_CAMP_FACT_KEY | H34: numeric | I34: 19 | J34: 9
A35: =COL_SIZES[[#This Row],[datatype]]&"_"&COL_SIZES[[#This Row],[column_prec]]&"_"&COL_SIZES[[#This Row],[col_len]] -> int_10_4 | B35: =MIN(COL_SIZES[[#This Row],[column_length]],IFERROR(VALUE(VLOOKUP(COL_SIZES[[#This Row],[table_name]]&"."&COL_SIZES[[#This Row],[column_name]],AVG_COL_SIZES[#Data],2,FALSE)),COL_SIZES[[#This Row],[column_length]])) -> 4 | C35: =VLOOKUP(A35,DBMS_TYPE_SIZES[],2,FALSE) -> 9 | D35: =VLOOKUP(A35,DBMS_TYPE_SIZES[],3,FALSE) -> 4 | E35: =VLOOKUP(A35,DBMS_TYPE_SIZES[],4,FALSE) -> 9 | F35: CALLING_LIST_TO_CAMP_FACT_ | G35: CAMPAIGN_KEY | H35: int | I35: 10 | J35: 4
A36: =COL_SIZES[[#This Row],[datatype]]&"_"&COL_SIZES[[#This Row],[column_prec]]&"_"&COL_SIZES[[#This Row],[col_len]] -> int_10_4 | B36: =MIN(COL_SIZES[[#This Row],[column_length]],IFERROR(VALUE(VLOOKUP(COL_SIZES[[#This Row],[table_name]]&"."&COL_SIZES[[#This Row],[column_name]],AVG_COL_SIZES[#Data],2,FALSE)),COL_SIZES[[#This Row],[column_length]])) -> 4 | C36: =VLOOKUP(A36,DBMS_TYPE_SIZES[],2,FALSE) -> 9 | D36: =VLOOKUP(A36,DBMS_TYPE_SIZES[],3,FALSE) -> 4 | E36: =VLOOKUP(A36,DBMS_TYPE_SIZES[],4,FALSE) -> 9 | F36: CALLING_LIST_TO_CAMP_FACT_ | G36: CREATE_AUDIT_KEY | H36: int | I36: 10 | J36: 4
A37: =COL_SIZES[[#This Row],[datatype]]&"_"&COL_SIZES[[#This Row],[column_prec]]&"_"&COL_SIZES[[#This Row],[col_len]] -> int_10_4 | B37: =MIN(COL_SIZES[[#This Row],[column_length]],IFERROR(VALUE(VLOOKUP(COL_SIZES[[#This Row],[table_name]]&"."&COL_SIZES[[#This Row],[column_name]],AVG_COL_SIZES[#Data],2,FALSE)),COL_SIZES[[#This Row],[column_length]])) -> 4 | C37: =VLOOKUP(A37,DBMS_TYPE_SIZES[],2,FALSE) -> 9 | D37: =VLOOKUP(A37,DBMS_TYPE_SIZES[],3,FALSE) -> 4 | E37: =VLOOKUP(A37,DBMS_TYPE_SIZES[],4,FALSE) -> 9 | F37: CALLING_LIST_TO_CAMP_FACT_ | G37: DATA_SOURCE_KEY | H37: int | I37: 10 | J37: 4
A38: =COL_SIZES[[#This Row],[datatype]]&"_"&COL_SIZES[[#This Row],[column_prec]]&"_"&COL_SIZES[[#This Row],[col_len]] -> int_10_4 | B38: =MIN(COL_SIZES[[#This Row],[column_length]],IFERROR(VALUE(VLOOKUP(COL_SIZES[[#This Row],[table_name]]&"."&COL_SIZES[[#This Row],[column_name]],AVG_COL_SIZES[#Data],2,FALSE)),COL_SIZES[[#This Row],[column_length]])) -> 4 | C38: =VLOOKUP(A38,DBMS_TYPE_SIZES[],2,FALSE) -> 9 | D38: =VLOOKUP(A38,DBMS_TYPE_SIZES[],3,FALSE) -> 4 | E38: =VLOOKUP(A38,DBMS_TYPE_SIZES[],4,FALSE) -> 9 | F38: CALLING_LIST_TO_CAMP_FACT_ | G38: END_DATE_TIME_KEY | H38: int | I38: 10 | J38: 4
A39: =COL_SIZES[[#This Row],[datatype]]&"_"&COL_SIZES[[#This Row],[column_prec]]&"_"&COL_SIZES[[#This Row],[col_len]] -> int_10_4 | B39: =MIN(COL_SIZES[[#This Row],[column_length]],IFERROR(VALUE(VLOOKUP(COL_SIZES[[#This Row],[table_name]]&"."&COL_SIZES[[#This Row],[column_name]],AVG_COL_SIZES[#Data],2,FALSE)),COL_SIZES[[#This Row],[column_length]])) -> 4 | C39: =VLOOKUP(A39,DBMS_TYPE_SIZES[],2,FALSE) -> 9 | D39: =VLOOKUP(A39,DBMS_TYPE_SIZES[],3,FALSE) -> 4 | E39: =VLOOKUP(A39,DBMS_TYPE_SIZES[],4,FALSE) -> 9 | F39: CALLING_LIST_TO_CAMP_FACT_ | G39: END_TS | H39: int | I39: 10 | J39: 4
A40: =COL_SIZES[[#This Row],[datatype]]&"_"&COL_SIZES[[#This Row],[column_prec]]&"_"&COL_SIZES[[#This Row],[col_len]] -> numeric_19_9 | B40: =MIN(COL_SIZES[[#This Row],[column_length]],IFERROR(VALUE(VLOOKUP(COL_SIZES[[#This Row],[table_name]]&"."&COL_SIZES[[#This Row],[column_name]],AVG_COL_SIZES[#Data],2,FALSE)),COL_SIZES[[#This Row],[column_length]])) -> 9 | C40: =VLOOKUP(A40,DBMS_TYPE_SIZES[],2,FALSE) -> 9 | D40: =VLOOKUP(A40,DBMS_TYPE_SIZES[],3,FALSE) -> 9 | E40: =VLOOKUP(A40,DBMS_TYPE_SIZES[],4,FALSE) -> 9 | F40: CALLING_LIST_TO_CAMP_FACT_ | G40: IDB_ID | H40: numeric | I40: 19 | J40: 9
A41: =COL_SIZES[[#This Row],[datatype]]&"_"&COL_SIZES[[#This Row],[column_prec]]&"_"&COL_SIZES[[#This Row],[col_len]] -> numeric_1_5 | B41: =MIN(COL_SIZES[[#This Row],[column_length]],IFERROR(VALUE(VLOOKUP(COL_SIZES[[#This Row],[table_name]]&"."&COL_SIZES[[#This Row],[column_name]],AVG_COL_SIZES[#Data],2,FALSE)),COL_SIZES[[#This Row],[column_length]])) -> 5 | C41: =VLOOKUP(A41,DBMS_TYPE_SIZES[],2,FALSE) -> 5 | D41: =VLOOKUP(A41,DBMS_TYPE_SIZES[],3,FALSE) -> 5 | E41: =VLOOKUP(A41,DBMS_TYPE_SIZES[],4,FALSE) -> 5 | F41: CALLING_LIST_TO_CAMP_FACT_ | G41: PURGE_FLAG | H41: numeric | I41: 1 | J41: 5
A42: =COL_SIZES[[#This Row],[datatype]]&"_"&COL_SIZES[[#This Row],[column_prec]]&"_"&COL_SIZES[[#This Row],[col_len]] -> int_10_4 | B42: =MIN(COL_SIZES[[#This Row],[column_length]],IFERROR(VALUE(VLOOKUP(COL_SIZES[[#This Row],[table_name]]&"."&COL_SIZES[[#This Row],[column_name]],AVG_COL_SIZES[#Data],2,FALSE)),COL_SIZES[[#This Row],[column_length]])) -> 4 | C42: =VLOOKUP(A42,DBMS_TYPE_SIZES[],2,FALSE) -> 9 | D42: =VLOOKUP(A42,DBMS_TYPE_SIZES[],3,FALSE) -> 4 | E42: =VLOOKUP(A42,DBMS_TYPE_SIZES[],4,FALSE) -> 9 | F42: CALLING_LIST_TO_CAMP_FACT_ | G42: START_DATE_TIME_KEY | H42: int | I42: 10 | J42: 4
A43: =COL_SIZES[[#This Row],[datatype]]&"_"&COL_SIZES[[#This Row],[column_prec]]&"_"&COL_SIZES[[#This Row],[col_len]] -> int_10_4 | B43: =MIN(COL_SIZES[[#This Row],[column_length]],IFERROR(VALUE(VLOOKUP(COL_SIZES[[#This Row],[table_name]]&"."&COL_SIZES[[#This Row],[column_name]],AVG_COL_SIZES[#Data],2,FALSE)),COL_SIZES[[#This Row],[column_length]])) -> 4 | C43: =VLOOKUP(A43,DBMS_TYPE_SIZES[],2,FALSE) -> 9 | D43: =VLOOKUP(A43,DBMS_TYPE_SIZES[],3,FALSE) -> 4 | E43: =VLOOKUP(A43,DBMS_TYPE_SIZES[],4,FALSE) -> 9 | F43: CALLING_LIST_TO_CAMP_FACT_ | G43: START_TS | H43: int | I43: 10 | J43: 4
A44: =COL_SIZES[[#This Row],[datatype]]&"_"&COL_SIZES[[#This Row],[column_prec]]&"_"&COL_SIZES[[#This Row],[col_len]] -> int_10_4 | B44: =MIN(COL_SIZES[[#This Row],[column_length]],IFERROR(VALUE(VLOOKUP(COL_SIZES[[#This Row],[table_name]]&"."&COL_SIZES[[#This Row],[column_name]],AVG_COL_SIZES[#Data],2,FALSE)),COL_SIZES[[#This Row],[column_length]])) -> 4 | C44: =VLOOKUP(A44,DBMS_TYPE_SIZES[],2,FALSE) -> 9 | D44: =VLOOKUP(A44,DBMS_TYPE_SIZES[],3,FALSE) -> 4 | E44: =VLOOKUP(A44,DBMS_TYPE_SIZES[],4,FALSE) -> 9 | F44: CALLING_LIST_TO_CAMP_FACT_ | G44: TENANT_KEY | H44: int | I44: 10 | J44: 4
A45: =COL_SIZES[[#This Row],[datatype]]&"_"&COL_SIZES[[#This Row],[column_prec]]&"_"&COL_SIZES[[#This Row],[col_len]] -> int_10_4 | B45: =MIN(COL_SIZES[[#This Row],[column_length]],IFERROR(VALUE(VLOOKUP(COL_SIZES[[#This Row],[table_name]]&"."&COL_SIZES[[#This Row],[column_name]],AVG_COL_SIZES[#Data],2,FALSE)),COL_SIZES[[#This Row],[column_length]])) -> 4 | C45: =VLOOKUP(A45,DBMS_TYPE_SIZES[],2,FALSE) -> 9 | D45: =VLOOKUP(A45,DBMS_TYPE_SIZES[],3,FALSE) -> 4 | E45: =VLOOKUP(A45,DBMS_TYPE_SIZES[],4,FALSE) -> 9 | F45: CALLING_LIST_TO_CAMP_FACT_ | G45: UPDATE_AUDIT_KEY | H45: int | I45: 10 | J45: 4
A46: =COL_SIZES[[#This Row],[datatype]]&"_"&COL_SIZES[[#This Row],[column_prec]]&"_"&COL_SIZES[[#This Row],[col_len]] -> numeric_1_5 | B46: =MIN(COL_SIZES[[#This Row],[column_length]],IFERROR(VALUE(VLOOKUP(COL_SIZES[[#This Row],[table_name]]&"."&COL_SIZES[[#This Row],[column_name]],AVG_COL_SIZES[#Data],2,FALSE)),COL_SIZES[[#This Row],[column_length]])) -> 5 | C46: =VLOOKUP(A46,DBMS_TYPE_SIZES[],2,FALSE) -> 5 | D46: =VLOOKUP(A46,DBMS_TYPE_SIZES[],3,FALSE) -> 5 | E46: =VLOOKUP(A46,DBMS_TYPE_SIZES[],4,FALSE) -> 5 | F46: CAMPAIGN_GROUP_SESSION_FACT | G46: ACTIVE_FLAG | H46: numeric | I46: 1 | J46: 5
A47: =COL_SIZES[[#This Row],[datatype]]&"_"&COL_SIZES[[#This Row],[column_prec]]&"_"&COL_SIZES[[#This Row],[col_len]] -> numeric_19_9 | B47: =MIN(COL_SIZES[[#This Row],[column_length]],IFERROR(VALUE(VLOOKUP(COL_SIZES[[#This Row],[table_name]]&"."&COL_SIZES[[#This Row],[column_name]],AVG_COL_SIZES[#Data],2,FALSE)),COL_SIZES[[#This Row],[column_length]])) -> 9 | C47: =VLOOKUP(A47,DBMS_TYPE_SIZES[],2,FALSE) -> 9 | D47: =VLOOKUP(A47,DBMS_TYPE_SIZES[],3,FALSE) -> 9 | E47: =VLOOKUP(A47,DBMS_TYPE_SIZES[],4,FALSE) -> 9 | F47: CAMPAIGN_GROUP_SESSION_FACT | G47: CAMP_GROUP_SESSION_FACT_KEY | H47: numeric | I47: 19 | J47: 9
A48: =COL_SIZES[[#This Row],[datatype]]&"_"&COL_SIZES[[#This Row],[column_prec]]&"_"&COL_SIZES[[#This Row],[col_len]] -> varchar_0_64 | B48: =MIN(COL_SIZES[[#This Row],[column_length]],IFERROR(VALUE(VLOOKUP(COL_SIZES[[#This Row],[table_name]]&"."&COL_SIZES[[#This Row],[column_name]],AVG_COL_SIZES[#Data],2,FALSE)),COL_SIZES[[#This Row],[column_length]])) -> 64 | C48: =VLOOKUP(A48,DBMS_TYPE_SIZES[],2,FALSE) -> 64 | D48: =VLOOKUP(A48,DBMS_TYPE_SIZES[],3,FALSE) -> 64 | E48: =VLOOKUP(A48,DBMS_TYPE_SIZES[],4,FALSE) -> 66 | F48: CAMPAIGN_GROUP_SESSION_FACT | G48: CAMPAIGN_GROUP_SESSION_ID | H48: varchar | I48: 0 | J48: 64
A49: =COL_SIZES[[#This Row],[datatype]]&"_"&COL_SIZES[[#This Row],[column_prec]]&"_"&COL_SIZES[[#This Row],[col_len]] -> int_10_4 | B49: =MIN(COL_SIZES[[#This Row],[column_length]],IFERROR(VALUE(VLOOKUP(COL_SIZES[[#This Row],[table_name]]&"."&COL_SIZES[[#This Row],[column_name]],AVG_COL_SIZES[#Data],2,FALSE)),COL_SIZES[[#This Row],[column_length]])) -> 4 | C49: =VLOOKUP(A49,DBMS_TYPE_SIZES[],2,FALSE) -> 9 | D49: =VLOOKUP(A49,DBMS_TYPE_SIZES[],3,FALSE) -> 4 | E49: =VLOOKUP(A49,DBMS_TYPE_SIZES[],4,FALSE) -> 9 | F49: CAMPAIGN_GROUP_SESSION_FACT | G49: CAMPAIGN_KEY | H49: int | I49: 10 | J49: 4
A50: =COL_SIZES[[#This Row],[datatype]]&"_"&COL_SIZES[[#This Row],[column_prec]]&"_"&COL_SIZES[[#This Row],[col_len]] -> int_10_4 | B50: =MIN(COL_SIZES[[#This Row],[column_length]],IFERROR(VALUE(VLOOKUP(COL_SIZES[[#This Row],[table_name]]&"."&COL_SIZES[[#This Row],[column_name]],AVG_COL_SIZES[#Data],2,FALSE)),COL_SIZES[[#This Row],[column_length]])) -> 4 | C50: =VLOOKUP(A50,DBMS_TYPE_SIZES[],2,FALSE) -> 9 | D50: =VLOOKUP(A50,DBMS_TYPE_SIZES[],3,FALSE) -> 4 | E50: =VLOOKUP(A50,DBMS_TYPE_SIZES[],4,FALSE) -> 9 | F50: CAMPAIGN_GROUP_SESSION_FACT | G50: CREATE_AUDIT_KEY | H50: int | I50: 10 | J50: 4
A51: =COL_SIZES[[#This Row],[datatype]]&"_"&COL_SIZES[[#This Row],[column_prec]]&"_"&COL_SIZES[[#This Row],[col_len]] -> int_10_4 | B51: =MIN(COL_SIZES[[#This Row],[column_length]],IFERROR(VALUE(VLOOKUP(COL_SIZES[[#This Row],[table_name]]&"."&COL_SIZES[[#This Row],[column_name]],AVG_COL_SIZES[#Data],2,FALSE)),COL_SIZES[[#This Row],[column_length]])) -> 4 | C51: =VLOOKUP(A51,DBMS_TYPE_SIZES[],2,FALSE) -> 9 | D51: =VLOOKUP(A51,DBMS_TYPE_SIZES[],3,FALSE) -> 4 | E51: =VLOOKUP(A51,DBMS_TYPE_SIZES[],4,FALSE) -> 9 | F51: CAMPAIGN_GROUP_SESSION_FACT | G51: END_DATE_TIME_KEY | H51: int | I51: 10 | J51: 4
A52: =COL_SIZES[[#This Row],[datatype]]&"_"&COL_SIZES[[#This Row],[column_prec]]&"_"&COL_SIZES[[#This Row],[col_len]] -> int_10_4 | B52: =MIN(COL_SIZES[[#This Row],[column_length]],IFERROR(VALUE(VLOOKUP(COL_SIZES[[#This Row],[table_name]]&"."&COL_SIZES[[#This Row],[column_name]],AVG_COL_SIZES[#Data],2,FALSE)),COL_SIZES[[#This Row],[column_length]])) -> 4 | C52: =VLOOKUP(A52,DBMS_TYPE_SIZES[],2,FALSE) -> 9 | D52: =VLOOKUP(A52,DBMS_TYPE_SIZES[],3,FALSE) -> 4 | E52: =VLOOKUP(A52,DBMS_TYPE_SIZES[],4,FALSE) -> 9 | F52: CAMPAIGN_GROUP_SESSION_FACT | G52: END_TS | H52: int | I52: 10 | J52: 4
A53: =COL_SIZES[[#This Row],[datatype]]&"_"&COL_SIZES[[#This Row],[column_prec]]&"_"&COL_SIZES[[#This Row],[col_len]] -> int_10_4 | B53: =MIN(COL_SIZES[[#This Row],[column_length]],IFERROR(VALUE(VLOOKUP(COL_SIZES[[#This Row],[table_name]]&"."&COL_SIZES[[#This Row],[column_name]],AVG_COL_SIZES[#Data],2,FALSE)),COL_SIZES[[#This Row],[column_length]])) -> 4 | C53: =VLOOKUP(A53,DBMS_TYPE_SIZES[],2,FALSE) -> 9 | D53: =VLOOKUP(A53,DBMS_TYPE_SIZES[],3,FALSE) -> 4 | E53: =VLOOKUP(A53,DBMS_TYPE_SIZES[],4,FALSE) -> 9 | F53: CAMPAIGN_GROUP_SESSION_FACT | G53: GROUP_KEY | H53: int | I53: 10 | J53: 4
A54: =COL_SIZES[[#This Row],[datatype]]&"_"&COL_SIZES[[#This Row],[column_prec]]&"_"&COL_SIZES[[#This Row],[col_len]] -> numeric_1_5 | B54: =MIN(COL_SIZES[[#This Row],[column_length]],IFERROR(VALUE(VLOOKUP(COL_SIZES[[#This Row],[table_name]]&"."&COL_SIZES[[#This Row],[column_name]],AVG_COL_SIZES[#Data],2,FALSE)),COL_SIZES[[#This Row],[column_length]])) -> 5 | C54: =VLOOKUP(A54,DBMS_TYPE_SIZES[],2,FALSE) -> 5 | D54: =VLOOKUP(A54,DBMS_TYPE_SIZES[],3,FALSE) -> 5 | E54: =VLOOKUP(A54,DBMS_TYPE_SIZES[],4,FALSE) -> 5 | F54: CAMPAIGN_GROUP_SESSION_FACT | G54: PURGE_FLAG | H54: numeric | I54: 1 | J54: 5
A55: =COL_SIZES[[#This Row],[datatype]]&"_"&COL_SIZES[[#This Row],[column_prec]]&"_"&COL_SIZES[[#This Row],[col_len]] -> int_10_4 | B55: =MIN(COL_SIZES[[#This Row],[column_length]],IFERROR(VALUE(VLOOKUP(COL_SIZES[[#This Row],[table_name]]&"."&COL_SIZES[[#This Row],[column_name]],AVG_COL_SIZES[#Data],2,FALSE)),COL_SIZES[[#This Row],[column_length]])) -> 4 | C55: =VLOOKUP(A55,DBMS_TYPE_SIZES[],2,FALSE) -> 9 | D55: =VLOOKUP(A55,DBMS_TYPE_SIZES[],3,FALSE) -> 4 | E55: =VLOOKUP(A55,DBMS_TYPE_SIZES[],4,FALSE) -> 9 | F55: CAMPAIGN_GROUP_SESSION_FACT | G55: START_DATE_TIME_KEY | H55: int | I55: 10 | J55: 4
A56: =COL_SIZES[[#This Row],[datatype]]&"_"&COL_SIZES[[#This Row],[column_prec]]&"_"&COL_SIZES[[#This Row],[col_len]] -> int_10_4 | B56: =MIN(COL_SIZES[[#This Row],[column_length]],IFERROR(VALUE(VLOOKUP(COL_SIZES[[#This Row],[table_name]]&"."&COL_SIZES[[#This Row],[column_name]],AVG_COL_SIZES[#Data],2,FALSE)),COL_SIZES[[#This Row],[column_length]])) -> 4 | C56: =VLOOKUP(A56,DBMS_TYPE_SIZES[],2,FALSE) -> 9 | D56: =VLOOKUP(A56,DBMS_TYPE_SIZES[],3,FALSE) -> 4 | E56: =VLOOKUP(A56,DBMS_TYPE_SIZES[],4,FALSE) -> 9 | F56: CAMPAIGN_GROUP_SESSION_FACT | G56: START_TS | H56: int | I56: 10 | J56: 4
A57: =COL_SIZES[[#This Row],[datatype]]&"_"&COL_SIZES[[#This Row],[column_prec]]&"_"&COL_SIZES[[#This Row],[col_len]] -> int_10_4 | B57: =MIN(COL_SIZES[[#This Row],[column_length]],IFERROR(VALUE(VLOOKUP(COL_SIZES[[#This Row],[table_name]]&"."&COL_SIZES[[#This Row],[column_name]],AVG_COL_SIZES[#Data],2,FALSE)),COL_SIZES[[#This Row],[column_length]])) -> 4 | C57: =VLOOKUP(A57,DBMS_TYPE_SIZES[],2,FALSE) -> 9 | D57: =VLOOKUP(A57,DBMS_TYPE_SIZES[],3,FALSE) -> 4 | E57: =VLOOKUP(A57,DBMS_TYPE_SIZES[],4,FALSE) -> 9 | F57: CAMPAIGN_GROUP_SESSION_FACT | G57: TENANT_KEY | H57: int | I57: 10 | J57: 4
A58: =COL_SIZES[[#This Row],[datatype]]&"_"&COL_SIZES[[#This Row],[column_prec]]&"_"&COL_SIZES[[#This Row],[col_len]] -> int_10_4 | B58: =MIN(COL_SIZES[[#This Row],[column_length]],IFERROR(VALUE(VLOOKUP(COL_SIZES[[#This Row],[table_name]]&"."&COL_SIZES[[#This Row],[column_name]],AVG_COL_SIZES[#Data],2,FALSE)),COL_SIZES[[#This Row],[column_length]])) -> 4 | C58: =VLOOKUP(A58,DBMS_TYPE_SIZES[],2,FALSE) -> 9 | D58: =VLOOKUP(A58,DBMS_TYPE_SIZES[],3,FALSE) -> 4 | E58: =VLOOKUP(A58,DBMS_TYPE_SIZES[],4,FALSE) -> 9 | F58: CAMPAIGN_GROUP_SESSION_FACT | G58: TOTAL_DURATION | H58: int | I58: 10 | J58: 4
A59: =COL_SIZES[[#This Row],[datatype]]&"_"&COL_SIZES[[#This Row],[column_prec]]&"_"&COL_SIZES[[#This Row],[col_len]] -> int_10_4 | B59: =MIN(COL_SIZES[[#This Row],[column_length]],IFERROR(VALUE(VLOOKUP(COL_SIZES[[#This Row],[table_name]]&"."&COL_SIZES[[#This Row],[column_name]],AVG_COL_SIZES[#Data],2,FALSE)),COL_SIZES[[#This Row],[column_length]])) -> 4 | C59: =VLOOKUP(A59,DBMS_TYPE_SIZES[],2,FALSE) -> 9 | D59: =VLOOKUP(A59,DBMS_TYPE_SIZES[],3,FALSE) -> 4 | E59: =VLOOKUP(A59,DBMS_TYPE_SIZES[],4,FALSE) -> 9 | F59: CAMPAIGN_GROUP_SESSION_FACT | G59: UPDATE_AUDIT_KEY | H59: int | I59: 10 | J59: 4
A60: =COL_SIZES[[#This Row],[datatype]]&"_"&COL_SIZES[[#This Row],[column_prec]]&"_"&COL_SIZES[[#This Row],[col_len]] -> varchar_0_32 | B60: =MIN(COL_SIZES[[#This Row],[column_length]],IFERROR(VALUE(VLOOKUP(COL_SIZES[[#This Row],[table_name]]&"."&COL_SIZES[[#This Row],[column_name]],AVG_COL_SIZES[#Data],2,FALSE)),COL_SIZES[[#This Row],[column_length]])) -> 32 | C60: =VLOOKUP(A60,DBMS_TYPE_SIZES[],2,FALSE) -> 32 | D60: =VLOOKUP(A60,DBMS_TYPE_SIZES[],3,FALSE) -> 32 | E60: =VLOOKUP(A60,DBMS_TYPE_SIZES[],4,FALSE) -> 34 | F60: CAMPAIGN_GROUP_STATE | G60: CAMPAIGN_GROUP_STATE | H60: varchar | I60: 0 | J60: 32
A61: =COL_SIZES[[#This Row],[datatype]]&"_"&COL_SIZES[[#This Row],[column_prec]]&"_"&COL_SIZES[[#This Row],[col_len]] -> varchar_0_32 | B61: =MIN(COL_SIZES[[#This Row],[column_length]],IFERROR(VALUE(VLOOKUP(COL_SIZES[[#This Row],[table_name]]&"."&COL_SIZES[[#This Row],[column_name]],AVG_COL_SIZES[#Data],2,FALSE)),COL_SIZES[[#This Row],[column_length]])) -> 32 | C61: =VLOOKUP(A61,DBMS_TYPE_SIZES[],2,FALSE) -> 32 | D61: =VLOOKUP(A61,DBMS_TYPE_SIZES[],3,FALSE) -> 32 | E61: =VLOOKUP(A61,DBMS_TYPE_SIZES[],4,FALSE) -> 34 | F61: CAMPAIGN_GROUP_STATE | G61: CAMPAIGN_GROUP_STATE_CODE | H61: varchar | I61: 0 | J61: 32
A62: =COL_SIZES[[#This Row],[datatype]]&"_"&COL_SIZES[[#This Row],[column_prec]]&"_"&COL_SIZES[[#This Row],[col_len]] -> int_10_4 | B62: =MIN(COL_SIZES[[#This Row],[column_length]],IFERROR(VALUE(VLOOKUP(COL_SIZES[[#This Row],[table_name]]&"."&COL_SIZES[[#This Row],[column_name]],AVG_COL_SIZES[#Data],2,FALSE)),COL_SIZES[[#This Row],[column_length]])) -> 4 | C62: =VLOOKUP(A62,DBMS_TYPE_SIZES[],2,FALSE) -> 9 | D62: =VLOOKUP(A62,DBMS_TYPE_SIZES[],3,FALSE) -> 4 | E62: =VLOOKUP(A62,DBMS_TYPE_SIZES[],4,FALSE) -> 9 | F62: CAMPAIGN_GROUP_STATE | G62: CAMPAIGN_GROUP_STATE_KEY | H62: int | I62: 10 | J62: 4
A63: =COL_SIZES[[#This Row],[datatype]]&"_"&COL_SIZES[[#This Row],[column_prec]]&"_"&COL_SIZES[[#This Row],[col_len]] -> int_10_4 | B63: =MIN(COL_SIZES[[#This Row],[column_length]],IFERROR(VALUE(VLOOKUP(COL_SIZES[[#This Row],[table_name]]&"."&COL_SIZES[[#This Row],[column_name]],AVG_COL_SIZES[#Data],2,FALSE)),COL_SIZES[[#This Row],[column_length]])) -> 4 | C63: =VLOOKUP(A63,DBMS_TYPE_SIZES[],2,FALSE) -> 9 | D63: =VLOOKUP(A63,DBMS_TYPE_SIZES[],3,FALSE) -> 4 | E63: =VLOOKUP(A63,DBMS_TYPE_SIZES[],4,FALSE) -> 9 | F63: CAMPAIGN_GROUP_STATE | G63: CREATE_AUDIT_KEY | H63: int | I63: 10 | J63: 4
A64: =COL_SIZES[[#This Row],[datatype]]&"_"&COL_SIZES[[#This Row],[column_prec]]&"_"&COL_SIZES[[#This Row],[col_len]] -> int_10_4 | B64: =MIN(COL_SIZES[[#This Row],[column_length]],IFERROR(VALUE(VLOOKUP(COL_SIZES[[#This Row],[table_name]]&"."&COL_SIZES[[#This Row],[column_name]],AVG_COL_SIZES[#Data],2,FALSE)),COL_SIZES[[#This Row],[column_length]])) -> 4 | C64: =VLOOKUP(A64,DBMS_TYPE_SIZES[],2,FALSE) -> 9 | D64: =VLOOKUP(A64,DBMS_TYPE_SIZES[],3,FALSE) -> 4 | E64: =VLOOKUP(A64,DBMS_TYPE_SIZES[],4,FALSE) -> 9 | F64: CAMPAIGN_GROUP_STATE | G64: UPDATE_AUDIT_KEY | H64: int | I64: 10 | J64: 4
A65: =COL_SIZES[[#This Row],[datatype]]&"_"&COL_SIZES[[#This Row],[column_prec]]&"_"&COL_SIZES[[#This Row],[col_len]] -> numeric_1_5 | B65: =MIN(COL_SIZES[[#This Row],[column_length]],IFERROR(VALUE(VLOOKUP(COL_SIZES[[#This Row],[table_name]]&"."&COL_SIZES[[#This Row],[column_name]],AVG_COL_SIZES[#Data],2,FALSE)),COL_SIZES[[#This Row],[column_length]])) -> 5 | C65: =VLOOKUP(A65,DBMS_TYPE_SIZES[],2,FALSE) -> 5 | D65: =VLOOKUP(A65,DBMS_TYPE_SIZES[],3,FALSE) -> 5 | E65: =VLOOKUP(A65,DBMS_TYPE_SIZES[],4,FALSE) -> 5 | F65: CAMPAIGN_GROUP_STATE_FACT | G65: ACTIVE_FLAG | H65: numeric | I65: 1 | J65: 5
A66: =COL_SIZES[[#This Row],[datatype]]&"_"&COL_SIZES[[#This Row],[column_prec]]&"_"&COL_SIZES[[#This Row],[col_len]] -> numeric_19_9 | B66: =MIN(COL_SIZES[[#This Row],[column_length]],IFERROR(VALUE(VLOOKUP(COL_SIZES[[#This Row],[table_name]]&"."&COL_SIZES[[#This Row],[column_name]],AVG_COL_SIZES[#Data],2,FALSE)),COL_SIZES[[#This Row],[column_length]])) -> 9 | C66: =VLOOKUP(A66,DBMS_TYPE_SIZES[],2,FALSE) -> 9 | D66: =VLOOKUP(A66,DBMS_TYPE_SIZES[],3,FALSE) -> 9 | E66: =VLOOKUP(A66,DBMS_TYPE_SIZES[],4,FALSE) -> 9 | F66: CAMPAIGN_GROUP_STATE_FACT | G66: CAMP_GROUP_SESSION_FACT_KEY | H66: numeric | I66: 19 | J66: 9
A67: =COL_SIZES[[#This Row],[datatype]]&"_"&COL_SIZES[[#This Row],[column_prec]]&"_"&COL_SIZES[[#This Row],[col_len]] -> numeric_19_9 | B67: =MIN(COL_SIZES[[#This Row],[column_length]],IFERROR(VALUE(VLOOKUP(COL_SIZES[[#This Row],[table_name]]&"."&COL_SIZES[[#This Row],[column_name]],AVG_COL_SIZES[#Data],2,FALSE)),COL_SIZES[[#This Row],[column_length]])) -> 9 | C67: =VLOOKUP(A67,DBMS_TYPE_SIZES[],2,FALSE) -> 9 | D67: =VLOOKUP(A67,DBMS_TYPE_SIZES[],3,FALSE) -> 9 | E67: =VLOOKUP(A67,DBMS_TYPE_SIZES[],4,FALSE) -> 9 | F67: CAMPAIGN_GROUP_STATE_FACT | G67: CAMP_GROUP_STATE_FACT_KEY | H67: numeric | I67: 19 | J67: 9
A68: =COL_SIZES[[#This Row],[datatype]]&"_"&COL_SIZES[[#This Row],[column_prec]]&"_"&COL_SIZES[[#This Row],[col_len]] -> varchar_0_64 | B68: =MIN(COL_SIZES[[#This Row],[column_length]],IFERROR(VALUE(VLOOKUP(COL_SIZES[[#This Row],[table_name]]&"."&COL_SIZES[[#This Row],[column_name]],AVG_COL_SIZES[#Data],2,FALSE)),COL_SIZES[[#This Row],[column_length]])) -> 64 | C68: =VLOOKUP(A68,DBMS_TYPE_SIZES[],2,FALSE) -> 64 | D68: =VLOOKUP(A68,DBMS_TYPE_SIZES[],3,FALSE) -> 64 | E68: =VLOOKUP(A68,DBMS_TYPE_SIZES[],4,FALSE) -> 66 | F68: CAMPAIGN_GROUP_STATE_FACT | G68: CAMPAIGN_GROUP_SESSION_ID | H68: varchar | I68: 0 | J68: 64
A69: =COL_SIZES[[#This Row],[datatype]]&"_"&COL_SIZES[[#This Row],[column_prec]]&"_"&COL_SIZES[[#This Row],[col_len]] -> int_10_4 | B69: =MIN(COL_SIZES[[#This Row],[column_length]],IFERROR(VALUE(VLOOKUP(COL_SIZES[[#This Row],[table_name]]&"."&COL_SIZES[[#This Row],[column_name]],AVG_COL_SIZES[#Data],2,FALSE)),COL_SIZES[[#This Row],[column_length]])) -> 4 | C69: =VLOOKUP(A69,DBMS_TYPE_SIZES[],2,FALSE) -> 9 | D69: =VLOOKUP(A69,DBMS_TYPE_SIZES[],3,FALSE) -> 4 | E69: =VLOOKUP(A69,DBMS_TYPE_SIZES[],4,FALSE) -> 9 | F69: CAMPAIGN_GROUP_STATE_FACT | G69: CAMPAIGN_GROUP_STATE_KEY | H69: int | I69: 10 | J69: 4
A70: =COL_SIZES[[#This Row],[datatype]]&"_"&COL_SIZES[[#This Row],[column_prec]]&"_"&COL_SIZES[[#This Row],[col_len]] -> int_10_4 | B70: =MIN(COL_SIZES[[#This Row],[column_length]],IFERROR(VALUE(VLOOKUP(COL_SIZES[[#This Row],[table_name]]&"."&COL_SIZES[[#This Row],[column_name]],AVG_COL_SIZES[#Data],2,FALSE)),COL_SIZES[[#This Row],[column_length]])) -> 4 | C70: =VLOOKUP(A70,DBMS_TYPE_SIZES[],2,FALSE) -> 9 | D70: =VLOOKUP(A70,DBMS_TYPE_SIZES[],3,FALSE) -> 4 | E70: =VLOOKUP(A70,DBMS_TYPE_SIZES[],4,FALSE) -> 9 | F70: CAMPAIGN_GROUP_STATE_FACT | G70: CAMPAIGN_KEY | H70: int | I70: 10 | J70: 4
A71: =COL_SIZES[[#This Row],[datatype]]&"_"&COL_SIZES[[#This Row],[column_prec]]&"_"&COL_SIZES[[#This Row],[col_len]] -> int_10_4 | B71: =MIN(COL_SIZES[[#This Row],[column_length]],IFERROR(VALUE(VLOOKUP(COL_SIZES[[#This Row],[table_name]]&"."&COL_SIZES[[#This Row],[column_name]],AVG_COL_SIZES[#Data],2,FALSE)),COL_SIZES[[#This Row],[column_length]])) -> 4 | C71: =VLOOKUP(A71,DBMS_TYPE_SIZES[],2,FALSE) -> 9 | D71: =VLOOKUP(A71,DBMS_TYPE_SIZES[],3,FALSE) -> 4 | E71: =VLOOKUP(A71,DBMS_TYPE_SIZES[],4,FALSE) -> 9 | F71: CAMPAIGN_GROUP_STATE_FACT | G71: CREATE_AUDIT_KEY | H71: int | I71: 10 | J71: 4
A72: =COL_SIZES[[#This Row],[datatype]]&"_"&COL_SIZES[[#This Row],[column_prec]]&"_"&COL_SIZES[[#This Row],[col_len]] -> int_10_4 | B72: =MIN(COL_SIZES[[#This Row],[column_length]],IFERROR(VALUE(VLOOKUP(COL_SIZES[[#This Row],[table_name]]&"."&COL_SIZES[[#This Row],[column_name]],AVG_COL_SIZES[#Data],2,FALSE)),COL_SIZES[[#This Row],[column_length]])) -> 4 | C72: =VLOOKUP(A72,DBMS_TYPE_SIZES[],2,FALSE) -> 9 | D72: =VLOOKUP(A72,DBMS_TYPE_SIZES[],3,FALSE) -> 4 | E72: =VLOOKUP(A72,DBMS_TYPE_SIZES[],4,FALSE) -> 9 | F72: CAMPAIGN_GROUP_STATE_FACT | G72: END_DATE_TIME_KEY | H72: int | I72: 10 | J72: 4
A73: =COL_SIZES[[#This Row],[datatype]]&"_"&COL_SIZES[[#This Row],[column_prec]]&"_"&COL_SIZES[[#This Row],[col_len]] -> int_10_4 | B73: =MIN(COL_SIZES[[#This Row],[column_length]],IFERROR(VALUE(VLOOKUP(COL_SIZES[[#This Row],[table_name]]&"."&COL_SIZES[[#This Row],[column_name]],AVG_COL_SIZES[#Data],2,FALSE)),COL_SIZES[[#This Row],[column_length]])) -> 4 | C73: =VLOOKUP(A73,DBMS_TYPE_SIZES[],2,FALSE) -> 9 | D73: =VLOOKUP(A73,DBMS_TYPE_SIZES[],3,FALSE) -> 4 | E73: =VLOOKUP(A73,DBMS_TYPE_SIZES[],4,FALSE) -> 9 | F73: CAMPAIGN_GROUP_STATE_FACT | G73: END_TS | H73: int | I73: 10 | J73: 4
A74: =COL_SIZES[[#This Row],[datatype]]&"_"&COL_SIZES[[#This Row],[column_prec]]&"_"&COL_SIZES[[#This Row],[col_len]] -> int_10_4 | B74: =MIN(COL_SIZES[[#This Row],[column_length]],IFERROR(VALUE(VLOOKUP(COL_SIZES[[#This Row],[table_name]]&"."&COL_SIZES[[#This Row],[column_name]],AVG_COL_SIZES[#Data],2,FALSE)),COL_SIZES[[#This Row],[column_length]])) -> 4 | C74: =VLOOKUP(A74,DBMS_TYPE_SIZES[],2,FALSE) -> 9 | D74: =VLOOKUP(A74,DBMS_TYPE_SIZES[],3,FALSE) -> 4 | E74: =VLOOKUP(A74,DBMS_TYPE_SIZES[],4,FALSE) -> 9 | F74: CAMPAIGN_GROUP_STATE_FACT | G74: GROUP_KEY | H74: int | I74: 10 | J74: 4
A75: =COL_SIZES[[#This Row],[datatype]]&"_"&COL_SIZES[[#This Row],[column_prec]]&"_"&COL_SIZES[[#This Row],[col_len]] -> numeric_1_5 | B75: =MIN(COL_SIZES[[#This Row],[column_length]],IFERROR(VALUE(VLOOKUP(COL_SIZES[[#This Row],[table_name]]&"."&COL_SIZES[[#This Row],[column_name]],AVG_COL_SIZES[#Data],2,FALSE)),COL_SIZES[[#This Row],[column_length]])) -> 5 | C75: =VLOOKUP(A75,DBMS_TYPE_SIZES[],2,FALSE) -> 5 | D75: =VLOOKUP(A75,DBMS_TYPE_SIZES[],3,FALSE) -> 5 | E75: =VLOOKUP(A75,DBMS_TYPE_SIZES[],4,FALSE) -> 5 | F75: CAMPAIGN_GROUP_STATE_FACT | G75: PURGE_FLAG | H75: numeric | I75: 1 | J75: 5
A76: =COL_SIZES[[#This Row],[datatype]]&"_"&COL_SIZES[[#This Row],[column_prec]]&"_"&COL_SIZES[[#This Row],[col_len]] -> int_10_4 | B76: =MIN(COL_SIZES[[#This Row],[column_length]],IFERROR(VALUE(VLOOKUP(COL_SIZES[[#This Row],[table_name]]&"."&COL_SIZES[[#This Row],[column_name]],AVG_COL_SIZES[#Data],2,FALSE)),COL_SIZES[[#This Row],[column_length]])) -> 4 | C76: =VLOOKUP(A76,DBMS_TYPE_SIZES[],2,FALSE) -> 9 | D76: =VLOOKUP(A76,DBMS_TYPE_SIZES[],3,FALSE) -> 4 | E76: =VLOOKUP(A76,DBMS_TYPE_SIZES[],4,FALSE) -> 9 | F76: CAMPAIGN_GROUP_STATE_FACT | G76: START_DATE_TIME_KEY | H76: int | I76: 10 | J76: 4
A77: =COL_SIZES[[#This Row],[datatype]]&"_"&COL_SIZES[[#This Row],[column_prec]]&"_"&COL_SIZES[[#This Row],[col_len]] -> int_10_4 | B77: =MIN(COL_SIZES[[#This Row],[column_length]],IFERROR(VALUE(VLOOKUP(COL_SIZES[[#This Row],[table_name]]&"."&COL_SIZES[[#This Row],[column_name]],AVG_COL_SIZES[#Data],2,FALSE)),COL_SIZES[[#This Row],[column_length]])) -> 4 | C77: =VLOOKUP(A77,DBMS_TYPE_SIZES[],2,FALSE) -> 9 | D77: =VLOOKUP(A77,DBMS_TYPE_SIZES[],3,FALSE) -> 4 | E77: =VLOOKUP(A77,DBMS_TYPE_SIZES[],4,FALSE) -> 9 | F77: CAMPAIGN_GROUP_STATE_FACT | G77: START_TS | H77: int | I77: 10 | J77: 4
A78: =COL_SIZES[[#This Row],[datatype]]&"_"&COL_SIZES[[#This Row],[column_prec]]&"_"&COL_SIZES[[#This Row],[col_len]] -> int_10_4 | B78: =MIN(COL_SIZES[[#This Row],[column_length]],IFERROR(VALUE(VLOOKUP(COL_SIZES[[#This Row],[table_name]]&"."&COL_SIZES[[#This Row],[column_name]],AVG_COL_SIZES[#Data],2,FALSE)),COL_SIZES[[#This Row],[column_length]])) -> 4 | C78: =VLOOKUP(A78,DBMS_TYPE_SIZES[],2,FALSE) -> 9 | D78: =VLOOKUP(A78,DBMS_TYPE_SIZES[],3,FALSE) -> 4 | E78: =VLOOKUP(A78,DBMS_TYPE_SIZES[],4,FALSE) -> 9 | F78: CAMPAIGN_GROUP_STATE_FACT | G78: TENANT_KEY | H78: int | I78: 10 | J78: 4
A79: =COL_SIZES[[#This Row],[datatype]]&"_"&COL_SIZES[[#This Row],[column_prec]]&"_"&COL_SIZES[[#This Row],[col_len]] -> int_10_4 | B79: =MIN(COL_SIZES[[#This Row],[column_length]],IFERROR(VALUE(VLOOKUP(COL_SIZES[[#This Row],[table_name]]&"."&COL_SIZES[[#This Row],[column_name]],AVG_COL_SIZES[#Data],2,FALSE)),COL_SIZES[[#This Row],[column_length]])) -> 4 | C79: =VLOOKUP(A79,DBMS_TYPE_SIZES[],2,FALSE) -> 9 | D79: =VLOOKUP(A79,DBMS_TYPE_SIZES[],3,FALSE) -> 4 | E79: =VLOOKUP(A79,DBMS_TYPE_SIZES[],4,FALSE) -> 9 | F79: CAMPAIGN_GROUP_STATE_FACT | G79: TOTAL_DURATION | H79: int | I79: 10 | J79: 4
A80: =COL_SIZES[[#This Row],[datatype]]&"_"&COL_SIZES[[#This Row],[column_prec]]&"_"&COL_SIZES[[#This Row],[col_len]] -> int_10_4 | B80: =MIN(COL_SIZES[[#This Row],[column_length]],IFERROR(VALUE(VLOOKUP(COL_SIZES[[#This Row],[table_name]]&"."&COL_SIZES[[#This Row],[column_name]],AVG_COL_SIZES[#Data],2,FALSE)),COL_SIZES[[#This Row],[column_length]])) -> 4 | C80: =VLOOKUP(A80,DBMS_TYPE_SIZES[],2,FALSE) -> 9 | D80: =VLOOKUP(A80,DBMS_TYPE_SIZES[],3,FALSE) -> 4 | E80: =VLOOKUP(A80,DBMS_TYPE_SIZES[],4,FALSE) -> 9 | F80: CAMPAIGN_GROUP_STATE_FACT | G80: UPDATE_AUDIT_KEY | H80: int | I80: 10 | J80: 4
A81: =COL_SIZES[[#This Row],[datatype]]&"_"&COL_SIZES[[#This Row],[column_prec]]&"_"&COL_SIZES[[#This Row],[col_len]] -> numeric_1_5 | B81: =MIN(COL_SIZES[[#This Row],[column_length]],IFERROR(VALUE(VLOOKUP(COL_SIZES[[#This Row],[table_name]]&"."&COL_SIZES[[#This Row],[column_name]],AVG_COL_SIZES[#Data],2,FALSE)),COL_SIZES[[#This Row],[column_length]])) -> 5 | C81: =VLOOKUP(A81,DBMS_TYPE_SIZES[],2,FALSE) -> 5 | D81: =VLOOKUP(A81,DBMS_TYPE_SIZES[],3,FALSE) -> 5 | E81: =VLOOKUP(A81,DBMS_TYPE_SIZES[],4,FALSE) -> 5 | F81: CONTACT_ATTEMPT_FACT | G81: ACTIVE_FLAG | H81: numeric | I81: 1 | J81: 5
A82: =COL_SIZES[[#This Row],[datatype]]&"_"&COL_SIZES[[#This Row],[column_prec]]&"_"&COL_SIZES[[#This Row],[col_len]] -> int_10_4 | B82: =MIN(COL_SIZES[[#This Row],[column_length]],IFERROR(VALUE(VLOOKUP(COL_SIZES[[#This Row],[table_name]]&"."&COL_SIZES[[#This Row],[column_name]],AVG_COL_SIZES[#Data],2,FALSE)),COL_SIZES[[#This Row],[column_length]])) -> 4 | C82: =VLOOKUP(A82,DBMS_TYPE_SIZES[],2,FALSE) -> 9 | D82: =VLOOKUP(A82,DBMS_TYPE_SIZES[],3,FALSE) -> 4 | E82: =VLOOKUP(A82,DBMS_TYPE_SIZES[],4,FALSE) -> 9 | F82: CONTACT_ATTEMPT_FACT | G82: ATTEMPT_DISPOSITION_KEY | H82: int | I82: 10 | J82: 4
A83: =COL_SIZES[[#This Row],[datatype]]&"_"&COL_SIZES[[#This Row],[column_prec]]&"_"&COL_SIZES[[#This Row],[col_len]] -> int_10_4 | B83: =MIN(COL_SIZES[[#This Row],[column_length]],IFERROR(VALUE(VLOOKUP(COL_SIZES[[#This Row],[table_name]]&"."&COL_SIZES[[#This Row],[column_name]],AVG_COL_SIZES[#Data],2,FALSE)),COL_SIZES[[#This Row],[column_length]])) -> 4 | C83: =VLOOKUP(A83,DBMS_TYPE_SIZES[],2,FALSE) -> 9 | D83: =VLOOKUP(A83,DBMS_TYPE_SIZES[],3,FALSE) -> 4 | E83: =VLOOKUP(A83,DBMS_TYPE_SIZES[],4,FALSE) -> 9 | F83: CONTACT_ATTEMPT_FACT | G83: ATTEMPT_ORDINAL | H83: int | I83: 10 | J83: 4
A84: =COL_SIZES[[#This Row],[datatype]]&"_"&COL_SIZES[[#This Row],[column_prec]]&"_"&COL_SIZES[[#This Row],[col_len]] -> varchar_0_64 | B84: =MIN(COL_SIZES[[#This Row],[column_length]],IFERROR(VALUE(VLOOKUP(COL_SIZES[[#This Row],[table_name]]&"."&COL_SIZES[[#This Row],[column_name]],AVG_COL_SIZES[#Data],2,FALSE)),COL_SIZES[[#This Row],[column_length]])) -> 64 | C84: =VLOOKUP(A84,DBMS_TYPE_SIZES[],2,FALSE) -> 64 | D84: =VLOOKUP(A84,DBMS_TYPE_SIZES[],3,FALSE) -> 64 | E84: =VLOOKUP(A84,DBMS_TYPE_SIZES[],4,FALSE) -> 66 | F84: CONTACT_ATTEMPT_FACT | G84: CALL_ATTEMPT_ID | H84: varchar | I84: 0 | J84: 64
A85: =COL_SIZES[[#This Row],[datatype]]&"_"&COL_SIZES[[#This Row],[column_prec]]&"_"&COL_SIZES[[#This Row],[col_len]] -> int_10_4 | B85: =MIN(COL_SIZES[[#This Row],[column_length]],IFERROR(VALUE(VLOOKUP(COL_SIZES[[#This Row],[table_name]]&"."&COL_SIZES[[#This Row],[column_name]],AVG_COL_SIZES[#Data],2,FALSE)),COL_SIZES[[#This Row],[column_length]])) -> 4 | C85: =VLOOKUP(A85,DBMS_TYPE_SIZES[],2,FALSE) -> 9 | D85: =VLOOKUP(A85,DBMS_TYPE_SIZES[],3,FALSE) -> 4 | E85: =VLOOKUP(A85,DBMS_TYPE_SIZES[],4,FALSE) -> 9 | F85: CONTACT_ATTEMPT_FACT | G85: CALL_RESULT_KEY | H85: int | I85: 10 | J85: 4
A86: =COL_SIZES[[#This Row],[datatype]]&"_"&COL_SIZES[[#This Row],[column_prec]]&"_"&COL_SIZES[[#This Row],[col_len]] -> varchar_0_64 | B86: =MIN(COL_SIZES[[#This Row],[column_length]],IFERROR(VALUE(VLOOKUP(COL_SIZES[[#This Row],[table_name]]&"."&COL_SIZES[[#This Row],[column_name]],AVG_COL_SIZES[#Data],2,FALSE)),COL_SIZES[[#This Row],[column_length]])) -> 64 | C86: =VLOOKUP(A86,DBMS_TYPE_SIZES[],2,FALSE) -> 64 | D86: =VLOOKUP(A86,DBMS_TYPE_SIZES[],3,FALSE) -> 64 | E86: =VLOOKUP(A86,DBMS_TYPE_SIZES[],4,FALSE) -> 66 | F86: CONTACT_ATTEMPT_FACT | G86: CALLID | H86: varchar | I86: 0 | J86: 64
A87: =COL_SIZES[[#This Row],[datatype]]&"_"&COL_SIZES[[#This Row],[column_prec]]&"_"&COL_SIZES[[#This Row],[col_len]] -> int_10_4 | B87: =MIN(COL_SIZES[[#This Row],[column_length]],IFERROR(VALUE(VLOOKUP(COL_SIZES[[#This Row],[table_name]]&"."&COL_SIZES[[#This Row],[column_name]],AVG_COL_SIZES[#Data],2,FALSE)),COL_SIZES[[#This Row],[column_length]])) -> 4 | C87: =VLOOKUP(A87,DBMS_TYPE_SIZES[],2,FALSE) -> 9 | D87: =VLOOKUP(A87,DBMS_TYPE_SIZES[],3,FALSE) -> 4 | E87: =VLOOKUP(A87,DBMS_TYPE_SIZES[],4,FALSE) -> 9 | F87: CONTACT_ATTEMPT_FACT | G87: CALLING_LIST_KEY | H87: int | I87: 10 | J87: 4
A88: =COL_SIZES[[#This Row],[datatype]]&"_"&COL_SIZES[[#This Row],[column_prec]]&"_"&COL_SIZES[[#This Row],[col_len]] -> numeric_19_9 | B88: =MIN(COL_SIZES[[#This Row],[column_length]],IFERROR(VALUE(VLOOKUP(COL_SIZES[[#This Row],[table_name]]&"."&COL_SIZES[[#This Row],[column_name]],AVG_COL_SIZES[#Data],2,FALSE)),COL_SIZES[[#This Row],[column_length]])) -> 9 | C88: =VLOOKUP(A88,DBMS_TYPE_SIZES[],2,FALSE) -> 9 | D88: =VLOOKUP(A88,DBMS_TYPE_SIZES[],3,FALSE) -> 9 | E88: =VLOOKUP(A88,DBMS_TYPE_SIZES[],4,FALSE) -> 9 | F88: CONTACT_ATTEMPT_FACT | G88: CAMP_GROUP_SESSION_FACT_KEY | H88: numeric | I88: 19 | J88: 9
A89: =COL_SIZES[[#This Row],[datatype]]&"_"&COL_SIZES[[#This Row],[column_prec]]&"_"&COL_SIZES[[#This Row],[col_len]] -> int_10_4 | B89: =MIN(COL_SIZES[[#This Row],[column_length]],IFERROR(VALUE(VLOOKUP(COL_SIZES[[#This Row],[table_name]]&"."&COL_SIZES[[#This Row],[column_name]],AVG_COL_SIZES[#Data],2,FALSE)),COL_SIZES[[#This Row],[column_length]])) -> 4 | C89: =VLOOKUP(A89,DBMS_TYPE_SIZES[],2,FALSE) -> 9 | D89: =VLOOKUP(A89,DBMS_TYPE_SIZES[],3,FALSE) -> 4 | E89: =VLOOKUP(A89,DBMS_TYPE_SIZES[],4,FALSE) -> 9 | F89: CONTACT_ATTEMPT_FACT | G89: CAMPAIGN_KEY | H89: int | I89: 10 | J89: 4
A90: =COL_SIZES[[#This Row],[datatype]]&"_"&COL_SIZES[[#This Row],[column_prec]]&"_"&COL_SIZES[[#This Row],[col_len]] -> int_10_4 | B90: =MIN(COL_SIZES[[#This Row],[column_length]],IFERROR(VALUE(VLOOKUP(COL_SIZES[[#This Row],[table_name]]&"."&COL_SIZES[[#This Row],[column_name]],AVG_COL_SIZES[#Data],2,FALSE)),COL_SIZES[[#This Row],[column_length]])) -> 4 | C90: =VLOOKUP(A90,DBMS_TYPE_SIZES[],2,FALSE) -> 9 | D90: =VLOOKUP(A90,DBMS_TYPE_SIZES[],3,FALSE) -> 4 | E90: =VLOOKUP(A90,DBMS_TYPE_SIZES[],4,FALSE) -> 9 | F90: CONTACT_ATTEMPT_FACT | G90: CHAIN_ID | H90: int | I90: 10 | J90: 4
A91: =COL_SIZES[[#This Row],[datatype]]&"_"&COL_SIZES[[#This Row],[column_prec]]&"_"&COL_SIZES[[#This Row],[col_len]] -> int_10_4 | B91: =MIN(COL_SIZES[[#This Row],[column_length]],IFERROR(VALUE(VLOOKUP(COL_SIZES[[#This Row],[table_name]]&"."&COL_SIZES[[#This Row],[column_name]],AVG_COL_SIZES[#Data],2,FALSE)),COL_SIZES[[#This Row],[column_length]])) -> 4 | C91: =VLOOKUP(A91,DBMS_TYPE_SIZES[],2,FALSE) -> 9 | D91: =VLOOKUP(A91,DBMS_TYPE_SIZES[],3,FALSE) -> 4 | E91: =VLOOKUP(A91,DBMS_TYPE_SIZES[],4,FALSE) -> 9 | F91: CONTACT_ATTEMPT_FACT | G91: CHAIN_N | H91: int | I91: 10 | J91: 4
A92: =COL_SIZES[[#This Row],[datatype]]&"_"&COL_SIZES[[#This Row],[column_prec]]&"_"&COL_SIZES[[#This Row],[col_len]] -> numeric_19_9 | B92: =MIN(COL_SIZES[[#This Row],[column_length]],IFERROR(VALUE(VLOOKUP(COL_SIZES[[#This Row],[table_name]]&"."&COL_SIZES[[#This Row],[column_name]],AVG_COL_SIZES[#Data],2,FALSE)),COL_SIZES[[#This Row],[column_length]])) -> 9 | C92: =VLOOKUP(A92,DBMS_TYPE_SIZES[],2,FALSE) -> 9 | D92: =VLOOKUP(A92,DBMS_TYPE_SIZES[],3,FALSE) -> 9 | E92: =VLOOKUP(A92,DBMS_TYPE_SIZES[],4,FALSE) -> 9 | F92: CONTACT_ATTEMPT_FACT | G92: CONTACT_ATTEMPT_FACT_KEY | H92: numeric | I92: 19 | J92: 9
A93: =COL_SIZES[[#This Row],[datatype]]&"_"&COL_SIZES[[#This Row],[column_prec]]&"_"&COL_SIZES[[#This Row],[col_len]] -> numeric_1_5 | B93: =MIN(COL_SIZES[[#This Row],[column_length]],IFERROR(VALUE(VLOOKUP(COL_SIZES[[#This Row],[table_name]]&"."&COL_SIZES[[#This Row],[column_name]],AVG_COL_SIZES[#Data],2,FALSE)),COL_SIZES[[#This Row],[column_length]])) -> 5 | C93: =VLOOKUP(A93,DBMS_TYPE_SIZES[],2,FALSE) -> 5 | D93: =VLOOKUP(A93,DBMS_TYPE_SIZES[],3,FALSE) -> 5 | E93: =VLOOKUP(A93,DBMS_TYPE_SIZES[],4,FALSE) -> 5 | F93: CONTACT_ATTEMPT_FACT | G93: CONTACT_COMPLETE_FLAG | H93: numeric | I93: 1 | J93: 5
A94: =COL_SIZES[[#This Row],[datatype]]&"_"&COL_SIZES[[#This Row],[column_prec]]&"_"&COL_SIZES[[#This Row],[col_len]] -> datetime_23_8 | B94: =MIN(COL_SIZES[[#This Row],[column_length]],IFERROR(VALUE(VLOOKUP(COL_SIZES[[#This Row],[table_name]]&"."&COL_SIZES[[#This Row],[column_name]],AVG_COL_SIZES[#Data],2,FALSE)),COL_SIZES[[#This Row],[column_length]])) -> 8 | C94: =VLOOKUP(A94,DBMS_TYPE_SIZES[],2,FALSE) -> 7 | D94: =VLOOKUP(A94,DBMS_TYPE_SIZES[],3,FALSE) -> 8 | E94: =VLOOKUP(A94,DBMS_TYPE_SIZES[],4,FALSE) -> 10 | F94: CONTACT_ATTEMPT_FACT | G94: CONTACT_DAILY_FROM_TIME | H94: datetime | I94: 23 | J94: 8
A95: =COL_SIZES[[#This Row],[datatype]]&"_"&COL_SIZES[[#This Row],[column_prec]]&"_"&COL_SIZES[[#This Row],[col_len]] -> datetime_23_8 | B95: =MIN(COL_SIZES[[#This Row],[column_length]],IFERROR(VALUE(VLOOKUP(COL_SIZES[[#This Row],[table_name]]&"."&COL_SIZES[[#This Row],[column_name]],AVG_COL_SIZES[#Data],2,FALSE)),COL_SIZES[[#This Row],[column_length]])) -> 8 | C95: =VLOOKUP(A95,DBMS_TYPE_SIZES[],2,FALSE) -> 7 | D95: =VLOOKUP(A95,DBMS_TYPE_SIZES[],3,FALSE) -> 8 | E95: =VLOOKUP(A95,DBMS_TYPE_SIZES[],4,FALSE) -> 10 | F95: CONTACT_ATTEMPT_FACT | G95: CONTACT_DAILY_UNTIL_TIME | H95: datetime | I95: 23 | J95: 8
A96: =COL_SIZES[[#This Row],[datatype]]&"_"&COL_SIZES[[#This Row],[column_prec]]&"_"&COL_SIZES[[#This Row],[col_len]] -> datetime_23_8 | B96: =MIN(COL_SIZES[[#This Row],[column_length]],IFERROR(VALUE(VLOOKUP(COL_SIZES[[#This Row],[table_name]]&"."&COL_SIZES[[#This Row],[column_name]],AVG_COL_SIZES[#Data],2,FALSE)),COL_SIZES[[#This Row],[column_length]])) -> 8 | C96: =VLOOKUP(A96,DBMS_TYPE_SIZES[],2,FALSE) -> 7 | D96: =VLOOKUP(A96,DBMS_TYPE_SIZES[],3,FALSE) -> 8 | E96: =VLOOKUP(A96,DBMS_TYPE_SIZES[],4,FALSE) -> 10 | F96: CONTACT_ATTEMPT_FACT | G96: CONTACT_DIAL_SCHED_TIME | H96: datetime | I96: 23 | J96: 8
A97: =COL_SIZES[[#This Row],[datatype]]&"_"&COL_SIZES[[#This Row],[column_prec]]&"_"&COL_SIZES[[#This Row],[col_len]] -> varchar_0_255 | B97: =MIN(COL_SIZES[[#This Row],[column_length]],IFERROR(VALUE(VLOOKUP(COL_SIZES[[#This Row],[table_name]]&"."&COL_SIZES[[#This Row],[column_name]],AVG_COL_SIZES[#Data],2,FALSE)),COL_SIZES[[#This Row],[column_length]])) -> 255 | C97: =VLOOKUP(A97,DBMS_TYPE_SIZES[],2,FALSE) -> 255 | D97: =VLOOKUP(A97,DBMS_TYPE_SIZES[],3,FALSE) -> 255 | E97: =VLOOKUP(A97,DBMS_TYPE_SIZES[],4,FALSE) -> 257 | F97: CONTACT_ATTEMPT_FACT | G97: CONTACT_INFO | H97: varchar | I97: 0 | J97: 255
A98: =COL_SIZES[[#This Row],[datatype]]&"_"&COL_SIZES[[#This Row],[column_prec]]&"_"&COL_SIZES[[#This Row],[col_len]] -> int_10_4 | B98: =MIN(COL_SIZES[[#This Row],[column_length]],IFERROR(VALUE(VLOOKUP(COL_SIZES[[#This Row],[table_name]]&"."&COL_SIZES[[#This Row],[column_name]],AVG_COL_SIZES[#Data],2,FALSE)),COL_SIZES[[#This Row],[column_length]])) -> 4 | C98: =VLOOKUP(A98,DBMS_TYPE_SIZES[],2,FALSE) -> 9 | D98: =VLOOKUP(A98,DBMS_TYPE_SIZES[],3,FALSE) -> 4 | E98: =VLOOKUP(A98,DBMS_TYPE_SIZES[],4,FALSE) -> 9 | F98: CONTACT_ATTEMPT_FACT | G98: CONTACT_INFO_TYPE_KEY | H98: int | I98: 10 | J98: 4
A99: =COL_SIZES[[#This Row],[datatype]]&"_"&COL_SIZES[[#This Row],[column_prec]]&"_"&COL_SIZES[[#This Row],[col_len]] -> datetime_23_8 | B99: =MIN(COL_SIZES[[#This Row],[column_length]],IFERROR(VALUE(VLOOKUP(COL_SIZES[[#This Row],[table_name]]&"."&COL_SIZES[[#This Row],[column_name]],AVG_COL_SIZES[#Data],2,FALSE)),COL_SIZES[[#This Row],[column_length]])) -> 8 | C99: =VLOOKUP(A99,DBMS_TYPE_SIZES[],2,FALSE) -> 7 | D99: =VLOOKUP(A99,DBMS_TYPE_SIZES[],3,FALSE) -> 8 | E99: =VLOOKUP(A99,DBMS_TYPE_SIZES[],4,FALSE) -> 10 | F99: CONTACT_ATTEMPT_FACT | G99: CONTACT_IXN_START_TIME | H99: datetime | I99: 23 | J99: 8
A100: =COL_SIZES[[#This Row],[datatype]]&"_"&COL_SIZES[[#This Row],[column_prec]]&"_"&COL_SIZES[[#This Row],[col_len]] -> numeric_1_5 | B100: =MIN(COL_SIZES[[#This Row],[column_length]],IFERROR(VALUE(VLOOKUP(COL_SIZES[[#This Row],[table_name]]&"."&COL_SIZES[[#This Row],[column_name]],AVG_COL_SIZES[#Data],2,FALSE)),COL_SIZES[[#This Row],[column_length]])) -> 5 | C100: =VLOOKUP(A100,DBMS_TYPE_SIZES[],2,FALSE) -> 5 | D100: =VLOOKUP(A100,DBMS_TYPE_SIZES[],3,FALSE) -> 5 | E100: =VLOOKUP(A100,DBMS_TYPE_SIZES[],4,FALSE) -> 5 | F100: CONTACT_ATTEMPT_FACT | G100: CONTACT_WITHIN_DAILY_RANGE | H100: numeric | I100: 1 | J100: 5
A101: =COL_SIZES[[#This Row],[datatype]]&"_"&COL_SIZES[[#This Row],[column_prec]]&"_"&COL_SIZES[[#This Row],[col_len]] -> numeric_1_5 | B101: =MIN(COL_SIZES[[#This Row],[column_length]],IFERROR(VALUE(VLOOKUP(COL_SIZES[[#This Row],[table_name]]&"."&COL_SIZES[[#This Row],[column_name]],AVG_COL_SIZES[#Data],2,FALSE)),COL_SIZES[[#This Row],[column_length]])) -> 5 | C101: =VLOOKUP(A101,DBMS_TYPE_SIZES[],2,FALSE) -> 5 | D101: =VLOOKUP(A101,DBMS_TYPE_SIZES[],3,FALSE) -> 5 | E101: =VLOOKUP(A101,DBMS_TYPE_SIZES[],4,FALSE) -> 5 | F101: CONTACT_ATTEMPT_FACT | G101: CONVERSION_FLAG | H101: numeric | I101: 1 | J101: 5
A102: =COL_SIZES[[#This Row],[datatype]]&"_"&COL_SIZES[[#This Row],[column_prec]]&"_"&COL_SIZES[[#This Row],[col_len]] -> int_10_4 | B102: =MIN(COL_SIZES[[#This Row],[column_length]],IFERROR(VALUE(VLOOKUP(COL_SIZES[[#This Row],[table_name]]&"."&COL_SIZES[[#This Row],[column_name]],AVG_COL_SIZES[#Data],2,FALSE)),COL_SIZES[[#This Row],[column_length]])) -> 4 | C102: =VLOOKUP(A102,DBMS_TYPE_SIZES[],2,FALSE) -> 9 | D102: =VLOOKUP(A102,DBMS_TYPE_SIZES[],3,FALSE) -> 4 | E102: =VLOOKUP(A102,DBMS_TYPE_SIZES[],4,FALSE) -> 9 | F102: CONTACT_ATTEMPT_FACT | G102: CPD_RESULT_KEY | H102: int | I102: 10 | J102: 4
A103: =COL_SIZES[[#This Row],[datatype]]&"_"&COL_SIZES[[#This Row],[column_prec]]&"_"&COL_SIZES[[#This Row],[col_len]] -> int_10_4 | B103: =MIN(COL_SIZES[[#This Row],[column_length]],IFERROR(VALUE(VLOOKUP(COL_SIZES[[#This Row],[table_name]]&"."&COL_SIZES[[#This Row],[column_name]],AVG_COL_SIZES[#Data],2,FALSE)),COL_SIZES[[#This Row],[column_length]])) -> 4 | C103: =VLOOKUP(A103,DBMS_TYPE_SIZES[],2,FALSE) -> 9 | D103: =VLOOKUP(A103,DBMS_TYPE_SIZES[],3,FALSE) -> 4 | E103: =VLOOKUP(A103,DBMS_TYPE_SIZES[],4,FALSE) -> 9 | F103: CONTACT_ATTEMPT_FACT | G103: CREATE_AUDIT_KEY | H103: int | I103: 10 | J103: 4
A104: =COL_SIZES[[#This Row],[datatype]]&"_"&COL_SIZES[[#This Row],[column_prec]]&"_"&COL_SIZES[[#This Row],[col_len]] -> int_10_4 | B104: =MIN(COL_SIZES[[#This Row],[column_length]],IFERROR(VALUE(VLOOKUP(COL_SIZES[[#This Row],[table_name]]&"."&COL_SIZES[[#This Row],[column_name]],AVG_COL_SIZES[#Data],2,FALSE)),COL_SIZES[[#This Row],[column_length]])) -> 4 | C104: =VLOOKUP(A104,DBMS_TYPE_SIZES[],2,FALSE) -> 9 | D104: =VLOOKUP(A104,DBMS_TYPE_SIZES[],3,FALSE) -> 4 | E104: =VLOOKUP(A104,DBMS_TYPE_SIZES[],4,FALSE) -> 9 | F104: CONTACT_ATTEMPT_FACT | G104: DAILY_FROM_SECONDS | H104: int | I104: 10 | J104: 4
A105: =COL_SIZES[[#This Row],[datatype]]&"_"&COL_SIZES[[#This Row],[column_prec]]&"_"&COL_SIZES[[#This Row],[col_len]] -> int_10_4 | B105: =MIN(COL_SIZES[[#This Row],[column_length]],IFERROR(VALUE(VLOOKUP(COL_SIZES[[#This Row],[table_name]]&"."&COL_SIZES[[#This Row],[column_name]],AVG_COL_SIZES[#Data],2,FALSE)),COL_SIZES[[#This Row],[column_length]])) -> 4 | C105: =VLOOKUP(A105,DBMS_TYPE_SIZES[],2,FALSE) -> 9 | D105: =VLOOKUP(A105,DBMS_TYPE_SIZES[],3,FALSE) -> 4 | E105: =VLOOKUP(A105,DBMS_TYPE_SIZES[],4,FALSE) -> 9 | F105: CONTACT_ATTEMPT_FACT | G105: DAILY_FROM_TIME | H105: int | I105: 10 | J105: 4
A106: =COL_SIZES[[#This Row],[datatype]]&"_"&COL_SIZES[[#This Row],[column_prec]]&"_"&COL_SIZES[[#This Row],[col_len]] -> int_10_4 | B106: =MIN(COL_SIZES[[#This Row],[column_length]],IFERROR(VALUE(VLOOKUP(COL_SIZES[[#This Row],[table_name]]&"."&COL_SIZES[[#This Row],[column_name]],AVG_COL_SIZES[#Data],2,FALSE)),COL_SIZES[[#This Row],[column_length]])) -> 4 | C106: =VLOOKUP(A106,DBMS_TYPE_SIZES[],2,FALSE) -> 9 | D106: =VLOOKUP(A106,DBMS_TYPE_SIZES[],3,FALSE) -> 4 | E106: =VLOOKUP(A106,DBMS_TYPE_SIZES[],4,FALSE) -> 9 | F106: CONTACT_ATTEMPT_FACT | G106: DAILY_FROM_TIME_KEY | H106: int | I106: 10 | J106: 4
A107: =COL_SIZES[[#This Row],[datatype]]&"_"&COL_SIZES[[#This Row],[column_prec]]&"_"&COL_SIZES[[#This Row],[col_len]] -> int_10_4 | B107: =MIN(COL_SIZES[[#This Row],[column_length]],IFERROR(VALUE(VLOOKUP(COL_SIZES[[#This Row],[table_name]]&"."&COL_SIZES[[#This Row],[column_name]],AVG_COL_SIZES[#Data],2,FALSE)),COL_SIZES[[#This Row],[column_length]])) -> 4 | C107: =VLOOKUP(A107,DBMS_TYPE_SIZES[],2,FALSE) -> 9 | D107: =VLOOKUP(A107,DBMS_TYPE_SIZES[],3,FALSE) -> 4 | E107: =VLOOKUP(A107,DBMS_TYPE_SIZES[],4,FALSE) -> 9 | F107: CONTACT_ATTEMPT_FACT | G107: DAILY_UNTIL_SECONDS | H107: int | I107: 10 | J107: 4
A108: =COL_SIZES[[#This Row],[datatype]]&"_"&COL_SIZES[[#This Row],[column_prec]]&"_"&COL_SIZES[[#This Row],[col_len]] -> int_10_4 | B108: =MIN(COL_SIZES[[#This Row],[column_length]],IFERROR(VALUE(VLOOKUP(COL_SIZES[[#This Row],[table_name]]&"."&COL_SIZES[[#This Row],[column_name]],AVG_COL_SIZES[#Data],2,FALSE)),COL_SIZES[[#This Row],[column_length]])) -> 4 | C108: =VLOOKUP(A108,DBMS_TYPE_SIZES[],2,FALSE) -> 9 | D108: =VLOOKUP(A108,DBMS_TYPE_SIZES[],3,FALSE) -> 4 | E108: =VLOOKUP(A108,DBMS_TYPE_SIZES[],4,FALSE) -> 9 | F108: CONTACT_ATTEMPT_FACT | G108: DAILY_UNTIL_TIME | H108: int | I108: 10 | J108: 4
A109: =COL_SIZES[[#This Row],[datatype]]&"_"&COL_SIZES[[#This Row],[column_prec]]&"_"&COL_SIZES[[#This Row],[col_len]] -> int_10_4 | B109: =MIN(COL_SIZES[[#This Row],[column_length]],IFERROR(VALUE(VLOOKUP(COL_SIZES[[#This Row],[table_name]]&"."&COL_SIZES[[#This Row],[column_name]],AVG_COL_SIZES[#Data],2,FALSE)),COL_SIZES[[#This Row],[column_length]])) -> 4 | C109: =VLOOKUP(A109,DBMS_TYPE_SIZES[],2,FALSE) -> 9 | D109: =VLOOKUP(A109,DBMS_TYPE_SIZES[],3,FALSE) -> 4 | E109: =VLOOKUP(A109,DBMS_TYPE_SIZES[],4,FALSE) -> 9 | F109: CONTACT_ATTEMPT_FACT | G109: DAILY_UNTIL_TIME_KEY | H109: int | I109: 10 | J109: 4
A110: =COL_SIZES[[#This Row],[datatype]]&"_"&COL_SIZES[[#This Row],[column_prec]]&"_"&COL_SIZES[[#This Row],[col_len]] -> int_10_4 | B110: =MIN(COL_SIZES[[#This Row],[column_length]],IFERROR(VALUE(VLOOKUP(COL_SIZES[[#This Row],[table_name]]&"."&COL_SIZES[[#This Row],[column_name]],AVG_COL_SIZES[#Data],2,FALSE)),COL_SIZES[[#This Row],[column_length]])) -> 4 | C110: =VLOOKUP(A110,DBMS_TYPE_SIZES[],2,FALSE) -> 9 | D110: =VLOOKUP(A110,DBMS_TYPE_SIZES[],3,FALSE) -> 4 | E110: =VLOOKUP(A110,DBMS_TYPE_SIZES[],4,FALSE) -> 9 | F110: CONTACT_ATTEMPT_FACT | G110: DIAL_SCHED_TIME | H110: int | I110: 10 | J110: 4
A111: =COL_SIZES[[#This Row],[datatype]]&"_"&COL_SIZES[[#This Row],[column_prec]]&"_"&COL_SIZES[[#This Row],[col_len]] -> int_10_4 | B111: =MIN(COL_SIZES[[#This Row],[column_length]],IFERROR(VALUE(VLOOKUP(COL_SIZES[[#This Row],[table_name]]&"."&COL_SIZES[[#This Row],[column_name]],AVG_COL_SIZES[#Data],2,FALSE)),COL_SIZES[[#This Row],[column_length]])) -> 4 | C111: =VLOOKUP(A111,DBMS_TYPE_SIZES[],2,FALSE) -> 9 | D111: =VLOOKUP(A111,DBMS_TYPE_SIZES[],3,FALSE) -> 4 | E111: =VLOOKUP(A111,DBMS_TYPE_SIZES[],4,FALSE) -> 9 | F111: CONTACT_ATTEMPT_FACT | G111: DIAL_SCHED_TIME_KEY | H111: int | I111: 10 | J111: 4
A112: =COL_SIZES[[#This Row],[datatype]]&"_"&COL_SIZES[[#This Row],[column_prec]]&"_"&COL_SIZES[[#This Row],[col_len]] -> int_10_4 | B112: =MIN(COL_SIZES[[#This Row],[column_length]],IFERROR(VALUE(VLOOKUP(COL_SIZES[[#This Row],[table_name]]&"."&COL_SIZES[[#This Row],[column_name]],AVG_COL_SIZES[#Data],2,FALSE)),COL_SIZES[[#This Row],[column_length]])) -> 4 | C112: =VLOOKUP(A112,DBMS_TYPE_SIZES[],2,FALSE) -> 9 | D112: =VLOOKUP(A112,DBMS_TYPE_SIZES[],3,FALSE) -> 4 | E112: =VLOOKUP(A112,DBMS_TYPE_SIZES[],4,FALSE) -> 9 | F112: CONTACT_ATTEMPT_FACT | G112: DIALING_MODE_KEY | H112: int | I112: 10 | J112: 4
A113: =COL_SIZES[[#This Row],[datatype]]&"_"&COL_SIZES[[#This Row],[column_prec]]&"_"&COL_SIZES[[#This Row],[col_len]] -> int_10_4 | B113: =MIN(COL_SIZES[[#This Row],[column_length]],IFERROR(VALUE(VLOOKUP(COL_SIZES[[#This Row],[table_name]]&"."&COL_SIZES[[#This Row],[column_name]],AVG_COL_SIZES[#Data],2,FALSE)),COL_SIZES[[#This Row],[column_length]])) -> 4 | C113: =VLOOKUP(A113,DBMS_TYPE_SIZES[],2,FALSE) -> 9 | D113: =VLOOKUP(A113,DBMS_TYPE_SIZES[],3,FALSE) -> 4 | E113: =VLOOKUP(A113,DBMS_TYPE_SIZES[],4,FALSE) -> 9 | F113: CONTACT_ATTEMPT_FACT | G113: END_DATE_TIME_KEY | H113: int | I113: 10 | J113: 4
A114: =COL_SIZES[[#This Row],[datatype]]&"_"&COL_SIZES[[#This Row],[column_prec]]&"_"&COL_SIZES[[#This Row],[col_len]] -> int_10_4 | B114: =MIN(COL_SIZES[[#This Row],[column_length]],IFERROR(VALUE(VLOOKUP(COL_SIZES[[#This Row],[table_name]]&"."&COL_SIZES[[#This Row],[column_name]],AVG_COL_SIZES[#Data],2,FALSE)),COL_SIZES[[#This Row],[column_length]])) -> 4 | C114: =VLOOKUP(A114,DBMS_TYPE_SIZES[],2,FALSE) -> 9 | D114: =VLOOKUP(A114,DBMS_TYPE_SIZES[],3,FALSE) -> 4 | E114: =VLOOKUP(A114,DBMS_TYPE_SIZES[],4,FALSE) -> 9 | F114: CONTACT_ATTEMPT_FACT | G114: END_TS | H114: int | I114: 10 | J114: 4
A115: =COL_SIZES[[#This Row],[datatype]]&"_"&COL_SIZES[[#This Row],[column_prec]]&"_"&COL_SIZES[[#This Row],[col_len]] -> int_10_4 | B115: =MIN(COL_SIZES[[#This Row],[column_length]],IFERROR(VALUE(VLOOKUP(COL_SIZES[[#This Row],[table_name]]&"."&COL_SIZES[[#This Row],[column_name]],AVG_COL_SIZES[#Data],2,FALSE)),COL_SIZES[[#This Row],[column_length]])) -> 4 | C115: =VLOOKUP(A115,DBMS_TYPE_SIZES[],2,FALSE) -> 9 | D115: =VLOOKUP(A115,DBMS_TYPE_SIZES[],3,FALSE) -> 4 | E115: =VLOOKUP(A115,DBMS_TYPE_SIZES[],4,FALSE) -> 9 | F115: CONTACT_ATTEMPT_FACT | G115: GROUP_KEY | H115: int | I115: 10 | J115: 4
A116: =COL_SIZES[[#This Row],[datatype]]&"_"&COL_SIZES[[#This Row],[column_prec]]&"_"&COL_SIZES[[#This Row],[col_len]] -> int_10_4 | B116: =MIN(COL_SIZES[[#This Row],[column_length]],IFERROR(VALUE(VLOOKUP(COL_SIZES[[#This Row],[table_name]]&"."&COL_SIZES[[#This Row],[column_name]],AVG_COL_SIZES[#Data],2,FALSE)),COL_SIZES[[#This Row],[column_length]])) -> 4 | C116: =VLOOKUP(A116,DBMS_TYPE_SIZES[],2,FALSE) -> 9 | D116: =VLOOKUP(A116,DBMS_TYPE_SIZES[],3,FALSE) -> 4 | E116: =VLOOKUP(A116,DBMS_TYPE_SIZES[],4,FALSE) -> 9 | F116: CONTACT_ATTEMPT_FACT | G116: IXN_START_TIME | H116: int | I116: 10 | J116: 4
A117: =COL_SIZES[[#This Row],[datatype]]&"_"&COL_SIZES[[#This Row],[column_prec]]&"_"&COL_SIZES[[#This Row],[col_len]] -> int_10_4 | B117: =MIN(COL_SIZES[[#This Row],[column_length]],IFERROR(VALUE(VLOOKUP(COL_SIZES[[#This Row],[table_name]]&"."&COL_SIZES[[#This Row],[column_name]],AVG_COL_SIZES[#Data],2,FALSE)),COL_SIZES[[#This Row],[column_length]])) -> 4 | C117: =VLOOKUP(A117,DBMS_TYPE_SIZES[],2,FALSE) -> 9 | D117: =VLOOKUP(A117,DBMS_TYPE_SIZES[],3,FALSE) -> 4 | E117: =VLOOKUP(A117,DBMS_TYPE_SIZES[],4,FALSE) -> 9 | F117: CONTACT_ATTEMPT_FACT | G117: IXN_START_TIME_KEY | H117: int | I117: 10 | J117: 4
A118: =COL_SIZES[[#This Row],[datatype]]&"_"&COL_SIZES[[#This Row],[column_prec]]&"_"&COL_SIZES[[#This Row],[col_len]] -> int_10_4 | B118: =MIN(COL_SIZES[[#This Row],[column_length]],IFERROR(VALUE(VLOOKUP(COL_SIZES[[#This Row],[table_name]]&"."&COL_SIZES[[#This Row],[column_name]],AVG_COL_SIZES[#Data],2,FALSE)),COL_SIZES[[#This Row],[column_length]])) -> 4 | C118: =VLOOKUP(A118,DBMS_TYPE_SIZES[],2,FALSE) -> 9 | D118: =VLOOKUP(A118,DBMS_TYPE_SIZES[],3,FALSE) -> 4 | E118: =VLOOKUP(A118,DBMS_TYPE_SIZES[],4,FALSE) -> 9 | F118: CONTACT_ATTEMPT_FACT | G118: MEDIA_TYPE_KEY | H118: int | I118: 10 | J118: 4
A119: =COL_SIZES[[#This Row],[datatype]]&"_"&COL_SIZES[[#This Row],[column_prec]]&"_"&COL_SIZES[[#This Row],[col_len]] -> numeric_1_5 | B119: =MIN(COL_SIZES[[#This Row],[column_length]],IFERROR(VALUE(VLOOKUP(COL_SIZES[[#This Row],[table_name]]&"."&COL_SIZES[[#This Row],[column_name]],AVG_COL_SIZES[#Data],2,FALSE)),COL_SIZES[[#This Row],[column_length]])) -> 5 | C119: =VLOOKUP(A119,DBMS_TYPE_SIZES[],2,FALSE) -> 5 | D119: =VLOOKUP(A119,DBMS_TYPE_SIZES[],3,FALSE) -> 5 | E119: =VLOOKUP(A119,DBMS_TYPE_SIZES[],4,FALSE) -> 5 | F119: CONTACT_ATTEMPT_FACT | G119: OVERDIAL_FLAG | H119: numeric | I119: 1 | J119: 5
A120: =COL_SIZES[[#This Row],[datatype]]&"_"&COL_SIZES[[#This Row],[column_prec]]&"_"&COL_SIZES[[#This Row],[col_len]] -> int_10_4 | B120: =MIN(COL_SIZES[[#This Row],[column_length]],IFERROR(VALUE(VLOOKUP(COL_SIZES[[#This Row],[table_name]]&"."&COL_SIZES[[#This Row],[column_name]],AVG_COL_SIZES[#Data],2,FALSE)),COL_SIZES[[#This Row],[column_length]])) -> 4 | C120: =VLOOKUP(A120,DBMS_TYPE_SIZES[],2,FALSE) -> 9 | D120: =VLOOKUP(A120,DBMS_TYPE_SIZES[],3,FALSE) -> 4 | E120: =VLOOKUP(A120,DBMS_TYPE_SIZES[],4,FALSE) -> 9 | F120: CONTACT_ATTEMPT_FACT | G120: PLACE_KEY | H120: int | I120: 10 | J120: 4
A121: =COL_SIZES[[#This Row],[datatype]]&"_"&COL_SIZES[[#This Row],[column_prec]]&"_"&COL_SIZES[[#This Row],[col_len]] -> numeric_1_5 | B121: =MIN(COL_SIZES[[#This Row],[column_length]],IFERROR(VALUE(VLOOKUP(COL_SIZES[[#This Row],[table_name]]&"."&COL_SIZES[[#This Row],[column_name]],AVG_COL_SIZES[#Data],2,FALSE)),COL_SIZES[[#This Row],[column_length]])) -> 5 | C121: =VLOOKUP(A121,DBMS_TYPE_SIZES[],2,FALSE) -> 5 | D121: =VLOOKUP(A121,DBMS_TYPE_SIZES[],3,FALSE) -> 5 | E121: =VLOOKUP(A121,DBMS_TYPE_SIZES[],4,FALSE) -> 5 | F121: CONTACT_ATTEMPT_FACT | G121: PURGE_FLAG | H121: numeric | I121: 1 | J121: 5
A122: =COL_SIZES[[#This Row],[datatype]]&"_"&COL_SIZES[[#This Row],[column_prec]]&"_"&COL_SIZES[[#This Row],[col_len]] -> numeric_14_9 | B122: =MIN(COL_SIZES[[#This Row],[column_length]],IFERROR(VALUE(VLOOKUP(COL_SIZES[[#This Row],[table_name]]&"."&COL_SIZES[[#This Row],[column_name]],AVG_COL_SIZES[#Data],2,FALSE)),COL_SIZES[[#This Row],[column_length]])) -> 9 | C122: =VLOOKUP(A122,DBMS_TYPE_SIZES[],2,FALSE) -> 9 | D122: =VLOOKUP(A122,DBMS_TYPE_SIZES[],3,FALSE) -> 9 | E122: =VLOOKUP(A122,DBMS_TYPE_SIZES[],4,FALSE) -> 9 | F122: CONTACT_ATTEMPT_FACT | G122: RECORD_FIELD_1 | H122: numeric | I122: 14 | J122: 9
A123: =COL_SIZES[[#This Row],[datatype]]&"_"&COL_SIZES[[#This Row],[column_prec]]&"_"&COL_SIZES[[#This Row],[col_len]] -> numeric_14_9 | B123: =MIN(COL_SIZES[[#This Row],[column_length]],IFERROR(VALUE(VLOOKUP(COL_SIZES[[#This Row],[table_name]]&"."&COL_SIZES[[#This Row],[column_name]],AVG_COL_SIZES[#Data],2,FALSE)),COL_SIZES[[#This Row],[column_length]])) -> 9 | C123: =VLOOKUP(A123,DBMS_TYPE_SIZES[],2,FALSE) -> 9 | D123: =VLOOKUP(A123,DBMS_TYPE_SIZES[],3,FALSE) -> 9 | E123: =VLOOKUP(A123,DBMS_TYPE_SIZES[],4,FALSE) -> 9 | F123: CONTACT_ATTEMPT_FACT | G123: RECORD_FIELD_10 | H123: numeric | I123: 14 | J123: 9
A124: =COL_SIZES[[#This Row],[datatype]]&"_"&COL_SIZES[[#This Row],[column_prec]]&"_"&COL_SIZES[[#This Row],[col_len]] -> int_10_4 | B124: =MIN(COL_SIZES[[#This Row],[column_length]],IFERROR(VALUE(VLOOKUP(COL_SIZES[[#This Row],[table_name]]&"."&COL_SIZES[[#This Row],[column_name]],AVG_COL_SIZES[#Data],2,FALSE)),COL_SIZES[[#This Row],[column_length]])) -> 4 | C124: =VLOOKUP(A124,DBMS_TYPE_SIZES[],2,FALSE) -> 9 | D124: =VLOOKUP(A124,DBMS_TYPE_SIZES[],3,FALSE) -> 4 | E124: =VLOOKUP(A124,DBMS_TYPE_SIZES[],4,FALSE) -> 9 | F124: CONTACT_ATTEMPT_FACT | G124: RECORD_FIELD_11 | H124: int | I124: 10 | J124: 4
A125: =COL_SIZES[[#This Row],[datatype]]&"_"&COL_SIZES[[#This Row],[column_prec]]&"_"&COL_SIZES[[#This Row],[col_len]] -> int_10_4 | B125: =MIN(COL_SIZES[[#This Row],[column_length]],IFERROR(VALUE(VLOOKUP(COL_SIZES[[#This Row],[table_name]]&"."&COL_SIZES[[#This Row],[column_name]],AVG_COL_SIZES[#Data],2,FALSE)),COL_SIZES[[#This Row],[column_length]])) -> 4 | C125: =VLOOKUP(A125,DBMS_TYPE_SIZES[],2,FALSE) -> 9 | D125: =VLOOKUP(A125,DBMS_TYPE_SIZES[],3,FALSE) -> 4 | E125: =VLOOKUP(A125,DBMS_TYPE_SIZES[],4,FALSE) -> 9 | F125: CONTACT_ATTEMPT_FACT | G125: RECORD_FIELD_12 | H125: int | I125: 10 | J125: 4
A126: =COL_SIZES[[#This Row],[datatype]]&"_"&COL_SIZES[[#This Row],[column_prec]]&"_"&COL_SIZES[[#This Row],[col_len]] -> int_10_4 | B126: =MIN(COL_SIZES[[#This Row],[column_length]],IFERROR(VALUE(VLOOKUP(COL_SIZES[[#This Row],[table_name]]&"."&COL_SIZES[[#This Row],[column_name]],AVG_COL_SIZES[#Data],2,FALSE)),COL_SIZES[[#This Row],[column_length]])) -> 4 | C126: =VLOOKUP(A126,DBMS_TYPE_SIZES[],2,FALSE) -> 9 | D126: =VLOOKUP(A126,DBMS_TYPE_SIZES[],3,FALSE) -> 4 | E126: =VLOOKUP(A126,DBMS_TYPE_SIZES[],4,FALSE) -> 9 | F126: CONTACT_ATTEMPT_FACT | G126: RECORD_FIELD_13 | H126: int | I126: 10 | J126: 4
A127: =COL_SIZES[[#This Row],[datatype]]&"_"&COL_SIZES[[#This Row],[column_prec]]&"_"&COL_SIZES[[#This Row],[col_len]] -> int_10_4 | B127: =MIN(COL_SIZES[[#This Row],[column_length]],IFERROR(VALUE(VLOOKUP(COL_SIZES[[#This Row],[table_name]]&"."&COL_SIZES[[#This Row],[column_name]],AVG_COL_SIZES[#Data],2,FALSE)),COL_SIZES[[#This Row],[column_length]])) -> 4 | C127: =VLOOKUP(A127,DBMS_TYPE_SIZES[],2,FALSE) -> 9 | D127: =VLOOKUP(A127,DBMS_TYPE_SIZES[],3,FALSE) -> 4 | E127: =VLOOKUP(A127,DBMS_TYPE_SIZES[],4,FALSE) -> 9 | F127: CONTACT_ATTEMPT_FACT | G127: RECORD_FIELD_14 | H127: int | I127: 10 | J127: 4
A128: =COL_SIZES[[#This Row],[datatype]]&"_"&COL_SIZES[[#This Row],[column_prec]]&"_"&COL_SIZES[[#This Row],[col_len]] -> int_10_4 | B128: =MIN(COL_SIZES[[#This Row],[column_length]],IFERROR(VALUE(VLOOKUP(COL_SIZES[[#This Row],[table_name]]&"."&COL_SIZES[[#This Row],[column_name]],AVG_COL_SIZES[#Data],2,FALSE)),COL_SIZES[[#This Row],[column_length]])) -> 4 | C128: =VLOOKUP(A128,DBMS_TYPE_SIZES[],2,FALSE) -> 9 | D128: =VLOOKUP(A128,DBMS_TYPE_SIZES[],3,FALSE) -> 4 | E128: =VLOOKUP(A128,DBMS_TYPE_SIZES[],4,FALSE) -> 9 | F128: CONTACT_ATTEMPT_FACT | G128: RECORD_FIELD_15 | H128: int | I128: 10 | J128: 4
A129: =COL_SIZES[[#This Row],[datatype]]&"_"&COL_SIZES[[#This Row],[column_prec]]&"_"&COL_SIZES[[#This Row],[col_len]] -> int_10_4 | B129: =MIN(COL_SIZES[[#This Row],[column_length]],IFERROR(VALUE(VLOOKUP(COL_SIZES[[#This Row],[table_name]]&"."&COL_SIZES[[#This Row],[column_name]],AVG_COL_SIZES[#Data],2,FALSE)),COL_SIZES[[#This Row],[column_length]])) -> 4 | C129: =VLOOKUP(A129,DBMS_TYPE_SIZES[],2,FALSE) -> 9 | D129: =VLOOKUP(A129,DBMS_TYPE_SIZES[],3,FALSE) -> 4 | E129: =VLOOKUP(A129,DBMS_TYPE_SIZES[],4,FALSE) -> 9 | F129: CONTACT_ATTEMPT_FACT | G129: RECORD_FIELD_16 | H129: int | I129: 10 | J129: 4
A130: =COL_SIZES[[#This Row],[datatype]]&"_"&COL_SIZES[[#This Row],[column_prec]]&"_"&COL_SIZES[[#This Row],[col_len]] -> int_10_4 | B130: =MIN(COL_SIZES[[#This Row],[column_length]],IFERROR(VALUE(VLOOKUP(COL_SIZES[[#This Row],[table_name]]&"."&COL_SIZES[[#This Row],[column_name]],AVG_COL_SIZES[#Data],2,FALSE)),COL_SIZES[[#This Row],[column_length]])) -> 4 | C130: =VLOOKUP(A130,DBMS_TYPE_SIZES[],2,FALSE) -> 9 | D130: =VLOOKUP(A130,DBMS_TYPE_SIZES[],3,FALSE) -> 4 | E130: =VLOOKUP(A130,DBMS_TYPE_SIZES[],4,FALSE) -> 9 | F130: CONTACT_ATTEMPT_FACT | G130: RECORD_FIELD_17 | H130: int | I130: 10 | J130: 4
A131: =COL_SIZES[[#This Row],[datatype]]&"_"&COL_SIZES[[#This Row],[column_prec]]&"_"&COL_SIZES[[#This Row],[col_len]] -> int_10_4 | B131: =MIN(COL_SIZES[[#This Row],[column_length]],IFERROR(VALUE(VLOOKUP(COL_SIZES[[#This Row],[table_name]]&"."&COL_SIZES[[#This Row],[column_name]],AVG_COL_SIZES[#Data],2,FALSE)),COL_SIZES[[#This Row],[column_length]])) -> 4 | C131: =VLOOKUP(A131,DBMS_TYPE_SIZES[],2,FALSE) -> 9 | D131: =VLOOKUP(A131,DBMS_TYPE_SIZES[],3,FALSE) -> 4 | E131: =VLOOKUP(A131,DBMS_TYPE_SIZES[],4,FALSE) -> 9 | F131: CONTACT_ATTEMPT_FACT | G131: RECORD_FIELD_18 | H131: int | I131: 10 | J131: 4
A132: =COL_SIZES[[#This Row],[datatype]]&"_"&COL_SIZES[[#This Row],[column_prec]]&"_"&COL_SIZES[[#This Row],[col_len]] -> int_10_4 | B132: =MIN(COL_SIZES[[#This Row],[column_length]],IFERROR(VALUE(VLOOKUP(COL_SIZES[[#This Row],[table_name]]&"."&COL_SIZES[[#This Row],[column_name]],AVG_COL_SIZES[#Data],2,FALSE)),COL_SIZES[[#This Row],[column_length]])) -> 4 | C132: =VLOOKUP(A132,DBMS_TYPE_SIZES[],2,FALSE) -> 9 | D132: =VLOOKUP(A132,DBMS_TYPE_SIZES[],3,FALSE) -> 4 | E132: =VLOOKUP(A132,DBMS_TYPE_SIZES[],4,FALSE) -> 9 | F132: CONTACT_ATTEMPT_FACT | G132: RECORD_FIELD_19 | H132: int | I132: 10 | J132: 4
A133: =COL_SIZES[[#This Row],[datatype]]&"_"&COL_SIZES[[#This Row],[column_prec]]&"_"&COL_SIZES[[#This Row],[col_len]] -> numeric_14_9 | B133: =MIN(COL_SIZES[[#This Row],[column_length]],IFERROR(VALUE(VLOOKUP(COL_SIZES[[#This Row],[table_name]]&"."&COL_SIZES[[#This Row],[column_name]],AVG_COL_SIZES[#Data],2,FALSE)),COL_SIZES[[#This Row],[column_length]])) -> 9 | C133: =VLOOKUP(A133,DBMS_TYPE_SIZES[],2,FALSE) -> 9 | D133: =VLOOKUP(A133,DBMS_TYPE_SIZES[],3,FALSE) -> 9 | E133: =VLOOKUP(A133,DBMS_TYPE_SIZES[],4,FALSE) -> 9 | F133: CONTACT_ATTEMPT_FACT | G133: RECORD_FIELD_2 | H133: numeric | I133: 14 | J133: 9
A134: =COL_SIZES[[#This Row],[datatype]]&"_"&COL_SIZES[[#This Row],[column_prec]]&"_"&COL_SIZES[[#This Row],[col_len]] -> int_10_4 | B134: =MIN(COL_SIZES[[#This Row],[column_length]],IFERROR(VALUE(VLOOKUP(COL_SIZES[[#This Row],[table_name]]&"."&COL_SIZES[[#This Row],[column_name]],AVG_COL_SIZES[#Data],2,FALSE)),COL_SIZES[[#This Row],[column_length]])) -> 4 | C134: =VLOOKUP(A134,DBMS_TYPE_SIZES[],2,FALSE) -> 9 | D134: =VLOOKUP(A134,DBMS_TYPE_SIZES[],3,FALSE) -> 4 | E134: =VLOOKUP(A134,DBMS_TYPE_SIZES[],4,FALSE) -> 9 | F134: CONTACT_ATTEMPT_FACT | G134: RECORD_FIELD_20 | H134: int | I134: 10 | J134: 4
A135: =COL_SIZES[[#This Row],[datatype]]&"_"&COL_SIZES[[#This Row],[column_prec]]&"_"&COL_SIZES[[#This Row],[col_len]] -> int_10_4 | B135: =MIN(COL_SIZES[[#This Row],[column_length]],IFERROR(VALUE(VLOOKUP(COL_SIZES[[#This Row],[table_name]]&"."&COL_SIZES[[#This Row],[column_name]],AVG_COL_SIZES[#Data],2,FALSE)),COL_SIZES[[#This Row],[column_length]])) -> 4 | C135: =VLOOKUP(A135,DBMS_TYPE_SIZES[],2,FALSE) -> 9 | D135: =VLOOKUP(A135,DBMS_TYPE_SIZES[],3,FALSE) -> 4 | E135: =VLOOKUP(A135,DBMS_TYPE_SIZES[],4,FALSE) -> 9 | F135: CONTACT_ATTEMPT_FACT | G135: RECORD_FIELD_21 | H135: int | I135: 10 | J135: 4
A136: =COL_SIZES[[#This Row],[datatype]]&"_"&COL_SIZES[[#This Row],[column_prec]]&"_"&COL_SIZES[[#This Row],[col_len]] -> int_10_4 | B136: =MIN(COL_SIZES[[#This Row],[column_length]],IFERROR(VALUE(VLOOKUP(COL_SIZES[[#This Row],[table_name]]&"."&COL_SIZES[[#This Row],[column_name]],AVG_COL_SIZES[#Data],2,FALSE)),COL_SIZES[[#This Row],[column_length]])) -> 4 | C136: =VLOOKUP(A136,DBMS_TYPE_SIZES[],2,FALSE) -> 9 | D136: =VLOOKUP(A136,DBMS_TYPE_SIZES[],3,FALSE) -> 4 | E136: =VLOOKUP(A136,DBMS_TYPE_SIZES[],4,FALSE) -> 9 | F136: CONTACT_ATTEMPT_FACT | G136: RECORD_FIELD_22 | H136: int | I136: 10 | J136: 4
A137: =COL_SIZES[[#This Row],[datatype]]&"_"&COL_SIZES[[#This Row],[column_prec]]&"_"&COL_SIZES[[#This Row],[col_len]] -> int_10_4 | B137: =MIN(COL_SIZES[[#This Row],[column_length]],IFERROR(VALUE(VLOOKUP(COL_SIZES[[#This Row],[table_name]]&"."&COL_SIZES[[#This Row],[column_name]],AVG_COL_SIZES[#Data],2,FALSE)),COL_SIZES[[#This Row],[column_length]])) -> 4 | C137: =VLOOKUP(A137,DBMS_TYPE_SIZES[],2,FALSE) -> 9 | D137: =VLOOKUP(A137,DBMS_TYPE_SIZES[],3,FALSE) -> 4 | E137: =VLOOKUP(A137,DBMS_TYPE_SIZES[],4,FALSE) -> 9 | F137: CONTACT_ATTEMPT_FACT | G137: RECORD_FIELD_23 | H137: int | I137: 10 | J137: 4
A138: =COL_SIZES[[#This Row],[datatype]]&"_"&COL_SIZES[[#This Row],[column_prec]]&"_"&COL_SIZES[[#This Row],[col_len]] -> int_10_4 | B138: =MIN(COL_SIZES[[#This Row],[column_length]],IFERROR(VALUE(VLOOKUP(COL_SIZES[[#This Row],[table_name]]&"."&COL_SIZES[[#This Row],[column_name]],AVG_COL_SIZES[#Data],2,FALSE)),COL_SIZES[[#This Row],[column_length]])) -> 4 | C138: =VLOOKUP(A138,DBMS_TYPE_SIZES[],2,FALSE) -> 9 | D138: =VLOOKUP(A138,DBMS_TYPE_SIZES[],3,FALSE) -> 4 | E138: =VLOOKUP(A138,DBMS_TYPE_SIZES[],4,FALSE) -> 9 | F138: CONTACT_ATTEMPT_FACT | G138: RECORD_FIELD_24 | H138: int | I138: 10 | J138: 4
A139: =COL_SIZES[[#This Row],[datatype]]&"_"&COL_SIZES[[#This Row],[column_prec]]&"_"&COL_SIZES[[#This Row],[col_len]] -> int_10_4 | B139: =MIN(COL_SIZES[[#This Row],[column_length]],IFERROR(VALUE(VLOOKUP(COL_SIZES[[#This Row],[table_name]]&"."&COL_SIZES[[#This Row],[column_name]],AVG_COL_SIZES[#Data],2,FALSE)),COL_SIZES[[#This Row],[column_length]])) -> 4 | C139: =VLOOKUP(A139,DBMS_TYPE_SIZES[],2,FALSE) -> 9 | D139: =VLOOKUP(A139,DBMS_TYPE_SIZES[],3,FALSE) -> 4 | E139: =VLOOKUP(A139,DBMS_TYPE_SIZES[],4,FALSE) -> 9 | F139: CONTACT_ATTEMPT_FACT | G139: RECORD_FIELD_25 | H139: int | I139: 10 | J139: 4
A140: =COL_SIZES[[#This Row],[datatype]]&"_"&COL_SIZES[[#This Row],[column_prec]]&"_"&COL_SIZES[[#This Row],[col_len]] -> int_10_4 | B140: =MIN(COL_SIZES[[#This Row],[column_length]],IFERROR(VALUE(VLOOKUP(COL_SIZES[[#This Row],[table_name]]&"."&COL_SIZES[[#This Row],[column_name]],AVG_COL_SIZES[#Data],2,FALSE)),COL_SIZES[[#This Row],[column_length]])) -> 4 | C140: =VLOOKUP(A140,DBMS_TYPE_SIZES[],2,FALSE) -> 9 | D140: =VLOOKUP(A140,DBMS_TYPE_SIZES[],3,FALSE) -> 4 | E140: =VLOOKUP(A140,DBMS_TYPE_SIZES[],4,FALSE) -> 9 | F140: CONTACT_ATTEMPT_FACT | G140: RECORD_FIELD_26 | H140: int | I140: 10 | J140: 4
A141: =COL_SIZES[[#This Row],[datatype]]&"_"&COL_SIZES[[#This Row],[column_prec]]&"_"&COL_SIZES[[#This Row],[col_len]] -> int_10_4 | B141: =MIN(COL_SIZES[[#This Row],[column_length]],IFERROR(VALUE(VLOOKUP(COL_SIZES[[#This Row],[table_name]]&"."&COL_SIZES[[#This Row],[column_name]],AVG_COL_SIZES[#Data],2,FALSE)),COL_SIZES[[#This Row],[column_length]])) -> 4 | C141: =VLOOKUP(A141,DBMS_TYPE_SIZES[],2,FALSE) -> 9 | D141: =VLOOKUP(A141,DBMS_TYPE_SIZES[],3,FALSE) -> 4 | E141: =VLOOKUP(A141,DBMS_TYPE_SIZES[],4,FALSE) -> 9 | F141: CONTACT_ATTEMPT_FACT | G141: RECORD_FIELD_27 | H141: int | I141: 10 | J141: 4
A142: =COL_SIZES[[#This Row],[datatype]]&"_"&COL_SIZES[[#This Row],[column_prec]]&"_"&COL_SIZES[[#This Row],[col_len]] -> int_10_4 | B142: =MIN(COL_SIZES[[#This Row],[column_length]],IFERROR(VALUE(VLOOKUP(COL_SIZES[[#This Row],[table_name]]&"."&COL_SIZES[[#This Row],[column_name]],AVG_COL_SIZES[#Data],2,FALSE)),COL_SIZES[[#This Row],[column_length]])) -> 4 | C142: =VLOOKUP(A142,DBMS_TYPE_SIZES[],2,FALSE) -> 9 | D142: =VLOOKUP(A142,DBMS_TYPE_SIZES[],3,FALSE) -> 4 | E142: =VLOOKUP(A142,DBMS_TYPE_SIZES[],4,FALSE) -> 9 | F142: CONTACT_ATTEMPT_FACT | G142: RECORD_FIELD_28 | H142: int | I142: 10 | J142: 4
A143: =COL_SIZES[[#This Row],[datatype]]&"_"&COL_SIZES[[#This Row],[column_prec]]&"_"&COL_SIZES[[#This Row],[col_len]] -> int_10_4 | B143: =MIN(COL_SIZES[[#This Row],[column_length]],IFERROR(VALUE(VLOOKUP(COL_SIZES[[#This Row],[table_name]]&"."&COL_SIZES[[#This Row],[column_name]],AVG_COL_SIZES[#Data],2,FALSE)),COL_SIZES[[#This Row],[column_length]])) -> 4 | C143: =VLOOKUP(A143,DBMS_TYPE_SIZES[],2,FALSE) -> 9 | D143: =VLOOKUP(A143,DBMS_TYPE_SIZES[],3,FALSE) -> 4 | E143: =VLOOKUP(A143,DBMS_TYPE_SIZES[],4,FALSE) -> 9 | F143: CONTACT_ATTEMPT_FACT | G143: RECORD_FIELD_29 | H143: int | I143: 10 | J143: 4
A144: =COL_SIZES[[#This Row],[datatype]]&"_"&COL_SIZES[[#This Row],[column_prec]]&"_"&COL_SIZES[[#This Row],[col_len]] -> numeric_14_9 | B144: =MIN(COL_SIZES[[#This Row],[column_length]],IFERROR(VALUE(VLOOKUP(COL_SIZES[[#This Row],[table_name]]&"."&COL_SIZES[[#This Row],[column_name]],AVG_COL_SIZES[#Data],2,FALSE)),COL_SIZES[[#This Row],[column_length]])) -> 9 | C144: =VLOOKUP(A144,DBMS_TYPE_SIZES[],2,FALSE) -> 9 | D144: =VLOOKUP(A144,DBMS_TYPE_SIZES[],3,FALSE) -> 9 | E144: =VLOOKUP(A144,DBMS_TYPE_SIZES[],4,FALSE) -> 9 | F144: CONTACT_ATTEMPT_FACT | G144: RECORD_FIELD_3 | H144: numeric | I144: 14 | J144: 9
A145: =COL_SIZES[[#This Row],[datatype]]&"_"&COL_SIZES[[#This Row],[column_prec]]&"_"&COL_SIZES[[#This Row],[col_len]] -> int_10_4 | B145: =MIN(COL_SIZES[[#This Row],[column_length]],IFERROR(VALUE(VLOOKUP(COL_SIZES[[#This Row],[table_name]]&"."&COL_SIZES[[#This Row],[column_name]],AVG_COL_SIZES[#Data],2,FALSE)),COL_SIZES[[#This Row],[column_length]])) -> 4 | C145: =VLOOKUP(A145,DBMS_TYPE_SIZES[],2,FALSE) -> 9 | D145: =VLOOKUP(A145,DBMS_TYPE_SIZES[],3,FALSE) -> 4 | E145: =VLOOKUP(A145,DBMS_TYPE_SIZES[],4,FALSE) -> 9 | F145: CONTACT_ATTEMPT_FACT | G145: RECORD_FIELD_30 | H145: int | I145: 10 | J145: 4
A146: =COL_SIZES[[#This Row],[datatype]]&"_"&COL_SIZES[[#This Row],[column_prec]]&"_"&COL_SIZES[[#This Row],[col_len]] -> varchar_0_32 | B146: =MIN(COL_SIZES[[#This Row],[column_length]],IFERROR(VALUE(VLOOKUP(COL_SIZES[[#This Row],[table_name]]&"."&COL_SIZES[[#This Row],[column_name]],AVG_COL_SIZES[#Data],2,FALSE)),COL_SIZES[[#This Row],[column_length]])) -> 32 | C146: =VLOOKUP(A146,DBMS_TYPE_SIZES[],2,FALSE) -> 32 | D146: =VLOOKUP(A146,DBMS_TYPE_SIZES[],3,FALSE) -> 32 | E146: =VLOOKUP(A146,DBMS_TYPE_SIZES[],4,FALSE) -> 34 | F146: CONTACT_ATTEMPT_FACT | G146: RECORD_FIELD_31 | H146: varchar | I146: 0 | J146: 255
A147: =COL_SIZES[[#This Row],[datatype]]&"_"&COL_SIZES[[#This Row],[column_prec]]&"_"&COL_SIZES[[#This Row],[col_len]] -> varchar_0_32 | B147: =MIN(COL_SIZES[[#This Row],[column_length]],IFERROR(VALUE(VLOOKUP(COL_SIZES[[#This Row],[table_name]]&"."&COL_SIZES[[#This Row],[column_name]],AVG_COL_SIZES[#Data],2,FALSE)),COL_SIZES[[#This Row],[column_length]])) -> 32 | C147: =VLOOKUP(A147,DBMS_TYPE_SIZES[],2,FALSE) -> 32 | D147: =VLOOKUP(A147,DBMS_TYPE_SIZES[],3,FALSE) -> 32 | E147: =VLOOKUP(A147,DBMS_TYPE_SIZES[],4,FALSE) -> 34 | F147: CONTACT_ATTEMPT_FACT | G147: RECORD_FIELD_32 | H147: varchar | I147: 0 | J147: 255
A148: =COL_SIZES[[#This Row],[datatype]]&"_"&COL_SIZES[[#This Row],[column_prec]]&"_"&COL_SIZES[[#This Row],[col_len]] -> varchar_0_32 | B148: =MIN(COL_SIZES[[#This Row],[column_length]],IFERROR(VALUE(VLOOKUP(COL_SIZES[[#This Row],[table_name]]&"."&COL_SIZES[[#This Row],[column_name]],AVG_COL_SIZES[#Data],2,FALSE)),COL_SIZES[[#This Row],[column_length]])) -> 32 | C148: =VLOOKUP(A148,DBMS_TYPE_SIZES[],2,FALSE) -> 32 | D148: =VLOOKUP(A148,DBMS_TYPE_SIZES[],3,FALSE) -> 32 | E148: =VLOOKUP(A148,DBMS_TYPE_SIZES[],4,FALSE) -> 34 | F148: CONTACT_ATTEMPT_FACT | G148: RECORD_FIELD_33 | H148: varchar | I148: 0 | J148: 255
A149: =COL_SIZES[[#This Row],[datatype]]&"_"&COL_SIZES[[#This Row],[column_prec]]&"_"&COL_SIZES[[#This Row],[col_len]] -> varchar_0_32 | B149: =MIN(COL_SIZES[[#This Row],[column_length]],IFERROR(VALUE(VLOOKUP(COL_SIZES[[#This Row],[table_name]]&"."&COL_SIZES[[#This Row],[column_name]],AVG_COL_SIZES[#Data],2,FALSE)),COL_SIZES[[#This Row],[column_length]])) -> 32 | C149: =VLOOKUP(A149,DBMS_TYPE_SIZES[],2,FALSE) -> 32 | D149: =VLOOKUP(A149,DBMS_TYPE_SIZES[],3,FALSE) -> 32 | E149: =VLOOKUP(A149,DBMS_TYPE_SIZES[],4,FALSE) -> 34 | F149: CONTACT_ATTEMPT_FACT | G149: RECORD_FIELD_34 | H149: varchar | I149: 0 | J149: 255
A150: =COL_SIZES[[#This Row],[datatype]]&"_"&COL_SIZES[[#This Row],[column_prec]]&"_"&COL_SIZES[[#This Row],[col_len]] -> varchar_0_32 | B150: =MIN(COL_SIZES[[#This Row],[column_length]],IFERROR(VALUE(VLOOKUP(COL_SIZES[[#This Row],[table_name]]&"."&COL_SIZES[[#This Row],[column_name]],AVG_COL_SIZES[#Data],2,FALSE)),COL_SIZES[[#This Row],[column_length]])) -> 32 | C150: =VLOOKUP(A150,DBMS_TYPE_SIZES[],2,FALSE) -> 32 | D150: =VLOOKUP(A150,DBMS_TYPE_SIZES[],3,FALSE) -> 32 | E150: =VLOOKUP(A150,DBMS_TYPE_SIZES[],4,FALSE) -> 34 | F150: CONTACT_ATTEMPT_FACT | G150: RECORD_FIELD_35 | H150: varchar | I150: 0 | J150: 255
A151: =COL_SIZES[[#This Row],[datatype]]&"_"&COL_SIZES[[#This Row],[column_prec]]&"_"&COL_SIZES[[#This Row],[col_len]] -> varchar_0_32 | B151: =MIN(COL_SIZES[[#This Row],[column_length]],IFERROR(VALUE(VLOOKUP(COL_SIZES[[#This Row],[table_name]]&"."&COL_SIZES[[#This Row],[column_name]],AVG_COL_SIZES[#Data],2,FALSE)),COL_SIZES[[#This Row],[column_length]])) -> 32 | C151: =VLOOKUP(A151,DBMS_TYPE_SIZES[],2,FALSE) -> 32 | D151: =VLOOKUP(A151,DBMS_TYPE_SIZES[],3,FALSE) -> 32 | E151: =VLOOKUP(A151,DBMS_TYPE_SIZES[],4,FALSE) -> 34 | F151: CONTACT_ATTEMPT_FACT | G151: RECORD_FIELD_36 | H151: varchar | I151: 0 | J151: 255
A152: =COL_SIZES[[#This Row],[datatype]]&"_"&COL_SIZES[[#This Row],[column_prec]]&"_"&COL_SIZES[[#This Row],[col_len]] -> varchar_0_32 | B152: =MIN(COL_SIZES[[#This Row],[column_length]],IFERROR(VALUE(VLOOKUP(COL_SIZES[[#This Row],[table_name]]&"."&COL_SIZES[[#This Row],[column_name]],AVG_COL_SIZES[#Data],2,FALSE)),COL_SIZES[[#This Row],[column_length]])) -> 32 | C152: =VLOOKUP(A152,DBMS_TYPE_SIZES[],2,FALSE) -> 32 | D152: =VLOOKUP(A152,DBMS_TYPE_SIZES[],3,FALSE) -> 32 | E152: =VLOOKUP(A152,DBMS_TYPE_SIZES[],4,FALSE) -> 34 | F152: CONTACT_ATTEMPT_FACT | G152: RECORD_FIELD_37 | H152: varchar | I152: 0 | J152: 255
A153: =COL_SIZES[[#This Row],[datatype]]&"_"&COL_SIZES[[#This Row],[column_prec]]&"_"&COL_SIZES[[#This Row],[col_len]] -> varchar_0_32 | B153: =MIN(COL_SIZES[[#This Row],[column_length]],IFERROR(VALUE(VLOOKUP(COL_SIZES[[#This Row],[table_name]]&"."&COL_SIZES[[#This Row],[column_name]],AVG_COL_SIZES[#Data],2,FALSE)),COL_SIZES[[#This Row],[column_length]])) -> 32 | C153: =VLOOKUP(A153,DBMS_TYPE_SIZES[],2,FALSE) -> 32 | D153: =VLOOKUP(A153,DBMS_TYPE_SIZES[],3,FALSE) -> 32 | E153: =VLOOKUP(A153,DBMS_TYPE_SIZES[],4,FALSE) -> 34 | F153: CONTACT_ATTEMPT_FACT | G153: RECORD_FIELD_38 | H153: varchar | I153: 0 | J153: 255
A154: =COL_SIZES[[#This Row],[datatype]]&"_"&COL_SIZES[[#This Row],[column_prec]]&"_"&COL_SIZES[[#This Row],[col_len]] -> varchar_0_32 | B154: =MIN(COL_SIZES[[#This Row],[column_length]],IFERROR(VALUE(VLOOKUP(COL_SIZES[[#This Row],[table_name]]&"."&COL_SIZES[[#This Row],[column_name]],AVG_COL_SIZES[#Data],2,FALSE)),COL_SIZES[[#This Row],[column_length]])) -> 32 | C154: =VLOOKUP(A154,DBMS_TYPE_SIZES[],2,FALSE) -> 32 | D154: =VLOOKUP(A154,DBMS_TYPE_SIZES[],3,FALSE) -> 32 | E154: =VLOOKUP(A154,DBMS_TYPE_SIZES[],4,FALSE) -> 34 | F154: CONTACT_ATTEMPT_FACT | G154: RECORD_FIELD_39 | H154: varchar | I154: 0 | J154: 255
A155: =COL_SIZES[[#This Row],[datatype]]&"_"&COL_SIZES[[#This Row],[column_prec]]&"_"&COL_SIZES[[#This Row],[col_len]] -> numeric_14_9 | B155: =MIN(COL_SIZES[[#This Row],[column_length]],IFERROR(VALUE(VLOOKUP(COL_SIZES[[#This Row],[table_name]]&"."&COL_SIZES[[#This Row],[column_name]],AVG_COL_SIZES[#Data],2,FALSE)),COL_SIZES[[#This Row],[column_length]])) -> 9 | C155: =VLOOKUP(A155,DBMS_TYPE_SIZES[],2,FALSE) -> 9 | D155: =VLOOKUP(A155,DBMS_TYPE_SIZES[],3,FALSE) -> 9 | E155: =VLOOKUP(A155,DBMS_TYPE_SIZES[],4,FALSE) -> 9 | F155: CONTACT_ATTEMPT_FACT | G155: RECORD_FIELD_4 | H155: numeric | I155: 14 | J155: 9
A156: =COL_SIZES[[#This Row],[datatype]]&"_"&COL_SIZES[[#This Row],[column_prec]]&"_"&COL_SIZES[[#This Row],[col_len]] -> varchar_0_32 | B156: =MIN(COL_SIZES[[#This Row],[column_length]],IFERROR(VALUE(VLOOKUP(COL_SIZES[[#This Row],[table_name]]&"."&COL_SIZES[[#This Row],[column_name]],AVG_COL_SIZES[#Data],2,FALSE)),COL_SIZES[[#This Row],[column_length]])) -> 32 | C156: =VLOOKUP(A156,DBMS_TYPE_SIZES[],2,FALSE) -> 32 | D156: =VLOOKUP(A156,DBMS_TYPE_SIZES[],3,FALSE) -> 32 | E156: =VLOOKUP(A156,DBMS_TYPE_SIZES[],4,FALSE) -> 34 | F156: CONTACT_ATTEMPT_FACT | G156: RECORD_FIELD_40 | H156: varchar | I156: 0 | J156: 255
A157: =COL_SIZES[[#This Row],[datatype]]&"_"&COL_SIZES[[#This Row],[column_prec]]&"_"&COL_SIZES[[#This Row],[col_len]] -> numeric_14_9 | B157: =MIN(COL_SIZES[[#This Row],[column_length]],IFERROR(VALUE(VLOOKUP(COL_SIZES[[#This Row],[table_name]]&"."&COL_SIZES[[#This Row],[column_name]],AVG_COL_SIZES[#Data],2,FALSE)),COL_SIZES[[#This Row],[column_length]])) -> 9 | C157: =VLOOKUP(A157,DBMS_TYPE_SIZES[],2,FALSE) -> 9 | D157: =VLOOKUP(A157,DBMS_TYPE_SIZES[],3,FALSE) -> 9 | E157: =VLOOKUP(A157,DBMS_TYPE_SIZES[],4,FALSE) -> 9 | F157: CONTACT_ATTEMPT_FACT | G157: RECORD_FIELD_5 | H157: numeric | I157: 14 | J157: 9
A158: =COL_SIZES[[#This Row],[datatype]]&"_"&COL_SIZES[[#This Row],[column_prec]]&"_"&COL_SIZES[[#This Row],[col_len]] -> numeric_14_9 | B158: =MIN(COL_SIZES[[#This Row],[column_length]],IFERROR(VALUE(VLOOKUP(COL_SIZES[[#This Row],[table_name]]&"."&COL_SIZES[[#This Row],[column_name]],AVG_COL_SIZES[#Data],2,FALSE)),COL_SIZES[[#This Row],[column_length]])) -> 9 | C158: =VLOOKUP(A158,DBMS_TYPE_SIZES[],2,FALSE) -> 9 | D158: =VLOOKUP(A158,DBMS_TYPE_SIZES[],3,FALSE) -> 9 | E158: =VLOOKUP(A158,DBMS_TYPE_SIZES[],4,FALSE) -> 9 | F158: CONTACT_ATTEMPT_FACT | G158: RECORD_FIELD_6 | H158: numeric | I158: 14 | J158: 9
A159: =COL_SIZES[[#This Row],[datatype]]&"_"&COL_SIZES[[#This Row],[column_prec]]&"_"&COL_SIZES[[#This Row],[col_len]] -> numeric_14_9 | B159: =MIN(COL_SIZES[[#This Row],[column_length]],IFERROR(VALUE(VLOOKUP(COL_SIZES[[#This Row],[table_name]]&"."&COL_SIZES[[#This Row],[column_name]],AVG_COL_SIZES[#Data],2,FALSE)),COL_SIZES[[#This Row],[column_length]])) -> 9 | C159: =VLOOKUP(A159,DBMS_TYPE_SIZES[],2,FALSE) -> 9 | D159: =VLOOKUP(A159,DBMS_TYPE_SIZES[],3,FALSE) -> 9 | E159: =VLOOKUP(A159,DBMS_TYPE_SIZES[],4,FALSE) -> 9 | F159: CONTACT_ATTEMPT_FACT | G159: RECORD_FIELD_7 | H159: numeric | I159: 14 | J159: 9
A160: =COL_SIZES[[#This Row],[datatype]]&"_"&COL_SIZES[[#This Row],[column_prec]]&"_"&COL_SIZES[[#This Row],[col_len]] -> numeric_14_9 | B160: =MIN(COL_SIZES[[#This Row],[column_length]],IFERROR(VALUE(VLOOKUP(COL_SIZES[[#This Row],[table_name]]&"."&COL_SIZES[[#This Row],[column_name]],AVG_COL_SIZES[#Data],2,FALSE)),COL_SIZES[[#This Row],[column_length]])) -> 9 | C160: =VLOOKUP(A160,DBMS_TYPE_SIZES[],2,FALSE) -> 9 | D160: =VLOOKUP(A160,DBMS_TYPE_SIZES[],3,FALSE) -> 9 | E160: =VLOOKUP(A160,DBMS_TYPE_SIZES[],4,FALSE) -> 9 | F160: CONTACT_ATTEMPT_FACT | G160: RECORD_FIELD_8 | H160: numeric | I160: 14 | J160: 9
A161: =COL_SIZES[[#This Row],[datatype]]&"_"&COL_SIZES[[#This Row],[column_prec]]&"_"&COL_SIZES[[#This Row],[col_len]] -> numeric_14_9 | B161: =MIN(COL_SIZES[[#This Row],[column_length]],IFERROR(VALUE(VLOOKUP(COL_SIZES[[#This Row],[table_name]]&"."&COL_SIZES[[#This Row],[column_name]],AVG_COL_SIZES[#Data],2,FALSE)),COL_SIZES[[#This Row],[column_length]])) -> 9 | C161: =VLOOKUP(A161,DBMS_TYPE_SIZES[],2,FALSE) -> 9 | D161: =VLOOKUP(A161,DBMS_TYPE_SIZES[],3,FALSE) -> 9 | E161: =VLOOKUP(A161,DBMS_TYPE_SIZES[],4,FALSE) -> 9 | F161: CONTACT_ATTEMPT_FACT | G161: RECORD_FIELD_9 | H161: numeric | I161: 14 | J161: 9
A162: =COL_SIZES[[#This Row],[datatype]]&"_"&COL_SIZES[[#This Row],[column_prec]]&"_"&COL_SIZES[[#This Row],[col_len]] -> int_10_4 | B162: =MIN(COL_SIZES[[#This Row],[column_length]],IFERROR(VALUE(VLOOKUP(COL_SIZES[[#This Row],[table_name]]&"."&COL_SIZES[[#This Row],[column_name]],AVG_COL_SIZES[#Data],2,FALSE)),COL_SIZES[[#This Row],[column_length]])) -> 4 | C162: =VLOOKUP(A162,DBMS_TYPE_SIZES[],2,FALSE) -> 9 | D162: =VLOOKUP(A162,DBMS_TYPE_SIZES[],3,FALSE) -> 4 | E162: =VLOOKUP(A162,DBMS_TYPE_SIZES[],4,FALSE) -> 9 | F162: CONTACT_ATTEMPT_FACT | G162: RECORD_FIELD_GROUP_1_KEY | H162: int | I162: 10 | J162: 4
A163: =COL_SIZES[[#This Row],[datatype]]&"_"&COL_SIZES[[#This Row],[column_prec]]&"_"&COL_SIZES[[#This Row],[col_len]] -> int_10_4 | B163: =MIN(COL_SIZES[[#This Row],[column_length]],IFERROR(VALUE(VLOOKUP(COL_SIZES[[#This Row],[table_name]]&"."&COL_SIZES[[#This Row],[column_name]],AVG_COL_SIZES[#Data],2,FALSE)),COL_SIZES[[#This Row],[column_length]])) -> 4 | C163: =VLOOKUP(A163,DBMS_TYPE_SIZES[],2,FALSE) -> 9 | D163: =VLOOKUP(A163,DBMS_TYPE_SIZES[],3,FALSE) -> 4 | E163: =VLOOKUP(A163,DBMS_TYPE_SIZES[],4,FALSE) -> 9 | F163: CONTACT_ATTEMPT_FACT | G163: RECORD_FIELD_GROUP_2_KEY | H163: int | I163: 10 | J163: 4
A164: =COL_SIZES[[#This Row],[datatype]]&"_"&COL_SIZES[[#This Row],[column_prec]]&"_"&COL_SIZES[[#This Row],[col_len]] -> int_10_4 | B164: =MIN(COL_SIZES[[#This Row],[column_length]],IFERROR(VALUE(VLOOKUP(COL_SIZES[[#This Row],[table_name]]&"."&COL_SIZES[[#This Row],[column_name]],AVG_COL_SIZES[#Data],2,FALSE)),COL_SIZES[[#This Row],[column_length]])) -> 4 | C164: =VLOOKUP(A164,DBMS_TYPE_SIZES[],2,FALSE) -> 9 | D164: =VLOOKUP(A164,DBMS_TYPE_SIZES[],3,FALSE) -> 4 | E164: =VLOOKUP(A164,DBMS_TYPE_SIZES[],4,FALSE) -> 9 | F164: CONTACT_ATTEMPT_FACT | G164: RECORD_ID | H164: int | I164: 10 | J164: 4
A165: =COL_SIZES[[#This Row],[datatype]]&"_"&COL_SIZES[[#This Row],[column_prec]]&"_"&COL_SIZES[[#This Row],[col_len]] -> int_10_4 | B165: =MIN(COL_SIZES[[#This Row],[column_length]],IFERROR(VALUE(VLOOKUP(COL_SIZES[[#This Row],[table_name]]&"."&COL_SIZES[[#This Row],[column_name]],AVG_COL_SIZES[#Data],2,FALSE)),COL_SIZES[[#This Row],[column_length]])) -> 4 | C165: =VLOOKUP(A165,DBMS_TYPE_SIZES[],2,FALSE) -> 9 | D165: =VLOOKUP(A165,DBMS_TYPE_SIZES[],3,FALSE) -> 4 | E165: =VLOOKUP(A165,DBMS_TYPE_SIZES[],4,FALSE) -> 9 | F165: CONTACT_ATTEMPT_FACT | G165: RECORD_STATUS_KEY | H165: int | I165: 10 | J165: 4
A166: =COL_SIZES[[#This Row],[datatype]]&"_"&COL_SIZES[[#This Row],[column_prec]]&"_"&COL_SIZES[[#This Row],[col_len]] -> int_10_4 | B166: =MIN(COL_SIZES[[#This Row],[column_length]],IFERROR(VALUE(VLOOKUP(COL_SIZES[[#This Row],[table_name]]&"."&COL_SIZES[[#This Row],[column_name]],AVG_COL_SIZES[#Data],2,FALSE)),COL_SIZES[[#This Row],[column_length]])) -> 4 | C166: =VLOOKUP(A166,DBMS_TYPE_SIZES[],2,FALSE) -> 9 | D166: =VLOOKUP(A166,DBMS_TYPE_SIZES[],3,FALSE) -> 4 | E166: =VLOOKUP(A166,DBMS_TYPE_SIZES[],4,FALSE) -> 9 | F166: CONTACT_ATTEMPT_FACT | G166: RECORD_TYPE_KEY | H166: int | I166: 10 | J166: 4
A167: =COL_SIZES[[#This Row],[datatype]]&"_"&COL_SIZES[[#This Row],[column_prec]]&"_"&COL_SIZES[[#This Row],[col_len]] -> int_10_4 | B167: =MIN(COL_SIZES[[#This Row],[column_length]],IFERROR(VALUE(VLOOKUP(COL_SIZES[[#This Row],[table_name]]&"."&COL_SIZES[[#This Row],[column_name]],AVG_COL_SIZES[#Data],2,FALSE)),COL_SIZES[[#This Row],[column_length]])) -> 4 | C167: =VLOOKUP(A167,DBMS_TYPE_SIZES[],2,FALSE) -> 9 | D167: =VLOOKUP(A167,DBMS_TYPE_SIZES[],3,FALSE) -> 4 | E167: =VLOOKUP(A167,DBMS_TYPE_SIZES[],4,FALSE) -> 9 | F167: CONTACT_ATTEMPT_FACT | G167: RESOURCE_GROUP_COMBINATION_KEY | H167: int | I167: 10 | J167: 4
A168: =COL_SIZES[[#This Row],[datatype]]&"_"&COL_SIZES[[#This Row],[column_prec]]&"_"&COL_SIZES[[#This Row],[col_len]] -> int_10_4 | B168: =MIN(COL_SIZES[[#This Row],[column_length]],IFERROR(VALUE(VLOOKUP(COL_SIZES[[#This Row],[table_name]]&"."&COL_SIZES[[#This Row],[column_name]],AVG_COL_SIZES[#Data],2,FALSE)),COL_SIZES[[#This Row],[column_length]])) -> 4 | C168: =VLOOKUP(A168,DBMS_TYPE_SIZES[],2,FALSE) -> 9 | D168: =VLOOKUP(A168,DBMS_TYPE_SIZES[],3,FALSE) -> 4 | E168: =VLOOKUP(A168,DBMS_TYPE_SIZES[],4,FALSE) -> 9 | F168: CONTACT_ATTEMPT_FACT | G168: RESOURCE_KEY | H168: int | I168: 10 | J168: 4
A169: =COL_SIZES[[#This Row],[datatype]]&"_"&COL_SIZES[[#This Row],[column_prec]]&"_"&COL_SIZES[[#This Row],[col_len]] -> numeric_1_5 | B169: =MIN(COL_SIZES[[#This Row],[column_length]],IFERROR(VALUE(VLOOKUP(COL_SIZES[[#This Row],[table_name]]&"."&COL_SIZES[[#This Row],[column_name]],AVG_COL_SIZES[#Data],2,FALSE)),COL_SIZES[[#This Row],[column_length]])) -> 5 | C169: =VLOOKUP(A169,DBMS_TYPE_SIZES[],2,FALSE) -> 5 | D169: =VLOOKUP(A169,DBMS_TYPE_SIZES[],3,FALSE) -> 5 | E169: =VLOOKUP(A169,DBMS_TYPE_SIZES[],4,FALSE) -> 5 | F169: CONTACT_ATTEMPT_FACT | G169: RPC_FLAG | H169: numeric | I169: 1 | J169: 5
A170: =COL_SIZES[[#This Row],[datatype]]&"_"&COL_SIZES[[#This Row],[column_prec]]&"_"&COL_SIZES[[#This Row],[col_len]] -> int_10_4 | B170: =MIN(COL_SIZES[[#This Row],[column_length]],IFERROR(VALUE(VLOOKUP(COL_SIZES[[#This Row],[table_name]]&"."&COL_SIZES[[#This Row],[column_name]],AVG_COL_SIZES[#Data],2,FALSE)),COL_SIZES[[#This Row],[column_length]])) -> 4 | C170: =VLOOKUP(A170,DBMS_TYPE_SIZES[],2,FALSE) -> 9 | D170: =VLOOKUP(A170,DBMS_TYPE_SIZES[],3,FALSE) -> 4 | E170: =VLOOKUP(A170,DBMS_TYPE_SIZES[],4,FALSE) -> 9 | F170: CONTACT_ATTEMPT_FACT | G170: START_DATE_TIME_KEY | H170: int | I170: 10 | J170: 4
A171: =COL_SIZES[[#This Row],[datatype]]&"_"&COL_SIZES[[#This Row],[column_prec]]&"_"&COL_SIZES[[#This Row],[col_len]] -> int_10_4 | B171: =MIN(COL_SIZES[[#This Row],[column_length]],IFERROR(VALUE(VLOOKUP(COL_SIZES[[#This Row],[table_name]]&"."&COL_SIZES[[#This Row],[column_name]],AVG_COL_SIZES[#Data],2,FALSE)),COL_SIZES[[#This Row],[column_length]])) -> 4 | C171: =VLOOKUP(A171,DBMS_TYPE_SIZES[],2,FALSE) -> 9 | D171: =VLOOKUP(A171,DBMS_TYPE_SIZES[],3,FALSE) -> 4 | E171: =VLOOKUP(A171,DBMS_TYPE_SIZES[],4,FALSE) -> 9 | F171: CONTACT_ATTEMPT_FACT | G171: START_TS | H171: int | I171: 10 | J171: 4
A172: =COL_SIZES[[#This Row],[datatype]]&"_"&COL_SIZES[[#This Row],[column_prec]]&"_"&COL_SIZES[[#This Row],[col_len]] -> int_10_4 | B172: =MIN(COL_SIZES[[#This Row],[column_length]],IFERROR(VALUE(VLOOKUP(COL_SIZES[[#This Row],[table_name]]&"."&COL_SIZES[[#This Row],[column_name]],AVG_COL_SIZES[#Data],2,FALSE)),COL_SIZES[[#This Row],[column_length]])) -> 4 | C172: =VLOOKUP(A172,DBMS_TYPE_SIZES[],2,FALSE) -> 9 | D172: =VLOOKUP(A172,DBMS_TYPE_SIZES[],3,FALSE) -> 4 | E172: =VLOOKUP(A172,DBMS_TYPE_SIZES[],4,FALSE) -> 9 | F172: CONTACT_ATTEMPT_FACT | G172: TENANT_KEY | H172: int | I172: 10 | J172: 4
A173: =COL_SIZES[[#This Row],[datatype]]&"_"&COL_SIZES[[#This Row],[column_prec]]&"_"&COL_SIZES[[#This Row],[col_len]] -> int_10_4 | B173: =MIN(COL_SIZES[[#This Row],[column_length]],IFERROR(VALUE(VLOOKUP(COL_SIZES[[#This Row],[table_name]]&"."&COL_SIZES[[#This Row],[column_name]],AVG_COL_SIZES[#Data],2,FALSE)),COL_SIZES[[#This Row],[column_length]])) -> 4 | C173: =VLOOKUP(A173,DBMS_TYPE_SIZES[],2,FALSE) -> 9 | D173: =VLOOKUP(A173,DBMS_TYPE_SIZES[],3,FALSE) -> 4 | E173: =VLOOKUP(A173,DBMS_TYPE_SIZES[],4,FALSE) -> 9 | F173: CONTACT_ATTEMPT_FACT | G173: TIME_ZONE_KEY | H173: int | I173: 10 | J173: 4
A174: =COL_SIZES[[#This Row],[datatype]]&"_"&COL_SIZES[[#This Row],[column_prec]]&"_"&COL_SIZES[[#This Row],[col_len]] -> int_10_4 | B174: =MIN(COL_SIZES[[#This Row],[column_length]],IFERROR(VALUE(VLOOKUP(COL_SIZES[[#This Row],[table_name]]&"."&COL_SIZES[[#This Row],[column_name]],AVG_COL_SIZES[#Data],2,FALSE)),COL_SIZES[[#This Row],[column_length]])) -> 4 | C174: =VLOOKUP(A174,DBMS_TYPE_SIZES[],2,FALSE) -> 9 | D174: =VLOOKUP(A174,DBMS_TYPE_SIZES[],3,FALSE) -> 4 | E174: =VLOOKUP(A174,DBMS_TYPE_SIZES[],4,FALSE) -> 9 | F174: CONTACT_ATTEMPT_FACT | G174: UPDATE_AUDIT_KEY | H174: int | I174: 10 | J174: 4
A175: =COL_SIZES[[#This Row],[datatype]]&"_"&COL_SIZES[[#This Row],[column_prec]]&"_"&COL_SIZES[[#This Row],[col_len]] -> varchar_0_32 | B175: =MIN(COL_SIZES[[#This Row],[column_length]],IFERROR(VALUE(VLOOKUP(COL_SIZES[[#This Row],[table_name]]&"."&COL_SIZES[[#This Row],[column_name]],AVG_COL_SIZES[#Data],2,FALSE)),COL_SIZES[[#This Row],[column_length]])) -> 32 | C175: =VLOOKUP(A175,DBMS_TYPE_SIZES[],2,FALSE) -> 32 | D175: =VLOOKUP(A175,DBMS_TYPE_SIZES[],3,FALSE) -> 32 | E175: =VLOOKUP(A175,DBMS_TYPE_SIZES[],4,FALSE) -> 34 | F175: CONTACT_INFO_TYPE | G175: CONTACT_INFO_TYPE | H175: varchar | I175: 0 | J175: 32
A176: =COL_SIZES[[#This Row],[datatype]]&"_"&COL_SIZES[[#This Row],[column_prec]]&"_"&COL_SIZES[[#This Row],[col_len]] -> varchar_0_32 | B176: =MIN(COL_SIZES[[#This Row],[column_length]],IFERROR(VALUE(VLOOKUP(COL_SIZES[[#This Row],[table_name]]&"."&COL_SIZES[[#This Row],[column_name]],AVG_COL_SIZES[#Data],2,FALSE)),COL_SIZES[[#This Row],[column_length]])) -> 32 | C176: =VLOOKUP(A176,DBMS_TYPE_SIZES[],2,FALSE) -> 32 | D176: =VLOOKUP(A176,DBMS_TYPE_SIZES[],3,FALSE) -> 32 | E176: =VLOOKUP(A176,DBMS_TYPE_SIZES[],4,FALSE) -> 34 | F176: CONTACT_INFO_TYPE | G176: CONTACT_INFO_TYPE_CODE | H176: varchar | I176: 0 | J176: 32
A177: =COL_SIZES[[#This Row],[datatype]]&"_"&COL_SIZES[[#This Row],[column_prec]]&"_"&COL_SIZES[[#This Row],[col_len]] -> int_10_4 | B177: =MIN(COL_SIZES[[#This Row],[column_length]],IFERROR(VALUE(VLOOKUP(COL_SIZES[[#This Row],[table_name]]&"."&COL_SIZES[[#This Row],[column_name]],AVG_COL_SIZES[#Data],2,FALSE)),COL_SIZES[[#This Row],[column_length]])) -> 4 | C177: =VLOOKUP(A177,DBMS_TYPE_SIZES[],2,FALSE) -> 9 | D177: =VLOOKUP(A177,DBMS_TYPE_SIZES[],3,FALSE) -> 4 | E177: =VLOOKUP(A177,DBMS_TYPE_SIZES[],4,FALSE) -> 9 | F177: CONTACT_INFO_TYPE | G177: CONTACT_INFO_TYPE_KEY | H177: int | I177: 10 | J177: 4
A178: =COL_SIZES[[#This Row],[datatype]]&"_"&COL_SIZES[[#This Row],[column_prec]]&"_"&COL_SIZES[[#This Row],[col_len]] -> int_10_4 | B178: =MIN(COL_SIZES[[#This Row],[column_length]],IFERROR(VALUE(VLOOKUP(COL_SIZES[[#This Row],[table_name]]&"."&COL_SIZES[[#This Row],[column_name]],AVG_COL_SIZES[#Data],2,FALSE)),COL_SIZES[[#This Row],[column_length]])) -> 4 | C178: =VLOOKUP(A178,DBMS_TYPE_SIZES[],2,FALSE) -> 9 | D178: =VLOOKUP(A178,DBMS_TYPE_SIZES[],3,FALSE) -> 4 | E178: =VLOOKUP(A178,DBMS_TYPE_SIZES[],4,FALSE) -> 9 | F178: CONTACT_INFO_TYPE | G178: CREATE_AUDIT_KEY | H178: int | I178: 10 | J178: 4
A179: =COL_SIZES[[#This Row],[datatype]]&"_"&COL_SIZES[[#This Row],[column_prec]]&"_"&COL_SIZES[[#This Row],[col_len]] -> int_10_4 | B179: =MIN(COL_SIZES[[#This Row],[column_length]],IFERROR(VALUE(VLOOKUP(COL_SIZES[[#This Row],[table_name]]&"."&COL_SIZES[[#This Row],[column_name]],AVG_COL_SIZES[#Data],2,FALSE)),COL_SIZES[[#This Row],[column_length]])) -> 4 | C179: =VLOOKUP(A179,DBMS_TYPE_SIZES[],2,FALSE) -> 9 | D179: =VLOOKUP(A179,DBMS_TYPE_SIZES[],3,FALSE) -> 4 | E179: =VLOOKUP(A179,DBMS_TYPE_SIZES[],4,FALSE) -> 9 | F179: CONTACT_INFO_TYPE | G179: UPDATE_AUDIT_KEY | H179: int | I179: 10 | J179: 4
A180: =COL_SIZES[[#This Row],[datatype]]&"_"&COL_SIZES[[#This Row],[column_prec]]&"_"&COL_SIZES[[#This Row],[col_len]] -> numeric_19_9 | B180: =MIN(COL_SIZES[[#This Row],[column_length]],IFERROR(VALUE(VLOOKUP(COL_SIZES[[#This Row],[table_name]]&"."&COL_SIZES[[#This Row],[column_name]],AVG_COL_SIZES[#Data],2,FALSE)),COL_SIZES[[#This Row],[column_length]])) -> 9 | C180: =VLOOKUP(A180,DBMS_TYPE_SIZES[],2,FALSE) -> 9 | D180: =VLOOKUP(A180,DBMS_TYPE_SIZES[],3,FALSE) -> 9 | E180: =VLOOKUP(A180,DBMS_TYPE_SIZES[],4,FALSE) -> 9 | F180: CTL_AUDIT_LOG | G180: AUDIT_KEY | H180: numeric | I180: 19 | J180: 9
A181: =COL_SIZES[[#This Row],[datatype]]&"_"&COL_SIZES[[#This Row],[column_prec]]&"_"&COL_SIZES[[#This Row],[col_len]] -> datetime_23_8 | B181: =MIN(COL_SIZES[[#This Row],[column_length]],IFERROR(VALUE(VLOOKUP(COL_SIZES[[#This Row],[table_name]]&"."&COL_SIZES[[#This Row],[column_name]],AVG_COL_SIZES[#Data],2,FALSE)),COL_SIZES[[#This Row],[column_length]])) -> 8 | C181: =VLOOKUP(A181,DBMS_TYPE_SIZES[],2,FALSE) -> 7 | D181: =VLOOKUP(A181,DBMS_TYPE_SIZES[],3,FALSE) -> 8 | E181: =VLOOKUP(A181,DBMS_TYPE_SIZES[],4,FALSE) -> 10 | F181: CTL_AUDIT_LOG | G181: CREATED | H181: datetime | I181: 23 | J181: 8
A182: =COL_SIZES[[#This Row],[datatype]]&"_"&COL_SIZES[[#This Row],[column_prec]]&"_"&COL_SIZES[[#This Row],[col_len]] -> int_10_4 | B182: =MIN(COL_SIZES[[#This Row],[column_length]],IFERROR(VALUE(VLOOKUP(COL_SIZES[[#This Row],[table_name]]&"."&COL_SIZES[[#This Row],[column_name]],AVG_COL_SIZES[#Data],2,FALSE)),COL_SIZES[[#This Row],[column_length]])) -> 4 | C182: =VLOOKUP(A182,DBMS_TYPE_SIZES[],2,FALSE) -> 9 | D182: =VLOOKUP(A182,DBMS_TYPE_SIZES[],3,FALSE) -> 4 | E182: =VLOOKUP(A182,DBMS_TYPE_SIZES[],4,FALSE) -> 9 | F182: CTL_AUDIT_LOG | G182: DATA_SOURCE_KEY | H182: int | I182: 10 | J182: 4
A183: =COL_SIZES[[#This Row],[datatype]]&"_"&COL_SIZES[[#This Row],[column_prec]]&"_"&COL_SIZES[[#This Row],[col_len]] -> datetime_23_8 | B183: =MIN(COL_SIZES[[#This Row],[column_length]],IFERROR(VALUE(VLOOKUP(COL_SIZES[[#This Row],[table_name]]&"."&COL_SIZES[[#This Row],[column_name]],AVG_COL_SIZES[#Data],2,FALSE)),COL_SIZES[[#This Row],[column_length]])) -> 8 | C183: =VLOOKUP(A183,DBMS_TYPE_SIZES[],2,FALSE) -> 7 | D183: =VLOOKUP(A183,DBMS_TYPE_SIZES[],3,FALSE) -> 8 | E183: =VLOOKUP(A183,DBMS_TYPE_SIZES[],4,FALSE) -> 10 | F183: CTL_AUDIT_LOG | G183: INSERTED | H183: datetime | I183: 23 | J183: 8
A184: =COL_SIZES[[#This Row],[datatype]]&"_"&COL_SIZES[[#This Row],[column_prec]]&"_"&COL_SIZES[[#This Row],[col_len]] -> varchar_0_64 | B184: =MIN(COL_SIZES[[#This Row],[column_length]],IFERROR(VALUE(VLOOKUP(COL_SIZES[[#This Row],[table_name]]&"."&COL_SIZES[[#This Row],[column_name]],AVG_COL_SIZES[#Data],2,FALSE)),COL_SIZES[[#This Row],[column_length]])) -> 64 | C184: =VLOOKUP(A184,DBMS_TYPE_SIZES[],2,FALSE) -> 64 | D184: =VLOOKUP(A184,DBMS_TYPE_SIZES[],3,FALSE) -> 64 | E184: =VLOOKUP(A184,DBMS_TYPE_SIZES[],4,FALSE) -> 66 | F184: CTL_AUDIT_LOG | G184: JOB_ID | H184: varchar | I184: 0 | J184: 64
A185: =COL_SIZES[[#This Row],[datatype]]&"_"&COL_SIZES[[#This Row],[column_prec]]&"_"&COL_SIZES[[#This Row],[col_len]] -> int_10_4 | B185: =MIN(COL_SIZES[[#This Row],[column_length]],IFERROR(VALUE(VLOOKUP(COL_SIZES[[#This Row],[table_name]]&"."&COL_SIZES[[#This Row],[column_name]],AVG_COL_SIZES[#Data],2,FALSE)),COL_SIZES[[#This Row],[column_length]])) -> 4 | C185: =VLOOKUP(A185,DBMS_TYPE_SIZES[],2,FALSE) -> 9 | D185: =VLOOKUP(A185,DBMS_TYPE_SIZES[],3,FALSE) -> 4 | E185: =VLOOKUP(A185,DBMS_TYPE_SIZES[],4,FALSE) -> 9 | F185: CTL_AUDIT_LOG | G185: MAX_CHUNK_TS | H185: int | I185: 10 | J185: 4
A186: =COL_SIZES[[#This Row],[datatype]]&"_"&COL_SIZES[[#This Row],[column_prec]]&"_"&COL_SIZES[[#This Row],[col_len]] -> int_10_4 | B186: =MIN(COL_SIZES[[#This Row],[column_length]],IFERROR(VALUE(VLOOKUP(COL_SIZES[[#This Row],[table_name]]&"."&COL_SIZES[[#This Row],[column_name]],AVG_COL_SIZES[#Data],2,FALSE)),COL_SIZES[[#This Row],[column_length]])) -> 4 | C186: =VLOOKUP(A186,DBMS_TYPE_SIZES[],2,FALSE) -> 9 | D186: =VLOOKUP(A186,DBMS_TYPE_SIZES[],3,FALSE) -> 4 | E186: =VLOOKUP(A186,DBMS_TYPE_SIZES[],4,FALSE) -> 9 | F186: CTL_AUDIT_LOG | G186: MAX_START_DATE_TIME_KEY | H186: int | I186: 10 | J186: 4
A187: =COL_SIZES[[#This Row],[datatype]]&"_"&COL_SIZES[[#This Row],[column_prec]]&"_"&COL_SIZES[[#This Row],[col_len]] -> int_10_4 | B187: =MIN(COL_SIZES[[#This Row],[column_length]],IFERROR(VALUE(VLOOKUP(COL_SIZES[[#This Row],[table_name]]&"."&COL_SIZES[[#This Row],[column_name]],AVG_COL_SIZES[#Data],2,FALSE)),COL_SIZES[[#This Row],[column_length]])) -> 4 | C187: =VLOOKUP(A187,DBMS_TYPE_SIZES[],2,FALSE) -> 9 | D187: =VLOOKUP(A187,DBMS_TYPE_SIZES[],3,FALSE) -> 4 | E187: =VLOOKUP(A187,DBMS_TYPE_SIZES[],4,FALSE) -> 9 | F187: CTL_AUDIT_LOG | G187: MIN_START_DATE_TIME_KEY | H187: int | I187: 10 | J187: 4
A188: =COL_SIZES[[#This Row],[datatype]]&"_"&COL_SIZES[[#This Row],[column_prec]]&"_"&COL_SIZES[[#This Row],[col_len]] -> int_10_4 | B188: =MIN(COL_SIZES[[#This Row],[column_length]],IFERROR(VALUE(VLOOKUP(COL_SIZES[[#This Row],[table_name]]&"."&COL_SIZES[[#This Row],[column_name]],AVG_COL_SIZES[#Data],2,FALSE)),COL_SIZES[[#This Row],[column_length]])) -> 4 | C188: =VLOOKUP(A188,DBMS_TYPE_SIZES[],2,FALSE) -> 9 | D188: =VLOOKUP(A188,DBMS_TYPE_SIZES[],3,FALSE) -> 4 | E188: =VLOOKUP(A188,DBMS_TYPE_SIZES[],4,FALSE) -> 9 | F188: CTL_AUDIT_LOG | G188: PROCESSING_STATUS_KEY | H188: int | I188: 10 | J188: 4
A189: =COL_SIZES[[#This Row],[datatype]]&"_"&COL_SIZES[[#This Row],[column_prec]]&"_"&COL_SIZES[[#This Row],[col_len]] -> int_10_4 | B189: =MIN(COL_SIZES[[#This Row],[column_length]],IFERROR(VALUE(VLOOKUP(COL_SIZES[[#This Row],[table_name]]&"."&COL_SIZES[[#This Row],[column_name]],AVG_COL_SIZES[#Data],2,FALSE)),COL_SIZES[[#This Row],[column_length]])) -> 4 | C189: =VLOOKUP(A189,DBMS_TYPE_SIZES[],2,FALSE) -> 9 | D189: =VLOOKUP(A189,DBMS_TYPE_SIZES[],3,FALSE) -> 4 | E189: =VLOOKUP(A189,DBMS_TYPE_SIZES[],4,FALSE) -> 9 | F189: CTL_AUDIT_LOG | G189: ROW_COUNT | H189: int | I189: 10 | J189: 4
A190: =COL_SIZES[[#This Row],[datatype]]&"_"&COL_SIZES[[#This Row],[column_prec]]&"_"&COL_SIZES[[#This Row],[col_len]] -> numeric_19_9 | B190: =MIN(COL_SIZES[[#This Row],[column_length]],IFERROR(VALUE(VLOOKUP(COL_SIZES[[#This Row],[table_name]]&"."&COL_SIZES[[#This Row],[column_name]],AVG_COL_SIZES[#Data],2,FALSE)),COL_SIZES[[#This Row],[column_length]])) -> 9 | C190: =VLOOKUP(A190,DBMS_TYPE_SIZES[],2,FALSE) -> 9 | D190: =VLOOKUP(A190,DBMS_TYPE_SIZES[],3,FALSE) -> 9 | E190: =VLOOKUP(A190,DBMS_TYPE_SIZES[],4,FALSE) -> 9 | F190: CTL_AUDIT_LOG_KEY | G190: AUDIT_KEY | H190: numeric | I190: 19 | J190: 9
A191: =COL_SIZES[[#This Row],[datatype]]&"_"&COL_SIZES[[#This Row],[column_prec]]&"_"&COL_SIZES[[#This Row],[col_len]] -> numeric_1_5 | B191: =MIN(COL_SIZES[[#This Row],[column_length]],IFERROR(VALUE(VLOOKUP(COL_SIZES[[#This Row],[table_name]]&"."&COL_SIZES[[#This Row],[column_name]],AVG_COL_SIZES[#Data],2,FALSE)),COL_SIZES[[#This Row],[column_length]])) -> 5 | C191: =VLOOKUP(A191,DBMS_TYPE_SIZES[],2,FALSE) -> 5 | D191: =VLOOKUP(A191,DBMS_TYPE_SIZES[],3,FALSE) -> 5 | E191: =VLOOKUP(A191,DBMS_TYPE_SIZES[],4,FALSE) -> 5 | F191: CTL_DS | G191: ACTIVE_FLAG | H191: numeric | I191: 1 | J191: 5
A192: =COL_SIZES[[#This Row],[datatype]]&"_"&COL_SIZES[[#This Row],[column_prec]]&"_"&COL_SIZES[[#This Row],[col_len]] -> int_10_4 | B192: =MIN(COL_SIZES[[#This Row],[column_length]],IFERROR(VALUE(VLOOKUP(COL_SIZES[[#This Row],[table_name]]&"."&COL_SIZES[[#This Row],[column_name]],AVG_COL_SIZES[#Data],2,FALSE)),COL_SIZES[[#This Row],[column_length]])) -> 4 | C192: =VLOOKUP(A192,DBMS_TYPE_SIZES[],2,FALSE) -> 9 | D192: =VLOOKUP(A192,DBMS_TYPE_SIZES[],3,FALSE) -> 4 | E192: =VLOOKUP(A192,DBMS_TYPE_SIZES[],4,FALSE) -> 9 | F192: CTL_DS | G192: CREATED_TS | H192: int | I192: 10 | J192: 4
A193: =COL_SIZES[[#This Row],[datatype]]&"_"&COL_SIZES[[#This Row],[column_prec]]&"_"&COL_SIZES[[#This Row],[col_len]] -> int_10_4 | B193: =MIN(COL_SIZES[[#This Row],[column_length]],IFERROR(VALUE(VLOOKUP(COL_SIZES[[#This Row],[table_name]]&"."&COL_SIZES[[#This Row],[column_name]],AVG_COL_SIZES[#Data],2,FALSE)),COL_SIZES[[#This Row],[column_length]])) -> 4 | C193: =VLOOKUP(A193,DBMS_TYPE_SIZES[],2,FALSE) -> 9 | D193: =VLOOKUP(A193,DBMS_TYPE_SIZES[],3,FALSE) -> 4 | E193: =VLOOKUP(A193,DBMS_TYPE_SIZES[],4,FALSE) -> 9 | F193: CTL_DS | G193: DATA_SOURCE_KEY | H193: int | I193: 10 | J193: 4
A194: =COL_SIZES[[#This Row],[datatype]]&"_"&COL_SIZES[[#This Row],[column_prec]]&"_"&COL_SIZES[[#This Row],[col_len]] -> int_10_4 | B194: =MIN(COL_SIZES[[#This Row],[column_length]],IFERROR(VALUE(VLOOKUP(COL_SIZES[[#This Row],[table_name]]&"."&COL_SIZES[[#This Row],[column_name]],AVG_COL_SIZES[#Data],2,FALSE)),COL_SIZES[[#This Row],[column_length]])) -> 4 | C194: =VLOOKUP(A194,DBMS_TYPE_SIZES[],2,FALSE) -> 9 | D194: =VLOOKUP(A194,DBMS_TYPE_SIZES[],3,FALSE) -> 4 | E194: =VLOOKUP(A194,DBMS_TYPE_SIZES[],4,FALSE) -> 9 | F194: CTL_DS | G194: DS_DBID | H194: int | I194: 10 | J194: 4
A195: =COL_SIZES[[#This Row],[datatype]]&"_"&COL_SIZES[[#This Row],[column_prec]]&"_"&COL_SIZES[[#This Row],[col_len]] -> int_10_4 | B195: =MIN(COL_SIZES[[#This Row],[column_length]],IFERROR(VALUE(VLOOKUP(COL_SIZES[[#This Row],[table_name]]&"."&COL_SIZES[[#This Row],[column_name]],AVG_COL_SIZES[#Data],2,FALSE)),COL_SIZES[[#This Row],[column_length]])) -> 4 | C195: =VLOOKUP(A195,DBMS_TYPE_SIZES[],2,FALSE) -> 9 | D195: =VLOOKUP(A195,DBMS_TYPE_SIZES[],3,FALSE) -> 4 | E195: =VLOOKUP(A195,DBMS_TYPE_SIZES[],4,FALSE) -> 9 | F195: CTL_DS | G195: DS_DBID_PRIM | H195: int | I195: 10 | J195: 4
A196: =COL_SIZES[[#This Row],[datatype]]&"_"&COL_SIZES[[#This Row],[column_prec]]&"_"&COL_SIZES[[#This Row],[col_len]] -> int_10_4 | B196: =MIN(COL_SIZES[[#This Row],[column_length]],IFERROR(VALUE(VLOOKUP(COL_SIZES[[#This Row],[table_name]]&"."&COL_SIZES[[#This Row],[column_name]],AVG_COL_SIZES[#Data],2,FALSE)),COL_SIZES[[#This Row],[column_length]])) -> 4 | C196: =VLOOKUP(A196,DBMS_TYPE_SIZES[],2,FALSE) -> 9 | D196: =VLOOKUP(A196,DBMS_TYPE_SIZES[],3,FALSE) -> 4 | E196: =VLOOKUP(A196,DBMS_TYPE_SIZES[],4,FALSE) -> 9 | F196: CTL_DS | G196: DS_TYPE | H196: int | I196: 10 | J196: 4
A197: =COL_SIZES[[#This Row],[datatype]]&"_"&COL_SIZES[[#This Row],[column_prec]]&"_"&COL_SIZES[[#This Row],[col_len]] -> int_10_4 | B197: =MIN(COL_SIZES[[#This Row],[column_length]],IFERROR(VALUE(VLOOKUP(COL_SIZES[[#This Row],[table_name]]&"."&COL_SIZES[[#This Row],[column_name]],AVG_COL_SIZES[#Data],2,FALSE)),COL_SIZES[[#This Row],[column_length]])) -> 4 | C197: =VLOOKUP(A197,DBMS_TYPE_SIZES[],2,FALSE) -> 9 | D197: =VLOOKUP(A197,DBMS_TYPE_SIZES[],3,FALSE) -> 4 | E197: =VLOOKUP(A197,DBMS_TYPE_SIZES[],4,FALSE) -> 9 | F197: CTL_DS | G197: DS2_DBID | H197: int | I197: 10 | J197: 4
A198: =COL_SIZES[[#This Row],[datatype]]&"_"&COL_SIZES[[#This Row],[column_prec]]&"_"&COL_SIZES[[#This Row],[col_len]] -> int_10_4 | B198: =MIN(COL_SIZES[[#This Row],[column_length]],IFERROR(VALUE(VLOOKUP(COL_SIZES[[#This Row],[table_name]]&"."&COL_SIZES[[#This Row],[column_name]],AVG_COL_SIZES[#Data],2,FALSE)),COL_SIZES[[#This Row],[column_length]])) -> 4 | C198: =VLOOKUP(A198,DBMS_TYPE_SIZES[],2,FALSE) -> 9 | D198: =VLOOKUP(A198,DBMS_TYPE_SIZES[],3,FALSE) -> 4 | E198: =VLOOKUP(A198,DBMS_TYPE_SIZES[],4,FALSE) -> 9 | F198: CTL_DS | G198: UPDATED_TS | H198: int | I198: 10 | J198: 4
A199: =COL_SIZES[[#This Row],[datatype]]&"_"&COL_SIZES[[#This Row],[column_prec]]&"_"&COL_SIZES[[#This Row],[col_len]] -> int_10_4 | B199: =MIN(COL_SIZES[[#This Row],[column_length]],IFERROR(VALUE(VLOOKUP(COL_SIZES[[#This Row],[table_name]]&"."&COL_SIZES[[#This Row],[column_name]],AVG_COL_SIZES[#Data],2,FALSE)),COL_SIZES[[#This Row],[column_length]])) -> 4 | C199: =VLOOKUP(A199,DBMS_TYPE_SIZES[],2,FALSE) -> 9 | D199: =VLOOKUP(A199,DBMS_TYPE_SIZES[],3,FALSE) -> 4 | E199: =VLOOKUP(A199,DBMS_TYPE_SIZES[],4,FALSE) -> 9 | F199: CTL_ETL_HISTORY | G199: DURATION | H199: int | I199: 10 | J199: 4
A200: =COL_SIZES[[#This Row],[datatype]]&"_"&COL_SIZES[[#This Row],[column_prec]]&"_"&COL_SIZES[[#This Row],[col_len]] -> datetime_23_8 | B200: =MIN(COL_SIZES[[#This Row],[column_length]],IFERROR(VALUE(VLOOKUP(COL_SIZES[[#This Row],[table_name]]&"."&COL_SIZES[[#This Row],[column_name]],AVG_COL_SIZES[#Data],2,FALSE)),COL_SIZES[[#This Row],[column_length]])) -> 8 | C200: =VLOOKUP(A200,DBMS_TYPE_SIZES[],2,FALSE) -> 7 | D200: =VLOOKUP(A200,DBMS_TYPE_SIZES[],3,FALSE) -> 8 | E200: =VLOOKUP(A200,DBMS_TYPE_SIZES[],4,FALSE) -> 10 | F200: CTL_ETL_HISTORY | G200: GMT_END_TIME | H200: datetime | I200: 23 | J200: 8
A201: =COL_SIZES[[#This Row],[datatype]]&"_"&COL_SIZES[[#This Row],[column_prec]]&"_"&COL_SIZES[[#This Row],[col_len]] -> datetime_23_8 | B201: =MIN(COL_SIZES[[#This Row],[column_length]],IFERROR(VALUE(VLOOKUP(COL_SIZES[[#This Row],[table_name]]&"."&COL_SIZES[[#This Row],[column_name]],AVG_COL_SIZES[#Data],2,FALSE)),COL_SIZES[[#This Row],[column_length]])) -> 8 | C201: =VLOOKUP(A201,DBMS_TYPE_SIZES[],2,FALSE) -> 7 | D201: =VLOOKUP(A201,DBMS_TYPE_SIZES[],3,FALSE) -> 8 | E201: =VLOOKUP(A201,DBMS_TYPE_SIZES[],4,FALSE) -> 10 | F201: CTL_ETL_HISTORY | G201: GMT_START_TIME | H201: datetime | I201: 23 | J201: 8
... 3756 more rows

Sheet AVG_COL_SIZES (hidden)
B2: full_name | C2: avg | D2: table_name | E2: column_name
B3: =[table_name]&"."&[column_name] -> CONTACT_ATTEMPT_FACT.RECORD_FIELD_31 | C3: =Average_Custom_Attached_Data_Length -> 32 | D3: CONTACT_ATTEMPT_FACT | E3: RECORD_FIELD_31
B4: =[table_name]&"."&[column_name] -> CONTACT_ATTEMPT_FACT.RECORD_FIELD_32 | C4: 32 | D4: CONTACT_ATTEMPT_FACT | E4: RECORD_FIELD_32
B5: =[table_name]&"."&[column_name] -> CONTACT_ATTEMPT_FACT.RECORD_FIELD_33 | C5: 32 | D5: CONTACT_ATTEMPT_FACT | E5: RECORD_FIELD_33
B6: =[table_name]&"."&[column_name] -> CONTACT_ATTEMPT_FACT.RECORD_FIELD_34 | C6: 32 | D6: CONTACT_ATTEMPT_FACT | E6: RECORD_FIELD_34
B7: =[table_name]&"."&[column_name] -> CONTACT_ATTEMPT_FACT.RECORD_FIELD_35 | C7: 32 | D7: CONTACT_ATTEMPT_FACT | E7: RECORD_FIELD_35
B8: =[table_name]&"."&[column_name] -> CONTACT_ATTEMPT_FACT.RECORD_FIELD_36 | C8: 32 | D8: CONTACT_ATTEMPT_FACT | E8: RECORD_FIELD_36
B9: =[table_name]&"."&[column_name] -> CONTACT_ATTEMPT_FACT.RECORD_FIELD_37 | C9: 32 | D9: CONTACT_ATTEMPT_FACT | E9: RECORD_FIELD_37
B10: =[table_name]&"."&[column_name] -> CONTACT_ATTEMPT_FACT.RECORD_FIELD_38 | C10: 32 | D10: CONTACT_ATTEMPT_FACT | E10: RECORD_FIELD_38
B11: =[table_name]&"."&[column_name] -> CONTACT_ATTEMPT_FACT.RECORD_FIELD_39 | C11: 32 | D11: CONTACT_ATTEMPT_FACT | E11: RECORD_FIELD_39
B12: =[table_name]&"."&[column_name] -> CONTACT_ATTEMPT_FACT.RECORD_FIELD_40 | C12: 32 | D12: CONTACT_ATTEMPT_FACT | E12: RECORD_FIELD_40
B13: =[table_name]&"."&[column_name] -> GIDB_G_CUSTOM_DATA_S_MM.VALUE | C13: 32 | D13: GIDB_G_CUSTOM_DATA_S_MM | E13: VALUE
B14: =[table_name]&"."&[column_name] -> GIDB_G_CUSTOM_DATA_S_V.VALUE | C14: 32 | D14: GIDB_G_CUSTOM_DATA_S_V | E14: VALUE
B15: =[table_name]&"."&[column_name] -> GIDB_G_SECURE_UD_HISTORY_MM.VALUE | C15: 32 | D15: GIDB_G_SECURE_UD_HISTORY_MM | E15: VALUE
B16: =[table_name]&"."&[column_name] -> GIDB_G_SECURE_UD_HISTORY_V.VALUE | C16: 32 | D16: GIDB_G_SECURE_UD_HISTORY_V | E16: VALUE
B17: =[table_name]&"."&[column_name] -> GIDB_G_USERDATA_HISTORY_MM.VALUE | C17: 32 | D17: GIDB_G_USERDATA_HISTORY_MM | E17: VALUE
B18: =[table_name]&"."&[column_name] -> GIDB_G_USERDATA_HISTORY_V.VALUE | C18: 32 | D18: GIDB_G_USERDATA_HISTORY_V | E18: VALUE
B19: =[table_name]&"."&[column_name] -> GIDB_GM_F_USERDATA.G_CALLED_BACK | C19: 32 | D19: GIDB_GM_F_USERDATA | E19: G_CALLED_BACK
B20: =[table_name]&"."&[column_name] -> GIDB_GM_F_USERDATA.G_FROM_ADDRESS | C20: 32 | D20: GIDB_GM_F_USERDATA | E20: G_FROM_ADDRESS
B21: =[table_name]&"."&[column_name] -> GIDB_GM_F_USERDATA.G_FROM_NAME | C21: 32 | D21: GIDB_GM_F_USERDATA | E21: G_FROM_NAME
B22: =[table_name]&"."&[column_name] -> GIDB_GM_F_USERDATA.G_RESERVED1 | C22: 32 | D22: GIDB_GM_F_USERDATA | E22: G_RESERVED1
B23: =[table_name]&"."&[column_name] -> GIDB_GM_F_USERDATA.G_RESERVED2 | C23: 32 | D23: GIDB_GM_F_USERDATA | E23: G_RESERVED2
B24: =[table_name]&"."&[column_name] -> GIDB_GM_F_USERDATA.G_RESERVED3 | C24: 32 | D24: GIDB_GM_F_USERDATA | E24: G_RESERVED3
B25: =[table_name]&"."&[column_name] -> GIDB_GM_F_USERDATA.G_RESERVED4 | C25: 32 | D25: GIDB_GM_F_USERDATA | E25: G_RESERVED4
B26: =[table_name]&"."&[column_name] -> GIDB_GM_F_USERDATA.G_SUB_TYPE | C26: 32 | D26: GIDB_GM_F_USERDATA | E26: G_SUB_TYPE
B27: =[table_name]&"."&[column_name] -> GIDB_GM_F_USERDATA.G_SUBJECT | C27: 32 | D27: GIDB_GM_F_USERDATA | E27: G_SUBJECT
B28: =[table_name]&"."&[column_name] -> GIDB_GM_L_USERDATA.G_A_ACK | C28: 32 | D28: GIDB_GM_L_USERDATA | E28: G_A_ACK
B29: =[table_name]&"."&[column_name] -> GIDB_GM_L_USERDATA.G_A_RESPONSE | C29: 32 | D29: GIDB_GM_L_USERDATA | E29: G_A_RESPONSE
B30: =[table_name]&"."&[column_name] -> GIDB_GM_L_USERDATA.G_RESERVED1 | C30: 32 | D30: GIDB_GM_L_USERDATA | E30: G_RESERVED1
B31: =[table_name]&"."&[column_name] -> GIDB_GM_L_USERDATA.G_RESERVED2 | C31: 32 | D31: GIDB_GM_L_USERDATA | E31: G_RESERVED2
B32: =[table_name]&"."&[column_name] -> GIDB_GM_L_USERDATA.G_S_RESPONSE | C32: 32 | D32: GIDB_GM_L_USERDATA | E32: G_S_RESPONSE
B33: =[table_name]&"."&[column_name] -> GIDB_GM_L_USERDATA.G_UCS_CONTACT_ID | C33: 32 | D33: GIDB_GM_L_USERDATA | E33: G_UCS_CONTACT_ID
B34: =[table_name]&"."&[column_name] -> IRF_USER_DATA_CUST_1.CUSTOM_DATA_1 | C34: 32 | D34: IRF_USER_DATA_CUST_1 | E34: CUSTOM_DATA_1
B35: =[table_name]&"."&[column_name] -> IRF_USER_DATA_CUST_1.CUSTOM_DATA_10 | C35: =Average_Custom_Attached_Data_Length -> 32 | D35: IRF_USER_DATA_CUST_1 | E35: CUSTOM_DATA_10
B36: =[table_name]&"."&[column_name] -> IRF_USER_DATA_CUST_1.CUSTOM_DATA_11 | C36: 32 | D36: IRF_USER_DATA_CUST_1 | E36: CUSTOM_DATA_11
B37: =[table_name]&"."&[column_name] -> IRF_USER_DATA_CUST_1.CUSTOM_DATA_12 | C37: 32 | D37: IRF_USER_DATA_CUST_1 | E37: CUSTOM_DATA_12
B38: =[table_name]&"."&[column_name] -> IRF_USER_DATA_CUST_1.CUSTOM_DATA_13 | C38: 32 | D38: IRF_USER_DATA_CUST_1 | E38: CUSTOM_DATA_13
B39: =[table_name]&"."&[column_name] -> IRF_USER_DATA_CUST_1.CUSTOM_DATA_14 | C39: 32 | D39: IRF_USER_DATA_CUST_1 | E39: CUSTOM_DATA_14
B40: =[table_name]&"."&[column_name] -> IRF_USER_DATA_CUST_1.CUSTOM_DATA_15 | C40: 32 | D40: IRF_USER_DATA_CUST_1 | E40: CUSTOM_DATA_15
B41: =[table_name]&"."&[column_name] -> IRF_USER_DATA_CUST_1.CUSTOM_DATA_16 | C41: 32 | D41: IRF_USER_DATA_CUST_1 | E41: CUSTOM_DATA_16
B42: =[table_name]&"."&[column_name] -> IRF_USER_DATA_CUST_1.CUSTOM_DATA_2 | C42: 32 | D42: IRF_USER_DATA_CUST_1 | E42: CUSTOM_DATA_2
B43: =[table_name]&"."&[column_name] -> IRF_USER_DATA_CUST_1.CUSTOM_DATA_3 | C43: 32 | D43: IRF_USER_DATA_CUST_1 | E43: CUSTOM_DATA_3
B44: =[table_name]&"."&[column_name] -> IRF_USER_DATA_CUST_1.CUSTOM_DATA_4 | C44: 32 | D44: IRF_USER_DATA_CUST_1 | E44: CUSTOM_DATA_4
B45: =[table_name]&"."&[column_name] -> IRF_USER_DATA_CUST_1.CUSTOM_DATA_5 | C45: 32 | D45: IRF_USER_DATA_CUST_1 | E45: CUSTOM_DATA_5
B46: =[table_name]&"."&[column_name] -> IRF_USER_DATA_CUST_1.CUSTOM_DATA_6 | C46: 32 | D46: IRF_USER_DATA_CUST_1 | E46: CUSTOM_DATA_6
B47: =[table_name]&"."&[column_name] -> IRF_USER_DATA_CUST_1.CUSTOM_DATA_7 | C47: 32 | D47: IRF_USER_DATA_CUST_1 | E47: CUSTOM_DATA_7
B48: =[table_name]&"."&[column_name] -> IRF_USER_DATA_CUST_1.CUSTOM_DATA_8 | C48: 32 | D48: IRF_USER_DATA_CUST_1 | E48: CUSTOM_DATA_8
B49: =[table_name]&"."&[column_name] -> IRF_USER_DATA_CUST_1.CUSTOM_DATA_9 | C49: 32 | D49: IRF_USER_DATA_CUST_1 | E49: CUSTOM_DATA_9
B50: =[table_name]&"."&[column_name] -> IRF_USER_DATA_GEN_1.CASE_ID | C50: 32 | D50: IRF_USER_DATA_GEN_1 | E50: CASE_ID
B51: =[table_name]&"."&[column_name] -> IRF_USER_DATA_GEN_1.CUSTOMER_ID | C51: 32 | D51: IRF_USER_DATA_GEN_1 | E51: CUSTOMER_ID
B52: =[table_name]&"."&[column_name] -> IRF_USER_DATA_GEN_1.SERVICE_OBJECTIVE | C52: 32 | D52: IRF_USER_DATA_GEN_1 | E52: SERVICE_OBJECTIVE
B53: =[table_name]&"."&[column_name] -> RECORD_FIELD_GROUP_1.RECORD_FIELD_1_STRING_1 | C53: 32 | D53: RECORD_FIELD_GROUP_1 | E53: RECORD_FIELD_1_STRING_1
B54: =[table_name]&"."&[column_name] -> RECORD_FIELD_GROUP_1.RECORD_FIELD_1_STRING_10 | C54: 32 | D54: RECORD_FIELD_GROUP_1 | E54: RECORD_FIELD_1_STRING_10
B55: =[table_name]&"."&[column_name] -> RECORD_FIELD_GROUP_1.RECORD_FIELD_1_STRING_2 | C55: 32 | D55: RECORD_FIELD_GROUP_1 | E55: RECORD_FIELD_1_STRING_2
B56: =[table_name]&"."&[column_name] -> RECORD_FIELD_GROUP_1.RECORD_FIELD_1_STRING_3 | C56: 32 | D56: RECORD_FIELD_GROUP_1 | E56: RECORD_FIELD_1_STRING_3
B57: =[table_name]&"."&[column_name] -> RECORD_FIELD_GROUP_1.RECORD_FIELD_1_STRING_4 | C57: 32 | D57: RECORD_FIELD_GROUP_1 | E57: RECORD_FIELD_1_STRING_4
B58: =[table_name]&"."&[column_name] -> RECORD_FIELD_GROUP_1.RECORD_FIELD_1_STRING_5 | C58: 32 | D58: RECORD_FIELD_GROUP_1 | E58: RECORD_FIELD_1_STRING_5
B59: =[table_name]&"."&[column_name] -> RECORD_FIELD_GROUP_1.RECORD_FIELD_1_STRING_6 | C59: 32 | D59: RECORD_FIELD_GROUP_1 | E59: RECORD_FIELD_1_STRING_6
B60: =[table_name]&"."&[column_name] -> RECORD_FIELD_GROUP_1.RECORD_FIELD_1_STRING_7 | C60: 32 | D60: RECORD_FIELD_GROUP_1 | E60: RECORD_FIELD_1_STRING_7
B61: =[table_name]&"."&[column_name] -> RECORD_FIELD_GROUP_1.RECORD_FIELD_1_STRING_8 | C61: 32 | D61: RECORD_FIELD_GROUP_1 | E61: RECORD_FIELD_1_STRING_8
B62: =[table_name]&"."&[column_name] -> RECORD_FIELD_GROUP_1.RECORD_FIELD_1_STRING_9 | C62: 32 | D62: RECORD_FIELD_GROUP_1 | E62: RECORD_FIELD_1_STRING_9
B63: =[table_name]&"."&[column_name] -> RECORD_FIELD_GROUP_2.RECORD_FIELD_2_STRING_1 | C63: 32 | D63: RECORD_FIELD_GROUP_2 | E63: RECORD_FIELD_2_STRING_1
B64: =[table_name]&"."&[column_name] -> RECORD_FIELD_GROUP_2.RECORD_FIELD_2_STRING_10 | C64: 32 | D64: RECORD_FIELD_GROUP_2 | E64: RECORD_FIELD_2_STRING_10
B65: =[table_name]&"."&[column_name] -> RECORD_FIELD_GROUP_2.RECORD_FIELD_2_STRING_2 | C65: 32 | D65: RECORD_FIELD_GROUP_2 | E65: RECORD_FIELD_2_STRING_2
B66: =[table_name]&"."&[column_name] -> RECORD_FIELD_GROUP_2.RECORD_FIELD_2_STRING_3 | C66: 32 | D66: RECORD_FIELD_GROUP_2 | E66: RECORD_FIELD_2_STRING_3
B67: =[table_name]&"."&[column_name] -> RECORD_FIELD_GROUP_2.RECORD_FIELD_2_STRING_4 | C67: =Average_Custom_Attached_Data_Length -> 32 | D67: RECORD_FIELD_GROUP_2 | E67: RECORD_FIELD_2_STRING_4
B68: =[table_name]&"."&[column_name] -> RECORD_FIELD_GROUP_2.RECORD_FIELD_2_STRING_5 | C68: 32 | D68: RECORD_FIELD_GROUP_2 | E68: RECORD_FIELD_2_STRING_5
B69: =[table_name]&"."&[column_name] -> RECORD_FIELD_GROUP_2.RECORD_FIELD_2_STRING_6 | C69: 32 | D69: RECORD_FIELD_GROUP_2 | E69: RECORD_FIELD_2_STRING_6
B70: =[table_name]&"."&[column_name] -> RECORD_FIELD_GROUP_2.RECORD_FIELD_2_STRING_7 | C70: 32 | D70: RECORD_FIELD_GROUP_2 | E70: RECORD_FIELD_2_STRING_7
B71: =[table_name]&"."&[column_name] -> RECORD_FIELD_GROUP_2.RECORD_FIELD_2_STRING_8 | C71: 32 | D71: RECORD_FIELD_GROUP_2 | E71: RECORD_FIELD_2_STRING_8
B72: =[table_name]&"."&[column_name] -> RECORD_FIELD_GROUP_2.RECORD_FIELD_2_STRING_9 | C72: 32 | D72: RECORD_FIELD_GROUP_2 | E72: RECORD_FIELD_2_STRING_9

Sheet DBMS_TYPE_SIZES (hidden)
A1: DataType | B1: Oracle | C1: MSSQL | D1: DB2 | E1: i
A2: int_10_4 | B2: 9 | C2: 4 | D2: 9
A3: smallint_5_2 | B3: 5 | C3: 2 | D3: 5
A4: bigint_19_8 | B4: 9 | C4: 8 | D4: 9
A5: numeric_1_5 | B5: 5 | C5: 5 | D5: 5
A6: numeric_10_9 | B6: 9 | C6: 9 | D6: 9
A7: numeric_14_9 | B7: 9 | C7: 9 | D7: 9
A8: numeric_18_9 | B8: 9 | C8: 9 | D8: 9
A9: numeric_16_9 | B9: 9 | C9: 9 | D9: 9
A10: numeric_19_9 | B10: 9 | C10: 9 | D10: 9
A11: numeric_20_13 | B11: 15 | C11: 13 | D11: 15
A12: datetime_23_8 | B12: 7 | C12: 8 | D12: 10
A13: ="varchar_0_"&DBMS_TYPE_SIZES[[#This Row],[i]] -> varchar_0_0 | B13: =DBMS_TYPE_SIZES[[#This Row],[i]] -> 0 | C13: =DBMS_TYPE_SIZES[[#This Row],[i]] -> 0 | D13: =DBMS_TYPE_SIZES[[#This Row],[i]]+2 -> 2 | E13: 0
A14: ="varchar_0_"&DBMS_TYPE_SIZES[[#This Row],[i]] -> varchar_0_1 | B14: =DBMS_TYPE_SIZES[[#This Row],[i]] -> 1 | C14: =DBMS_TYPE_SIZES[[#This Row],[i]] -> 1 | D14: =DBMS_TYPE_SIZES[[#This Row],[i]]+2 -> 3 | E14: 1
A15: ="varchar_0_"&DBMS_TYPE_SIZES[[#This Row],[i]] -> varchar_0_2 | B15: =DBMS_TYPE_SIZES[[#This Row],[i]] -> 2 | C15: =DBMS_TYPE_SIZES[[#This Row],[i]] -> 2 | D15: =DBMS_TYPE_SIZES[[#This Row],[i]]+2 -> 4 | E15: 2
A16: ="varchar_0_"&DBMS_TYPE_SIZES[[#This Row],[i]] -> varchar_0_3 | B16: =DBMS_TYPE_SIZES[[#This Row],[i]] -> 3 | C16: =DBMS_TYPE_SIZES[[#This Row],[i]] -> 3 | D16: =DBMS_TYPE_SIZES[[#This Row],[i]]+2 -> 5 | E16: 3
A17: ="varchar_0_"&DBMS_TYPE_SIZES[[#This Row],[i]] -> varchar_0_4 | B17: =DBMS_TYPE_SIZES[[#This Row],[i]] -> 4 | C17: =DBMS_TYPE_SIZES[[#This Row],[i]] -> 4 | D17: =DBMS_TYPE_SIZES[[#This Row],[i]]+2 -> 6 | E17: 4
A18: ="varchar_0_"&DBMS_TYPE_SIZES[[#This Row],[i]] -> varchar_0_5 | B18: =DBMS_TYPE_SIZES[[#This Row],[i]] -> 5 | C18: =DBMS_TYPE_SIZES[[#This Row],[i]] -> 5 | D18: =DBMS_TYPE_SIZES[[#This Row],[i]]+2 -> 7 | E18: 5
A19: ="varchar_0_"&DBMS_TYPE_SIZES[[#This Row],[i]] -> varchar_0_6 | B19: =DBMS_TYPE_SIZES[[#This Row],[i]] -> 6 | C19: =DBMS_TYPE_SIZES[[#This Row],[i]] -> 6 | D19: =DBMS_TYPE_SIZES[[#This Row],[i]]+2 -> 8 | E19: 6
A20: ="varchar_0_"&DBMS_TYPE_SIZES[[#This Row],[i]] -> varchar_0_7 | B20: =DBMS_TYPE_SIZES[[#This Row],[i]] -> 7 | C20: =DBMS_TYPE_SIZES[[#This Row],[i]] -> 7 | D20: =DBMS_TYPE_SIZES[[#This Row],[i]]+2 -> 9 | E20: 7
A21: ="varchar_0_"&DBMS_TYPE_SIZES[[#This Row],[i]] -> varchar_0_8 | B21: =DBMS_TYPE_SIZES[[#This Row],[i]] -> 8 | C21: =DBMS_TYPE_SIZES[[#This Row],[i]] -> 8 | D21: =DBMS_TYPE_SIZES[[#This Row],[i]]+2 -> 10 | E21: 8
A22: ="varchar_0_"&DBMS_TYPE_SIZES[[#This Row],[i]] -> varchar_0_9 | B22: =DBMS_TYPE_SIZES[[#This Row],[i]] -> 9 | C22: =DBMS_TYPE_SIZES[[#This Row],[i]] -> 9 | D22: =DBMS_TYPE_SIZES[[#This Row],[i]]+2 -> 11 | E22: 9
A23: ="varchar_0_"&DBMS_TYPE_SIZES[[#This Row],[i]] -> varchar_0_10 | B23: =DBMS_TYPE_SIZES[[#This Row],[i]] -> 10 | C23: =DBMS_TYPE_SIZES[[#This Row],[i]] -> 10 | D23: =DBMS_TYPE_SIZES[[#This Row],[i]]+2 -> 12 | E23: 10
A24: ="varchar_0_"&DBMS_TYPE_SIZES[[#This Row],[i]] -> varchar_0_11 | B24: =DBMS_TYPE_SIZES[[#This Row],[i]] -> 11 | C24: =DBMS_TYPE_SIZES[[#This Row],[i]] -> 11 | D24: =DBMS_TYPE_SIZES[[#This Row],[i]]+2 -> 13 | E24: 11
A25: ="varchar_0_"&DBMS_TYPE_SIZES[[#This Row],[i]] -> varchar_0_12 | B25: =DBMS_TYPE_SIZES[[#This Row],[i]] -> 12 | C25: =DBMS_TYPE_SIZES[[#This Row],[i]] -> 12 | D25: =DBMS_TYPE_SIZES[[#This Row],[i]]+2 -> 14 | E25: 12
A26: ="varchar_0_"&DBMS_TYPE_SIZES[[#This Row],[i]] -> varchar_0_13 | B26: =DBMS_TYPE_SIZES[[#This Row],[i]] -> 13 | C26: =DBMS_TYPE_SIZES[[#This Row],[i]] -> 13 | D26: =DBMS_TYPE_SIZES[[#This Row],[i]]+2 -> 15 | E26: 13
A27: ="varchar_0_"&DBMS_TYPE_SIZES[[#This Row],[i]] -> varchar_0_14 | B27: =DBMS_TYPE_SIZES[[#This Row],[i]] -> 14 | C27: =DBMS_TYPE_SIZES[[#This Row],[i]] -> 14 | D27: =DBMS_TYPE_SIZES[[#This Row],[i]]+2 -> 16 | E27: 14
A28: ="varchar_0_"&DBMS_TYPE_SIZES[[#This Row],[i]] -> varchar_0_15 | B28: =DBMS_TYPE_SIZES[[#This Row],[i]] -> 15 | C28: =DBMS_TYPE_SIZES[[#This Row],[i]] -> 15 | D28: =DBMS_TYPE_SIZES[[#This Row],[i]]+2 -> 17 | E28: 15
A29: ="varchar_0_"&DBMS_TYPE_SIZES[[#This Row],[i]] -> varchar_0_16 | B29: =DBMS_TYPE_SIZES[[#This Row],[i]] -> 16 | C29: =DBMS_TYPE_SIZES[[#This Row],[i]] -> 16 | D29: =DBMS_TYPE_SIZES[[#This Row],[i]]+2 -> 18 | E29: 16
A30: ="varchar_0_"&DBMS_TYPE_SIZES[[#This Row],[i]] -> varchar_0_17 | B30: =DBMS_TYPE_SIZES[[#This Row],[i]] -> 17 | C30: =DBMS_TYPE_SIZES[[#This Row],[i]] -> 17 | D30: =DBMS_TYPE_SIZES[[#This Row],[i]]+2 -> 19 | E30: 17
A31: ="varchar_0_"&DBMS_TYPE_SIZES[[#This Row],[i]] -> varchar_0_18 | B31: =DBMS_TYPE_SIZES[[#This Row],[i]] -> 18 | C31: =DBMS_TYPE_SIZES[[#This Row],[i]] -> 18 | D31: =DBMS_TYPE_SIZES[[#This Row],[i]]+2 -> 20 | E31: 18
A32: ="varchar_0_"&DBMS_TYPE_SIZES[[#This Row],[i]] -> varchar_0_19 | B32: =DBMS_TYPE_SIZES[[#This Row],[i]] -> 19 | C32: =DBMS_TYPE_SIZES[[#This Row],[i]] -> 19 | D32: =DBMS_TYPE_SIZES[[#This Row],[i]]+2 -> 21 | E32: 19
A33: ="varchar_0_"&DBMS_TYPE_SIZES[[#This Row],[i]] -> varchar_0_20 | B33: =DBMS_TYPE_SIZES[[#This Row],[i]] -> 20 | C33: =DBMS_TYPE_SIZES[[#This Row],[i]] -> 20 | D33: =DBMS_TYPE_SIZES[[#This Row],[i]]+2 -> 22 | E33: 20
A34: ="varchar_0_"&DBMS_TYPE_SIZES[[#This Row],[i]] -> varchar_0_21 | B34: =DBMS_TYPE_SIZES[[#This Row],[i]] -> 21 | C34: =DBMS_TYPE_SIZES[[#This Row],[i]] -> 21 | D34: =DBMS_TYPE_SIZES[[#This Row],[i]]+2 -> 23 | E34: 21
A35: ="varchar_0_"&DBMS_TYPE_SIZES[[#This Row],[i]] -> varchar_0_22 | B35: =DBMS_TYPE_SIZES[[#This Row],[i]] -> 22 | C35: =DBMS_TYPE_SIZES[[#This Row],[i]] -> 22 | D35: =DBMS_TYPE_SIZES[[#This Row],[i]]+2 -> 24 | E35: 22
A36: ="varchar_0_"&DBMS_TYPE_SIZES[[#This Row],[i]] -> varchar_0_23 | B36: =DBMS_TYPE_SIZES[[#This Row],[i]] -> 23 | C36: =DBMS_TYPE_SIZES[[#This Row],[i]] -> 23 | D36: =DBMS_TYPE_SIZES[[#This Row],[i]]+2 -> 25 | E36: 23
A37: ="varchar_0_"&DBMS_TYPE_SIZES[[#This Row],[i]] -> varchar_0_24 | B37: =DBMS_TYPE_SIZES[[#This Row],[i]] -> 24 | C37: =DBMS_TYPE_SIZES[[#This Row],[i]] -> 24 | D37: =DBMS_TYPE_SIZES[[#This Row],[i]]+2 -> 26 | E37: 24
A38: ="varchar_0_"&DBMS_TYPE_SIZES[[#This Row],[i]] -> varchar_0_25 | B38: =DBMS_TYPE_SIZES[[#This Row],[i]] -> 25 | C38: =DBMS_TYPE_SIZES[[#This Row],[i]] -> 25 | D38: =DBMS_TYPE_SIZES[[#This Row],[i]]+2 -> 27 | E38: 25
A39: ="varchar_0_"&DBMS_TYPE_SIZES[[#This Row],[i]] -> varchar_0_26 | B39: =DBMS_TYPE_SIZES[[#This Row],[i]] -> 26 | C39: =DBMS_TYPE_SIZES[[#This Row],[i]] -> 26 | D39: =DBMS_TYPE_SIZES[[#This Row],[i]]+2 -> 28 | E39: 26
A40: ="varchar_0_"&DBMS_TYPE_SIZES[[#This Row],[i]] -> varchar_0_27 | B40: =DBMS_TYPE_SIZES[[#This Row],[i]] -> 27 | C40: =DBMS_TYPE_SIZES[[#This Row],[i]] -> 27 | D40: =DBMS_TYPE_SIZES[[#This Row],[i]]+2 -> 29 | E40: 27
A41: ="varchar_0_"&DBMS_TYPE_SIZES[[#This Row],[i]] -> varchar_0_28 | B41: =DBMS_TYPE_SIZES[[#This Row],[i]] -> 28 | C41: =DBMS_TYPE_SIZES[[#This Row],[i]] -> 28 | D41: =DBMS_TYPE_SIZES[[#This Row],[i]]+2 -> 30 | E41: 28
A42: ="varchar_0_"&DBMS_TYPE_SIZES[[#This Row],[i]] -> varchar_0_29 | B42: =DBMS_TYPE_SIZES[[#This Row],[i]] -> 29 | C42: =DBMS_TYPE_SIZES[[#This Row],[i]] -> 29 | D42: =DBMS_TYPE_SIZES[[#This Row],[i]]+2 -> 31 | E42: 29
A43: ="varchar_0_"&DBMS_TYPE_SIZES[[#This Row],[i]] -> varchar_0_30 | B43: =DBMS_TYPE_SIZES[[#This Row],[i]] -> 30 | C43: =DBMS_TYPE_SIZES[[#This Row],[i]] -> 30 | D43: =DBMS_TYPE_SIZES[[#This Row],[i]]+2 -> 32 | E43: 30
A44: ="varchar_0_"&DBMS_TYPE_SIZES[[#This Row],[i]] -> varchar_0_31 | B44: =DBMS_TYPE_SIZES[[#This Row],[i]] -> 31 | C44: =DBMS_TYPE_SIZES[[#This Row],[i]] -> 31 | D44: =DBMS_TYPE_SIZES[[#This Row],[i]]+2 -> 33 | E44: 31
A45: ="varchar_0_"&DBMS_TYPE_SIZES[[#This Row],[i]] -> varchar_0_32 | B45: =DBMS_TYPE_SIZES[[#This Row],[i]] -> 32 | C45: =DBMS_TYPE_SIZES[[#This Row],[i]] -> 32 | D45: =DBMS_TYPE_SIZES[[#This Row],[i]]+2 -> 34 | E45: 32
A46: ="varchar_0_"&DBMS_TYPE_SIZES[[#This Row],[i]] -> varchar_0_33 | B46: =DBMS_TYPE_SIZES[[#This Row],[i]] -> 33 | C46: =DBMS_TYPE_SIZES[[#This Row],[i]] -> 33 | D46: =DBMS_TYPE_SIZES[[#This Row],[i]]+2 -> 35 | E46: 33
A47: ="varchar_0_"&DBMS_TYPE_SIZES[[#This Row],[i]] -> varchar_0_34 | B47: =DBMS_TYPE_SIZES[[#This Row],[i]] -> 34 | C47: =DBMS_TYPE_SIZES[[#This Row],[i]] -> 34 | D47: =DBMS_TYPE_SIZES[[#This Row],[i]]+2 -> 36 | E47: 34
A48: ="varchar_0_"&DBMS_TYPE_SIZES[[#This Row],[i]] -> varchar_0_35 | B48: =DBMS_TYPE_SIZES[[#This Row],[i]] -> 35 | C48: =DBMS_TYPE_SIZES[[#This Row],[i]] -> 35 | D48: =DBMS_TYPE_SIZES[[#This Row],[i]]+2 -> 37 | E48: 35
A49: ="varchar_0_"&DBMS_TYPE_SIZES[[#This Row],[i]] -> varchar_0_36 | B49: =DBMS_TYPE_SIZES[[#This Row],[i]] -> 36 | C49: =DBMS_TYPE_SIZES[[#This Row],[i]] -> 36 | D49: =DBMS_TYPE_SIZES[[#This Row],[i]]+2 -> 38 | E49: 36
A50: ="varchar_0_"&DBMS_TYPE_SIZES[[#This Row],[i]] -> varchar_0_37 | B50: =DBMS_TYPE_SIZES[[#This Row],[i]] -> 37 | C50: =DBMS_TYPE_SIZES[[#This Row],[i]] -> 37 | D50: =DBMS_TYPE_SIZES[[#This Row],[i]]+2 -> 39 | E50: 37
A51: ="varchar_0_"&DBMS_TYPE_SIZES[[#This Row],[i]] -> varchar_0_38 | B51: =DBMS_TYPE_SIZES[[#This Row],[i]] -> 38 | C51: =DBMS_TYPE_SIZES[[#This Row],[i]] -> 38 | D51: =DBMS_TYPE_SIZES[[#This Row],[i]]+2 -> 40 | E51: 38
A52: ="varchar_0_"&DBMS_TYPE_SIZES[[#This Row],[i]] -> varchar_0_39 | B52: =DBMS_TYPE_SIZES[[#This Row],[i]] -> 39 | C52: =DBMS_TYPE_SIZES[[#This Row],[i]] -> 39 | D52: =DBMS_TYPE_SIZES[[#This Row],[i]]+2 -> 41 | E52: 39
A53: ="varchar_0_"&DBMS_TYPE_SIZES[[#This Row],[i]] -> varchar_0_40 | B53: =DBMS_TYPE_SIZES[[#This Row],[i]] -> 40 | C53: =DBMS_TYPE_SIZES[[#This Row],[i]] -> 40 | D53: =DBMS_TYPE_SIZES[[#This Row],[i]]+2 -> 42 | E53: 40
A54: ="varchar_0_"&DBMS_TYPE_SIZES[[#This Row],[i]] -> varchar_0_41 | B54: =DBMS_TYPE_SIZES[[#This Row],[i]] -> 41 | C54: =DBMS_TYPE_SIZES[[#This Row],[i]] -> 41 | D54: =DBMS_TYPE_SIZES[[#This Row],[i]]+2 -> 43 | E54: 41
A55: ="varchar_0_"&DBMS_TYPE_SIZES[[#This Row],[i]] -> varchar_0_42 | B55: =DBMS_TYPE_SIZES[[#This Row],[i]] -> 42 | C55: =DBMS_TYPE_SIZES[[#This Row],[i]] -> 42 | D55: =DBMS_TYPE_SIZES[[#This Row],[i]]+2 -> 44 | E55: 42
A56: ="varchar_0_"&DBMS_TYPE_SIZES[[#This Row],[i]] -> varchar_0_43 | B56: =DBMS_TYPE_SIZES[[#This Row],[i]] -> 43 | C56: =DBMS_TYPE_SIZES[[#This Row],[i]] -> 43 | D56: =DBMS_TYPE_SIZES[[#This Row],[i]]+2 -> 45 | E56: 43
A57: ="varchar_0_"&DBMS_TYPE_SIZES[[#This Row],[i]] -> varchar_0_44 | B57: =DBMS_TYPE_SIZES[[#This Row],[i]] -> 44 | C57: =DBMS_TYPE_SIZES[[#This Row],[i]] -> 44 | D57: =DBMS_TYPE_SIZES[[#This Row],[i]]+2 -> 46 | E57: 44
A58: ="varchar_0_"&DBMS_TYPE_SIZES[[#This Row],[i]] -> varchar_0_45 | B58: =DBMS_TYPE_SIZES[[#This Row],[i]] -> 45 | C58: =DBMS_TYPE_SIZES[[#This Row],[i]] -> 45 | D58: =DBMS_TYPE_SIZES[[#This Row],[i]]+2 -> 47 | E58: 45
A59: ="varchar_0_"&DBMS_TYPE_SIZES[[#This Row],[i]] -> varchar_0_46 | B59: =DBMS_TYPE_SIZES[[#This Row],[i]] -> 46 | C59: =DBMS_TYPE_SIZES[[#This Row],[i]] -> 46 | D59: =DBMS_TYPE_SIZES[[#This Row],[i]]+2 -> 48 | E59: 46
A60: ="varchar_0_"&DBMS_TYPE_SIZES[[#This Row],[i]] -> varchar_0_47 | B60: =DBMS_TYPE_SIZES[[#This Row],[i]] -> 47 | C60: =DBMS_TYPE_SIZES[[#This Row],[i]] -> 47 | D60: =DBMS_TYPE_SIZES[[#This Row],[i]]+2 -> 49 | E60: 47
A61: ="varchar_0_"&DBMS_TYPE_SIZES[[#This Row],[i]] -> varchar_0_48 | B61: =DBMS_TYPE_SIZES[[#This Row],[i]] -> 48 | C61: =DBMS_TYPE_SIZES[[#This Row],[i]] -> 48 | D61: =DBMS_TYPE_SIZES[[#This Row],[i]]+2 -> 50 | E61: 48
A62: ="varchar_0_"&DBMS_TYPE_SIZES[[#This Row],[i]] -> varchar_0_49 | B62: =DBMS_TYPE_SIZES[[#This Row],[i]] -> 49 | C62: =DBMS_TYPE_SIZES[[#This Row],[i]] -> 49 | D62: =DBMS_TYPE_SIZES[[#This Row],[i]]+2 -> 51 | E62: 49
A63: ="varchar_0_"&DBMS_TYPE_SIZES[[#This Row],[i]] -> varchar_0_50 | B63: =DBMS_TYPE_SIZES[[#This Row],[i]] -> 50 | C63: =DBMS_TYPE_SIZES[[#This Row],[i]] -> 50 | D63: =DBMS_TYPE_SIZES[[#This Row],[i]]+2 -> 52 | E63: 50
A64: ="varchar_0_"&DBMS_TYPE_SIZES[[#This Row],[i]] -> varchar_0_51 | B64: =DBMS_TYPE_SIZES[[#This Row],[i]] -> 51 | C64: =DBMS_TYPE_SIZES[[#This Row],[i]] -> 51 | D64: =DBMS_TYPE_SIZES[[#This Row],[i]]+2 -> 53 | E64: 51
A65: ="varchar_0_"&DBMS_TYPE_SIZES[[#This Row],[i]] -> varchar_0_52 | B65: =DBMS_TYPE_SIZES[[#This Row],[i]] -> 52 | C65: =DBMS_TYPE_SIZES[[#This Row],[i]] -> 52 | D65: =DBMS_TYPE_SIZES[[#This Row],[i]]+2 -> 54 | E65: 52
A66: ="varchar_0_"&DBMS_TYPE_SIZES[[#This Row],[i]] -> varchar_0_53 | B66: =DBMS_TYPE_SIZES[[#This Row],[i]] -> 53 | C66: =DBMS_TYPE_SIZES[[#This Row],[i]] -> 53 | D66: =DBMS_TYPE_SIZES[[#This Row],[i]]+2 -> 55 | E66: 53
A67: ="varchar_0_"&DBMS_TYPE_SIZES[[#This Row],[i]] -> varchar_0_54 | B67: =DBMS_TYPE_SIZES[[#This Row],[i]] -> 54 | C67: =DBMS_TYPE_SIZES[[#This Row],[i]] -> 54 | D67: =DBMS_TYPE_SIZES[[#This Row],[i]]+2 -> 56 | E67: 54
A68: ="varchar_0_"&DBMS_TYPE_SIZES[[#This Row],[i]] -> varchar_0_55 | B68: =DBMS_TYPE_SIZES[[#This Row],[i]] -> 55 | C68: =DBMS_TYPE_SIZES[[#This Row],[i]] -> 55 | D68: =DBMS_TYPE_SIZES[[#This Row],[i]]+2 -> 57 | E68: 55
A69: ="varchar_0_"&DBMS_TYPE_SIZES[[#This Row],[i]] -> varchar_0_56 | B69: =DBMS_TYPE_SIZES[[#This Row],[i]] -> 56 | C69: =DBMS_TYPE_SIZES[[#This Row],[i]] -> 56 | D69: =DBMS_TYPE_SIZES[[#This Row],[i]]+2 -> 58 | E69: 56
A70: ="varchar_0_"&DBMS_TYPE_SIZES[[#This Row],[i]] -> varchar_0_57 | B70: =DBMS_TYPE_SIZES[[#This Row],[i]] -> 57 | C70: =DBMS_TYPE_SIZES[[#This Row],[i]] -> 57 | D70: =DBMS_TYPE_SIZES[[#This Row],[i]]+2 -> 59 | E70: 57
A71: ="varchar_0_"&DBMS_TYPE_SIZES[[#This Row],[i]] -> varchar_0_58 | B71: =DBMS_TYPE_SIZES[[#This Row],[i]] -> 58 | C71: =DBMS_TYPE_SIZES[[#This Row],[i]] -> 58 | D71: =DBMS_TYPE_SIZES[[#This Row],[i]]+2 -> 60 | E71: 58
A72: ="varchar_0_"&DBMS_TYPE_SIZES[[#This Row],[i]] -> varchar_0_59 | B72: =DBMS_TYPE_SIZES[[#This Row],[i]] -> 59 | C72: =DBMS_TYPE_SIZES[[#This Row],[i]] -> 59 | D72: =DBMS_TYPE_SIZES[[#This Row],[i]]+2 -> 61 | E72: 59
A73: ="varchar_0_"&DBMS_TYPE_SIZES[[#This Row],[i]] -> varchar_0_60 | B73: =DBMS_TYPE_SIZES[[#This Row],[i]] -> 60 | C73: =DBMS_TYPE_SIZES[[#This Row],[i]] -> 60 | D73: =DBMS_TYPE_SIZES[[#This Row],[i]]+2 -> 62 | E73: 60
A74: ="varchar_0_"&DBMS_TYPE_SIZES[[#This Row],[i]] -> varchar_0_61 | B74: =DBMS_TYPE_SIZES[[#This Row],[i]] -> 61 | C74: =DBMS_TYPE_SIZES[[#This Row],[i]] -> 61 | D74: =DBMS_TYPE_SIZES[[#This Row],[i]]+2 -> 63 | E74: 61
A75: ="varchar_0_"&DBMS_TYPE_SIZES[[#This Row],[i]] -> varchar_0_62 | B75: =DBMS_TYPE_SIZES[[#This Row],[i]] -> 62 | C75: =DBMS_TYPE_SIZES[[#This Row],[i]] -> 62 | D75: =DBMS_TYPE_SIZES[[#This Row],[i]]+2 -> 64 | E75: 62
A76: ="varchar_0_"&DBMS_TYPE_SIZES[[#This Row],[i]] -> varchar_0_63 | B76: =DBMS_TYPE_SIZES[[#This Row],[i]] -> 63 | C76: =DBMS_TYPE_SIZES[[#This Row],[i]] -> 63 | D76: =DBMS_TYPE_SIZES[[#This Row],[i]]+2 -> 65 | E76: 63
A77: ="varchar_0_"&DBMS_TYPE_SIZES[[#This Row],[i]] -> varchar_0_64 | B77: =DBMS_TYPE_SIZES[[#This Row],[i]] -> 64 | C77: =DBMS_TYPE_SIZES[[#This Row],[i]] -> 64 | D77: =DBMS_TYPE_SIZES[[#This Row],[i]]+2 -> 66 | E77: 64
A78: ="varchar_0_"&DBMS_TYPE_SIZES[[#This Row],[i]] -> varchar_0_65 | B78: =DBMS_TYPE_SIZES[[#This Row],[i]] -> 65 | C78: =DBMS_TYPE_SIZES[[#This Row],[i]] -> 65 | D78: =DBMS_TYPE_SIZES[[#This Row],[i]]+2 -> 67 | E78: 65
A79: ="varchar_0_"&DBMS_TYPE_SIZES[[#This Row],[i]] -> varchar_0_66 | B79: =DBMS_TYPE_SIZES[[#This Row],[i]] -> 66 | C79: =DBMS_TYPE_SIZES[[#This Row],[i]] -> 66 | D79: =DBMS_TYPE_SIZES[[#This Row],[i]]+2 -> 68 | E79: 66
A80: ="varchar_0_"&DBMS_TYPE_SIZES[[#This Row],[i]] -> varchar_0_67 | B80: =DBMS_TYPE_SIZES[[#This Row],[i]] -> 67 | C80: =DBMS_TYPE_SIZES[[#This Row],[i]] -> 67 | D80: =DBMS_TYPE_SIZES[[#This Row],[i]]+2 -> 69 | E80: 67
A81: ="varchar_0_"&DBMS_TYPE_SIZES[[#This Row],[i]] -> varchar_0_68 | B81: =DBMS_TYPE_SIZES[[#This Row],[i]] -> 68 | C81: =DBMS_TYPE_SIZES[[#This Row],[i]] -> 68 | D81: =DBMS_TYPE_SIZES[[#This Row],[i]]+2 -> 70 | E81: 68
A82: ="varchar_0_"&DBMS_TYPE_SIZES[[#This Row],[i]] -> varchar_0_69 | B82: =DBMS_TYPE_SIZES[[#This Row],[i]] -> 69 | C82: =DBMS_TYPE_SIZES[[#This Row],[i]] -> 69 | D82: =DBMS_TYPE_SIZES[[#This Row],[i]]+2 -> 71 | E82: 69
A83: ="varchar_0_"&DBMS_TYPE_SIZES[[#This Row],[i]] -> varchar_0_70 | B83: =DBMS_TYPE_SIZES[[#This Row],[i]] -> 70 | C83: =DBMS_TYPE_SIZES[[#This Row],[i]] -> 70 | D83: =DBMS_TYPE_SIZES[[#This Row],[i]]+2 -> 72 | E83: 70
A84: ="varchar_0_"&DBMS_TYPE_SIZES[[#This Row],[i]] -> varchar_0_71 | B84: =DBMS_TYPE_SIZES[[#This Row],[i]] -> 71 | C84: =DBMS_TYPE_SIZES[[#This Row],[i]] -> 71 | D84: =DBMS_TYPE_SIZES[[#This Row],[i]]+2 -> 73 | E84: 71
A85: ="varchar_0_"&DBMS_TYPE_SIZES[[#This Row],[i]] -> varchar_0_72 | B85: =DBMS_TYPE_SIZES[[#This Row],[i]] -> 72 | C85: =DBMS_TYPE_SIZES[[#This Row],[i]] -> 72 | D85: =DBMS_TYPE_SIZES[[#This Row],[i]]+2 -> 74 | E85: 72
A86: ="varchar_0_"&DBMS_TYPE_SIZES[[#This Row],[i]] -> varchar_0_73 | B86: =DBMS_TYPE_SIZES[[#This Row],[i]] -> 73 | C86: =DBMS_TYPE_SIZES[[#This Row],[i]] -> 73 | D86: =DBMS_TYPE_SIZES[[#This Row],[i]]+2 -> 75 | E86: 73
A87: ="varchar_0_"&DBMS_TYPE_SIZES[[#This Row],[i]] -> varchar_0_74 | B87: =DBMS_TYPE_SIZES[[#This Row],[i]] -> 74 | C87: =DBMS_TYPE_SIZES[[#This Row],[i]] -> 74 | D87: =DBMS_TYPE_SIZES[[#This Row],[i]]+2 -> 76 | E87: 74
A88: ="varchar_0_"&DBMS_TYPE_SIZES[[#This Row],[i]] -> varchar_0_75 | B88: =DBMS_TYPE_SIZES[[#This Row],[i]] -> 75 | C88: =DBMS_TYPE_SIZES[[#This Row],[i]] -> 75 | D88: =DBMS_TYPE_SIZES[[#This Row],[i]]+2 -> 77 | E88: 75
A89: ="varchar_0_"&DBMS_TYPE_SIZES[[#This Row],[i]] -> varchar_0_76 | B89: =DBMS_TYPE_SIZES[[#This Row],[i]] -> 76 | C89: =DBMS_TYPE_SIZES[[#This Row],[i]] -> 76 | D89: =DBMS_TYPE_SIZES[[#This Row],[i]]+2 -> 78 | E89: 76
A90: ="varchar_0_"&DBMS_TYPE_SIZES[[#This Row],[i]] -> varchar_0_77 | B90: =DBMS_TYPE_SIZES[[#This Row],[i]] -> 77 | C90: =DBMS_TYPE_SIZES[[#This Row],[i]] -> 77 | D90: =DBMS_TYPE_SIZES[[#This Row],[i]]+2 -> 79 | E90: 77
A91: ="varchar_0_"&DBMS_TYPE_SIZES[[#This Row],[i]] -> varchar_0_78 | B91: =DBMS_TYPE_SIZES[[#This Row],[i]] -> 78 | C91: =DBMS_TYPE_SIZES[[#This Row],[i]] -> 78 | D91: =DBMS_TYPE_SIZES[[#This Row],[i]]+2 -> 80 | E91: 78
A92: ="varchar_0_"&DBMS_TYPE_SIZES[[#This Row],[i]] -> varchar_0_79 | B92: =DBMS_TYPE_SIZES[[#This Row],[i]] -> 79 | C92: =DBMS_TYPE_SIZES[[#This Row],[i]] -> 79 | D92: =DBMS_TYPE_SIZES[[#This Row],[i]]+2 -> 81 | E92: 79
A93: ="varchar_0_"&DBMS_TYPE_SIZES[[#This Row],[i]] -> varchar_0_80 | B93: =DBMS_TYPE_SIZES[[#This Row],[i]] -> 80 | C93: =DBMS_TYPE_SIZES[[#This Row],[i]] -> 80 | D93: =DBMS_TYPE_SIZES[[#This Row],[i]]+2 -> 82 | E93: 80
A94: ="varchar_0_"&DBMS_TYPE_SIZES[[#This Row],[i]] -> varchar_0_81 | B94: =DBMS_TYPE_SIZES[[#This Row],[i]] -> 81 | C94: =DBMS_TYPE_SIZES[[#This Row],[i]] -> 81 | D94: =DBMS_TYPE_SIZES[[#This Row],[i]]+2 -> 83 | E94: 81
A95: ="varchar_0_"&DBMS_TYPE_SIZES[[#This Row],[i]] -> varchar_0_82 | B95: =DBMS_TYPE_SIZES[[#This Row],[i]] -> 82 | C95: =DBMS_TYPE_SIZES[[#This Row],[i]] -> 82 | D95: =DBMS_TYPE_SIZES[[#This Row],[i]]+2 -> 84 | E95: 82
A96: ="varchar_0_"&DBMS_TYPE_SIZES[[#This Row],[i]] -> varchar_0_83 | B96: =DBMS_TYPE_SIZES[[#This Row],[i]] -> 83 | C96: =DBMS_TYPE_SIZES[[#This Row],[i]] -> 83 | D96: =DBMS_TYPE_SIZES[[#This Row],[i]]+2 -> 85 | E96: 83
A97: ="varchar_0_"&DBMS_TYPE_SIZES[[#This Row],[i]] -> varchar_0_84 | B97: =DBMS_TYPE_SIZES[[#This Row],[i]] -> 84 | C97: =DBMS_TYPE_SIZES[[#This Row],[i]] -> 84 | D97: =DBMS_TYPE_SIZES[[#This Row],[i]]+2 -> 86 | E97: 84
A98: ="varchar_0_"&DBMS_TYPE_SIZES[[#This Row],[i]] -> varchar_0_85 | B98: =DBMS_TYPE_SIZES[[#This Row],[i]] -> 85 | C98: =DBMS_TYPE_SIZES[[#This Row],[i]] -> 85 | D98: =DBMS_TYPE_SIZES[[#This Row],[i]]+2 -> 87 | E98: 85
A99: ="varchar_0_"&DBMS_TYPE_SIZES[[#This Row],[i]] -> varchar_0_86 | B99: =DBMS_TYPE_SIZES[[#This Row],[i]] -> 86 | C99: =DBMS_TYPE_SIZES[[#This Row],[i]] -> 86 | D99: =DBMS_TYPE_SIZES[[#This Row],[i]]+2 -> 88 | E99: 86
A100: ="varchar_0_"&DBMS_TYPE_SIZES[[#This Row],[i]] -> varchar_0_87 | B100: =DBMS_TYPE_SIZES[[#This Row],[i]] -> 87 | C100: =DBMS_TYPE_SIZES[[#This Row],[i]] -> 87 | D100: =DBMS_TYPE_SIZES[[#This Row],[i]]+2 -> 89 | E100: 87
A101: ="varchar_0_"&DBMS_TYPE_SIZES[[#This Row],[i]] -> varchar_0_88 | B101: =DBMS_TYPE_SIZES[[#This Row],[i]] -> 88 | C101: =DBMS_TYPE_SIZES[[#This Row],[i]] -> 88 | D101: =DBMS_TYPE_SIZES[[#This Row],[i]]+2 -> 90 | E101: 88
A102: ="varchar_0_"&DBMS_TYPE_SIZES[[#This Row],[i]] -> varchar_0_89 | B102: =DBMS_TYPE_SIZES[[#This Row],[i]] -> 89 | C102: =DBMS_TYPE_SIZES[[#This Row],[i]] -> 89 | D102: =DBMS_TYPE_SIZES[[#This Row],[i]]+2 -> 91 | E102: 89
A103: ="varchar_0_"&DBMS_TYPE_SIZES[[#This Row],[i]] -> varchar_0_90 | B103: =DBMS_TYPE_SIZES[[#This Row],[i]] -> 90 | C103: =DBMS_TYPE_SIZES[[#This Row],[i]] -> 90 | D103: =DBMS_TYPE_SIZES[[#This Row],[i]]+2 -> 92 | E103: 90
A104: ="varchar_0_"&DBMS_TYPE_SIZES[[#This Row],[i]] -> varchar_0_91 | B104: =DBMS_TYPE_SIZES[[#This Row],[i]] -> 91 | C104: =DBMS_TYPE_SIZES[[#This Row],[i]] -> 91 | D104: =DBMS_TYPE_SIZES[[#This Row],[i]]+2 -> 93 | E104: 91
A105: ="varchar_0_"&DBMS_TYPE_SIZES[[#This Row],[i]] -> varchar_0_92 | B105: =DBMS_TYPE_SIZES[[#This Row],[i]] -> 92 | C105: =DBMS_TYPE_SIZES[[#This Row],[i]] -> 92 | D105: =DBMS_TYPE_SIZES[[#This Row],[i]]+2 -> 94 | E105: 92
A106: ="varchar_0_"&DBMS_TYPE_SIZES[[#This Row],[i]] -> varchar_0_93 | B106: =DBMS_TYPE_SIZES[[#This Row],[i]] -> 93 | C106: =DBMS_TYPE_SIZES[[#This Row],[i]] -> 93 | D106: =DBMS_TYPE_SIZES[[#This Row],[i]]+2 -> 95 | E106: 93
A107: ="varchar_0_"&DBMS_TYPE_SIZES[[#This Row],[i]] -> varchar_0_94 | B107: =DBMS_TYPE_SIZES[[#This Row],[i]] -> 94 | C107: =DBMS_TYPE_SIZES[[#This Row],[i]] -> 94 | D107: =DBMS_TYPE_SIZES[[#This Row],[i]]+2 -> 96 | E107: 94
A108: ="varchar_0_"&DBMS_TYPE_SIZES[[#This Row],[i]] -> varchar_0_95 | B108: =DBMS_TYPE_SIZES[[#This Row],[i]] -> 95 | C108: =DBMS_TYPE_SIZES[[#This Row],[i]] -> 95 | D108: =DBMS_TYPE_SIZES[[#This Row],[i]]+2 -> 97 | E108: 95
A109: ="varchar_0_"&DBMS_TYPE_SIZES[[#This Row],[i]] -> varchar_0_96 | B109: =DBMS_TYPE_SIZES[[#This Row],[i]] -> 96 | C109: =DBMS_TYPE_SIZES[[#This Row],[i]] -> 96 | D109: =DBMS_TYPE_SIZES[[#This Row],[i]]+2 -> 98 | E109: 96
A110: ="varchar_0_"&DBMS_TYPE_SIZES[[#This Row],[i]] -> varchar_0_97 | B110: =DBMS_TYPE_SIZES[[#This Row],[i]] -> 97 | C110: =DBMS_TYPE_SIZES[[#This Row],[i]] -> 97 | D110: =DBMS_TYPE_SIZES[[#This Row],[i]]+2 -> 99 | E110: 97
A111: ="varchar_0_"&DBMS_TYPE_SIZES[[#This Row],[i]] -> varchar_0_98 | B111: =DBMS_TYPE_SIZES[[#This Row],[i]] -> 98 | C111: =DBMS_TYPE_SIZES[[#This Row],[i]] -> 98 | D111: =DBMS_TYPE_SIZES[[#This Row],[i]]+2 -> 100 | E111: 98
A112: ="varchar_0_"&DBMS_TYPE_SIZES[[#This Row],[i]] -> varchar_0_99 | B112: =DBMS_TYPE_SIZES[[#This Row],[i]] -> 99 | C112: =DBMS_TYPE_SIZES[[#This Row],[i]] -> 99 | D112: =DBMS_TYPE_SIZES[[#This Row],[i]]+2 -> 101 | E112: 99
A113: ="varchar_0_"&DBMS_TYPE_SIZES[[#This Row],[i]] -> varchar_0_100 | B113: =DBMS_TYPE_SIZES[[#This Row],[i]] -> 100 | C113: =DBMS_TYPE_SIZES[[#This Row],[i]] -> 100 | D113: =DBMS_TYPE_SIZES[[#This Row],[i]]+2 -> 102 | E113: 100
A114: ="varchar_0_"&DBMS_TYPE_SIZES[[#This Row],[i]] -> varchar_0_101 | B114: =DBMS_TYPE_SIZES[[#This Row],[i]] -> 101 | C114: =DBMS_TYPE_SIZES[[#This Row],[i]] -> 101 | D114: =DBMS_TYPE_SIZES[[#This Row],[i]]+2 -> 103 | E114: 101
A115: ="varchar_0_"&DBMS_TYPE_SIZES[[#This Row],[i]] -> varchar_0_102 | B115: =DBMS_TYPE_SIZES[[#This Row],[i]] -> 102 | C115: =DBMS_TYPE_SIZES[[#This Row],[i]] -> 102 | D115: =DBMS_TYPE_SIZES[[#This Row],[i]]+2 -> 104 | E115: 102
A116: ="varchar_0_"&DBMS_TYPE_SIZES[[#This Row],[i]] -> varchar_0_103 | B116: =DBMS_TYPE_SIZES[[#This Row],[i]] -> 103 | C116: =DBMS_TYPE_SIZES[[#This Row],[i]] -> 103 | D116: =DBMS_TYPE_SIZES[[#This Row],[i]]+2 -> 105 | E116: 103
A117: ="varchar_0_"&DBMS_TYPE_SIZES[[#This Row],[i]] -> varchar_0_104 | B117: =DBMS_TYPE_SIZES[[#This Row],[i]] -> 104 | C117: =DBMS_TYPE_SIZES[[#This Row],[i]] -> 104 | D117: =DBMS_TYPE_SIZES[[#This Row],[i]]+2 -> 106 | E117: 104
A118: ="varchar_0_"&DBMS_TYPE_SIZES[[#This Row],[i]] -> varchar_0_105 | B118: =DBMS_TYPE_SIZES[[#This Row],[i]] -> 105 | C118: =DBMS_TYPE_SIZES[[#This Row],[i]] -> 105 | D118: =DBMS_TYPE_SIZES[[#This Row],[i]]+2 -> 107 | E118: 105
A119: ="varchar_0_"&DBMS_TYPE_SIZES[[#This Row],[i]] -> varchar_0_106 | B119: =DBMS_TYPE_SIZES[[#This Row],[i]] -> 106 | C119: =DBMS_TYPE_SIZES[[#This Row],[i]] -> 106 | D119: =DBMS_TYPE_SIZES[[#This Row],[i]]+2 -> 108 | E119: 106
A120: ="varchar_0_"&DBMS_TYPE_SIZES[[#This Row],[i]] -> varchar_0_107 | B120: =DBMS_TYPE_SIZES[[#This Row],[i]] -> 107 | C120: =DBMS_TYPE_SIZES[[#This Row],[i]] -> 107 | D120: =DBMS_TYPE_SIZES[[#This Row],[i]]+2 -> 109 | E120: 107
A121: ="varchar_0_"&DBMS_TYPE_SIZES[[#This Row],[i]] -> varchar_0_108 | B121: =DBMS_TYPE_SIZES[[#This Row],[i]] -> 108 | C121: =DBMS_TYPE_SIZES[[#This Row],[i]] -> 108 | D121: =DBMS_TYPE_SIZES[[#This Row],[i]]+2 -> 110 | E121: 108
A122: ="varchar_0_"&DBMS_TYPE_SIZES[[#This Row],[i]] -> varchar_0_109 | B122: =DBMS_TYPE_SIZES[[#This Row],[i]] -> 109 | C122: =DBMS_TYPE_SIZES[[#This Row],[i]] -> 109 | D122: =DBMS_TYPE_SIZES[[#This Row],[i]]+2 -> 111 | E122: 109
A123: ="varchar_0_"&DBMS_TYPE_SIZES[[#This Row],[i]] -> varchar_0_110 | B123: =DBMS_TYPE_SIZES[[#This Row],[i]] -> 110 | C123: =DBMS_TYPE_SIZES[[#This Row],[i]] -> 110 | D123: =DBMS_TYPE_SIZES[[#This Row],[i]]+2 -> 112 | E123: 110
A124: ="varchar_0_"&DBMS_TYPE_SIZES[[#This Row],[i]] -> varchar_0_111 | B124: =DBMS_TYPE_SIZES[[#This Row],[i]] -> 111 | C124: =DBMS_TYPE_SIZES[[#This Row],[i]] -> 111 | D124: =DBMS_TYPE_SIZES[[#This Row],[i]]+2 -> 113 | E124: 111
A125: ="varchar_0_"&DBMS_TYPE_SIZES[[#This Row],[i]] -> varchar_0_112 | B125: =DBMS_TYPE_SIZES[[#This Row],[i]] -> 112 | C125: =DBMS_TYPE_SIZES[[#This Row],[i]] -> 112 | D125: =DBMS_TYPE_SIZES[[#This Row],[i]]+2 -> 114 | E125: 112
A126: ="varchar_0_"&DBMS_TYPE_SIZES[[#This Row],[i]] -> varchar_0_113 | B126: =DBMS_TYPE_SIZES[[#This Row],[i]] -> 113 | C126: =DBMS_TYPE_SIZES[[#This Row],[i]] -> 113 | D126: =DBMS_TYPE_SIZES[[#This Row],[i]]+2 -> 115 | E126: 113
A127: ="varchar_0_"&DBMS_TYPE_SIZES[[#This Row],[i]] -> varchar_0_114 | B127: =DBMS_TYPE_SIZES[[#This Row],[i]] -> 114 | C127: =DBMS_TYPE_SIZES[[#This Row],[i]] -> 114 | D127: =DBMS_TYPE_SIZES[[#This Row],[i]]+2 -> 116 | E127: 114
A128: ="varchar_0_"&DBMS_TYPE_SIZES[[#This Row],[i]] -> varchar_0_115 | B128: =DBMS_TYPE_SIZES[[#This Row],[i]] -> 115 | C128: =DBMS_TYPE_SIZES[[#This Row],[i]] -> 115 | D128: =DBMS_TYPE_SIZES[[#This Row],[i]]+2 -> 117 | E128: 115
A129: ="varchar_0_"&DBMS_TYPE_SIZES[[#This Row],[i]] -> varchar_0_116 | B129: =DBMS_TYPE_SIZES[[#This Row],[i]] -> 116 | C129: =DBMS_TYPE_SIZES[[#This Row],[i]] -> 116 | D129: =DBMS_TYPE_SIZES[[#This Row],[i]]+2 -> 118 | E129: 116
A130: ="varchar_0_"&DBMS_TYPE_SIZES[[#This Row],[i]] -> varchar_0_117 | B130: =DBMS_TYPE_SIZES[[#This Row],[i]] -> 117 | C130: =DBMS_TYPE_SIZES[[#This Row],[i]] -> 117 | D130: =DBMS_TYPE_SIZES[[#This Row],[i]]+2 -> 119 | E130: 117
A131: ="varchar_0_"&DBMS_TYPE_SIZES[[#This Row],[i]] -> varchar_0_118 | B131: =DBMS_TYPE_SIZES[[#This Row],[i]] -> 118 | C131: =DBMS_TYPE_SIZES[[#This Row],[i]] -> 118 | D131: =DBMS_TYPE_SIZES[[#This Row],[i]]+2 -> 120 | E131: 118
A132: ="varchar_0_"&DBMS_TYPE_SIZES[[#This Row],[i]] -> varchar_0_119 | B132: =DBMS_TYPE_SIZES[[#This Row],[i]] -> 119 | C132: =DBMS_TYPE_SIZES[[#This Row],[i]] -> 119 | D132: =DBMS_TYPE_SIZES[[#This Row],[i]]+2 -> 121 | E132: 119
A133: ="varchar_0_"&DBMS_TYPE_SIZES[[#This Row],[i]] -> varchar_0_120 | B133: =DBMS_TYPE_SIZES[[#This Row],[i]] -> 120 | C133: =DBMS_TYPE_SIZES[[#This Row],[i]] -> 120 | D133: =DBMS_TYPE_SIZES[[#This Row],[i]]+2 -> 122 | E133: 120
A134: ="varchar_0_"&DBMS_TYPE_SIZES[[#This Row],[i]] -> varchar_0_121 | B134: =DBMS_TYPE_SIZES[[#This Row],[i]] -> 121 | C134: =DBMS_TYPE_SIZES[[#This Row],[i]] -> 121 | D134: =DBMS_TYPE_SIZES[[#This Row],[i]]+2 -> 123 | E134: 121
A135: ="varchar_0_"&DBMS_TYPE_SIZES[[#This Row],[i]] -> varchar_0_122 | B135: =DBMS_TYPE_SIZES[[#This Row],[i]] -> 122 | C135: =DBMS_TYPE_SIZES[[#This Row],[i]] -> 122 | D135: =DBMS_TYPE_SIZES[[#This Row],[i]]+2 -> 124 | E135: 122
A136: ="varchar_0_"&DBMS_TYPE_SIZES[[#This Row],[i]] -> varchar_0_123 | B136: =DBMS_TYPE_SIZES[[#This Row],[i]] -> 123 | C136: =DBMS_TYPE_SIZES[[#This Row],[i]] -> 123 | D136: =DBMS_TYPE_SIZES[[#This Row],[i]]+2 -> 125 | E136: 123
A137: ="varchar_0_"&DBMS_TYPE_SIZES[[#This Row],[i]] -> varchar_0_124 | B137: =DBMS_TYPE_SIZES[[#This Row],[i]] -> 124 | C137: =DBMS_TYPE_SIZES[[#This Row],[i]] -> 124 | D137: =DBMS_TYPE_SIZES[[#This Row],[i]]+2 -> 126 | E137: 124
A138: ="varchar_0_"&DBMS_TYPE_SIZES[[#This Row],[i]] -> varchar_0_125 | B138: =DBMS_TYPE_SIZES[[#This Row],[i]] -> 125 | C138: =DBMS_TYPE_SIZES[[#This Row],[i]] -> 125 | D138: =DBMS_TYPE_SIZES[[#This Row],[i]]+2 -> 127 | E138: 125
A139: ="varchar_0_"&DBMS_TYPE_SIZES[[#This Row],[i]] -> varchar_0_126 | B139: =DBMS_TYPE_SIZES[[#This Row],[i]] -> 126 | C139: =DBMS_TYPE_SIZES[[#This Row],[i]] -> 126 | D139: =DBMS_TYPE_SIZES[[#This Row],[i]]+2 -> 128 | E139: 126
A140: ="varchar_0_"&DBMS_TYPE_SIZES[[#This Row],[i]] -> varchar_0_127 | B140: =DBMS_TYPE_SIZES[[#This Row],[i]] -> 127 | C140: =DBMS_TYPE_SIZES[[#This Row],[i]] -> 127 | D140: =DBMS_TYPE_SIZES[[#This Row],[i]]+2 -> 129 | E140: 127
A141: ="varchar_0_"&DBMS_TYPE_SIZES[[#This Row],[i]] -> varchar_0_128 | B141: =DBMS_TYPE_SIZES[[#This Row],[i]] -> 128 | C141: =DBMS_TYPE_SIZES[[#This Row],[i]] -> 128 | D141: =DBMS_TYPE_SIZES[[#This Row],[i]]+2 -> 130 | E141: 128
